Workbook

Sheet Class Notes
C1: Mini-Grid
C2: Start with Inputs and Gather Inputs
C3: Work through Demand and Supply -- this is demand model not supply model
C4: Make Disatch - Not so difficult and compute unmet demand
C6: Exercises | D6: Make TRUE and FALSE with Solar
D7: Make Reset Button | J7: Create Combo Box for Testing
D8: Make Flag for Distribution | J8: Compute kWh
D9: Fill in Solar Page
D10: Solar PMT and Remaining PV
D11: Diesel Cost
D12: Computation of Price
D13: Balance Sheet
C17: Theory
C18: Use Data from Other Models, but Repair and Reverse Engineer
C19: Combine concepts from project finance (PMT and PV) and corporate finance - Terminal Value and continuing cap exp
D22: Introduction: Other Models
E23: Project Finance and Corporate Finance
E24: UN Development Programme
E26: Compare and Discuss Ideas
E27: Presentation is a Big Deal
E28: Use General Modelling Philo
E29: Add Distribution Button
E30: Add Reset Button
E31: Spinners help the error checking
E33: Need for Benchmarking - Friend who Studies
E34: Richard's Boat
E35: Checking with Spinne Boxes
D37: It is complex, so get things explainable
E38: Work with one day on the graph
E39: See the Match for finding the day
E40: Work with Different Solar
E41: Make Sure Dispatch works with simple scenarios
D43: Residual Values
E44: Use of SUMPRODUCT
E45: Checking with IRR on each tranche
E46: Checking with Zero IRR
K49: Battery_Cost_Applied
K50: Battery_Cost_Base
E51: Short-cut | G51: 2022-01-01 | K51: Battery_Life_Applied
E52: Reset | K52: Battery_Life_Base
E53: Goal Seek | K53: Diesel_Life_Applied
E54: Monte Carlo | K54: Diesel_Life_Base
E55: Data Table | K55: Diesel_Price_Applied
E56: Circular Reference | K56: Diesel_Price_Base
E57: Data Table and Circ | K57: Solar_Applied
E58: UDF | K58: Solar_Base
E59: UDF for Circu | K59: Solar_Life_Applied
K60: Solar_Life_Base

Sheet Summary
C2: Day of Year Displayed
C4: Demand And Supply Profile
C8: Demand kW | D8: =Inputs!G39 -> 108.5373134
C9: Solar kW | D9: =Inputs!G49 -> 136.7570149 | E9: =Inputs!$F$48 -> 2.1
C10: Battery kW | D10: =Inputs!G60 -> 65.12238806 | E10: =Inputs!$F$59 -> 1
C11: Diesel kW | D11: =Inputs!G74 -> 65.12238806 | E11: =Inputs!$F$72 -> 1
D13: USD/kW | E13: Life
C14: Solar Cost | D14: =Inputs!$F$50 -> 650 | E14: =Inputs!F53 -> 30
C15: Battery Cost USD/kWh | D15: =Inputs!F62 -> 300 | E15: =Inputs!F66 -> 8
C16: Diesel Cost USD/kW | D16: =Inputs!F76 -> 650 | E16: =Inputs!F82 -> 20
C17: Diesel Price USD/L | D17: =Inputs!F80 -> 1 | H17: Electricity Prices and Real Target Returns
C19: Solar Yield (kWh/kWp) | D19: =Solar!F6 -> 1659.208122 | H19: Real Electricity Cost w/o Unserved | L19: ='Financial Model'!R115 -> 0.1668222861 | N19: Demand | P19: ='Financial Model'!K8 -> 252288
C20: Solar Capacity Factor | D20: =Solar!F7 -> 0.1894073199 | H20: Cost of Unserved Energy | L20: =Inputs!F96 -> 0.35 | N20: Solar Energy | P20: ='Financial Model'!K19 -> 107598.1263
H21: Real Cost Including Unserved | L21: ='Financial Model'!R121 -> 0.1668222861 | N21: Battery Energy | P21: ='Financial Model'!K20 -> 86140.3233
C22: Distribution km | D22: ='Financial Model'!N48 -> 0 | N22: Diesel Energy | P22: ='Financial Model'!K21 -> 58549.55042
C23: Distribution Cost | D23: =Inputs!$F$88 -> 7000 | H23: Target Real IRR | L23: =Inputs!$F$101 -> 0.09 | N23: Unserved Energy | P23: ='Financial Model'!K23 -> 0
H24: Realised IRR | L24: ='Financial Model'!F96 -> 0.09

Sheet Inputs
B2: Model Timing
C3: Model Start Date | G3: 2022-01-01
C4: Construction Start Date | G4: =G3 -> 2022-01-01
B6: Demand | E6: Date | G6: 2024-01-01
C7: Households in Village | E7: Households | G7: 2000
C8: Initial Penetration | E8: %
C9: Total Households | E9: Households | G9: =G7*G12 -> 2000
C11: Penetration | E11: Date | F11: =G3 -> 2022-01-01 | G11: =G6 -> 2024-01-01 | H11: =EDATE(G11,12) -> 2025-01-01 | I11: =EDATE(H11,12) -> 2026-01-01 | J11: 2027-01-01 | K11: 2028-01-01 | L11: 2029-01-01 | M11: 2030-01-01
D12: All Up-Front Penetration | G12: 1 | H12: 0 | I12: 0 | J12: 0 | K12: 0 | L12: 0 | M12: 0
D13: Base Case Penetration | G13: 0.6 | H13: 0.1 | I13: 0.08 | J13: 0.06 | K13: 0.06 | L13: 0.05 | M13: 0.05
D14: Two Year Penetration | G14: 0.5 | H14: 0.5
D15: Slow Penetration | G15: =1/7 -> 0.1428571429 | H15: =1/7 -> 0.1428571429 | I15: 0.1428571429 | J15: 0.1428571429 | K15: 0.1428571429 | L15: 0.1428571429 | M15: 0.1428571429
D16: Future Penetration | E16: % | F16: 2 | G16: =INDEX(G12:G15,$F$16) -> 0.6 | H16: =INDEX(H12:H15,$F$16) -> 0.1 | I16: =INDEX(I12:I15,$F$16) -> 0.08 | J16: =INDEX(J12:J15,$F$16) -> 0.06 | K16: =INDEX(K12:K15,$F$16) -> 0.06 | L16: =INDEX(L12:L15,$F$16) -> 0.05 | M16: =INDEX(M12:M15,$F$16) -> 0.05
D17: Cumulative Penetration | G17: =F17+G16 -> 0.6 | H17: =G17+H16 -> 0.7 | I17: 0.78 | J17: 0.84 | K17: 0.9 | L17: 0.95 | M17: 1
D19: New Customers | E19: Households | G19: =G7*G16 -> 1200 | H19: =$G$7*H16 -> 200 | I19: =$G$7*I16 -> 160 | J19: 120 | K19: 120 | L19: 100 | M19: =$G$7*M16 -> 100
D20: Total Customers | E20: Households | G20: =G19 -> 1200 | H20: =G20+H19 -> 1400 | I20: =H20+I19 -> 1560 | J20: 1680 | K20: 1800 | L20: 1900 | M20: 2000
C22: Demand per Day per hh | E22: kWh/hh | G22: =2.4/100*24 -> 0.576
C24: Daily Load Profiles | G24: 0 | H24: 1 | I24: 2 | J24: 3 | K24: 4 | L24: 5 | M24: 6 | N24: 7 | O24: 8 | P24: 9 | Q24: 10 | R24: 11 | S24: 12 | T24: 13 | U24: 14 | V24: 15 | W24: 16 | X24: 17 | Y24: 18 | Z24: 19 | AA24: 20 | AB24: 21 | AC24: 22 | AD24: 23
D25: =Demand!O10 -> Bangladesh Winter | E25: % | G25: =Demand!R10 -> 0 | H25: =Demand!S10 -> 0 | I25: =Demand!T10 -> 0.0645280236 | J25: =Demand!U10 -> 0 | K25: =Demand!V10 -> 0 | L25: =Demand!W10 -> 0 | M25: =Demand!X10 -> 0 | N25: =Demand!Y10 -> 0.05991887906 | O25: =Demand!Z10 -> 0.05991887906 | P25: =Demand!AA10 -> 0.05991887906 | Q25: =Demand!AB10 -> 0.05991887906 | R25: =Demand!AC10 -> 0.009955752212 | S25: =Demand!AD10 -> 0.009955752212 | T25: =Demand!AE10 -> 0.09752949853 | U25: =Demand!AF10 -> 0.09752949853 | V25: =Demand!AG10 -> 0.1804941003 | W25: =Demand!AH10 -> 0.1574483776 | X25: =Demand!AI10 -> 0.05991887906 | Y25: =Demand!AJ10 -> 0.08296460177 | Z25: =Demand!AK10 -> 0 | AA25: =Demand!AL10 -> 0 | AB25: =Demand!AM10 -> 0 | AC25: =Demand!AN10 -> 0 | AD25: =Demand!AO10 -> 0
D26: =Demand!O11 -> Bangladesh Summer | E26: % | G26: =Demand!R11 -> 0 | H26: =Demand!S11 -> 0 | I26: =Demand!T11 -> 0.07528500753 | J26: =Demand!U11 -> 0 | K26: =Demand!V11 -> 0 | L26: =Demand!W11 -> 0 | M26: =Demand!X11 -> 0 | N26: =Demand!Y11 -> 0.02688750269 | O26: =Demand!Z11 -> 0.09679500968 | P26: =Demand!AA11 -> 0 | Q26: =Demand!AB11 -> 0 | R26: =Demand!AC11 -> 0.06539040654 | S26: =Demand!AD11 -> 0.09227790923 | T26: =Demand!AE11 -> 0.06539040654 | U26: =Demand!AF11 -> 0.1406754141 | V26: =Demand!AG11 -> 0.1675629168 | W26: =Demand!AH11 -> 0.2159604216 | X26: =Demand!AI11 -> 0.05377500538 | Y26: =Demand!AJ11 -> 0 | Z26: =Demand!AK11 -> 0 | AA26: =Demand!AL11 -> 0 | AB26: =Demand!AM11 -> 0 | AC26: =Demand!AN11 -> 0 | AD26: =Demand!AO11 -> 0
D27: =Demand!O12 -> Banda | E27: % | G27: =Demand!R12 -> 0.03533568905 | H27: =Demand!S12 -> 0.03533568905 | I27: =Demand!T12 -> 0.03533568905 | J27: =Demand!U12 -> 0.03533568905 | K27: =Demand!V12 -> 0.03533568905 | L27: =Demand!W12 -> 0.03533568905 | M27: =Demand!X12 -> 0.03533568905 | N27: =Demand!Y12 -> 0.01001177856 | O27: =Demand!Z12 -> 0.02944640754 | P27: =Demand!AA12 -> 0.03651354535 | Q27: =Demand!AB12 -> 0.05948174323 | R27: =Demand!AC12 -> 0.05948174323 | S27: =Demand!AD12 -> 0.05948174323 | T27: =Demand!AE12 -> 0.06007067138 | U27: =Demand!AF12 -> 0.06007067138 | V27: =Demand!AG12 -> 0.06007067138 | W27: =Demand!AH12 -> 0.05830388693 | X27: =Demand!AI12 -> 0.0347467609 | Y27: =Demand!AJ12 -> 0.04711425206 | Z27: =Demand!AK12 -> 0.04711425206 | AA27: =Demand!AL12 -> 0.04711425206 | AB27: =Demand!AM12 -> 0.04711425206 | AC27: =Demand!AN12 -> 0.02355712603 | AD27: =Demand!AO12 -> 0.01295641932
D28: =Demand!O13 -> Rubaba | E28: % | G28: =Demand!R13 -> 0 | H28: =Demand!S13 -> 0 | I28: =Demand!T13 -> 0 | J28: =Demand!U13 -> 0 | K28: =Demand!V13 -> 0 | L28: =Demand!W13 -> 0 | M28: =Demand!X13 -> 0 | N28: =Demand!Y13 -> 0 | O28: =Demand!Z13 -> 0 | P28: =Demand!AA13 -> 0.04664179104 | Q28: =Demand!AB13 -> 0.05130597015 | R28: =Demand!AC13 -> 0.07462686567 | S28: =Demand!AD13 -> 0.07462686567 | T28: =Demand!AE13 -> 0.07462686567 | U28: =Demand!AF13 -> 0.03731343284 | V28: =Demand!AG13 -> 0.04197761194 | W28: =Demand!AH13 -> 0.01865671642 | X28: =Demand!AI13 -> 0.01865671642 | Y28: =Demand!AJ13 -> 0.09421641791 | Z28: =Demand!AK13 -> 0.09421641791 | AA28: =Demand!AL13 -> 0.09328358209 | AB28: =Demand!AM13 -> 0.09328358209 | AC28: =Demand!AN13 -> 0.09328358209 | AD28: =Demand!AO13 -> 0.09328358209
D29: =Demand!O14 -> Mynmar | E29: % | G29: =Demand!R14 -> 0.000805997646 | H29: =Demand!S14 -> 0.000805997646 | I29: =Demand!T14 -> 0.000805997646 | J29: =Demand!U14 -> 0.000805997646 | K29: =Demand!V14 -> 0.001611995292 | L29: =Demand!W14 -> 0.001611995292 | M29: =Demand!X14 -> 0.002878563021 | N29: =Demand!Y14 -> 0.002878563021 | O29: =Demand!Z14 -> 0.003838084028 | P29: =Demand!AA14 -> 0.003838084028 | Q29: =Demand!AB14 -> 0.1917890589 | R29: =Demand!AC14 -> 0.1917890589 | S29: =Demand!AD14 -> 0.1984289443 | T29: =Demand!AE14 -> 0.1984289443 | U29: =Demand!AF14 -> 0.07113249066 | V29: =Demand!AG14 -> 0.07113249066 | W29: =Demand!AH14 -> 0.005565221841 | X29: =Demand!AI14 -> 0.005565221841 | Y29: =Demand!AJ14 -> 0.01462310015 | Z29: =Demand!AK14 -> 0.01462310015 | AA29: =Demand!AL14 -> 0.01462310015 | AB29: =Demand!AM14 -> 0.000805997646 | AC29: =Demand!AN14 -> 0.000805997646 | AD29: =Demand!AO14 -> 0.000805997646
D30: =Demand!O15 -> UN Development Programme | E30: % | G30: =Demand!R15 -> 0.02001177163 | H30: =Demand!S15 -> 0.02001177163 | I30: =Demand!T15 -> 0.000392387679 | J30: =Demand!U15 -> 0.000392387679 | K30: =Demand!V15 -> 0.000392387679 | L30: =Demand!W15 -> 0.000392387679 | M30: =Demand!X15 -> 0.000392387679 | N30: =Demand!Y15 -> 0.01177163037 | O30: =Demand!Z15 -> 0.01373356877 | P30: =Demand!AA15 -> 0.01844222091 | Q30: =Demand!AB15 -> 0.01844222091 | R30: =Demand!AC15 -> 0.02825191289 | S30: =Demand!AD15 -> 0.0243280361 | T30: =Demand!AE15 -> 0.01961938395 | U30: =Demand!AF15 -> 0.01961938395 | V30: =Demand!AG15 -> 0.01765744556 | W30: =Demand!AH15 -> 0.007847753581 | X30: =Demand!AI15 -> 0.007847753581 | Y30: =Demand!AJ15 -> 0.1367471061 | Z30: =Demand!AK15 -> 0.1583284285 | AA30: =Demand!AL15 -> 0.1583284285 | AB30: =Demand!AM15 -> 0.1583284285 | AC30: =Demand!AN15 -> 0.1288993526 | AD30: =Demand!AO15 -> 0.02982146361
D32: Profile Code | E32: 4 | F32: =MAX(G32:AD32) -> 0.09421641791 | G32: =INDEX(G25:G30,$E$32) -> 0 | H32: =INDEX(H25:H30,$E$32) -> 0 | I32: =INDEX(I25:I30,$E$32) -> 0 | J32: =INDEX(J25:J30,$E$32) -> 0 | K32: =INDEX(K25:K30,$E$32) -> 0 | L32: =INDEX(L25:L30,$E$32) -> 0 | M32: =INDEX(M25:M30,$E$32) -> 0 | N32: =INDEX(N25:N30,$E$32) -> 0 | O32: =INDEX(O25:O30,$E$32) -> 0 | P32: =INDEX(P25:P30,$E$32) -> 0.04664179104 | Q32: =INDEX(Q25:Q30,$E$32) -> 0.05130597015 | R32: =INDEX(R25:R30,$E$32) -> 0.07462686567 | S32: =INDEX(S25:S30,$E$32) -> 0.07462686567 | T32: =INDEX(T25:T30,$E$32) -> 0.07462686567 | U32: =INDEX(U25:U30,$E$32) -> 0.03731343284 | V32: =INDEX(V25:V30,$E$32) -> 0.04197761194 | W32: =INDEX(W25:W30,$E$32) -> 0.01865671642 | X32: =INDEX(X25:X30,$E$32) -> 0.01865671642 | Y32: =INDEX(Y25:Y30,$E$32) -> 0.09421641791 | Z32: =INDEX(Z25:Z30,$E$32) -> 0.09421641791 | AA32: =INDEX(AA25:AA30,$E$32) -> 0.09328358209 | AB32: =INDEX(AB25:AB30,$E$32) -> 0.09328358209 | AC32: =INDEX(AC25:AC30,$E$32) -> 0.09328358209 | AD32: =INDEX(AD25:AD30,$E$32) -> 0.09328358209
D33: With 100% at Peak | F33: =SUM(G33:AD33) -> 10.61386139 | G33: =G32/$F$32 -> 0 | H33: =H32/$F$32 -> 0 | I33: 0 | J33: 0 | K33: 0 | L33: 0 | M33: 0 | N33: 0 | O33: 0 | P33: 0.495049505 | Q33: 0.5445544554 | R33: 0.7920792079 | S33: 0.7920792079 | T33: 0.7920792079 | U33: 0.396039604 | V33: 0.4455445545 | W33: 0.198019802 | X33: 0.198019802 | Y33: 1 | Z33: 1 | AA33: 0.9900990099 | AB33: 0.9900990099 | AC33: 0.9900990099 | AD33: 0.9900990099
C35: Average Usage
D36: Total per Day per Adjusted HH | E36: kWh/hh | G36: =G22 -> 0.576 | H36: =SUM(G32:AD32) -> 1
D37: Maximum Demand per HH | E37: kW/hh | G37: =G36/I37 -> 0.05426865672 | H37: =MAX(G32:AD32) -> 0.09421641791 | I37: =SUM(G33:AD33) -> 10.61386139
D38: Load Factor | E38: % | G38: =AVERAGE(G33:AD33) -> 0.4422442244
D39: Maximum Demand - For All hh | E39: kW | G39: =G37*G7 -> 108.5373134
F41: =G3 -> 2022-01-01 | G41: =G11 -> 2024-01-01 | H41: =H11 -> 2025-01-01 | I41: 2026-01-01 | J41: 2027-01-01 | K41: 2028-01-01 | L41: 2029-01-01 | M41: 2030-01-01
D42: Maximum Demand per Year | E42: kW | G42: =$G$39*G17 -> 65.12238806 | H42: =$G$39*H17 -> 75.9761194 | I42: 84.65910448 | J42: 91.17134328 | K42: 97.68358209 | L42: 103.1104478 | M42: 108.5373134
D43: Energy per Year | E43: kWh | G43: =($G$36/24)*8760*G20 -> 252288 | H43: =($G$36/24)*8760*H20 -> 294336 | I43: 327974.4 | J43: 353203.2 | K43: 378432 | L43: 399456 | M43: 420480
B45: Supply
C46: Solar
D47: Apply | E47: Flag | G47: TRUE
D48: Percent of Total | E48: Percent | F48: =G48/100*G47 -> 2.1 | G48: 210
D49: Capacity | E49: kW | G49: =$F$48*G42 -> 136.7570149 | H49: =$F$48*H42 -> 159.5498507 | I49: 177.7841194 | J49: 191.4598209 | K49: 205.1355224 | L49: 216.5319403 | M49: 227.9283582
D50: Cost per kW of Capacity | E50: USD/kW | F50: 650 | G50: Solar Applied | I50: 650 | J50: Solar Base
D51: Fixed O&M Cost | E51: USD/kW-yr | F51: 0
D53: Solar Life | E53: Years | F53: 30 | G53: Solar Life Applied | I53: 30 | J53: Solar Life Base
D54: Solary Yield Sensitivity | E54: Factor | F54: =G54/100 -> 0.6 | G54: 60
D55: Degradation | E55: % p.a. | F55: =G55/1000 -> 0 | G55: 0
C57: Battery
D58: Apply | E58: Flag | G58: TRUE
D59: Percent of Total | E59: Percent | F59: =G59/100*G58 -> 1 | G59: 100
D60: Capacity | E60: kW | G60: =$F$59*G42 -> 65.12238806 | H60: 75.9761194 | I60: 84.65910448 | J60: 91.17134328 | K60: 97.68358209 | L60: 103.1104478 | M60: 108.5373134
D61: Energy per Cycle | E61: kWh | F61: 4 | G61: =G60*$F$61 -> 260.4895522 | H61: =H60*$F$61 -> 303.9044776 | I61: 338.6364179 | J61: 364.6853731 | K61: 390.7343284 | L61: 412.441791 | M61: 434.1492537
D62: Cost per kW of Capacity | E62: USD/kWh | F62: 300 | G62: Battery Cost Applied | I62: 300 | J62: Battery Cost Base
D63: Fixed O&M Cost | E63: % | F63: 0.015
D64: Fixed O&M Cost/kWh | E64: USD/kWh-yr | F64: =F62*F63 -> 4.5
D66: Battery Life | E66: Years | F66: 8 | G66: Battery Life Applied | I66: 8 | J66: Battery Life Base
D67: Degradation | E67: % p.a. | F67: =G67/1000 -> 0 | G67: 0
C69: Diesel
D70: Apply | E70: Flag | G70: TRUE
D72: Percent of Total | E72: % | F72: =G72/100*G70 -> 1 | G72: 100
D73: Total Capacity | E73: kW | G73: =$F$72*G42 -> 65.12238806 | H73: 75.9761194 | I73: 84.65910448 | J73: 91.17134328 | K73: 97.68358209 | L73: 103.1104478 | M73: 108.5373134
D74: Capacity Increase | E74: kW | G74: =G73-F73 -> 65.12238806 | H74: =H73-G73 -> 10.85373134 | I74: 8.682985075 | J74: 6.512238806 | K74: 6.512238806 | L74: 5.426865672 | M74: 5.426865672
D76: Cost per kW of Capacity | E76: USD/kW | F76: 650 | G76: Diesel Cost Applied | I76: 650 | J76: Diesel Cost Base
D77: Fixed O&M Cost | E77: USD/kW-yr | F77: 15
D78: Variable O&M Cost | E78: USD/kWh | F78: =4/1000 -> 0.004
D79: Heat Rate | E79: Litre/kWh | F79: 0.21
D80: Diesel Cost | E80: USD/Litre | F80: =G80/10 -> 1 | G80: 10 | H80: Diesel Price Applied | I80: 10 | J80: Diesel Price Base
D82: Operating Life | E82: Years | F82: 20 | G82: Diesel Life Applied | I82: 20 | J82: Diesel Life Base
D83: Heat Rate Degradation | E83: % p.a. | F83: =G83/1000 -> 0 | G83: 0
B85: Distribution
D86: km per Customer | E86: km/hh | F86: =Distribution!E4*H86 -> 0 | G86: 0.02 | H86: FALSE
D88: Cost per km | E88: USD/km | F88: =Distribution!E6 -> 7000
D89: Lifetime of Distribution | E89: Years | F89: 13
D91: Cost of Meter per Customer | E91: USD/meter | F91: =G91*H86 -> 0 | G91: 50
D92: Lifetime of Meters | E92: Years | F92: 15
B94: Pricing
D96: Cost of Unserved Energy/kWh | E96: USD/kWh | F96: =G96*H96 -> 0.35 | G96: 0.35 | H96: TRUE
G98: WACC | H98: Real | I98: Nom WACC | K98: Real WACC
D99: Debt | E99: =G106 -> 0.65 | F99: =G107 -> 0.03 | G99: =F99*E99 -> 0.0195 | H99: =(1+F99)/(1+$J$100)-1 -> 0.009803921569
D100: Equity | E100: =1-E99 -> 0.35 | F100: =G110 -> 0.1 | G100: =E100*F100 -> 0.035 | H100: =(1+F100)/(1+$J$100)-1 -> 0.07843137255 | I100: =G100+G99 -> 0.0545 | J100: 0.02 | K100: =(1+I100)/(1+J100)-1 -> 0.03382352941
D101: Target Real Project IRR | E101: % p.a. | F101: =G101/100 -> 0.09 | G101: 9
B103: Financing
C104: Grant as Percent of Capital Expenditures
D106: Debt Financing Percent | G106: 0.65
D107: Interest Rate on Debt - Real | G107: 0.03
D109: Equity Percent | G109: =1-G106 -> 0.35
D110: Required Equity Return | G110: 0.1

Sheet Solar
E1: World Bank
E2: Capactiy | F2: 20 | G2: kWp
E3: Maximum Generation | F3: =MAX(L15:L8774) -> 14.11382884 | G3: kWac | I3: -0.0147 | J3: x temp
E4: Average GHI | F4: =E12/8760 -> 342.6497215 | G4: Hrs | I4: 1.3373
E5: Production | F5: =L12 -> 33184.16245 | G5: kWh
E6: Yield | F6: =F5/F2 -> 1659.208122 | G6: kWh/kWp
E7: Capacity Factor | F7: =F6/8760 -> 0.1894073199 | G7: %
F9: Adjustment --> | G9: =Inputs!$F$54 -> 0.6
F10: Factor --> | G10: 0.9659258263
C12: Total for Year | E12: =SUM(E15:E8774) -> 3001611.56 | H12: =SUM(H15:H8774) -> 1800966.936 | J12: =SUM(J15:J8774) -> 1659.208122 | L12: =SUM(L15:L8774) -> 33184.16245 | M12: =SUM(M15:M8774) -> 1659.208122 | N12: =SUM(N15:N8774) -> 0 | O12: =N12/H12 -> 0
E14: Radiation per Hour at POA from PVGIS | F14: Temperature from PVGIS (Celcius) | G14: Ratio for Adjustment and/or Tracking and/or Line Loss (PVGIS) | H14: Adjusted POA, In-Plane, Generation (W/m2) | I14: Temprature Factor from Equation (Factor from Equation) | J14: Adjusted Generation per STC - kWh/kWp - Divide by 1,000 | K14: DC Capcaity - kWp | L14: Generation from kWp x kWh/kWp (kWh) | M14: Percent of Maximum Capacity | N14: Wattt Hours | O14: Ratio | P14: Performance Ratio
C15: 1 | D15: 2021-01-01 | E15: =Chad!B10 -> 0 | F15: =Burkinafaso!D10 -> 8.17 | G15: =G9 -> 0.6 | H15: =G15*E15 -> 0 | I15: =-0.0147*F15+1.33 -> 1.209901 | J15: =H15*I15/1000 -> 0 | K15: =$F$2 -> 20 | L15: =J15*K15 -> 0 | M15: =L15/K15 -> 0
C16: 2 | D16: =D15+1/24 -> 2021-01-01T01:00:00 | E16: =Chad!B11 -> 0 | F16: =Burkinafaso!D11 -> 7.73 | G16: =$G$15 -> 0.6 | H16: =G16*E16 -> 0 | I16: =-0.0147*F16+1.33 -> 1.216369 | J16: =H16*I16/1000 -> 0 | K16: =$F$2 -> 20 | L16: =J16*K16 -> 0 | M16: =L16/K16 -> 0
C17: 3 | D17: =D16+1/24 -> 2021-01-01T02:00:00 | E17: =Chad!B12 -> 0 | F17: =Burkinafaso!D12 -> 7.29 | G17: =$G$15 -> 0.6 | H17: 0 | I17: 1.222837 | J17: 0 | K17: 20 | L17: 0 | M17: 0
C18: 4 | D18: 2021-01-01T03:00:00 | E18: =Chad!B13 -> 0 | F18: =Burkinafaso!D13 -> 6.84 | G18: 0.6 | H18: 0 | I18: 1.229452 | J18: 0 | K18: 20 | L18: 0 | M18: 0
C19: 5 | D19: 2021-01-01T04:00:00 | E19: =Chad!B14 -> 0 | F19: =Burkinafaso!D14 -> 6.91 | G19: 0.6 | H19: 0 | I19: 1.228423 | J19: 0 | K19: 20 | L19: 0 | M19: 0
C20: 6 | D20: 2021-01-01T05:00:00 | E20: =Chad!B15 -> 0 | F20: =Burkinafaso!D15 -> 6.98 | G20: 0.6 | H20: 0 | I20: 1.227394 | J20: 0 | K20: 20 | L20: 0 | M20: 0
C21: 7 | D21: 2021-01-01T06:00:00 | E21: =Chad!B16 -> 0 | F21: =Burkinafaso!D16 -> 7.05 | G21: 0.6 | H21: 0 | I21: 1.226365 | J21: 0 | K21: 20 | L21: 0 | M21: 0
C22: 8 | D22: 2021-01-01T07:00:00 | E22: =Chad!B17 -> 118.51 | F22: =Burkinafaso!D17 -> 9.44 | G22: 0.6 | H22: 71.106 | I22: 1.191232 | J22: 0.08470374259 | K22: 20 | L22: 1.694074852 | M22: 0.08470374259
C23: 9 | D23: 2021-01-01T08:00:00 | E23: =Chad!B18 -> 258.46 | F23: =Burkinafaso!D18 -> 11.83 | G23: 0.6 | H23: 155.076 | I23: 1.156099 | J23: 0.1792832085 | K23: 20 | L23: 3.58566417 | M23: 0.1792832085
C24: 10 | D24: 2021-01-01T09:00:00 | E24: =Chad!B19 -> 176.83 | F24: =Burkinafaso!D19 -> 14.21 | G24: 0.6 | H24: 106.098 | I24: 1.121113 | J24: 0.1189478471 | K24: 20 | L24: 2.378956941 | M24: 0.1189478471
C25: 11 | D25: 2021-01-01T10:00:00 | E25: =Chad!B20 -> 1000.43 | F25: =Burkinafaso!D20 -> 15.37 | G25: 0.6 | H25: 600.258 | I25: 1.104061 | J25: 0.6627214477 | K25: 20 | L25: 13.25442895 | M25: 0.6627214477
C26: 12 | D26: 2021-01-01T11:00:00 | E26: =Chad!B21 -> 1037.97 | F26: =Burkinafaso!D21 -> 16.54 | G26: 0.6 | H26: 622.782 | I26: 1.086862 | J26: 0.6768780901 | K26: 20 | L26: 13.5375618 | M26: 0.6768780901
C27: 13 | D27: 2021-01-01T12:00:00 | E27: =Chad!B22 -> 1034.58 | F27: =Burkinafaso!D22 -> 17.7 | G27: 0.6 | H27: 620.748 | I27: 1.06981 | J27: 0.6640824179 | K27: 20 | L27: 13.28164836 | M27: 0.6640824179
C28: 14 | D28: 2021-01-01T13:00:00 | E28: =Chad!B23 -> 436.72 | F28: =Burkinafaso!D23 -> 17.35 | G28: 0.6 | H28: 262.032 | I28: 1.074955 | J28: 0.2816726086 | K28: 20 | L28: 5.633452171 | M28: 0.2816726086
C29: 15 | D29: 2021-01-01T14:00:00 | E29: =Chad!B24 -> 1017.83 | F29: =Burkinafaso!D24 -> 17.01 | G29: 0.6 | H29: 610.698 | I29: 1.079953 | J29: 0.6595251372 | K29: 20 | L29: 13.19050274 | M29: 0.6595251372
C30: 16 | D30: 2021-01-01T15:00:00 | E30: =Chad!B25 -> 781.21 | F30: =Burkinafaso!D25 -> 16.67 | G30: 0.6 | H30: 468.726 | I30: 1.084951 | J30: 0.5085447424 | K30: 20 | L30: 10.17089485 | M30: 0.5085447424
C31: 17 | D31: 2021-01-01T16:00:00 | E31: =Chad!B26 -> 433.39 | F31: =Burkinafaso!D26 -> 15.37 | G31: 0.6 | H31: 260.034 | I31: 1.104061 | J31: 0.2870933981 | K31: 20 | L31: 5.741867961 | M31: 0.2870933981
C32: 18 | D32: 2021-01-01T17:00:00 | E32: =Chad!B27 -> 649.65 | F32: =Burkinafaso!D27 -> 14.06 | G32: 0.6 | H32: 389.79 | I32: 1.123318 | J32: 0.4378581232 | K32: 20 | L32: 8.757162464 | M32: 0.4378581232
C33: 19 | D33: 2021-01-01T18:00:00 | E33: =Chad!B28 -> 0 | F33: =Burkinafaso!D28 -> 12.76 | G33: 0.6 | H33: 0 | I33: 1.142428 | J33: 0 | K33: 20 | L33: 0 | M33: 0
C34: 20 | D34: 2021-01-01T19:00:00 | E34: =Chad!B29 -> 0 | F34: =Burkinafaso!D29 -> 11.7 | G34: 0.6 | H34: 0 | I34: 1.15801 | J34: 0 | K34: 20 | L34: 0 | M34: 0
C35: 21 | D35: 2021-01-01T20:00:00 | E35: =Chad!B30 -> 0 | F35: =Burkinafaso!D30 -> 10.64 | G35: 0.6 | H35: 0 | I35: 1.173592 | J35: 0 | K35: 20 | L35: 0 | M35: 0
C36: 22 | D36: 2021-01-01T21:00:00 | E36: =Chad!B31 -> 0 | F36: =Burkinafaso!D31 -> 9.58 | G36: 0.6 | H36: 0 | I36: 1.189174 | J36: 0 | K36: 20 | L36: 0 | M36: 0
C37: 23 | D37: 2021-01-01T22:00:00 | E37: =Chad!B32 -> 0 | F37: =Burkinafaso!D32 -> 8.96 | G37: 0.6 | H37: 0 | I37: 1.198288 | J37: 0 | K37: 20 | L37: 0 | M37: 0
C38: 24 | D38: 2021-01-01T23:00:00 | E38: =Chad!B33 -> 0 | F38: =Burkinafaso!D33 -> 8.34 | G38: 0.6 | H38: 0 | I38: 1.207402 | J38: 0 | K38: 20 | L38: 0 | M38: 0
C39: 25 | D39: 2021-01-02 | E39: =Chad!B34 -> 0 | F39: =Burkinafaso!D34 -> 7.72 | G39: 0.6 | H39: 0 | I39: 1.216516 | J39: 0 | K39: 20 | L39: 0 | M39: 0
C40: 26 | D40: 2021-01-02T01:00:00 | E40: =Chad!B35 -> 0 | F40: =Burkinafaso!D35 -> 7.31 | G40: 0.6 | H40: 0 | I40: 1.222543 | J40: 0 | K40: 20 | L40: 0 | M40: 0
C41: 27 | D41: 2021-01-02T02:00:00 | E41: =Chad!B36 -> 0 | F41: =Burkinafaso!D36 -> 6.9 | G41: 0.6 | H41: 0 | I41: 1.22857 | J41: 0 | K41: 20 | L41: 0 | M41: 0
C42: 28 | D42: 2021-01-02T03:00:00 | E42: =Chad!B37 -> 0 | F42: =Burkinafaso!D37 -> 6.48 | G42: 0.6 | H42: 0 | I42: 1.234744 | J42: 0 | K42: 20 | L42: 0 | M42: 0
C43: 29 | D43: 2021-01-02T04:00:00 | E43: =Chad!B38 -> 0 | F43: =Burkinafaso!D38 -> 6.62 | G43: 0.6 | H43: 0 | I43: 1.232686 | J43: 0 | K43: 20 | L43: 0 | M43: 0
C44: 30 | D44: 2021-01-02T05:00:00 | E44: =Chad!B39 -> 0 | F44: =Burkinafaso!D39 -> 6.76 | G44: 0.6 | H44: 0 | I44: 1.230628 | J44: 0 | K44: 20 | L44: 0 | M44: 0
C45: 31 | D45: 2021-01-02T06:00:00 | E45: =Chad!B40 -> 0 | F45: =Burkinafaso!D40 -> 6.9 | G45: 0.6 | H45: 0 | I45: 1.22857 | J45: 0 | K45: 20 | L45: 0 | M45: 0
C46: 32 | D46: 2021-01-02T07:00:00 | E46: =Chad!B41 -> 149.25 | F46: =Burkinafaso!D41 -> 9.3 | G46: 0.6 | H46: 89.55 | I46: 1.19329 | J46: 0.1068591195 | K46: 20 | L46: 2.13718239 | M46: 0.1068591195
C47: 33 | D47: 2021-01-02T08:00:00 | E47: =Chad!B42 -> 707.6 | F47: =Burkinafaso!D42 -> 11.69 | G47: 0.6 | H47: 424.56 | I47: 1.158157 | J47: 0.4917071359 | K47: 20 | L47: 9.834142718 | M47: 0.4917071359
C48: 34 | D48: 2021-01-02T09:00:00 | E48: =Chad!B43 -> 908.26 | F48: =Burkinafaso!D43 -> 14.08 | G48: 0.6 | H48: 544.956 | I48: 1.123024 | J48: 0.6119986669 | K48: 20 | L48: 12.23997334 | M48: 0.6119986669
C49: 35 | D49: 2021-01-02T10:00:00 | E49: =Chad!B44 -> 977.88 | F49: =Burkinafaso!D44 -> 15.15 | G49: 0.6 | H49: 586.728 | I49: 1.107295 | J49: 0.6496809808 | K49: 20 | L49: 12.99361962 | M49: 0.6496809808
C50: 36 | D50: 2021-01-02T11:00:00 | E50: =Chad!B45 -> 1023.66 | F50: =Burkinafaso!D45 -> 16.23 | G50: 0.6 | H50: 614.196 | I50: 1.091419 | J50: 0.6703451841 | K50: 20 | L50: 13.40690368 | M50: 0.6703451841
C51: 37 | D51: 2021-01-02T12:00:00 | E51: =Chad!B46 -> 1036.92 | F51: =Burkinafaso!D46 -> 17.3 | G51: 0.6 | H51: 622.152 | I51: 1.07569 | J51: 0.6692426849 | K51: 20 | L51: 13.3848537 | M51: 0.6692426849
C52: 38 | D52: 2021-01-02T13:00:00 | E52: =Chad!B47 -> 1044.56 | F52: =Burkinafaso!D47 -> 17.05 | G52: 0.6 | H52: 626.736 | I52: 1.079365 | J52: 0.6764769026 | K52: 20 | L52: 13.52953805 | M52: 0.6764769026
C53: 39 | D53: 2021-01-02T14:00:00 | E53: =Chad!B48 -> 1033.42 | F53: =Burkinafaso!D48 -> 16.8 | G53: 0.6 | H53: 620.052 | I53: 1.08304 | J53: 0.6715411181 | K53: 20 | L53: 13.43082236 | M53: 0.6715411181
C54: 40 | D54: 2021-01-02T15:00:00 | E54: =Chad!B49 -> 985.44 | F54: =Burkinafaso!D49 -> 16.56 | G54: 0.6 | H54: 591.264 | I54: 1.086568 | J54: 0.642448542 | K54: 20 | L54: 12.84897084 | M54: 0.642448542
C55: 41 | D55: 2021-01-02T16:00:00 | E55: =Chad!B50 -> 890.77 | F55: =Burkinafaso!D50 -> 15.19 | G55: 0.6 | H55: 534.462 | I55: 1.106707 | J55: 0.5914928366 | K55: 20 | L55: 11.82985673 | M55: 0.5914928366
C56: 42 | D56: 2021-01-02T17:00:00 | E56: =Chad!B51 -> 577.69 | F56: =Burkinafaso!D51 -> 13.83 | G56: 0.6 | H56: 346.614 | I56: 1.126699 | J56: 0.3905296472 | K56: 20 | L56: 7.810592944 | M56: 0.3905296472
C57: 43 | D57: 2021-01-02T18:00:00 | E57: =Chad!B52 -> 0 | F57: =Burkinafaso!D52 -> 12.46 | G57: 0.6 | H57: 0 | I57: 1.146838 | J57: 0 | K57: 20 | L57: 0 | M57: 0
C58: 44 | D58: 2021-01-02T19:00:00 | E58: =Chad!B53 -> 0 | F58: =Burkinafaso!D53 -> 11.33 | G58: 0.6 | H58: 0 | I58: 1.163449 | J58: 0 | K58: 20 | L58: 0 | M58: 0
C59: 45 | D59: 2021-01-02T20:00:00 | E59: =Chad!B54 -> 0 | F59: =Burkinafaso!D54 -> 10.19 | G59: 0.6 | H59: 0 | I59: 1.180207 | J59: 0 | K59: 20 | L59: 0 | M59: 0
C60: 46 | D60: 2021-01-02T21:00:00 | E60: =Chad!B55 -> 0 | F60: =Burkinafaso!D55 -> 9.06 | G60: 0.6 | H60: 0 | I60: 1.196818 | J60: 0 | K60: 20 | L60: 0 | M60: 0
C61: 47 | D61: 2021-01-02T22:00:00 | E61: =Chad!B56 -> 0 | F61: =Burkinafaso!D56 -> 8.43 | G61: 0.6 | H61: 0 | I61: 1.206079 | J61: 0 | K61: 20 | L61: 0 | M61: 0
C62: 48 | D62: 2021-01-02T23:00:00 | E62: =Chad!B57 -> 0 | F62: =Burkinafaso!D57 -> 7.79 | G62: 0.6 | H62: 0 | I62: 1.215487 | J62: 0 | K62: 20 | L62: 0 | M62: 0
C63: 49 | D63: 2021-01-03 | E63: =Chad!B58 -> 0 | F63: =Burkinafaso!D58 -> 7.16 | G63: 0.6 | H63: 0 | I63: 1.224748 | J63: 0 | K63: 20 | L63: 0 | M63: 0
C64: 50 | D64: 2021-01-03T01:00:00 | E64: =Chad!B59 -> 0 | F64: =Burkinafaso!D59 -> 6.69 | G64: 0.6 | H64: 0 | I64: 1.231657 | J64: 0 | K64: 20 | L64: 0 | M64: 0
C65: 51 | D65: 2021-01-03T02:00:00 | E65: =Chad!B60 -> 0 | F65: =Burkinafaso!D60 -> 6.23 | G65: 0.6 | H65: 0 | I65: 1.238419 | J65: 0 | K65: 20 | L65: 0 | M65: 0
C66: 52 | D66: 2021-01-03T03:00:00 | E66: =Chad!B61 -> 0 | F66: =Burkinafaso!D61 -> 5.76 | G66: 0.6 | H66: 0 | I66: 1.245328 | J66: 0 | K66: 20 | L66: 0 | M66: 0
C67: 53 | D67: 2021-01-03T04:00:00 | E67: =Chad!B62 -> 0 | F67: =Burkinafaso!D62 -> 5.84 | G67: 0.6 | H67: 0 | I67: 1.244152 | J67: 0 | K67: 20 | L67: 0 | M67: 0
C68: 54 | D68: 2021-01-03T05:00:00 | E68: =Chad!B63 -> 0 | F68: =Burkinafaso!D63 -> 5.91 | G68: 0.6 | H68: 0 | I68: 1.243123 | J68: 0 | K68: 20 | L68: 0 | M68: 0
C69: 55 | D69: 2021-01-03T06:00:00 | E69: =Chad!B64 -> 0 | F69: =Burkinafaso!D64 -> 5.98 | G69: 0.6 | H69: 0 | I69: 1.242094 | J69: 0 | K69: 20 | L69: 0 | M69: 0
C70: 56 | D70: 2021-01-03T07:00:00 | E70: =Chad!B65 -> 286.61 | F70: =Burkinafaso!D65 -> 8.38 | G70: 0.6 | H70: 171.966 | I70: 1.206814 | J70: 0.2075309763 | K70: 20 | L70: 4.150619526 | M70: 0.2075309763
C71: 57 | D71: 2021-01-03T08:00:00 | E71: =Chad!B66 -> 749.09 | F71: =Burkinafaso!D66 -> 10.78 | G71: 0.6 | H71: 449.454 | I71: 1.171534 | J71: 0.5265506424 | K71: 20 | L71: 10.53101285 | M71: 0.5265506424
C72: 58 | D72: 2021-01-03T09:00:00 | E72: =Chad!B67 -> 890.35 | F72: =Burkinafaso!D67 -> 13.18 | G72: 0.6 | H72: 534.21 | I72: 1.136254 | J72: 0.6069982493 | K72: 20 | L72: 12.13996499 | M72: 0.6069982493
C73: 59 | D73: 2021-01-03T10:00:00 | E73: =Chad!B68 -> 979.35 | F73: =Burkinafaso!D68 -> 14.58 | G73: 0.6 | H73: 587.61 | I73: 1.115674 | J73: 0.6555811991 | K73: 20 | L73: 13.11162398 | M73: 0.6555811991
C74: 60 | D74: 2021-01-03T11:00:00 | E74: =Chad!B69 -> 1014.16 | F74: =Burkinafaso!D69 -> 15.98 | G74: 0.6 | H74: 608.496 | I74: 1.095094 | J74: 0.6663603186 | K74: 20 | L74: 13.32720637 | M74: 0.6663603186
C75: 61 | D75: 2021-01-03T12:00:00 | E75: =Chad!B70 -> 1031.17 | F75: =Burkinafaso!D70 -> 17.38 | G75: 0.6 | H75: 618.702 | I75: 1.074514 | J75: 0.6648039608 | K75: 20 | L75: 13.29607922 | M75: 0.6648039608
C76: 62 | D76: 2021-01-03T13:00:00 | E76: =Chad!B71 -> 1043.72 | F76: =Burkinafaso!D71 -> 17.37 | G76: 0.6 | H76: 626.232 | I76: 1.074661 | J76: 0.6729871074 | K76: 20 | L76: 13.45974215 | M76: 0.6729871074
C77: 63 | D77: 2021-01-03T14:00:00 | E77: =Chad!B72 -> 1027.61 | F77: =Burkinafaso!D72 -> 17.36 | G77: 0.6 | H77: 616.566 | I77: 1.074808 | J77: 0.6626900693 | K77: 20 | L77: 13.25380139 | M77: 0.6626900693
C78: 64 | D78: 2021-01-03T15:00:00 | E78: =Chad!B73 -> 977.04 | F78: =Burkinafaso!D73 -> 17.36 | G78: 0.6 | H78: 586.224 | I78: 1.074808 | J78: 0.630078245 | K78: 20 | L78: 12.6015649 | M78: 0.630078245
C79: 65 | D79: 2021-01-03T16:00:00 | E79: =Chad!B74 -> 855.48 | F79: =Burkinafaso!D74 -> 15.72 | G79: 0.6 | H79: 513.288 | I79: 1.098916 | J79: 0.5640603958 | K79: 20 | L79: 11.28120792 | M79: 0.5640603958
C80: 66 | D80: 2021-01-03T17:00:00 | E80: =Chad!B75 -> 590.04 | F80: =Burkinafaso!D75 -> 14.09 | G80: 0.6 | H80: =G80*E80 -> 354.024 | I80: =-0.0147*F80+1.33 -> 1.122877 | J80: =H80*I80/1000 -> 0.397525407 | K80: =$F$2 -> 20 | L80: =J80*K80 -> 7.950508141 | M80: =L80/K80 -> 0.397525407
C81: 67 | D81: =D80+1/24 -> 2021-01-03T18:00:00 | E81: =Chad!B76 -> 0 | F81: =Burkinafaso!D76 -> 12.45 | G81: =$G$15 -> 0.6 | H81: 0 | I81: 1.146985 | J81: 0 | K81: 20 | L81: 0 | M81: 0
C82: 68 | D82: 2021-01-03T19:00:00 | E82: =Chad!B77 -> 0 | F82: =Burkinafaso!D77 -> 11.15 | G82: 0.6 | H82: 0 | I82: 1.166095 | J82: 0 | K82: 20 | L82: 0 | M82: 0
C83: 69 | D83: 2021-01-03T20:00:00 | E83: =Chad!B78 -> 0 | F83: =Burkinafaso!D78 -> 9.84 | G83: 0.6 | H83: 0 | I83: 1.185352 | J83: 0 | K83: 20 | L83: 0 | M83: 0
C84: 70 | D84: 2021-01-03T21:00:00 | E84: =Chad!B79 -> 0 | F84: =Burkinafaso!D79 -> 8.54 | G84: 0.6 | H84: 0 | I84: 1.204462 | J84: 0 | K84: 20 | L84: 0 | M84: 0
C85: 71 | D85: 2021-01-03T22:00:00 | E85: =Chad!B80 -> 0 | F85: =Burkinafaso!D80 -> 7.81 | G85: 0.6 | H85: 0 | I85: 1.215193 | J85: 0 | K85: 20 | L85: 0 | M85: 0
C86: 72 | D86: 2021-01-03T23:00:00 | E86: =Chad!B81 -> 0 | F86: =Burkinafaso!D81 -> 7.07 | G86: 0.6 | H86: 0 | I86: 1.226071 | J86: 0 | K86: 20 | L86: 0 | M86: 0
C87: 73 | D87: 2021-01-04 | E87: =Chad!B82 -> 0 | F87: =Burkinafaso!D82 -> 6.34 | G87: 0.6 | H87: 0 | I87: 1.236802 | J87: 0 | K87: 20 | L87: 0 | M87: 0
C88: 74 | D88: 2021-01-04T01:00:00 | E88: =Chad!B83 -> 0 | F88: =Burkinafaso!D83 -> 5.83 | G88: 0.6 | H88: 0 | I88: 1.244299 | J88: 0 | K88: 20 | L88: 0 | M88: 0
C89: 75 | D89: 2021-01-04T02:00:00 | E89: =Chad!B84 -> 0 | F89: =Burkinafaso!D84 -> 5.32 | G89: 0.6 | H89: 0 | I89: 1.251796 | J89: 0 | K89: 20 | L89: 0 | M89: 0
C90: 76 | D90: 2021-01-04T03:00:00 | E90: =Chad!B85 -> 0 | F90: =Burkinafaso!D85 -> 4.81 | G90: 0.6 | H90: 0 | I90: 1.259293 | J90: 0 | K90: 20 | L90: 0 | M90: 0
C91: 77 | D91: 2021-01-04T04:00:00 | E91: =Chad!B86 -> 0 | F91: =Burkinafaso!D86 -> 4.96 | G91: 0.6 | H91: 0 | I91: 1.257088 | J91: 0 | K91: 20 | L91: 0 | M91: 0
C92: 78 | D92: 2021-01-04T05:00:00 | E92: =Chad!B87 -> 0 | F92: =Burkinafaso!D87 -> 5.1 | G92: 0.6 | H92: 0 | I92: 1.25503 | J92: 0 | K92: 20 | L92: 0 | M92: 0
C93: 79 | D93: 2021-01-04T06:00:00 | E93: =Chad!B88 -> 0 | F93: =Burkinafaso!D88 -> 5.24 | G93: 0.6 | H93: 0 | I93: 1.252972 | J93: 0 | K93: 20 | L93: 0 | M93: 0
C94: 80 | D94: 2021-01-04T07:00:00 | E94: =Chad!B89 -> 210.07 | F94: =Burkinafaso!D89 -> 8.31 | G94: 0.6 | H94: 126.042 | I94: 1.207843 | J94: 0.1522389474 | K94: 20 | L94: 3.044778948 | M94: 0.1522389474
C95: 81 | D95: 2021-01-04T08:00:00 | E95: =Chad!B90 -> 719.43 | F95: =Burkinafaso!D90 -> 11.37 | G95: 0.6 | H95: 431.658 | I95: 1.162861 | J95: 0.5019582535 | K95: 20 | L95: 10.03916507 | M95: 0.5019582535
C96: 82 | D96: 2021-01-04T09:00:00 | E96: =Chad!B91 -> 887.43 | F96: =Burkinafaso!D91 -> 14.43 | G96: 0.6 | H96: 532.458 | I96: 1.117879 | J96: 0.5952236166 | K96: 20 | L96: 11.90447233 | M96: 0.5952236166
C97: 83 | D97: 2021-01-04T10:00:00 | E97: =Chad!B92 -> 973.8 | F97: =Burkinafaso!D92 -> 16.1 | G97: 0.6 | H97: 584.28 | I97: 1.09333 | J97: 0.6388108524 | K97: 20 | L97: 12.77621705 | M97: 0.6388108524
C98: 84 | D98: 2021-01-04T11:00:00 | E98: =Chad!B93 -> 1009.29 | F98: =Burkinafaso!D93 -> 17.76 | G98: 0.6 | H98: 605.574 | I98: 1.068928 | J98: 0.6473150047 | K98: 20 | L98: 12.94630009 | M98: 0.6473150047
C99: 85 | D99: 2021-01-04T12:00:00 | E99: =Chad!B94 -> 1021.79 | F99: =Burkinafaso!D94 -> 19.43 | G99: 0.6 | H99: 613.074 | I99: 1.044379 | J99: 0.640281611 | K99: 20 | L99: 12.80563222 | M99: 0.640281611
C100: 86 | D100: 2021-01-04T13:00:00 | E100: =Chad!B95 -> 1035.66 | F100: =Burkinafaso!D95 -> 19.58 | G100: 0.6 | H100: 621.396 | I100: 1.042174 | J100: 0.6476027549 | K100: 20 | L100: 12.9520551 | M100: 0.6476027549
C101: 87 | D101: 2021-01-04T14:00:00 | E101: =Chad!B96 -> 1018.1 | F101: =Burkinafaso!D96 -> 19.74 | G101: 0.6 | H101: 610.86 | I101: 1.039822 | J101: 0.6351856669 | K101: 20 | L101: 12.70371334 | M101: 0.6351856669
C102: 88 | D102: 2021-01-04T15:00:00 | E102: =Chad!B97 -> 967.68 | F102: =Burkinafaso!D97 -> 19.9 | G102: 0.6 | H102: 580.608 | I102: 1.03747 | J102: 0.6023633818 | K102: 20 | L102: 12.04726764 | M102: 0.6023633818
C103: 89 | D103: 2021-01-04T16:00:00 | E103: =Chad!B98 -> 855.86 | F103: =Burkinafaso!D98 -> 17.87 | G103: 0.6 | H103: 513.516 | I103: 1.067311 | J103: 0.5480812755 | K103: 20 | L103: 10.96162551 | M103: 0.5480812755
C104: 90 | D104: 2021-01-04T17:00:00 | E104: =Chad!B99 -> 600.92 | F104: =Burkinafaso!D99 -> 15.83 | G104: 0.6 | H104: 360.552 | I104: 1.097299 | J104: 0.395633349 | K104: 20 | L104: 7.912666981 | M104: 0.395633349
C105: 91 | D105: 2021-01-04T18:00:00 | E105: =Chad!B100 -> 0 | F105: =Burkinafaso!D100 -> 13.8 | G105: 0.6 | H105: 0 | I105: 1.12714 | J105: 0 | K105: 20 | L105: 0 | M105: 0
C106: 92 | D106: 2021-01-04T19:00:00 | E106: =Chad!B101 -> 0 | F106: =Burkinafaso!D101 -> 12.47 | G106: 0.6 | H106: 0 | I106: 1.146691 | J106: 0 | K106: 20 | L106: 0 | M106: 0
C107: 93 | D107: 2021-01-04T20:00:00 | E107: =Chad!B102 -> 0 | F107: =Burkinafaso!D102 -> 11.15 | G107: 0.6 | H107: 0 | I107: 1.166095 | J107: 0 | K107: 20 | L107: 0 | M107: 0
C108: 94 | D108: 2021-01-04T21:00:00 | E108: =Chad!B103 -> 0 | F108: =Burkinafaso!D103 -> 9.82 | G108: 0.6 | H108: 0 | I108: 1.185646 | J108: 0 | K108: 20 | L108: 0 | M108: 0
C109: 95 | D109: 2021-01-04T22:00:00 | E109: =Chad!B104 -> 0 | F109: =Burkinafaso!D104 -> 9.01 | G109: 0.6 | H109: 0 | I109: 1.197553 | J109: 0 | K109: 20 | L109: 0 | M109: 0
C110: 96 | D110: 2021-01-04T23:00:00 | E110: =Chad!B105 -> 0 | F110: =Burkinafaso!D105 -> 8.19 | G110: 0.6 | H110: 0 | I110: 1.209607 | J110: 0 | K110: 20 | L110: 0 | M110: 0
C111: 97 | D111: 2021-01-05 | E111: =Chad!B106 -> 0 | F111: =Burkinafaso!D106 -> 7.38 | G111: 0.6 | H111: 0 | I111: 1.221514 | J111: 0 | K111: 20 | L111: 0 | M111: 0
C112: 98 | D112: 2021-01-05T01:00:00 | E112: =Chad!B107 -> 0 | F112: =Burkinafaso!D107 -> 6.83 | G112: 0.6 | H112: 0 | I112: 1.229599 | J112: 0 | K112: 20 | L112: 0 | M112: 0
C113: 99 | D113: 2021-01-05T02:00:00 | E113: =Chad!B108 -> 0 | F113: =Burkinafaso!D108 -> 6.28 | G113: 0.6 | H113: 0 | I113: 1.237684 | J113: 0 | K113: 20 | L113: 0 | M113: 0
C114: 100 | D114: 2021-01-05T03:00:00 | E114: =Chad!B109 -> 0 | F114: =Burkinafaso!D109 -> 5.72 | G114: 0.6 | H114: 0 | I114: 1.245916 | J114: 0 | K114: 20 | L114: 0 | M114: 0
C115: 101 | D115: 2021-01-05T04:00:00 | E115: =Chad!B110 -> 0 | F115: =Burkinafaso!D110 -> 5.95 | G115: 0.6 | H115: 0 | I115: 1.242535 | J115: 0 | K115: 20 | L115: 0 | M115: 0
C116: 102 | D116: 2021-01-05T05:00:00 | E116: =Chad!B111 -> 0 | F116: =Burkinafaso!D111 -> 6.18 | G116: 0.6 | H116: 0 | I116: 1.239154 | J116: 0 | K116: 20 | L116: 0 | M116: 0
C117: 103 | D117: 2021-01-05T06:00:00 | E117: =Chad!B112 -> 0 | F117: =Burkinafaso!D112 -> 6.4 | G117: 0.6 | H117: 0 | I117: 1.23592 | J117: 0 | K117: 20 | L117: 0 | M117: 0
C118: 104 | D118: 2021-01-05T07:00:00 | E118: =Chad!B113 -> 250.52 | F118: =Burkinafaso!D113 -> 9.77 | G118: 0.6 | H118: 150.312 | I118: 1.186381 | J118: 0.1783273009 | K118: 20 | L118: 3.566546017 | M118: 0.1783273009
C119: 105 | D119: 2021-01-05T08:00:00 | E119: =Chad!B114 -> 690.17 | F119: =Burkinafaso!D114 -> 13.14 | G119: 0.6 | H119: 414.102 | I119: 1.136842 | J119: 0.4707685459 | K119: 20 | L119: 9.415370918 | M119: 0.4707685459
C120: 106 | D120: 2021-01-05T09:00:00 | E120: =Chad!B115 -> 872.69 | F120: =Burkinafaso!D115 -> 16.51 | G120: 0.6 | H120: 523.614 | I120: 1.087303 | J120: 0.569327073 | K120: 20 | L120: 11.38654146 | M120: 0.569327073
C121: 107 | D121: 2021-01-05T10:00:00 | E121: =Chad!B116 -> 957.21 | F121: =Burkinafaso!D116 -> 18.23 | G121: 0.6 | H121: 574.326 | I121: 1.062019 | J121: 0.6099451242 | K121: 20 | L121: 12.19890248 | M121: 0.6099451242
C122: 108 | D122: 2021-01-05T11:00:00 | E122: =Chad!B117 -> 1005.37 | F122: =Burkinafaso!D117 -> 19.96 | G122: 0.6 | H122: 603.222 | I122: 1.036588 | J122: 0.6252926865 | K122: 20 | L122: 12.50585373 | M122: 0.6252926865
C123: 109 | D123: 2021-01-05T12:00:00 | E123: =Chad!B118 -> 1011.38 | F123: =Burkinafaso!D118 -> 21.68 | G123: 0.6 | H123: 606.828 | I123: 1.011304 | J123: 0.6136875837 | K123: 20 | L123: 12.27375167 | M123: 0.6136875837
C124: 110 | D124: 2021-01-05T13:00:00 | E124: =Chad!B119 -> 1025.6 | F124: =Burkinafaso!D119 -> 21.87 | G124: 0.6 | H124: 615.36 | I124: 1.008511 | J124: 0.620597329 | K124: 20 | L124: 12.41194658 | M124: 0.620597329
C125: 111 | D125: 2021-01-05T14:00:00 | E125: =Chad!B120 -> 1008.72 | F125: =Burkinafaso!D120 -> 22.06 | G125: 0.6 | H125: 605.232 | I125: 1.005718 | J125: 0.6086927166 | K125: 20 | L125: 12.17385433 | M125: 0.6086927166
C126: 112 | D126: 2021-01-05T15:00:00 | E126: =Chad!B121 -> 961.45 | F126: =Burkinafaso!D121 -> 22.26 | G126: 0.6 | H126: 576.87 | I126: 1.002778 | J126: 0.5784725449 | K126: 20 | L126: 11.5694509 | M126: 0.5784725449
C127: 113 | D127: 2021-01-05T16:00:00 | E127: =Chad!B122 -> 826.84 | F127: =Burkinafaso!D122 -> 19.9 | G127: 0.6 | H127: 496.104 | I127: 1.03747 | J127: 0.5146930169 | K127: 20 | L127: 10.29386034 | M127: 0.5146930169
C128: 114 | D128: 2021-01-05T17:00:00 | E128: =Chad!B123 -> 549.08 | F128: =Burkinafaso!D123 -> 17.53 | G128: 0.6 | H128: 329.448 | I128: 1.072309 | J128: 0.3532700554 | K128: 20 | L128: 7.065401109 | M128: 0.3532700554
C129: 115 | D129: 2021-01-05T18:00:00 | E129: =Chad!B124 -> 0 | F129: =Burkinafaso!D124 -> 15.17 | G129: 0.6 | H129: 0 | I129: 1.107001 | J129: 0 | K129: 20 | L129: 0 | M129: 0
C130: 116 | D130: 2021-01-05T19:00:00 | E130: =Chad!B125 -> 0 | F130: =Burkinafaso!D125 -> 13.67 | G130: 0.6 | H130: 0 | I130: 1.129051 | J130: 0 | K130: 20 | L130: 0 | M130: 0
C131: 117 | D131: 2021-01-05T20:00:00 | E131: =Chad!B126 -> 0 | F131: =Burkinafaso!D126 -> 12.18 | G131: 0.6 | H131: 0 | I131: 1.150954 | J131: 0 | K131: 20 | L131: 0 | M131: 0
C132: 118 | D132: 2021-01-05T21:00:00 | E132: =Chad!B127 -> 0 | F132: =Burkinafaso!D127 -> 10.68 | G132: 0.6 | H132: 0 | I132: 1.173004 | J132: 0 | K132: 20 | L132: 0 | M132: 0
C133: 119 | D133: 2021-01-05T22:00:00 | E133: =Chad!B128 -> 0 | F133: =Burkinafaso!D128 -> 9.86 | G133: 0.6 | H133: 0 | I133: 1.185058 | J133: 0 | K133: 20 | L133: 0 | M133: 0
C134: 120 | D134: 2021-01-05T23:00:00 | E134: =Chad!B129 -> 0 | F134: =Burkinafaso!D129 -> 9.05 | G134: 0.6 | H134: 0 | I134: 1.196965 | J134: 0 | K134: 20 | L134: 0 | M134: 0
C135: 121 | D135: 2021-01-06 | E135: =Chad!B130 -> 0 | F135: =Burkinafaso!D130 -> 8.23 | G135: 0.6 | H135: 0 | I135: 1.209019 | J135: 0 | K135: 20 | L135: 0 | M135: 0
C136: 122 | D136: 2021-01-06T01:00:00 | E136: =Chad!B131 -> 0 | F136: =Burkinafaso!D131 -> 7.78 | G136: 0.6 | H136: 0 | I136: 1.215634 | J136: 0 | K136: 20 | L136: 0 | M136: 0
C137: 123 | D137: 2021-01-06T02:00:00 | E137: =Chad!B132 -> 0 | F137: =Burkinafaso!D132 -> 7.34 | G137: 0.6 | H137: 0 | I137: 1.222102 | J137: 0 | K137: 20 | L137: 0 | M137: 0
C138: 124 | D138: 2021-01-06T03:00:00 | E138: =Chad!B133 -> 0 | F138: =Burkinafaso!D133 -> 6.89 | G138: 0.6 | H138: 0 | I138: 1.228717 | J138: 0 | K138: 20 | L138: 0 | M138: 0
C139: 125 | D139: 2021-01-06T04:00:00 | E139: =Chad!B134 -> 0 | F139: =Burkinafaso!D134 -> 7.16 | G139: 0.6 | H139: 0 | I139: 1.224748 | J139: 0 | K139: 20 | L139: 0 | M139: 0
C140: 126 | D140: 2021-01-06T05:00:00 | E140: =Chad!B135 -> 0 | F140: =Burkinafaso!D135 -> 7.43 | G140: 0.6 | H140: 0 | I140: 1.220779 | J140: 0 | K140: 20 | L140: 0 | M140: 0
C141: 127 | D141: 2021-01-06T06:00:00 | E141: =Chad!B136 -> 0 | F141: =Burkinafaso!D136 -> 7.7 | G141: 0.6 | H141: 0 | I141: 1.21681 | J141: 0 | K141: 20 | L141: 0 | M141: 0
C142: 128 | D142: 2021-01-06T07:00:00 | E142: =Chad!B137 -> 252.15 | F142: =Burkinafaso!D137 -> 11.38 | G142: 0.6 | H142: 151.29 | I142: 1.162714 | J142: 0.1759070011 | K142: 20 | L142: 3.518140021 | M142: 0.1759070011
C143: 129 | D143: 2021-01-06T08:00:00 | E143: =Chad!B138 -> 681.2 | F143: =Burkinafaso!D138 -> 15.06 | G143: 0.6 | H143: 408.72 | I143: 1.108618 | J143: 0.453114349 | K143: 20 | L143: 9.062286979 | M143: 0.453114349
C144: 130 | D144: 2021-01-06T09:00:00 | E144: =Chad!B139 -> 858.28 | F144: =Burkinafaso!D139 -> 18.73 | G144: 0.6 | H144: =G144*E144 -> 514.968 | I144: =-0.0147*F144+1.33 -> 1.054669 | J144: =H144*I144/1000 -> 0.5431207856 | K144: =$F$2 -> 20 | L144: =J144*K144 -> 10.86241571 | M144: =L144/K144 -> 0.5431207856
C145: 131 | D145: =D144+1/24 -> 2021-01-06T10:00:00 | E145: =Chad!B140 -> 958.47 | F145: =Burkinafaso!D140 -> 20.43 | G145: =$G$15 -> 0.6 | H145: 575.082 | I145: 1.029679 | J145: 0.5921498587 | K145: 20 | L145: 11.84299717 | M145: 0.5921498587
C146: 132 | D146: 2021-01-06T11:00:00 | E146: =Chad!B141 -> 995.74 | F146: =Burkinafaso!D141 -> 22.13 | G146: 0.6 | H146: 597.444 | I146: 1.004689 | J146: 0.6002454149 | K146: 20 | L146: 12.0049083 | M146: 0.6002454149
C147: 133 | D147: 2021-01-06T12:00:00 | E147: =Chad!B142 -> 1012.82 | F147: =Burkinafaso!D142 -> 23.83 | G147: 0.6 | H147: 607.692 | I147: 0.979699 | J147: 0.5953552447 | K147: 20 | L147: 11.90710489 | M147: 0.5953552447
C148: 134 | D148: 2021-01-06T13:00:00 | E148: =Chad!B143 -> 1025.54 | F148: =Burkinafaso!D143 -> 23.76 | G148: 0.6 | H148: 615.324 | I148: 0.980728 | J148: 0.6034654759 | K148: 20 | L148: 12.06930952 | M148: 0.6034654759
C149: 135 | D149: 2021-01-06T14:00:00 | E149: =Chad!B144 -> 1012.72 | F149: =Burkinafaso!D144 -> 23.7 | G149: 0.6 | H149: 607.632 | I149: 0.98161 | J149: 0.5964576475 | K149: 20 | L149: 11.92915295 | M149: 0.5964576475
C150: 136 | D150: 2021-01-06T15:00:00 | E150: =Chad!B145 -> 963.72 | F150: =Burkinafaso!D145 -> 23.64 | G150: 0.6 | H150: 578.232 | I150: 0.982492 | J150: 0.5681083141 | K150: 20 | L150: 11.36216628 | M150: 0.5681083141
C151: 137 | D151: 2021-01-06T16:00:00 | E151: =Chad!B146 -> 844.6 | F151: =Burkinafaso!D146 -> 21.27 | G151: 0.6 | H151: 506.76 | I151: 1.017331 | J151: 0.5155426576 | K151: 20 | L151: 10.31085315 | M151: 0.5155426576
C152: 138 | D152: 2021-01-06T17:00:00 | E152: =Chad!B147 -> 583.8 | F152: =Burkinafaso!D147 -> 18.89 | G152: 0.6 | H152: 350.28 | I152: 1.052317 | J152: 0.3686055988 | K152: 20 | L152: 7.372111975 | M152: 0.3686055988
C153: 139 | D153: 2021-01-06T18:00:00 | E153: =Chad!B148 -> 0 | F153: =Burkinafaso!D148 -> 16.52 | G153: 0.6 | H153: 0 | I153: 1.087156 | J153: 0 | K153: 20 | L153: 0 | M153: 0
C154: 140 | D154: 2021-01-06T19:00:00 | E154: =Chad!B149 -> 0 | F154: =Burkinafaso!D149 -> 15.02 | G154: 0.6 | H154: 0 | I154: 1.109206 | J154: 0 | K154: 20 | L154: 0 | M154: 0
C155: 141 | D155: 2021-01-06T20:00:00 | E155: =Chad!B150 -> 0 | F155: =Burkinafaso!D150 -> 13.53 | G155: 0.6 | H155: 0 | I155: 1.131109 | J155: 0 | K155: 20 | L155: 0 | M155: 0
C156: 142 | D156: 2021-01-06T21:00:00 | E156: =Chad!B151 -> 0 | F156: =Burkinafaso!D151 -> 12.03 | G156: 0.6 | H156: 0 | I156: 1.153159 | J156: 0 | K156: 20 | L156: 0 | M156: 0
C157: 143 | D157: 2021-01-06T22:00:00 | E157: =Chad!B152 -> 0 | F157: =Burkinafaso!D152 -> 11.15 | G157: 0.6 | H157: 0 | I157: 1.166095 | J157: 0 | K157: 20 | L157: 0 | M157: 0
C158: 144 | D158: 2021-01-06T23:00:00 | E158: =Chad!B153 -> 0 | F158: =Burkinafaso!D153 -> 10.28 | G158: 0.6 | H158: 0 | I158: 1.178884 | J158: 0 | K158: 20 | L158: 0 | M158: 0
C159: 145 | D159: 2021-01-07 | E159: =Chad!B154 -> 0 | F159: =Burkinafaso!D154 -> 9.4 | G159: 0.6 | H159: 0 | I159: 1.19182 | J159: 0 | K159: 20 | L159: 0 | M159: 0
C160: 146 | D160: 2021-01-07T01:00:00 | E160: =Chad!B155 -> 0 | F160: =Burkinafaso!D155 -> 8.84 | G160: 0.6 | H160: 0 | I160: 1.200052 | J160: 0 | K160: 20 | L160: 0 | M160: 0
C161: 147 | D161: 2021-01-07T02:00:00 | E161: =Chad!B156 -> 0 | F161: =Burkinafaso!D156 -> 8.28 | G161: 0.6 | H161: 0 | I161: 1.208284 | J161: 0 | K161: 20 | L161: 0 | M161: 0
C162: 148 | D162: 2021-01-07T03:00:00 | E162: =Chad!B157 -> 0 | F162: =Burkinafaso!D157 -> 7.71 | G162: 0.6 | H162: 0 | I162: 1.216663 | J162: 0 | K162: 20 | L162: 0 | M162: 0
C163: 149 | D163: 2021-01-07T04:00:00 | E163: =Chad!B158 -> 0 | F163: =Burkinafaso!D158 -> 7.92 | G163: 0.6 | H163: 0 | I163: 1.213576 | J163: 0 | K163: 20 | L163: 0 | M163: 0
C164: 150 | D164: 2021-01-07T05:00:00 | E164: =Chad!B159 -> 0 | F164: =Burkinafaso!D159 -> 8.12 | G164: 0.6 | H164: 0 | I164: 1.210636 | J164: 0 | K164: 20 | L164: 0 | M164: 0
C165: 151 | D165: 2021-01-07T06:00:00 | E165: =Chad!B160 -> 0 | F165: =Burkinafaso!D160 -> 8.32 | G165: 0.6 | H165: 0 | I165: 1.207696 | J165: 0 | K165: 20 | L165: 0 | M165: 0
C166: 152 | D166: 2021-01-07T07:00:00 | E166: =Chad!B161 -> 243.42 | F166: =Burkinafaso!D161 -> 12.28 | G166: 0.6 | H166: 146.052 | I166: 1.149484 | J166: 0.1678844372 | K166: 20 | L166: 3.357688743 | M166: 0.1678844372
C167: 153 | D167: 2021-01-07T08:00:00 | E167: =Chad!B162 -> 683.82 | F167: =Burkinafaso!D162 -> 16.24 | G167: 0.6 | H167: 410.292 | I167: 1.091272 | J167: 0.4477401714 | K167: 20 | L167: 8.954803428 | M167: 0.4477401714
C168: 154 | D168: 2021-01-07T09:00:00 | E168: =Chad!B163 -> 874.6 | F168: =Burkinafaso!D163 -> 20.2 | G168: 0.6 | H168: 524.76 | I168: 1.03306 | J168: 0.5421085656 | K168: 20 | L168: 10.84217131 | M168: 0.5421085656
C169: 155 | D169: 2021-01-07T10:00:00 | E169: =Chad!B164 -> 964.91 | F169: =Burkinafaso!D164 -> 21.82 | G169: 0.6 | H169: 578.946 | I169: 1.009246 | J169: 0.5842989347 | K169: 20 | L169: 11.68597869 | M169: 0.5842989347
C170: 156 | D170: 2021-01-07T11:00:00 | E170: =Chad!B165 -> 999.74 | F170: =Burkinafaso!D165 -> 23.45 | G170: 0.6 | H170: 599.844 | I170: 0.985285 | J170: 0.5910172955 | K170: 20 | L170: 11.82034591 | M170: 0.5910172955
C171: 157 | D171: 2021-01-07T12:00:00 | E171: =Chad!B166 -> 1013.27 | F171: =Burkinafaso!D166 -> 25.07 | G171: 0.6 | H171: 607.962 | I171: 0.961471 | J171: 0.5845378321 | K171: 20 | L171: 11.69075664 | M171: 0.5845378321
C172: 158 | D172: 2021-01-07T13:00:00 | E172: =Chad!B167 -> 1022.08 | F172: =Burkinafaso!D167 -> 24.95 | G172: 0.6 | H172: 613.248 | I172: 0.963235 | J172: 0.5907019373 | K172: 20 | L172: 11.81403875 | M172: 0.5907019373
C173: 159 | D173: 2021-01-07T14:00:00 | E173: =Chad!B168 -> 1009.72 | F173: =Burkinafaso!D168 -> 24.83 | G173: 0.6 | H173: 605.832 | I173: 0.964999 | J173: 0.5846272742 | K173: 20 | L173: 11.69254548 | M173: 0.5846272742
C174: 160 | D174: 2021-01-07T15:00:00 | E174: =Chad!B169 -> 963.03 | F174: =Burkinafaso!D169 -> 24.71 | G174: 0.6 | H174: 577.818 | I174: 0.966763 | J174: 0.5586130631 | K174: 20 | L174: 11.17226126 | M174: 0.5586130631
C175: 161 | D175: 2021-01-07T16:00:00 | E175: =Chad!B170 -> 842.19 | F175: =Burkinafaso!D170 -> 22.3 | G175: 0.6 | H175: 505.314 | I175: 1.00219 | J175: 0.5064206377 | K175: 20 | L175: 10.12841275 | M175: 0.5064206377
C176: 162 | D176: 2021-01-07T17:00:00 | E176: =Chad!B171 -> 579.21 | F176: =Burkinafaso!D171 -> 19.89 | G176: 0.6 | H176: 347.526 | I176: 1.037617 | J176: 0.3605988855 | K176: 20 | L176: 7.211977711 | M176: 0.3605988855
C177: 163 | D177: 2021-01-07T18:00:00 | E177: =Chad!B172 -> 0 | F177: =Burkinafaso!D172 -> 17.48 | G177: 0.6 | H177: 0 | I177: 1.073044 | J177: 0 | K177: 20 | L177: 0 | M177: 0
C178: 164 | D178: 2021-01-07T19:00:00 | E178: =Chad!B173 -> 0 | F178: =Burkinafaso!D173 -> 16.09 | G178: 0.6 | H178: 0 | I178: 1.093477 | J178: 0 | K178: 20 | L178: 0 | M178: 0
C179: 165 | D179: 2021-01-07T20:00:00 | E179: =Chad!B174 -> 0 | F179: =Burkinafaso!D174 -> 14.69 | G179: 0.6 | H179: 0 | I179: 1.114057 | J179: 0 | K179: 20 | L179: 0 | M179: 0
C180: 166 | D180: 2021-01-07T21:00:00 | E180: =Chad!B175 -> 0 | F180: =Burkinafaso!D175 -> 13.3 | G180: 0.6 | H180: 0 | I180: 1.13449 | J180: 0 | K180: 20 | L180: 0 | M180: 0
C181: 167 | D181: 2021-01-07T22:00:00 | E181: =Chad!B176 -> 0 | F181: =Burkinafaso!D176 -> 12.78 | G181: 0.6 | H181: 0 | I181: 1.142134 | J181: 0 | K181: 20 | L181: 0 | M181: 0
C182: 168 | D182: 2021-01-07T23:00:00 | E182: =Chad!B177 -> 0 | F182: =Burkinafaso!D177 -> 12.26 | G182: 0.6 | H182: 0 | I182: 1.149778 | J182: 0 | K182: 20 | L182: 0 | M182: 0
C183: 169 | D183: 2021-01-08 | E183: =Chad!B178 -> 0 | F183: =Burkinafaso!D178 -> 11.74 | G183: 0.6 | H183: 0 | I183: 1.157422 | J183: 0 | K183: 20 | L183: 0 | M183: 0
C184: 170 | D184: 2021-01-08T01:00:00 | E184: =Chad!B179 -> 0 | F184: =Burkinafaso!D179 -> 11.58 | G184: 0.6 | H184: 0 | I184: 1.159774 | J184: 0 | K184: 20 | L184: 0 | M184: 0
C185: 171 | D185: 2021-01-08T02:00:00 | E185: =Chad!B180 -> 0 | F185: =Burkinafaso!D180 -> 11.42 | G185: 0.6 | H185: 0 | I185: 1.162126 | J185: 0 | K185: 20 | L185: 0 | M185: 0
C186: 172 | D186: 2021-01-08T03:00:00 | E186: =Chad!B181 -> 0 | F186: =Burkinafaso!D181 -> 11.26 | G186: 0.6 | H186: 0 | I186: 1.164478 | J186: 0 | K186: 20 | L186: 0 | M186: 0
C187: 173 | D187: 2021-01-08T04:00:00 | E187: =Chad!B182 -> 0 | F187: =Burkinafaso!D182 -> 11.5 | G187: 0.6 | H187: 0 | I187: 1.16095 | J187: 0 | K187: 20 | L187: 0 | M187: 0
C188: 174 | D188: 2021-01-08T05:00:00 | E188: =Chad!B183 -> 0 | F188: =Burkinafaso!D183 -> 11.74 | G188: 0.6 | H188: 0 | I188: 1.157422 | J188: 0 | K188: 20 | L188: 0 | M188: 0
C189: 175 | D189: 2021-01-08T06:00:00 | E189: =Chad!B184 -> 0 | F189: =Burkinafaso!D184 -> 11.97 | G189: 0.6 | H189: 0 | I189: 1.154041 | J189: 0 | K189: 20 | L189: 0 | M189: 0
C190: 176 | D190: 2021-01-08T07:00:00 | E190: =Chad!B185 -> 196.58 | F190: =Burkinafaso!D185 -> 14.88 | G190: 0.6 | H190: 117.948 | I190: 1.111264 | J190: 0.1310713663 | K190: 20 | L190: 2.621427325 | M190: 0.1310713663
C191: 177 | D191: 2021-01-08T08:00:00 | E191: =Chad!B186 -> 361.08 | F191: =Burkinafaso!D186 -> 17.78 | G191: 0.6 | H191: 216.648 | I191: 1.068634 | J191: 0.2315174188 | K191: 20 | L191: 4.630348377 | M191: 0.2315174188
C192: 178 | D192: 2021-01-08T09:00:00 | E192: =Chad!B187 -> 880.96 | F192: =Burkinafaso!D187 -> 20.68 | G192: 0.6 | H192: 528.576 | I192: 1.026004 | J192: 0.5423210903 | K192: 20 | L192: 10.84642181 | M192: 0.5423210903
C193: 179 | D193: 2021-01-08T10:00:00 | E193: =Chad!B188 -> 932.6 | F193: =Burkinafaso!D188 -> 21.92 | G193: 0.6 | H193: 559.56 | I193: 1.007776 | J193: 0.5639111386 | K193: 20 | L193: 11.27822277 | M193: 0.5639111386
C194: 180 | D194: 2021-01-08T11:00:00 | E194: =Chad!B189 -> 967.75 | F194: =Burkinafaso!D189 -> 23.17 | G194: 0.6 | H194: 580.65 | I194: 0.989401 | J194: 0.5744956906 | K194: 20 | L194: 11.48991381 | M194: 0.5744956906
C195: 181 | D195: 2021-01-08T12:00:00 | E195: =Chad!B190 -> 989.58 | F195: =Burkinafaso!D190 -> 24.41 | G195: 0.6 | H195: 593.748 | I195: 0.971173 | J195: 0.5766320264 | K195: 20 | L195: 11.53264053 | M195: 0.5766320264
C196: 182 | D196: 2021-01-08T13:00:00 | E196: =Chad!B191 -> 961.71 | F196: =Burkinafaso!D191 -> 24.18 | G196: 0.6 | H196: 577.026 | I196: 0.974554 | J196: 0.5623429964 | K196: 20 | L196: 11.24685993 | M196: 0.5623429964
C197: 183 | D197: 2021-01-08T14:00:00 | E197: =Chad!B192 -> 816.92 | F197: =Burkinafaso!D192 -> 23.96 | G197: 0.6 | H197: 490.152 | I197: 0.977788 | J197: 0.4792647438 | K197: 20 | L197: 9.585294876 | M197: 0.4792647438
C198: 184 | D198: 2021-01-08T15:00:00 | E198: =Chad!B193 -> 857.81 | F198: =Burkinafaso!D193 -> 23.74 | G198: 0.6 | H198: 514.686 | I198: 0.981022 | J198: 0.5049182891 | K198: 20 | L198: 10.09836578 | M198: 0.5049182891
C199: 185 | D199: 2021-01-08T16:00:00 | E199: =Chad!B194 -> 748.92 | F199: =Burkinafaso!D194 -> 21.95 | G199: 0.6 | H199: 449.352 | I199: 1.007335 | J199: 0.4526479969 | K199: 20 | L199: 9.052959938 | M199: 0.4526479969
C200: 186 | D200: 2021-01-08T17:00:00 | E200: =Chad!B195 -> 441.33 | F200: =Burkinafaso!D195 -> 20.17 | G200: 0.6 | H200: 264.798 | I200: 1.033501 | J200: 0.2736689978 | K200: 20 | L200: 5.473379956 | M200: 0.2736689978
C201: 187 | D201: 2021-01-08T18:00:00 | E201: =Chad!B196 -> 0 | F201: =Burkinafaso!D196 -> 18.38 | G201: 0.6 | H201: 0 | I201: 1.059814 | J201: 0 | K201: 20 | L201: 0 | M201: 0
C202: 188 | D202: 2021-01-08T19:00:00 | E202: =Chad!B197 -> 0 | F202: =Burkinafaso!D197 -> 17.11 | G202: 0.6 | H202: 0 | I202: 1.078483 | J202: 0 | K202: 20 | L202: 0 | M202: 0
C203: 189 | D203: 2021-01-08T20:00:00 | E203: =Chad!B198 -> 0 | F203: =Burkinafaso!D198 -> 15.83 | G203: 0.6 | H203: 0 | I203: 1.097299 | J203: 0 | K203: 20 | L203: 0 | M203: 0
... 4297 more rows

Sheet Dispatch
D1: Hour | I1: 0 | J1: 1 | K1: 2 | L1: 3 | M1: 4 | N1: 5 | O1: 6 | P1: 7 | Q1: 8 | R1: 9 | S1: 10 | T1: 11 | U1: 12 | V1: 13 | W1: 14 | X1: 15 | Y1: 16 | Z1: 17 | AA1: 18 | AB1: 19 | AC1: 20 | AD1: 21 | AE1: 22 | AF1: 23 | AG1: 24 | AH1: 25 | AI1: 26 | AJ1: 27 | AK1: 28 | AL1: 29 | AM1: 30 | AN1: 31 | AO1: 32 | AP1: 33 | AQ1: 34 | AR1: 35 | AS1: 36 | AT1: 37 | AU1: 38 | AV1: 39 | AW1: 40 | AX1: 41 | AY1: 42 | AZ1: 43 | BA1: 44 | BB1: 45 | BC1: 46 | BD1: 47 | BE1: 48 | BF1: 49 | BG1: 50 | BH1: 51 | BI1: 52 | BJ1: 53 | BK1: 54 | BL1: 55 | BM1: 56 | BN1: 57 | BO1: 58 | BP1: 59 | BQ1: 60 | BR1: 61 | BS1: 62 | BT1: 63 | BU1: 64 | BV1: 65 | BW1: 66 | BX1: 67 | BY1: 68 | BZ1: 69 | CA1: 70 | CB1: 71 | CC1: 72 | CD1: 73 | CE1: 74 | CF1: 75 | CG1: 76 | CH1: 77 | CI1: 78 | CJ1: 79 | CK1: 80 | CL1: 81 | CM1: 82 | CN1: 83 | CO1: 84 | CP1: 85 | CQ1: 86 | CR1: 87 | CS1: 88 | CT1: 89 | CU1: 90 | CV1: 91 | CW1: 92 | CX1: 93 | CY1: 94 | CZ1: 95 | DA1: 96 | DB1: 97 | DC1: 98 | DD1: 99 | DE1: 100 | DF1: 101 | DG1: 102 | DH1: 103 | DI1: 104 | DJ1: 105 | DK1: 106 | DL1: 107 | DM1: 108 | DN1: 109 | DO1: 110 | DP1: 111 | DQ1: 112 | DR1: 113 | DS1: 114 | DT1: 115 | DU1: 116 | DV1: 117 | DW1: 118 | DX1: 119 | DY1: 120 | DZ1: 121 | EA1: 122 | EB1: 123 | EC1: 124 | ED1: 125 | EE1: 126 | EF1: 127 | EG1: 128 | EH1: 129 | EI1: 130 | EJ1: 131 | EK1: 132 | EL1: 133 | EM1: 134 | EN1: 135 | EO1: 136 | EP1: 137 | EQ1: 138 | ER1: 139 | ES1: 140 | ET1: 141 | EU1: 142 | EV1: 143 | EW1: 144 | EX1: 145 | EY1: 146 | EZ1: 147 | FA1: 148 | FB1: 149 | FC1: 150 | FD1: 151 | FE1: 152 | FF1: 153 | FG1: 154 | FH1: 155 | FI1: 156 | FJ1: 157 | FK1: 158 | FL1: 159 | FM1: 160 | FN1: 161 | FO1: 162 | FP1: 163 | FQ1: 164 | FR1: 165 | FS1: 166 | FT1: 167 | FU1: 168 | FV1: 169 | FW1: 170 | FX1: 171 | FY1: 172 | FZ1: 173 | GA1: 174 | GB1: 175 | GC1: 176 | GD1: 177 | GE1: 178 | GF1: 179 | GG1: 180 | GH1: 181 | GI1: 182 | GJ1: 183 | GK1: 184 | GL1: 185 | GM1: 186 | GN1: 187 | GO1: 188 | GP1: 189 | GQ1: 190 | GR1: 191 | GS1: 192 | GT1: 193 | GU1: 194 | GV1: 195 | GW1: 196 | GX1: 197 | GY1: 198 | GZ1: 199 | HA1: 200 | HB1: 201 | HC1: 202 | HD1: 203 | HE1: 204 | HF1: 205 | HG1: 206 | HH1: 207 | HI1: 208 | HJ1: 209 | HK1: 210 | HL1: 211 | HM1: 212 | HN1: 213 | HO1: 214 | HP1: 215 | HQ1: 216 | HR1: 217 | HS1: 218 | HT1: 219 | HU1: 220 | HV1: 221 | HW1: 222 | HX1: 223 | HY1: 224 | HZ1: 225 | IA1: 226 | IB1: 227 | IC1: 228 | ID1: 229 | IE1: 230 | IF1: 231 | IG1: 232 | IH1: 233 | II1: 234 | IJ1: 235 | IK1: 236 | IL1: 237 | IM1: 238 | IN1: 239 | IO1: 240 | IP1: 241 | IQ1: 242 | IR1: 243 | IS1: 244 | IT1: 245 | IU1: 246 | IV1: 247 | IW1: 248 | IX1: 249 | IY1: 250 | IZ1: 251 | JA1: 252 | JB1: 253 | JC1: 254 | JD1: 255 | JE1: 256 | JF1: 257 | JG1: 258 | JH1: 259 | JI1: 260 | JJ1: 261 | JK1: 262 | JL1: 263 | JM1: 264 | JN1: 265 | JO1: 266 | JP1: 267 | JQ1: 268 | JR1: 269 | JS1: 270 | JT1: 271 | JU1: 272 | JV1: 273 | JW1: 274 | JX1: 275 | JY1: 276 | JZ1: 277 | KA1: 278 | KB1: 279 | KC1: 280 | KD1: 281 | KE1: 282 | KF1: 283 | KG1: 284 | KH1: 285 | KI1: 286 | KJ1: 287 | KK1: 288 | KL1: 289 | KM1: 290 | KN1: 291 | KO1: 292 | KP1: 293 | KQ1: 294 | KR1: 295 | KS1: 296 | KT1: 297 | KU1: 298 | KV1: 299 | KW1: 300 | KX1: 301 | KY1: 302 | KZ1: 303 | LA1: 304 | LB1: 305 | LC1: 306 | LD1: 307 | LE1: 308 | LF1: 309 | LG1: 310 | LH1: 311 | LI1: 312 | LJ1: 313 | LK1: 314 | LL1: 315 | LM1: 316 | LN1: 317 | LO1: 318 | LP1: 319 | LQ1: 320 | LR1: 321 | LS1: 322 | LT1: 323 | LU1: 324 | LV1: 325 | LW1: 326 | LX1: 327 | LY1: 328 | LZ1: 329 | MA1: 330 | MB1: 331 | MC1: 332 | MD1: 333 | ME1: 334 | MF1: 335 | MG1: 336 | MH1: 337 | MI1: 338 | MJ1: 339 | MK1: 340 | ML1: 341 | MM1: 342 | MN1: 343 | MO1: 344 | MP1: 345 | MQ1: 346 | MR1: 347 | MS1: 348 | MT1: 349 | MU1: 350 | MV1: 351 | MW1: 352 | MX1: 353 | MY1: 354 | MZ1: 355 | NA1: 356 | NB1: 357 | NC1: 358 | ND1: 359 | NE1: 360 | NF1: 361 | NG1: 362 | NH1: 363 | NI1: 364 | NJ1: 365 | NK1: 366 | NL1: 367 | NM1: 368 | NN1: 369 | NO1: 370 | NP1: 371 | NQ1: 372 | NR1: 373 | NS1: 374 | NT1: 375 | NU1: 376 | NV1: 377 | NW1: 378 | NX1: 379 | NY1: 380 | NZ1: 381 | OA1: 382 | OB1: 383 | OC1: 384 | OD1: 385 | OE1: 386 | OF1: 387 | OG1: 388 | OH1: 389 | OI1: 390 | OJ1: 391 | OK1: 392 | OL1: 393 | OM1: 394 | ON1: 395 | OO1: 396 | OP1: 397 | OQ1: 398 | OR1: 399 | OS1: 400 | OT1: 401 | OU1: 402 | OV1: 403 | OW1: 404 | OX1: 405 | OY1: 406 | OZ1: 407 | PA1: 408 | PB1: 409 | PC1: 410 | PD1: 411 | PE1: 412 | PF1: 413 | PG1: 414 | PH1: 415 | PI1: 416 | PJ1: 417 | PK1: 418 | PL1: 419 | PM1: 420 | PN1: 421 | PO1: 422 | PP1: 423 | PQ1: 424 | PR1: 425 | PS1: 426 | PT1: 427 | PU1: 428 | PV1: 429 | PW1: 430 | PX1: 431 | PY1: 432 | PZ1: 433 | QA1: 434 | QB1: 435 | QC1: 436 | QD1: 437 | QE1: 438 | QF1: 439 | QG1: 440 | QH1: 441 | QI1: 442 | QJ1: 443 | QK1: 444 | QL1: 445 | QM1: 446 | QN1: 447 | QO1: 448 | QP1: 449 | QQ1: 450 | QR1: 451 | QS1: 452 | QT1: 453 | QU1: 454 | QV1: 455 | QW1: 456 | QX1: 457 | QY1: 458 | QZ1: 459 | RA1: 460 | RB1: 461 | RC1: 462 | RD1: 463 | RE1: 464 | RF1: 465 | RG1: 466 | RH1: 467 | RI1: 468 | RJ1: 469 | RK1: 470 | RL1: 471 | RM1: 472 | RN1: 473 | RO1: 474 | RP1: 475 | RQ1: 476 | RR1: 477 | RS1: 478 | RT1: 479 | RU1: 480 | RV1: 481 | RW1: 482 | RX1: 483 | RY1: 484 | RZ1: 485 | SA1: 486 | SB1: 487 | SC1: 488 | SD1: 489 | SE1: 490 | SF1: 491 | SG1: 492 | SH1: 493 | SI1: 494 | SJ1: 495 | SK1: 496 | SL1: 497 | SM1: 498 | SN1: 499 | SO1: 500 | SP1: 501 | SQ1: 502 | SR1: 503 | SS1: 504 | ST1: 505 | SU1: 506 | SV1: 507 | SW1: 508 | SX1: 509 | SY1: 510 | SZ1: 511 | TA1: 512 | TB1: 513 | TC1: 514 | TD1: 515 | TE1: 516 | TF1: 517 | TG1: 518 | TH1: 519 | TI1: 520 | TJ1: 521 | TK1: 522 | TL1: 523 | TM1: 524 | TN1: 525 | TO1: 526 | TP1: 527 | TQ1: 528 | TR1: 529 | TS1: 530 | TT1: 531 | TU1: 532 | TV1: 533 | TW1: 534 | TX1: 535 | TY1: 536 | TZ1: 537 | UA1: 538 | UB1: 539 | UC1: 540 | UD1: 541 | UE1: 542 | UF1: 543 | UG1: 544 | UH1: 545 | UI1: 546 | UJ1: 547 | UK1: 548 | UL1: 549 | UM1: 550 | UN1: 551 | UO1: 552 | UP1: 553 | UQ1: 554 | UR1: 555 | US1: 556 | UT1: 557 | UU1: 558 | UV1: 559 | UW1: 560 | UX1: 561 | UY1: 562 | UZ1: 563 | VA1: 564 | VB1: 565 | VC1: 566 | VD1: 567 | VE1: 568 | VF1: 569 | VG1: 570 | VH1: 571 | VI1: 572 | VJ1: 573 | VK1: 574 | VL1: 575 | VM1: 576 | VN1: 577 | VO1: 578 | VP1: 579 | VQ1: 580 | VR1: 581 | VS1: 582 | VT1: 583 | VU1: 584 | VV1: 585 | VW1: 586 | VX1: 587 | VY1: 588 | VZ1: 589 | WA1: 590 | WB1: 591 | WC1: 592 | WD1: 593 | WE1: 594 | WF1: 595 | WG1: 596 | WH1: 597 | WI1: 598 | WJ1: 599 | WK1: 600 | WL1: 601 | WM1: 602 | WN1: 603 | WO1: 604 | WP1: 605 | WQ1: 606 | WR1: 607 | WS1: 608 | WT1: 609 | WU1: 610 | WV1: 611 | WW1: 612 | WX1: 613 | WY1: 614 | WZ1: 615 | XA1: 616 | XB1: 617 | XC1: 618 | XD1: 619 | XE1: 620 | XF1: 621 | XG1: 622 | XH1: 623 | XI1: 624 | XJ1: 625 | XK1: 626 | XL1: 627 | XM1: 628 | XN1: 629 | XO1: 630 | XP1: 631 | XQ1: 632 | XR1: 633 | XS1: 634 | XT1: 635 | XU1: 636 | XV1: 637 | XW1: 638 | XX1: 639 | XY1: 640 | XZ1: 641 | YA1: 642 | YB1: 643 | YC1: 644 | YD1: 645 | YE1: 646 | YF1: 647 | YG1: 648 | YH1: 649 | YI1: 650 | YJ1: 651 | YK1: 652 | YL1: 653 | YM1: 654 | YN1: 655 | YO1: 656 | YP1: 657 | YQ1: 658 | YR1: 659 | YS1: 660 | YT1: 661 | YU1: 662 | YV1: 663 | YW1: 664 | YX1: 665 | YY1: 666 | YZ1: 667 | ZA1: 668 | ZB1: 669 | ZC1: 670 | ZD1: 671 | ZE1: 672 | ZF1: 673 | ZG1: 674 | ZH1: 675 | ZI1: 676 | ZJ1: 677 | ZK1: 678 | ZL1: 679 | ZM1: 680 | ZN1: 681 | ZO1: 682 | ZP1: 683 | ZQ1: 684 | ZR1: 685 | ZS1: 686 | ZT1: 687 | ZU1: 688 | ZV1: 689 | ZW1: 690 | ZX1: 691 | ZY1: 692 | ZZ1: 693 | AAA1: 694 | AAB1: 695 | AAC1: 696 | AAD1: 697 | AAE1: 698 | AAF1: 699 | AAG1: 700 | AAH1: 701 | AAI1: 702 | AAJ1: 703 | AAK1: 704 | AAL1: 705 | AAM1: 706 | AAN1: 707 | AAO1: 708 | AAP1: 709 | AAQ1: 710 | AAR1: 711 | AAS1: 712 | AAT1: 713 | AAU1: 714 | AAV1: 715 | AAW1: 716 | AAX1: 717 | AAY1: 718 | AAZ1: 719 | ABA1: 720 | ABB1: 721 | ABC1: 722 | ABD1: 723 | ABE1: 724 | ABF1: 725 | ABG1: 726 | ABH1: 727 | ABI1: 728 | ABJ1: 729 | ABK1: 730 | ABL1: 731 | ABM1: 732 | ABN1: 733 | ABO1: 734 | ABP1: 735 | ABQ1: 736 | ABR1: 737 | ABS1: 738 | ABT1: 739 | ABU1: 740 | ABV1: 741 | ABW1: 742 | ABX1: 743 | ABY1: 744 | ABZ1: 745 | ACA1: 746 | ACB1: 747 | ACC1: 748 | ACD1: 749 | ACE1: 750 | ACF1: 751 | ACG1: 752 | ACH1: 753 | ACI1: 754 | ACJ1: 755 | ACK1: 756 | ACL1: 757 | ACM1: 758 | ACN1: 759 | ACO1: 760 | ACP1: 761 | ACQ1: 762 | ACR1: 763 | ACS1: 764 | ACT1: 765 | ACU1: 766 | ACV1: 767 | ACW1: 768 | ACX1: 769 | ACY1: 770 | ACZ1: 771 | ADA1: 772 | ADB1: 773 | ADC1: 774 | ADD1: 775 | ADE1: 776 | ADF1: 777 | ADG1: 778 | ADH1: 779 | ADI1: 780 | ADJ1: 781 | ADK1: 782 | ADL1: 783 | ADM1: 784 | ADN1: 785 | ADO1: 786 | ADP1: 787 | ADQ1: 788 | ADR1: 789 | ADS1: 790 | ADT1: 791 | ADU1: 792 | ADV1: 793 | ADW1: 794 | ADX1: 795 | ADY1: 796 | ADZ1: 797 | AEA1: 798 | AEB1: 799 | AEC1: 800 | AED1: 801 | AEE1: 802 | AEF1: 803 | AEG1: 804 | AEH1: 805 | AEI1: 806 | AEJ1: 807 | AEK1: 808 | AEL1: 809 | AEM1: 810 | AEN1: 811 | AEO1: 812 | AEP1: 813 | AEQ1: 814 | AER1: 815 | AES1: 816 | AET1: 817 | AEU1: 818 | AEV1: 819 | AEW1: 820 | AEX1: 821 | AEY1: 822 | AEZ1: 823 | AFA1: 824 | AFB1: 825 | AFC1: 826 | AFD1: 827 | AFE1: 828 | AFF1: 829 | AFG1: 830 | AFH1: 831 | AFI1: 832 | AFJ1: 833 | AFK1: 834 | AFL1: 835 | AFM1: 836 | AFN1: 837 | AFO1: 838 | AFP1: 839 | AFQ1: 840 | AFR1: 841 | AFS1: 842 | AFT1: 843 | AFU1: 844 | AFV1: 845 | AFW1: 846 | AFX1: 847 | AFY1: 848 | AFZ1: 849 | AGA1: 850 | AGB1: 851 | AGC1: 852 | AGD1: 853 | AGE1: 854 | AGF1: 855 | AGG1: 856 | AGH1: 857 | AGI1: 858 | AGJ1: 859 | AGK1: 860 | AGL1: 861 | AGM1: 862 | AGN1: 863 | AGO1: 864 | AGP1: 865 | AGQ1: 866 | AGR1: 867 | AGS1: 868 | AGT1: 869 | AGU1: 870 | AGV1: 871 | AGW1: 872 | AGX1: 873 | AGY1: 874 | AGZ1: 875 | AHA1: 876 | AHB1: 877 | AHC1: 878 | AHD1: 879 | AHE1: 880 | AHF1: 881 | AHG1: 882 | AHH1: 883 | AHI1: 884 | AHJ1: 885 | AHK1: 886 | AHL1: 887 | AHM1: 888 | AHN1: 889 | AHO1: 890 | AHP1: 891 | AHQ1: 892 | AHR1: 893 | AHS1: 894 | AHT1: 895 | AHU1: 896 | AHV1: 897 | AHW1: 898 | AHX1: 899 | AHY1: 900 | AHZ1: 901 | AIA1: 902 | AIB1: 903 | AIC1: 904 | AID1: 905 | AIE1: 906 | AIF1: 907 | AIG1: 908 | AIH1: 909 | AII1: 910 | AIJ1: 911 | AIK1: 912 | AIL1: 913 | AIM1: 914 | AIN1: 915 | AIO1: 916 | AIP1: 917 | AIQ1: 918 | AIR1: 919 | AIS1: 920 | AIT1: 921 | AIU1: 922 | AIV1: 923 | AIW1: 924 | AIX1: 925 | AIY1: 926 | AIZ1: 927 | AJA1: 928 | AJB1: 929 | AJC1: 930 | AJD1: 931 | AJE1: 932 | AJF1: 933 | AJG1: 934 | AJH1: 935 | AJI1: 936 | AJJ1: 937 | AJK1: 938 | AJL1: 939 | AJM1: 940 | AJN1: 941 | AJO1: 942 | AJP1: 943 | AJQ1: 944 | AJR1: 945 | AJS1: 946 | AJT1: 947 | AJU1: 948 | AJV1: 949 | AJW1: 950 | AJX1: 951 | AJY1: 952 | AJZ1: 953 | AKA1: 954 | AKB1: 955 | AKC1: 956 | AKD1: 957 | AKE1: 958 | AKF1: 959 | AKG1: 960 | AKH1: 961 | AKI1: 962 | AKJ1: 963 | AKK1: 964 | AKL1: 965 | AKM1: 966 | AKN1: 967 | AKO1: 968 | AKP1: 969 | AKQ1: 970 | AKR1: 971 | AKS1: 972 | AKT1: 973 | AKU1: 974 | AKV1: 975 | AKW1: 976 | AKX1: 977 | AKY1: 978 | AKZ1: 979 | ALA1: 980 | ALB1: 981 | ALC1: 982 | ALD1: 983 | ALE1: 984 | ALF1: 985 | ALG1: 986 | ALH1: 987 | ALI1: 988 | ALJ1: 989 | ALK1: 990 | ALL1: 991 | ALM1: 992 | ALN1: 993 | ALO1: 994 | ALP1: 995 | ALQ1: 996 | ALR1: 997 | ALS1: 998 | ALT1: 999 | ALU1: 1000 | ALV1: 1001 | ALW1: 1002 | ALX1: 1003 | ALY1: 1004 | ALZ1: 1005 | AMA1: 1006 | AMB1: 1007 | AMC1: 1008 | AMD1: 1009 | AME1: 1010 | AMF1: 1011 | AMG1: 1012 | AMH1: 1013 | AMI1: 1014 | AMJ1: 1015 | AMK1: 1016 | AML1: 1017 | AMM1: 1018 | AMN1: 1019 | AMO1: 1020 | AMP1: 1021 | AMQ1: 1022 | AMR1: 1023 | AMS1: 1024 | AMT1: 1025 | AMU1: 1026 | AMV1: 1027 | AMW1: 1028 | AMX1: 1029 | AMY1: 1030 | AMZ1: 1031 | ANA1: 1032 | ANB1: 1033 | ANC1: 1034 | AND1: 1035 | ANE1: 1036 | ANF1: 1037 | ANG1: 1038 | ANH1: 1039 | ANI1: 1040 | ANJ1: 1041 | ANK1: 1042 | ANL1: 1043 | ANM1: 1044 | ANN1: 1045 | ANO1: 1046 | ANP1: 1047 | ANQ1: 1048 | ANR1: 1049 | ANS1: 1050 | ANT1: 1051 | ANU1: 1052 | ANV1: 1053 | ANW1: 1054 | ANX1: 1055 | ANY1: 1056 | ANZ1: 1057 | AOA1: 1058 | AOB1: 1059 | AOC1: 1060 | AOD1: 1061 | AOE1: 1062 | AOF1: 1063 | AOG1: 1064 | AOH1: 1065 | AOI1: 1066 | AOJ1: 1067 | AOK1: 1068 | AOL1: 1069 | AOM1: 1070 | AON1: 1071 | AOO1: 1072 | AOP1: 1073 | AOQ1: 1074 | AOR1: 1075 | AOS1: 1076 | AOT1: 1077 | AOU1: 1078 | AOV1: 1079 | AOW1: 1080 | AOX1: 1081 | AOY1: 1082 | AOZ1: 1083 | APA1: 1084 | APB1: 1085 | APC1: 1086 | APD1: 1087 | APE1: 1088 | APF1: 1089 | APG1: 1090 | APH1: 1091 | API1: 1092 | APJ1: 1093 | APK1: 1094 | APL1: 1095 | APM1: 1096 | APN1: 1097 | APO1: 1098 | APP1: 1099 | APQ1: 1100 | APR1: 1101 | APS1: 1102 | APT1: 1103 | APU1: 1104 | APV1: 1105 | APW1: 1106 | APX1: 1107 | APY1: 1108 | APZ1: 1109 | AQA1: 1110 | AQB1: 1111 | AQC1: 1112 | AQD1: 1113 | AQE1: 1114 | AQF1: 1115 | AQG1: 1116 | AQH1: 1117 | AQI1: 1118 | AQJ1: 1119 | AQK1: 1120 | AQL1: 1121 | AQM1: 1122 | AQN1: 1123 | AQO1: 1124 | AQP1: 1125 | AQQ1: 1126 | AQR1: 1127 | AQS1: 1128 | AQT1: 1129 | AQU1: 1130 | AQV1: 1131 | AQW1: 1132 | AQX1: 1133 | AQY1: 1134 | AQZ1: 1135 | ARA1: 1136 | ARB1: 1137 | ARC1: 1138 | ARD1: 1139 | ARE1: 1140 | ARF1: 1141 | ARG1: 1142 | ARH1: 1143 | ARI1: 1144 | ARJ1: 1145 | ARK1: 1146 | ARL1: 1147 | ARM1: 1148 | ARN1: 1149 | ARO1: 1150 | ARP1: 1151 | ARQ1: 1152 | ARR1: 1153 | ARS1: 1154 | ART1: 1155 | ARU1: 1156 | ARV1: 1157 | ARW1: 1158 | ARX1: 1159 | ARY1: 1160 | ARZ1: 1161 | ASA1: 1162 | ASB1: 1163 | ASC1: 1164 | ASD1: 1165 | ASE1: 1166 | ASF1: 1167 | ASG1: 1168 | ASH1: 1169 | ASI1: 1170 | ASJ1: 1171 | ASK1: 1172 | ASL1: 1173 | ASM1: 1174 | ASN1: 1175 | ASO1: 1176 | ASP1: 1177 | ASQ1: 1178 | ASR1: 1179 | ASS1: 1180 | AST1: 1181 | ASU1: 1182 | ASV1: 1183 | ASW1: 1184 | ASX1: 1185 | ASY1: 1186 | ASZ1: 1187 | ATA1: 1188 | ATB1: 1189 | ATC1: 1190 | ATD1: 1191 | ATE1: 1192 | ATF1: 1193 | ATG1: 1194 | ATH1: 1195 | ATI1: 1196 | ATJ1: 1197 | ATK1: 1198 | ATL1: 1199 | ATM1: 1200 | ATN1: 1201 | ATO1: 1202 | ATP1: 1203 | ATQ1: 1204 | ATR1: 1205 | ATS1: 1206 | ATT1: 1207 | ATU1: 1208 | ATV1: 1209 | ATW1: 1210 | ATX1: 1211 | ATY1: 1212 | ATZ1: 1213 | AUA1: 1214 | AUB1: 1215 | AUC1: 1216 | AUD1: 1217 | AUE1: 1218 | AUF1: 1219 | AUG1: 1220 | AUH1: 1221 | AUI1: 1222 | AUJ1: 1223 | AUK1: 1224 | AUL1: 1225 | AUM1: 1226 | AUN1: 1227 | AUO1: 1228 | AUP1: 1229 | AUQ1: 1230 | AUR1: 1231 | AUS1: 1232 | AUT1: 1233 | AUU1: 1234 | AUV1: 1235 | AUW1: 1236 | AUX1: 1237 | AUY1: 1238 | AUZ1: 1239 | AVA1: 1240 | AVB1: 1241 | AVC1: 1242 | AVD1: 1243 | AVE1: 1244 | AVF1: 1245 | AVG1: 1246 | AVH1: 1247 | AVI1: 1248 | AVJ1: 1249 | AVK1: 1250 | AVL1: 1251 | AVM1: 1252 | AVN1: 1253 | AVO1: 1254 | AVP1: 1255 | AVQ1: 1256 | AVR1: 1257 | AVS1: 1258 | AVT1: 1259 | AVU1: 1260 | AVV1: 1261 | AVW1: 1262 | AVX1: 1263 | AVY1: 1264 | AVZ1: 1265 | AWA1: 1266 | AWB1: 1267 | AWC1: 1268 | AWD1: 1269 | AWE1: 1270 | AWF1: 1271 | AWG1: 1272 | AWH1: 1273 | AWI1: 1274 | AWJ1: 1275 | AWK1: 1276 | AWL1: 1277 | AWM1: 1278 | AWN1: 1279 | AWO1: 1280 | AWP1: 1281 | AWQ1: 1282 | AWR1: 1283 | AWS1: 1284 | AWT1: 1285 | AWU1: 1286 | AWV1: 1287 | AWW1: 1288 | AWX1: 1289 | AWY1: 1290 | AWZ1: 1291 | AXA1: 1292 | AXB1: 1293 | AXC1: 1294 | AXD1: 1295 | AXE1: 1296 | AXF1: 1297 | AXG1: 1298 | AXH1: 1299 | AXI1: 1300 | AXJ1: 1301 | AXK1: 1302 | AXL1: 1303 | AXM1: 1304 | AXN1: 1305 | AXO1: 1306 | AXP1: 1307 | AXQ1: 1308 | AXR1: 1309 | AXS1: 1310 | AXT1: 1311 | AXU1: 1312 | AXV1: 1313 | AXW1: 1314 | AXX1: 1315 | AXY1: 1316 | AXZ1: 1317 | AYA1: 1318 | AYB1: 1319 | AYC1: 1320 | AYD1: 1321 | AYE1: 1322 | AYF1: 1323 | AYG1: 1324 | AYH1: 1325 | AYI1: 1326 | AYJ1: 1327 | AYK1: 1328 | AYL1: 1329 | AYM1: 1330 | AYN1: 1331 | AYO1: 1332 | AYP1: 1333 | AYQ1: 1334 | AYR1: 1335 | AYS1: 1336 | AYT1: 1337 | AYU1: 1338 | AYV1: 1339 | AYW1: 1340 | AYX1: 1341 | AYY1: 1342 | AYZ1: 1343 | AZA1: 1344 | AZB1: 1345 | AZC1: 1346 | AZD1: 1347 | AZE1: 1348 | AZF1: 1349 | AZG1: 1350 | AZH1: 1351 | AZI1: 1352 | AZJ1: 1353 | AZK1: 1354 | AZL1: 1355 | AZM1: 1356 | AZN1: 1357 | AZO1: 1358 | AZP1: 1359 | AZQ1: 1360 | AZR1: 1361 | AZS1: 1362 | AZT1: 1363 | AZU1: 1364 | AZV1: 1365 | AZW1: 1366 | AZX1: 1367 | AZY1: 1368 | AZZ1: 1369 | BAA1: 1370 | BAB1: 1371 | BAC1: 1372 | BAD1: 1373 | BAE1: 1374 | BAF1: 1375 | BAG1: 1376 | BAH1: 1377 | BAI1: 1378 | BAJ1: 1379 | BAK1: 1380 | BAL1: 1381 | BAM1: 1382 | BAN1: 1383 | BAO1: 1384 | BAP1: 1385 | BAQ1: 1386 | BAR1: 1387 | BAS1: 1388 | BAT1: 1389 | BAU1: 1390 | BAV1: 1391 | BAW1: 1392 | BAX1: 1393 | BAY1: 1394 | BAZ1: 1395 | BBA1: 1396 | BBB1: 1397 | BBC1: 1398 | BBD1: 1399 | BBE1: 1400 | BBF1: 1401 | BBG1: 1402 | BBH1: 1403 | BBI1: 1404 | BBJ1: 1405 | BBK1: 1406 | BBL1: 1407 | BBM1: 1408 | BBN1: 1409 | BBO1: 1410 | BBP1: 1411 | BBQ1: 1412 | BBR1: 1413 | BBS1: 1414 | BBT1: 1415 | BBU1: 1416 | BBV1: 1417 | BBW1: 1418 | BBX1: 1419 | BBY1: 1420 | BBZ1: 1421 | BCA1: 1422 | BCB1: 1423 | BCC1: 1424 | BCD1: 1425 | BCE1: 1426 | BCF1: 1427 | BCG1: 1428 | BCH1: 1429 | BCI1: 1430 | BCJ1: 1431 | BCK1: 1432 | BCL1: 1433 | BCM1: 1434 | BCN1: 1435 | BCO1: 1436 | BCP1: 1437 | BCQ1: 1438 | BCR1: 1439 | BCS1: 1440 | BCT1: 1441 | BCU1: 1442 | BCV1: 1443 | BCW1: 1444 | BCX1: 1445 | BCY1: 1446 | BCZ1: 1447 | BDA1: 1448 | BDB1: 1449 | BDC1: 1450 | BDD1: 1451 | BDE1: 1452 | BDF1: 1453 | BDG1: 1454 | BDH1: 1455 | BDI1: 1456 | BDJ1: 1457 | BDK1: 1458 | BDL1: 1459 | BDM1: 1460 | BDN1: 1461 | BDO1: 1462 | BDP1: 1463 | BDQ1: 1464 | BDR1: 1465 | BDS1: 1466 | BDT1: 1467 | BDU1: 1468 | BDV1: 1469 | BDW1: 1470 | BDX1: 1471 | BDY1: 1472 | BDZ1: 1473 | BEA1: 1474 | BEB1: 1475 | BEC1: 1476 | BED1: 1477 | BEE1: 1478 | BEF1: 1479 | BEG1: 1480 | BEH1: 1481 | BEI1: 1482 | BEJ1: 1483 | BEK1: 1484 | BEL1: 1485 | BEM1: 1486 | BEN1: 1487 | BEO1: 1488 | BEP1: 1489 | BEQ1: 1490 | BER1: 1491 | BES1: 1492 | BET1: 1493 | BEU1: 1494 | BEV1: 1495 | BEW1: 1496 | BEX1: 1497 | BEY1: 1498 | BEZ1: 1499 | BFA1: 1500 | BFB1: 1501 | BFC1: 1502 | BFD1: 1503 | BFE1: 1504 | BFF1: 1505 | BFG1: 1506 | BFH1: 1507 | BFI1: 1508 | BFJ1: 1509 | BFK1: 1510 | BFL1: 1511 | BFM1: 1512 | BFN1: 1513 | BFO1: 1514 | BFP1: 1515 | BFQ1: 1516 | BFR1: 1517 | BFS1: 1518 | BFT1: 1519 | BFU1: 1520 | BFV1: 1521 | BFW1: 1522 | BFX1: 1523 | BFY1: 1524 | BFZ1: 1525 | BGA1: 1526 | BGB1: 1527 | BGC1: 1528 | BGD1: 1529 | BGE1: 1530 | BGF1: 1531 | BGG1: 1532 | BGH1: 1533 | BGI1: 1534 | BGJ1: 1535 | BGK1: 1536 | BGL1: 1537 | BGM1: 1538 | BGN1: 1539 | BGO1: 1540 | BGP1: 1541 | BGQ1: 1542 | BGR1: 1543 | BGS1: 1544 | BGT1: 1545 | BGU1: 1546 | BGV1: 1547 | BGW1: 1548 | BGX1: 1549 | BGY1: 1550 | BGZ1: 1551 | BHA1: 1552 | BHB1: 1553 | BHC1: 1554 | BHD1: 1555 | BHE1: 1556 | BHF1: 1557 | BHG1: 1558 | BHH1: 1559 | BHI1: 1560 | BHJ1: 1561 | BHK1: 1562 | BHL1: 1563 | BHM1: 1564 | BHN1: 1565 | BHO1: 1566 | BHP1: 1567 | BHQ1: 1568 | BHR1: 1569 | BHS1: 1570 | BHT1: 1571 | BHU1: 1572 | BHV1: 1573 | BHW1: 1574 | BHX1: 1575 | BHY1: 1576 | BHZ1: 1577 | BIA1: 1578 | BIB1: 1579 | BIC1: 1580 | BID1: 1581 | BIE1: 1582 | BIF1: 1583 | BIG1: 1584 | BIH1: 1585 | BII1: 1586 | BIJ1: 1587 | BIK1: 1588 | BIL1: 1589 | BIM1: 1590 | BIN1: 1591 | BIO1: 1592 | BIP1: 1593 | BIQ1: 1594 | BIR1: 1595 | BIS1: 1596 | BIT1: 1597 | BIU1: 1598 | BIV1: 1599 | BIW1: 1600 | BIX1: 1601 | BIY1: 1602 | BIZ1: 1603 | BJA1: 1604 | BJB1: 1605 | BJC1: 1606 | BJD1: 1607 | BJE1: 1608 | BJF1: 1609 | BJG1: 1610 | BJH1: 1611 | BJI1: 1612 | BJJ1: 1613 | BJK1: 1614 | BJL1: 1615 | BJM1: 1616 | BJN1: 1617 | BJO1: 1618 | BJP1: 1619 | BJQ1: 1620 | BJR1: 1621 | BJS1: 1622 | BJT1: 1623 | BJU1: 1624 | BJV1: 1625 | BJW1: 1626 | BJX1: 1627 | BJY1: 1628 | BJZ1: 1629 | BKA1: 1630 | BKB1: 1631 | BKC1: 1632 | BKD1: 1633 | BKE1: 1634 | BKF1: 1635 | BKG1: 1636 | BKH1: 1637 | BKI1: 1638 | BKJ1: 1639 | BKK1: 1640 | BKL1: 1641 | BKM1: 1642 | BKN1: 1643 | BKO1: 1644 | BKP1: 1645 | BKQ1: 1646 | BKR1: 1647 | BKS1: 1648 | BKT1: 1649 | BKU1: 1650 | BKV1: 1651 | BKW1: 1652 | BKX1: 1653 | BKY1: 1654 | BKZ1: 1655 | BLA1: 1656 | BLB1: 1657 | BLC1: 1658 | BLD1: 1659 | BLE1: 1660 | BLF1: 1661 | BLG1: 1662 | BLH1: 1663 | BLI1: 1664 | BLJ1: 1665 | BLK1: 1666 | BLL1: 1667 | BLM1: 1668 | BLN1: 1669 | BLO1: 1670 | BLP1: 1671 | BLQ1: 1672 | BLR1: 1673 | BLS1: 1674 | BLT1: 1675 | BLU1: 1676 | BLV1: 1677 | BLW1: 1678 | BLX1: 1679 | BLY1: 1680 | BLZ1: 1681 | BMA1: 1682 | BMB1: 1683 | BMC1: 1684 | BMD1: 1685 | BME1: 1686 | BMF1: 1687 | BMG1: 1688 | BMH1: 1689 | BMI1: 1690 | BMJ1: 1691 | BMK1: 1692 | BML1: 1693 | BMM1: 1694 | BMN1: 1695 | BMO1: 1696 | BMP1: 1697 | BMQ1: 1698 | BMR1: 1699 | BMS1: 1700 | BMT1: 1701 | BMU1: 1702 | BMV1: 1703 | BMW1: 1704 | BMX1: 1705 | BMY1: 1706 | BMZ1: 1707 | BNA1: 1708 | BNB1: 1709 | BNC1: 1710 | BND1: 1711 | BNE1: 1712 | BNF1: 1713 | BNG1: 1714 | BNH1: 1715 | BNI1: 1716 | BNJ1: 1717 | BNK1: 1718 | BNL1: 1719 | BNM1: 1720 | BNN1: 1721 | BNO1: 1722 | BNP1: 1723 | BNQ1: 1724 | BNR1: 1725 | BNS1: 1726 | BNT1: 1727 | BNU1: 1728 | BNV1: 1729 | BNW1: 1730 | BNX1: 1731 | BNY1: 1732 | BNZ1: 1733 | BOA1: 1734 | BOB1: 1735 | BOC1: 1736 | BOD1: 1737 | BOE1: 1738 | BOF1: 1739 | BOG1: 1740 | BOH1: 1741 | BOI1: 1742 | BOJ1: 1743 | BOK1: 1744 | BOL1: 1745 | BOM1: 1746 | BON1: 1747 | BOO1: 1748 | BOP1: 1749 | BOQ1: 1750 | BOR1: 1751 | BOS1: 1752 | BOT1: 1753 | BOU1: 1754 | BOV1: 1755 | BOW1: 1756 | BOX1: 1757 | BOY1: 1758 | BOZ1: 1759 | BPA1: 1760 | BPB1: 1761 | BPC1: 1762 | BPD1: 1763 | BPE1: 1764 | BPF1: 1765 | BPG1: 1766 | BPH1: 1767 | BPI1: 1768 | BPJ1: 1769 | BPK1: 1770 | BPL1: 1771 | BPM1: 1772 | BPN1: 1773 | BPO1: 1774 | BPP1: 1775 | BPQ1: 1776 | BPR1: 1777 | BPS1: 1778 | BPT1: 1779 | BPU1: 1780 | BPV1: 1781 | BPW1: 1782 | BPX1: 1783 | BPY1: 1784 | BPZ1: 1785 | BQA1: 1786 | BQB1: 1787 | BQC1: 1788 | BQD1: 1789 | BQE1: 1790 | BQF1: 1791 | BQG1: 1792 | BQH1: 1793 | BQI1: 1794 | BQJ1: 1795 | BQK1: 1796 | BQL1: 1797 | BQM1: 1798 | BQN1: 1799 | BQO1: 1800 | BQP1: 1801 | BQQ1: 1802 | BQR1: 1803 | BQS1: 1804 | BQT1: 1805 | BQU1: 1806 | BQV1: 1807 | BQW1: 1808 | BQX1: 1809 | BQY1: 1810 | BQZ1: 1811 | BRA1: 1812 | BRB1: 1813 | BRC1: 1814 | BRD1: 1815 | BRE1: 1816 | BRF1: 1817 | BRG1: 1818 | BRH1: 1819 | BRI1: 1820 | BRJ1: 1821 | BRK1: 1822 | BRL1: 1823 | BRM1: 1824 | BRN1: 1825 | BRO1: 1826 | BRP1: 1827 | BRQ1: 1828 | BRR1: 1829 | BRS1: 1830 | BRT1: 1831 | BRU1: 1832 | BRV1: 1833 | BRW1: 1834 | BRX1: 1835 | BRY1: 1836 | BRZ1: 1837 | BSA1: 1838 | BSB1: 1839 | BSC1: 1840 | BSD1: 1841 | BSE1: 1842 | BSF1: 1843 | BSG1: 1844 | BSH1: 1845 | BSI1: 1846 | BSJ1: 1847 | BSK1: 1848 | BSL1: 1849 | BSM1: 1850 | BSN1: 1851 | BSO1: 1852 | BSP1: 1853 | BSQ1: 1854 | BSR1: 1855 | BSS1: 1856 | BST1: 1857 | BSU1: 1858 | BSV1: 1859 | BSW1: 1860 | BSX1: 1861 | BSY1: 1862 | BSZ1: 1863 | BTA1: 1864 | BTB1: 1865 | BTC1: 1866 | BTD1: 1867 | BTE1: 1868 | BTF1: 1869 | BTG1: 1870 | BTH1: 1871 | BTI1: 1872 | BTJ1: 1873 | BTK1: 1874 | BTL1: 1875 | BTM1: 1876 | BTN1: 1877 | BTO1: 1878 | BTP1: 1879 | BTQ1: 1880 | BTR1: 1881 | BTS1: 1882 | BTT1: 1883 | BTU1: 1884 | BTV1: 1885 | BTW1: 1886 | BTX1: 1887 | BTY1: 1888 | BTZ1: 1889 | BUA1: 1890 | BUB1: 1891 | BUC1: 1892 | BUD1: 1893 | BUE1: 1894 | BUF1: 1895 | BUG1: 1896 | BUH1: 1897 | BUI1: 1898 | BUJ1: 1899 | BUK1: 1900 | BUL1: 1901 | BUM1: 1902 | BUN1: 1903 | BUO1: 1904 | BUP1: 1905 | BUQ1: 1906 | BUR1: 1907 | BUS1: 1908 | BUT1: 1909 | BUU1: 1910 | BUV1: 1911 | BUW1: 1912 | BUX1: 1913 | BUY1: 1914 | BUZ1: 1915 | BVA1: 1916 | BVB1: 1917 | BVC1: 1918 | BVD1: 1919 | BVE1: 1920 | BVF1: 1921 | BVG1: 1922 | BVH1: 1923 | BVI1: 1924 | BVJ1: 1925 | BVK1: 1926 | BVL1: 1927 | BVM1: 1928 | BVN1: 1929 | BVO1: 1930 | BVP1: 1931 | BVQ1: 1932 | BVR1: 1933 | BVS1: 1934 | BVT1: 1935 | BVU1: 1936 | BVV1: 1937 | BVW1: 1938 | BVX1: 1939 | BVY1: 1940 | BVZ1: 1941 | BWA1: 1942 | BWB1: 1943 | BWC1: 1944 | BWD1: 1945 | BWE1: 1946 | BWF1: 1947 | BWG1: 1948 | BWH1: 1949 | BWI1: 1950 | BWJ1: 1951 | BWK1: 1952 | BWL1: 1953 | BWM1: 1954 | BWN1: 1955 | BWO1: 1956 | BWP1: 1957 | BWQ1: 1958 | BWR1: 1959 | BWS1: 1960 | BWT1: 1961 | BWU1: 1962 | BWV1: 1963 | BWW1: 1964 | BWX1: 1965 | BWY1: 1966 | BWZ1: 1967 | BXA1: 1968 | BXB1: 1969 | BXC1: 1970 | BXD1: 1971 | BXE1: 1972 | BXF1: 1973 | BXG1: 1974 | BXH1: 1975 | BXI1: 1976 | BXJ1: 1977 | BXK1: 1978 | BXL1: 1979 | BXM1: 1980 | BXN1: 1981 | BXO1: 1982 | BXP1: 1983 | BXQ1: 1984 | BXR1: 1985 | BXS1: 1986 | BXT1: 1987 | BXU1: 1988 | BXV1: 1989 | BXW1: 1990 | BXX1: 1991 | BXY1: 1992 | BXZ1: 1993 | BYA1: 1994 | BYB1: 1995 | BYC1: 1996 | BYD1: 1997 | BYE1: 1998 | BYF1: 1999 | BYG1: 2000 | BYH1: 2001 | BYI1: 2002 | BYJ1: 2003 | BYK1: 2004 | BYL1: 2005 | BYM1: 2006 | BYN1: 2007 | BYO1: 2008 | BYP1: 2009 | BYQ1: 2010 | BYR1: 2011 | BYS1: 2012 | BYT1: 2013 | BYU1: 2014 | BYV1: 2015 | BYW1: 2016 | BYX1: 2017 | BYY1: 2018 | BYZ1: 2019 | BZA1: 2020 | BZB1: 2021 | BZC1: 2022 | BZD1: 2023 | BZE1: 2024 | BZF1: 2025 | BZG1: 2026 | BZH1: 2027 | BZI1: 2028 | BZJ1: 2029 | BZK1: 2030 | BZL1: 2031 | BZM1: 2032 | BZN1: 2033 | BZO1: 2034 | BZP1: 2035 | BZQ1: 2036 | BZR1: 2037 | BZS1: 2038 | BZT1: 2039 | BZU1: 2040 | BZV1: 2041 | BZW1: 2042 | BZX1: 2043 | BZY1: 2044 | BZZ1: 2045 | CAA1: 2046 | CAB1: 2047 | CAC1: 2048 | CAD1: 2049 | CAE1: 2050 | CAF1: 2051 | CAG1: 2052 | CAH1: 2053 | CAI1: 2054 | CAJ1: 2055 | CAK1: 2056 | CAL1: 2057 | CAM1: 2058 | CAN1: 2059 | CAO1: 2060 | CAP1: 2061 | CAQ1: 2062 | CAR1: 2063 | CAS1: 2064 | CAT1: 2065 | CAU1: 2066 | CAV1: 2067 | CAW1: 2068 | CAX1: 2069 | CAY1: 2070 | CAZ1: 2071 | CBA1: 2072 | CBB1: 2073 | CBC1: 2074 | CBD1: 2075 | CBE1: 2076 | CBF1: 2077 | CBG1: 2078 | CBH1: 2079 | CBI1: 2080 | CBJ1: 2081 | CBK1: 2082 | CBL1: 2083 | CBM1: 2084 | CBN1: 2085 | CBO1: 2086 | CBP1: 2087 | CBQ1: 2088 | CBR1: 2089 | CBS1: 2090 | CBT1: 2091 | CBU1: 2092 | CBV1: 2093 | CBW1: 2094 | CBX1: 2095 | CBY1: 2096 | CBZ1: 2097 | CCA1: 2098 | CCB1: 2099 | CCC1: 2100 | CCD1: 2101 | CCE1: 2102 | CCF1: 2103 | CCG1: 2104 | CCH1: 2105 | CCI1: 2106 | CCJ1: 2107 | CCK1: 2108 | CCL1: 2109 | CCM1: 2110 | CCN1: 2111 | CCO1: 2112 | CCP1: 2113 | CCQ1: 2114 | CCR1: 2115 | CCS1: 2116 | CCT1: 2117 | CCU1: 2118 | CCV1: 2119 | CCW1: 2120 | CCX1: 2121 | CCY1: 2122 | CCZ1: 2123 | CDA1: 2124 | CDB1: 2125 | CDC1: 2126 | CDD1: 2127 | CDE1: 2128 | CDF1: 2129 | CDG1: 2130 | CDH1: 2131 | CDI1: 2132 | CDJ1: 2133 | CDK1: 2134 | CDL1: 2135 | CDM1: 2136 | CDN1: 2137 | CDO1: 2138 | CDP1: 2139 | CDQ1: 2140 | CDR1: 2141 | CDS1: 2142 | CDT1: 2143 | CDU1: 2144 | CDV1: 2145 | CDW1: 2146 | CDX1: 2147 | CDY1: 2148 | CDZ1: 2149 | CEA1: 2150 | CEB1: 2151 | CEC1: 2152 | CED1: 2153 | CEE1: 2154 | CEF1: 2155 | CEG1: 2156 | CEH1: 2157 | CEI1: 2158 | CEJ1: 2159 | CEK1: 2160 | CEL1: 2161 | CEM1: 2162 | CEN1: 2163 | CEO1: 2164 | CEP1: 2165 | CEQ1: 2166 | CER1: 2167 | CES1: 2168 | CET1: 2169 | CEU1: 2170 | CEV1: 2171 | CEW1: 2172 | CEX1: 2173 | CEY1: 2174 | CEZ1: 2175 | CFA1: 2176 | CFB1: 2177 | CFC1: 2178 | CFD1: 2179 | CFE1: 2180 | CFF1: 2181 | CFG1: 2182 | CFH1: 2183 | CFI1: 2184 | CFJ1: 2185 | CFK1: 2186 | CFL1: 2187 | CFM1: 2188 | CFN1: 2189 | CFO1: 2190 | CFP1: 2191 | CFQ1: 2192 | CFR1: 2193 | CFS1: 2194 | CFT1: 2195 | CFU1: 2196 | CFV1: 2197 | CFW1: 2198 | CFX1: 2199 | CFY1: 2200 | CFZ1: 2201 | CGA1: 2202 | CGB1: 2203 | CGC1: 2204 | CGD1: 2205 | CGE1: 2206 | CGF1: 2207 | CGG1: 2208 | CGH1: 2209 | CGI1: 2210 | CGJ1: 2211 | CGK1: 2212 | CGL1: 2213 | CGM1: 2214 | CGN1: 2215 | CGO1: 2216 | CGP1: 2217 | CGQ1: 2218 | CGR1: 2219 | CGS1: 2220 | CGT1: 2221 | CGU1: 2222 | CGV1: 2223 | CGW1: 2224 | CGX1: 2225 | CGY1: 2226 | CGZ1: 2227 | CHA1: 2228 | CHB1: 2229 | CHC1: 2230 | CHD1: 2231 | CHE1: 2232 | CHF1: 2233 | CHG1: 2234 | CHH1: 2235 | CHI1: 2236 | CHJ1: 2237 | CHK1: 2238 | CHL1: 2239 | CHM1: 2240 | CHN1: 2241 | CHO1: 2242 | CHP1: 2243 | CHQ1: 2244 | CHR1: 2245 | CHS1: 2246 | CHT1: 2247 | CHU1: 2248 | CHV1: 2249 | CHW1: 2250 | CHX1: 2251 | CHY1: 2252 | CHZ1: 2253 | CIA1: 2254 | CIB1: 2255 | CIC1: 2256 | CID1: 2257 | CIE1: 2258 | CIF1: 2259 | CIG1: 2260 | CIH1: 2261 | CII1: 2262 | CIJ1: 2263 | CIK1: 2264 | CIL1: 2265 | CIM1: 2266 | CIN1: 2267 | CIO1: 2268 | CIP1: 2269 | CIQ1: 2270 | CIR1: 2271 | CIS1: 2272 | CIT1: 2273 | CIU1: 2274 | CIV1: 2275 | CIW1: 2276 | CIX1: 2277 | CIY1: 2278 | CIZ1: 2279 | CJA1: 2280 | CJB1: 2281 | CJC1: 2282 | CJD1: 2283 | CJE1: 2284 | CJF1: 2285 | CJG1: 2286 | CJH1: 2287 | CJI1: 2288 | CJJ1: 2289 | CJK1: 2290 | CJL1: 2291 | CJM1: 2292 | CJN1: 2293 | CJO1: 2294 | CJP1: 2295 | CJQ1: 2296 | CJR1: 2297 | CJS1: 2298 | CJT1: 2299 | CJU1: 2300 | CJV1: 2301 | CJW1: 2302 | CJX1: 2303 | CJY1: 2304 | CJZ1: 2305 | CKA1: 2306 | CKB1: 2307 | CKC1: 2308 | CKD1: 2309 | CKE1: 2310 | CKF1: 2311 | CKG1: 2312 | CKH1: 2313 | CKI1: 2314 | CKJ1: 2315 | CKK1: 2316 | CKL1: 2317 | CKM1: 2318 | CKN1: 2319 | CKO1: 2320 | CKP1: 2321 | CKQ1: 2322 | CKR1: 2323 | CKS1: 2324 | CKT1: 2325 | CKU1: 2326 | CKV1: 2327 | CKW1: 2328 | CKX1: 2329 | CKY1: 2330 | CKZ1: 2331 | CLA1: 2332 | CLB1: 2333 | CLC1: 2334 | CLD1: 2335 | CLE1: 2336 | CLF1: 2337 | CLG1: 2338 | CLH1: 2339 | CLI1: 2340 | CLJ1: 2341 | CLK1: 2342 | CLL1: 2343 | CLM1: 2344 | CLN1: 2345 | CLO1: 2346 | CLP1: 2347 | CLQ1: 2348 | CLR1: 2349 | CLS1: 2350 | CLT1: 2351 | CLU1: 2352 | CLV1: 2353 | CLW1: 2354 | CLX1: 2355 | CLY1: 2356 | CLZ1: 2357 | CMA1: 2358 | CMB1: 2359 | CMC1: 2360 | CMD1: 2361 | CME1: 2362 | CMF1: 2363 | CMG1: 2364 | CMH1: 2365 | CMI1: 2366 | CMJ1: 2367 | CMK1: 2368 | CML1: 2369 | CMM1: 2370 | CMN1: 2371 | CMO1: 2372 | CMP1: 2373 | CMQ1: 2374 | CMR1: 2375 | CMS1: 2376 | CMT1: 2377 | CMU1: 2378 | CMV1: 2379 | CMW1: 2380 | CMX1: 2381 | CMY1: 2382 | CMZ1: 2383 | CNA1: 2384 | CNB1: 2385 | CNC1: 2386 | CND1: 2387 | CNE1: 2388 | CNF1: 2389 | CNG1: 2390 | CNH1: 2391 | CNI1: 2392 | CNJ1: 2393 | CNK1: 2394 | CNL1: 2395 | CNM1: 2396 | CNN1: 2397 | CNO1: 2398 | CNP1: 2399 | CNQ1: 2400 | CNR1: 2401 | CNS1: 2402 | CNT1: 2403 | CNU1: 2404 | CNV1: 2405 | CNW1: 2406 | CNX1: 2407 | CNY1: 2408 | CNZ1: 2409 | COA1: 2410 | COB1: 2411 | COC1: 2412 | COD1: 2413 | COE1: 2414 | COF1: 2415 | COG1: 2416 | COH1: 2417 | COI1: 2418 | COJ1: 2419 | COK1: 2420 | COL1: 2421 | COM1: 2422 | CON1: 2423 | COO1: 2424 | COP1: 2425 | COQ1: 2426 | COR1: 2427 | COS1: 2428 | COT1: 2429 | COU1: 2430 | COV1: 2431 | COW1: 2432 | COX1: 2433 | COY1: 2434 | COZ1: 2435 | CPA1: 2436 | CPB1: 2437 | CPC1: 2438 | CPD1: 2439 | CPE1: 2440 | CPF1: 2441 | CPG1: 2442 | CPH1: 2443 | CPI1: 2444 | CPJ1: 2445 | CPK1: 2446 | CPL1: 2447 | CPM1: 2448 | CPN1: 2449 | CPO1: 2450 | CPP1: 2451 | CPQ1: 2452 | CPR1: 2453 | CPS1: 2454 | CPT1: 2455 | CPU1: 2456 | CPV1: 2457 | CPW1: 2458 | CPX1: 2459 | CPY1: 2460 | CPZ1: 2461 | CQA1: 2462 | CQB1: 2463 | CQC1: 2464 | CQD1: 2465 | CQE1: 2466 | CQF1: 2467 | CQG1: 2468 | CQH1: 2469 | CQI1: 2470 | CQJ1: 2471 | CQK1: 2472 | CQL1: 2473 | CQM1: 2474 | CQN1: 2475 | CQO1: 2476 | CQP1: 2477 | CQQ1: 2478 | CQR1: 2479 | CQS1: 2480 | CQT1: 2481 | CQU1: 2482 | CQV1: 2483 | CQW1: 2484 | CQX1: 2485 | CQY1: 2486 | CQZ1: 2487 | CRA1: 2488 | CRB1: 2489 | CRC1: 2490 | CRD1: 2491 | CRE1: 2492 | CRF1: 2493 | CRG1: 2494 | CRH1: 2495 | CRI1: 2496 | CRJ1: 2497 | CRK1: 2498 | CRL1: 2499 | CRM1: 2500 | CRN1: 2501 | CRO1: 2502 | CRP1: 2503 | CRQ1: 2504 | CRR1: 2505 | CRS1: 2506 | CRT1: 2507 | CRU1: 2508 | CRV1: 2509 | CRW1: 2510 | CRX1: 2511 | CRY1: 2512 | CRZ1: 2513 | CSA1: 2514 | CSB1: 2515 | CSC1: 2516 | CSD1: 2517 | CSE1: 2518 | CSF1: 2519 | CSG1: 2520 | CSH1: 2521 | CSI1: 2522 | CSJ1: 2523 | CSK1: 2524 | CSL1: 2525 | CSM1: 2526 | CSN1: 2527 | CSO1: 2528 | CSP1: 2529 | CSQ1: 2530 | CSR1: 2531 | CSS1: 2532 | CST1: 2533 | CSU1: 2534 | CSV1: 2535 | CSW1: 2536 | CSX1: 2537 | CSY1: 2538 | CSZ1: 2539 | CTA1: 2540 | CTB1: 2541 | CTC1: 2542 | CTD1: 2543 | CTE1: 2544 | CTF1: 2545 | CTG1: 2546 | CTH1: 2547 | CTI1: 2548 | CTJ1: 2549 | CTK1: 2550 | CTL1: 2551 | CTM1: 2552 | CTN1: 2553 | CTO1: 2554 | CTP1: 2555 | CTQ1: 2556 | CTR1: 2557 | CTS1: 2558 | CTT1: 2559 | CTU1: 2560 | CTV1: 2561 | CTW1: 2562 | CTX1: 2563 | CTY1: 2564 | CTZ1: 2565 | CUA1: 2566 | CUB1: 2567 | CUC1: 2568 | CUD1: 2569 | CUE1: 2570 | CUF1: 2571 | CUG1: 2572 | CUH1: 2573 | CUI1: 2574 | CUJ1: 2575 | CUK1: 2576 | CUL1: 2577 | CUM1: 2578 | CUN1: 2579 | CUO1: 2580 | CUP1: 2581 | CUQ1: 2582 | CUR1: 2583 | CUS1: 2584 | CUT1: 2585 | CUU1: 2586 | CUV1: 2587 | CUW1: 2588 | CUX1: 2589 | CUY1: 2590 | CUZ1: 2591 | CVA1: 2592 | CVB1: 2593 | CVC1: 2594 | CVD1: 2595 | CVE1: 2596 | CVF1: 2597 | CVG1: 2598 | CVH1: 2599 | CVI1: 2600 | CVJ1: 2601 | CVK1: 2602 | CVL1: 2603 | CVM1: 2604 | CVN1: 2605 | CVO1: 2606 | CVP1: 2607 | CVQ1: 2608 | CVR1: 2609 | CVS1: 2610 | CVT1: 2611 | CVU1: 2612 | CVV1: 2613 | CVW1: 2614 | CVX1: 2615 | CVY1: 2616 | CVZ1: 2617 | CWA1: 2618 | CWB1: 2619 | CWC1: 2620 | CWD1: 2621 | CWE1: 2622 | CWF1: 2623 | CWG1: 2624 | CWH1: 2625 | CWI1: 2626 | CWJ1: 2627 | CWK1: 2628 | CWL1: 2629 | CWM1: 2630 | CWN1: 2631 | CWO1: 2632 | CWP1: 2633 | CWQ1: 2634 | CWR1: 2635 | CWS1: 2636 | CWT1: 2637 | CWU1: 2638 | CWV1: 2639 | CWW1: 2640 | CWX1: 2641 | CWY1: 2642 | CWZ1: 2643 | CXA1: 2644 | CXB1: 2645 | CXC1: 2646 | CXD1: 2647 | CXE1: 2648 | CXF1: 2649 | CXG1: 2650 | CXH1: 2651 | CXI1: 2652 | CXJ1: 2653 | CXK1: 2654 | CXL1: 2655 | CXM1: 2656 | CXN1: 2657 | CXO1: 2658 | CXP1: 2659 | CXQ1: 2660 | CXR1: 2661 | CXS1: 2662 | CXT1: 2663 | CXU1: 2664 | CXV1: 2665 | CXW1: 2666 | CXX1: 2667 | CXY1: 2668 | CXZ1: 2669 | CYA1: 2670 | CYB1: 2671 | CYC1: 2672 | CYD1: 2673 | CYE1: 2674 | CYF1: 2675 | CYG1: 2676 | CYH1: 2677 | CYI1: 2678 | CYJ1: 2679 | CYK1: 2680 | CYL1: 2681 | CYM1: 2682 | CYN1: 2683 | CYO1: 2684 | CYP1: 2685 | CYQ1: 2686 | CYR1: 2687 | CYS1: 2688 | CYT1: 2689 | CYU1: 2690 | CYV1: 2691 | CYW1: 2692 | CYX1: 2693 | CYY1: 2694 | CYZ1: 2695 | CZA1: 2696 | CZB1: 2697 | CZC1: 2698 | CZD1: 2699 | CZE1: 2700 | CZF1: 2701 | CZG1: 2702 | CZH1: 2703 | CZI1: 2704 | CZJ1: 2705 | CZK1: 2706 | CZL1: 2707 | CZM1: 2708 | CZN1: 2709 | CZO1: 2710 | CZP1: 2711 | CZQ1: 2712 | CZR1: 2713 | CZS1: 2714 | CZT1: 2715 | CZU1: 2716 | CZV1: 2717 | CZW1: 2718 | CZX1: 2719 | CZY1: 2720 | CZZ1: 2721 | DAA1: 2722 | DAB1: 2723 | DAC1: 2724 | DAD1: 2725 | DAE1: 2726 | DAF1: 2727 | DAG1: 2728 | DAH1: 2729 | DAI1: 2730 | DAJ1: 2731 | DAK1: 2732 | DAL1: 2733 | DAM1: 2734 | DAN1: 2735 | DAO1: 2736 | DAP1: 2737 | DAQ1: 2738 | DAR1: 2739 | DAS1: 2740 | DAT1: 2741 | DAU1: 2742 | DAV1: 2743 | DAW1: 2744 | DAX1: 2745 | DAY1: 2746 | DAZ1: 2747 | DBA1: 2748 | DBB1: 2749 | DBC1: 2750 | DBD1: 2751 | DBE1: 2752 | DBF1: 2753 | DBG1: 2754 | DBH1: 2755 | DBI1: 2756 | DBJ1: 2757 | DBK1: 2758 | DBL1: 2759 | DBM1: 2760 | DBN1: 2761 | DBO1: 2762 | DBP1: 2763 | DBQ1: 2764 | DBR1: 2765 | DBS1: 2766 | DBT1: 2767 | DBU1: 2768 | DBV1: 2769 | DBW1: 2770 | DBX1: 2771 | DBY1: 2772 | DBZ1: 2773 | DCA1: 2774 | DCB1: 2775 | DCC1: 2776 | DCD1: 2777 | DCE1: 2778 | DCF1: 2779 | DCG1: 2780 | DCH1: 2781 | DCI1: 2782 | DCJ1: 2783 | DCK1: 2784 | DCL1: 2785 | DCM1: 2786 | DCN1: 2787 | DCO1: 2788 | DCP1: 2789 | DCQ1: 2790 | DCR1: 2791 | DCS1: 2792 | DCT1: 2793 | DCU1: 2794 | DCV1: 2795 | DCW1: 2796 | DCX1: 2797 | DCY1: 2798 | DCZ1: 2799 | DDA1: 2800 | DDB1: 2801 | DDC1: 2802 | DDD1: 2803 | DDE1: 2804 | DDF1: 2805 | DDG1: 2806 | DDH1: 2807 | DDI1: 2808 | DDJ1: 2809 | DDK1: 2810 | DDL1: 2811 | DDM1: 2812 | DDN1: 2813 | DDO1: 2814 | DDP1: 2815 | DDQ1: 2816 | DDR1: 2817 | DDS1: 2818 | DDT1: 2819 | DDU1: 2820 | DDV1: 2821 | DDW1: 2822 | DDX1: 2823 | DDY1: 2824 | DDZ1: 2825 | DEA1: 2826 | DEB1: 2827 | DEC1: 2828 | DED1: 2829 | DEE1: 2830 | DEF1: 2831 | DEG1: 2832 | DEH1: 2833 | DEI1: 2834 | DEJ1: 2835 | DEK1: 2836 | DEL1: 2837 | DEM1: 2838 | DEN1: 2839 | DEO1: 2840 | DEP1: 2841 | DEQ1: 2842 | DER1: 2843 | DES1: 2844 | DET1: 2845 | DEU1: 2846 | DEV1: 2847 | DEW1: 2848 | DEX1: 2849 | DEY1: 2850 | DEZ1: 2851 | DFA1: 2852 | DFB1: 2853 | DFC1: 2854 | DFD1: 2855 | DFE1: 2856 | DFF1: 2857 | DFG1: 2858 | DFH1: 2859 | DFI1: 2860 | DFJ1: 2861 | DFK1: 2862 | DFL1: 2863 | DFM1: 2864 | DFN1: 2865 | DFO1: 2866 | DFP1: 2867 | DFQ1: 2868 | DFR1: 2869 | DFS1: 2870 | DFT1: 2871 | DFU1: 2872 | DFV1: 2873 | DFW1: 2874 | DFX1: 2875 | DFY1: 2876 | DFZ1: 2877 | DGA1: 2878 | DGB1: 2879 | DGC1: 2880 | DGD1: 2881 | DGE1: 2882 | DGF1: 2883 | DGG1: 2884 | DGH1: 2885 | DGI1: 2886 | DGJ1: 2887 | DGK1: 2888 | DGL1: 2889 | DGM1: 2890 | DGN1: 2891 | DGO1: 2892 | DGP1: 2893 | DGQ1: 2894 | DGR1: 2895 | DGS1: 2896 | DGT1: 2897 | DGU1: 2898 | DGV1: 2899 | DGW1: 2900 | DGX1: 2901 | DGY1: 2902 | DGZ1: 2903 | DHA1: 2904 | DHB1: 2905 | DHC1: 2906 | DHD1: 2907 | DHE1: 2908 | DHF1: 2909 | DHG1: 2910 | DHH1: 2911 | DHI1: 2912 | DHJ1: 2913 | DHK1: 2914 | DHL1: 2915 | DHM1: 2916 | DHN1: 2917 | DHO1: 2918 | DHP1: 2919 | DHQ1: 2920 | DHR1: 2921 | DHS1: 2922 | DHT1: 2923 | DHU1: 2924 | DHV1: 2925 | DHW1: 2926 | DHX1: 2927 | DHY1: 2928 | DHZ1: 2929 | DIA1: 2930 | DIB1: 2931 | DIC1: 2932 | DID1: 2933 | DIE1: 2934 | DIF1: 2935 | DIG1: 2936 | DIH1: 2937 | DII1: 2938 | DIJ1: 2939 | DIK1: 2940 | DIL1: 2941 | DIM1: 2942 | DIN1: 2943 | DIO1: 2944 | DIP1: 2945 | DIQ1: 2946 | DIR1: 2947 | DIS1: 2948 | DIT1: 2949 | DIU1: 2950 | DIV1: 2951 | DIW1: 2952 | DIX1: 2953 | DIY1: 2954 | DIZ1: 2955 | DJA1: 2956 | DJB1: 2957 | DJC1: 2958 | DJD1: 2959 | DJE1: 2960 | DJF1: 2961 | DJG1: 2962 | DJH1: 2963 | DJI1: 2964 | DJJ1: 2965 | DJK1: 2966 | DJL1: 2967 | DJM1: 2968 | DJN1: 2969 | DJO1: 2970 | DJP1: 2971 | DJQ1: 2972 | DJR1: 2973 | DJS1: 2974 | DJT1: 2975 | DJU1: 2976 | DJV1: 2977 | DJW1: 2978 | DJX1: 2979 | DJY1: 2980 | DJZ1: 2981 | DKA1: 2982 | DKB1: 2983 | DKC1: 2984 | DKD1: 2985 | DKE1: 2986 | DKF1: 2987 | DKG1: 2988 | DKH1: 2989 | DKI1: 2990 | DKJ1: 2991 | DKK1: 2992 | DKL1: 2993 | DKM1: 2994 | DKN1: 2995 | DKO1: 2996 | DKP1: 2997 | DKQ1: 2998 | DKR1: 2999 | DKS1: 3000 | DKT1: 3001 | DKU1: 3002 | DKV1: 3003 | DKW1: 3004 | DKX1: 3005 | DKY1: 3006 | DKZ1: 3007 | DLA1: 3008 | DLB1: 3009 | DLC1: 3010 | DLD1: 3011 | DLE1: 3012 | DLF1: 3013 | DLG1: 3014 | DLH1: 3015 | DLI1: 3016 | DLJ1: 3017 | DLK1: 3018 | DLL1: 3019 | DLM1: 3020 | DLN1: 3021 | DLO1: 3022 | DLP1: 3023 | DLQ1: 3024 | DLR1: 3025 | DLS1: 3026 | DLT1: 3027 | DLU1: 3028 | DLV1: 3029 | DLW1: 3030 | DLX1: 3031 | DLY1: 3032 | DLZ1: 3033 | DMA1: 3034 | DMB1: 3035 | DMC1: 3036 | DMD1: 3037 | DME1: 3038 | DMF1: 3039 | DMG1: 3040 | DMH1: 3041 | DMI1: 3042 | DMJ1: 3043 | DMK1: 3044 | DML1: 3045 | DMM1: 3046 | DMN1: 3047 | DMO1: 3048 | DMP1: 3049 | DMQ1: 3050 | DMR1: 3051 | DMS1: 3052 | DMT1: 3053 | DMU1: 3054 | DMV1: 3055 | DMW1: 3056 | DMX1: 3057 | DMY1: 3058 | DMZ1: 3059 | DNA1: 3060 | DNB1: 3061 | DNC1: 3062 | DND1: 3063 | DNE1: 3064 | DNF1: 3065 | DNG1: 3066 | DNH1: 3067 | DNI1: 3068 | DNJ1: 3069 | DNK1: 3070 | DNL1: 3071 | DNM1: 3072 | DNN1: 3073 | DNO1: 3074 | DNP1: 3075 | DNQ1: 3076 | DNR1: 3077 | DNS1: 3078 | DNT1: 3079 | DNU1: 3080 | DNV1: 3081 | DNW1: 3082 | DNX1: 3083 | DNY1: 3084 | DNZ1: 3085 | DOA1: 3086 | DOB1: 3087 | DOC1: 3088 | DOD1: 3089 | DOE1: 3090 | DOF1: 3091 | DOG1: 3092 | DOH1: 3093 | DOI1: 3094 | DOJ1: 3095 | DOK1: 3096 | DOL1: 3097 | DOM1: 3098 | DON1: 3099 | DOO1: 3100 | DOP1: 3101 | DOQ1: 3102 | DOR1: 3103 | DOS1: 3104 | DOT1: 3105 | DOU1: 3106 | DOV1: 3107 | DOW1: 3108 | DOX1: 3109 | DOY1: 3110 | DOZ1: 3111 | DPA1: 3112 | DPB1: 3113 | DPC1: 3114 | DPD1: 3115 | DPE1: 3116 | DPF1: 3117 | DPG1: 3118 | DPH1: 3119 | DPI1: 3120 | DPJ1: 3121 | DPK1: 3122 | DPL1: 3123 | DPM1: 3124 | DPN1: 3125 | DPO1: 3126 | DPP1: 3127 | DPQ1: 3128 | DPR1: 3129 | DPS1: 3130 | DPT1: 3131 | DPU1: 3132 | DPV1: 3133 | DPW1: 3134 | DPX1: 3135 | DPY1: 3136 | DPZ1: 3137 | DQA1: 3138 | DQB1: 3139 | DQC1: 3140 | DQD1: 3141 | DQE1: 3142 | DQF1: 3143 | DQG1: 3144 | DQH1: 3145 | DQI1: 3146 | DQJ1: 3147 | DQK1: 3148 | DQL1: 3149 | DQM1: 3150 | DQN1: 3151 | DQO1: 3152 | DQP1: 3153 | DQQ1: 3154 | DQR1: 3155 | DQS1: 3156 | DQT1: 3157 | DQU1: 3158 | DQV1: 3159 | DQW1: 3160 | DQX1: 3161 | DQY1: 3162 | DQZ1: 3163 | DRA1: 3164 | DRB1: 3165 | DRC1: 3166 | DRD1: 3167 | DRE1: 3168 | DRF1: 3169 | DRG1: 3170 | DRH1: 3171 | DRI1: 3172 | DRJ1: 3173 | DRK1: 3174 | DRL1: 3175 | DRM1: 3176 | DRN1: 3177 | DRO1: 3178 | DRP1: 3179 | DRQ1: 3180 | DRR1: 3181 | DRS1: 3182 | DRT1: 3183 | DRU1: 3184 | DRV1: 3185 | DRW1: 3186 | DRX1: 3187 | DRY1: 3188 | DRZ1: 3189 | DSA1: 3190 | DSB1: 3191 | DSC1: 3192 | DSD1: 3193 | DSE1: 3194 | DSF1: 3195 | DSG1: 3196 | DSH1: 3197 | DSI1: 3198 | DSJ1: 3199 | DSK1: 3200 | DSL1: 3201 | DSM1: 3202 | DSN1: 3203 | DSO1: 3204 | DSP1: 3205 | DSQ1: 3206 | DSR1: 3207 | DSS1: 3208 | DST1: 3209 | DSU1: 3210 | DSV1: 3211 | DSW1: 3212 | DSX1: 3213 | DSY1: 3214 | DSZ1: 3215 | DTA1: 3216 | DTB1: 3217 | DTC1: 3218 | DTD1: 3219 | DTE1: 3220 | DTF1: 3221 | DTG1: 3222 | DTH1: 3223 | DTI1: 3224 | DTJ1: 3225 | DTK1: 3226 | DTL1: 3227 | DTM1: 3228 | DTN1: 3229 | DTO1: 3230 | DTP1: 3231 | DTQ1: 3232 | DTR1: 3233 | DTS1: 3234 | DTT1: 3235 | DTU1: 3236 | DTV1: 3237 | DTW1: 3238 | DTX1: 3239 | DTY1: 3240 | DTZ1: 3241 | DUA1: 3242 | DUB1: 3243 | DUC1: 3244 | DUD1: 3245 | DUE1: 3246 | DUF1: 3247 | DUG1: 3248 | DUH1: 3249 | DUI1: 3250 | DUJ1: 3251 | DUK1: 3252 | DUL1: 3253 | DUM1: 3254 | DUN1: 3255 | DUO1: 3256 | DUP1: 3257 | DUQ1: 3258 | DUR1: 3259 | DUS1: 3260 | DUT1: 3261 | DUU1: 3262 | DUV1: 3263 | DUW1: 3264 | DUX1: 3265 | DUY1: 3266 | DUZ1: 3267 | DVA1: 3268 | DVB1: 3269 | DVC1: 3270 | DVD1: 3271 | DVE1: 3272 | DVF1: 3273 | DVG1: 3274 | DVH1: 3275 | DVI1: 3276 | DVJ1: 3277 | DVK1: 3278 | DVL1: 3279 | DVM1: 3280 | DVN1: 3281 | DVO1: 3282 | DVP1: 3283 | DVQ1: 3284 | DVR1: 3285 | DVS1: 3286 | DVT1: 3287 | DVU1: 3288 | DVV1: 3289 | DVW1: 3290 | DVX1: 3291 | DVY1: 3292 | DVZ1: 3293 | DWA1: 3294 | DWB1: 3295 | DWC1: 3296 | DWD1: 3297 | DWE1: 3298 | DWF1: 3299 | DWG1: 3300 | DWH1: 3301 | DWI1: 3302 | DWJ1: 3303 | DWK1: 3304 | DWL1: 3305 | DWM1: 3306 | DWN1: 3307 | DWO1: 3308 | DWP1: 3309 | DWQ1: 3310 | DWR1: 3311 | DWS1: 3312 | DWT1: 3313 | DWU1: 3314 | DWV1: 3315 | DWW1: 3316 | DWX1: 3317 | DWY1: 3318 | DWZ1: 3319 | DXA1: 3320 | DXB1: 3321 | DXC1: 3322 | DXD1: 3323 | DXE1: 3324 | DXF1: 3325 | DXG1: 3326 | DXH1: 3327 | DXI1: 3328 | DXJ1: 3329 | DXK1: 3330 | DXL1: 3331 | DXM1: 3332 | DXN1: 3333 | DXO1: 3334 | DXP1: 3335 | DXQ1: 3336 | DXR1: 3337 | DXS1: 3338 | DXT1: 3339 | DXU1: 3340 | DXV1: 3341 | DXW1: 3342 | DXX1: 3343 | DXY1: 3344 | DXZ1: 3345 | DYA1: 3346 | DYB1: 3347 | DYC1: 3348 | DYD1: 3349 | DYE1: 3350 | DYF1: 3351 | DYG1: 3352 | DYH1: 3353 | DYI1: 3354 | DYJ1: 3355 | DYK1: 3356 | DYL1: 3357 | DYM1: 3358 | DYN1: 3359 | DYO1: 3360 | DYP1: 3361 | DYQ1: 3362 | DYR1: 3363 | DYS1: 3364 | DYT1: 3365 | DYU1: 3366 | DYV1: 3367 | DYW1: 3368 | DYX1: 3369 | DYY1: 3370 | DYZ1: 3371 | DZA1: 3372 | DZB1: 3373 | DZC1: 3374 | DZD1: 3375 | DZE1: 3376 | DZF1: 3377 | DZG1: 3378 | DZH1: 3379 | DZI1: 3380 | DZJ1: 3381 | DZK1: 3382 | DZL1: 3383 | DZM1: 3384 | DZN1: 3385 | DZO1: 3386 | DZP1: 3387 | DZQ1: 3388 | DZR1: 3389 | DZS1: 3390 | DZT1: 3391 | DZU1: 3392 | DZV1: 3393 | DZW1: 3394 | DZX1: 3395 | DZY1: 3396 | DZZ1: 3397 | EAA1: 3398 | EAB1: 3399 | EAC1: 3400 | EAD1: 3401 | EAE1: 3402 | EAF1: 3403 | EAG1: 3404 | EAH1: 3405 | EAI1: 3406 | EAJ1: 3407 | EAK1: 3408 | EAL1: 3409 | EAM1: 3410 | EAN1: 3411 | EAO1: 3412 | EAP1: 3413 | EAQ1: 3414 | EAR1: 3415 | EAS1: 3416 | EAT1: 3417 | EAU1: 3418 | EAV1: 3419 | EAW1: 3420 | EAX1: 3421 | EAY1: 3422 | EAZ1: 3423 | EBA1: 3424 | EBB1: 3425 | EBC1: 3426 | EBD1: 3427 | EBE1: 3428 | EBF1: 3429 | EBG1: 3430 | EBH1: 3431 | EBI1: 3432 | EBJ1: 3433 | EBK1: 3434 | EBL1: 3435 | EBM1: 3436 | EBN1: 3437 | EBO1: 3438 | EBP1: 3439 | EBQ1: 3440 | EBR1: 3441 | EBS1: 3442 | EBT1: 3443 | EBU1: 3444 | EBV1: 3445 | EBW1: 3446 | EBX1: 3447 | EBY1: 3448 | EBZ1: 3449 | ECA1: 3450 | ECB1: 3451 | ECC1: 3452 | ECD1: 3453 | ECE1: 3454 | ECF1: 3455 | ECG1: 3456 | ECH1: 3457 | ECI1: 3458 | ECJ1: 3459 | ECK1: 3460 | ECL1: 3461 | ECM1: 3462 | ECN1: 3463 | ECO1: 3464 | ECP1: 3465 | ECQ1: 3466 | ECR1: 3467 | ECS1: 3468 | ECT1: 3469 | ECU1: 3470 | ECV1: 3471 | ECW1: 3472 | ECX1: 3473 | ECY1: 3474 | ECZ1: 3475 | EDA1: 3476 | EDB1: 3477 | EDC1: 3478 | EDD1: 3479 | EDE1: 3480 | EDF1: 3481 | EDG1: 3482 | EDH1: 3483 | EDI1: 3484 | EDJ1: 3485 | EDK1: 3486 | EDL1: 3487 | EDM1: 3488 | EDN1: 3489 | EDO1: 3490 | EDP1: 3491 | EDQ1: 3492 | EDR1: 3493 | EDS1: 3494 | EDT1: 3495 | EDU1: 3496 | EDV1: 3497 | EDW1: 3498 | EDX1: 3499 | EDY1: 3500 | EDZ1: 3501 | EEA1: 3502 | EEB1: 3503 | EEC1: 3504 | EED1: 3505 | EEE1: 3506 | EEF1: 3507 | EEG1: 3508 | EEH1: 3509 | EEI1: 3510 | EEJ1: 3511 | EEK1: 3512 | EEL1: 3513 | EEM1: 3514 | EEN1: 3515 | EEO1: 3516 | EEP1: 3517 | EEQ1: 3518 | EER1: 3519 | EES1: 3520 | EET1: 3521 | EEU1: 3522 | EEV1: 3523 | EEW1: 3524 | EEX1: 3525 | EEY1: 3526 | EEZ1: 3527 | EFA1: 3528 | EFB1: 3529 | EFC1: 3530 | EFD1: 3531 | EFE1: 3532 | EFF1: 3533 | EFG1: 3534 | EFH1: 3535 | EFI1: 3536 | EFJ1: 3537 | EFK1: 3538 | EFL1: 3539 | EFM1: 3540 | EFN1: 3541 | EFO1: 3542 | EFP1: 3543 | EFQ1: 3544 | EFR1: 3545 | EFS1: 3546 | EFT1: 3547 | EFU1: 3548 | EFV1: 3549 | EFW1: 3550 | EFX1: 3551 | EFY1: 3552 | EFZ1: 3553 | EGA1: 3554 | EGB1: 3555 | EGC1: 3556 | EGD1: 3557 | EGE1: 3558 | EGF1: 3559 | EGG1: 3560 | EGH1: 3561 | EGI1: 3562 | EGJ1: 3563 | EGK1: 3564 | EGL1: 3565 | EGM1: 3566 | EGN1: 3567 | EGO1: 3568 | EGP1: 3569 | EGQ1: 3570 | EGR1: 3571 | EGS1: 3572 | EGT1: 3573 | EGU1: 3574 | EGV1: 3575 | EGW1: 3576 | EGX1: 3577 | EGY1: 3578 | EGZ1: 3579 | EHA1: 3580 | EHB1: 3581 | EHC1: 3582 | EHD1: 3583 | EHE1: 3584 | EHF1: 3585 | EHG1: 3586 | EHH1: 3587 | EHI1: 3588 | EHJ1: 3589 | EHK1: 3590 | EHL1: 3591 | EHM1: 3592 | EHN1: 3593 | EHO1: 3594 | EHP1: 3595 | EHQ1: 3596 | EHR1: 3597 | EHS1: 3598 | EHT1: 3599 | EHU1: 3600 | EHV1: 3601 | EHW1: 3602 | EHX1: 3603 | EHY1: 3604 | EHZ1: 3605 | EIA1: 3606 | EIB1: 3607 | EIC1: 3608 | EID1: 3609 | EIE1: 3610 | EIF1: 3611 | EIG1: 3612 | EIH1: 3613 | EII1: 3614 | EIJ1: 3615 | EIK1: 3616 | EIL1: 3617 | EIM1: 3618 | EIN1: 3619 | EIO1: 3620 | EIP1: 3621 | EIQ1: 3622 | EIR1: 3623 | EIS1: 3624 | EIT1: 3625 | EIU1: 3626 | EIV1: 3627 | EIW1: 3628 | EIX1: 3629 | EIY1: 3630 | EIZ1: 3631 | EJA1: 3632 | EJB1: 3633 | EJC1: 3634 | EJD1: 3635 | EJE1: 3636 | EJF1: 3637 | EJG1: 3638 | EJH1: 3639 | EJI1: 3640 | EJJ1: 3641 | EJK1: 3642 | EJL1: 3643 | EJM1: 3644 | EJN1: 3645 | EJO1: 3646 | EJP1: 3647 | EJQ1: 3648 | EJR1: 3649 | EJS1: 3650 | EJT1: 3651 | EJU1: 3652 | EJV1: 3653 | EJW1: 3654 | EJX1: 3655 | EJY1: 3656 | EJZ1: 3657 | EKA1: 3658 | EKB1: 3659 | EKC1: 3660 | EKD1: 3661 | EKE1: 3662 | EKF1: 3663 | EKG1: 3664 | EKH1: 3665 | EKI1: 3666 | EKJ1: 3667 | EKK1: 3668 | EKL1: 3669 | EKM1: 3670 | EKN1: 3671 | EKO1: 3672 | EKP1: 3673 | EKQ1: 3674 | EKR1: 3675 | EKS1: 3676 | EKT1: 3677 | EKU1: 3678 | EKV1: 3679 | EKW1: 3680 | EKX1: 3681 | EKY1: 3682 | EKZ1: 3683 | ELA1: 3684 | ELB1: 3685 | ELC1: 3686 | ELD1: 3687 | ELE1: 3688 | ELF1: 3689 | ELG1: 3690 | ELH1: 3691 | ELI1: 3692 | ELJ1: 3693 | ELK1: 3694 | ELL1: 3695 | ELM1: 3696 | ELN1: 3697 | ELO1: 3698 | ELP1: 3699 | ELQ1: 3700 | ELR1: 3701 | ELS1: 3702 | ELT1: 3703 | ELU1: 3704 | ELV1: 3705 | ELW1: 3706 | ELX1: 3707 | ELY1: 3708 | ELZ1: 3709 | EMA1: 3710 | EMB1: 3711 | EMC1: 3712 | EMD1: 3713 | EME1: 3714 | EMF1: 3715 | EMG1: 3716 | EMH1: 3717 | EMI1: 3718 | EMJ1: 3719 | EMK1: 3720 | EML1: 3721 | EMM1: 3722 | EMN1: 3723 | EMO1: 3724 | EMP1: 3725 | EMQ1: 3726 | EMR1: 3727 | EMS1: 3728 | EMT1: 3729 | EMU1: 3730 | EMV1: 3731 | EMW1: 3732 | EMX1: 3733 | EMY1: 3734 | EMZ1: 3735 | ENA1: 3736 | ENB1: 3737 | ENC1: 3738 | END1: 3739 | ENE1: 3740 | ENF1: 3741 | ENG1: 3742 | ENH1: 3743 | ENI1: 3744 | ENJ1: 3745 | ENK1: 3746 | ENL1: 3747 | ENM1: 3748 | ENN1: 3749 | ENO1: 3750 | ENP1: 3751 | ENQ1: 3752 | ENR1: 3753 | ENS1: 3754 | ENT1: 3755 | ENU1: 3756 | ENV1: 3757 | ENW1: 3758 | ENX1: 3759 | ENY1: 3760 | ENZ1: 3761 | EOA1: 3762 | EOB1: 3763 | EOC1: 3764 | EOD1: 3765 | EOE1: 3766 | EOF1: 3767 | EOG1: 3768 | EOH1: 3769 | EOI1: 3770 | EOJ1: 3771 | EOK1: 3772 | EOL1: 3773 | EOM1: 3774 | EON1: 3775 | EOO1: 3776 | EOP1: 3777 | EOQ1: 3778 | EOR1: 3779 | EOS1: 3780 | EOT1: 3781 | EOU1: 3782 | EOV1: 3783 | EOW1: 3784 | EOX1: 3785 | EOY1: 3786 | EOZ1: 3787 | EPA1: 3788 | EPB1: 3789 | EPC1: 3790 | EPD1: 3791 | EPE1: 3792 | EPF1: 3793 | EPG1: 3794 | EPH1: 3795 | EPI1: 3796 | EPJ1: 3797 | EPK1: 3798 | EPL1: 3799 | EPM1: 3800 | EPN1: 3801 | EPO1: 3802 | EPP1: 3803 | EPQ1: 3804 | EPR1: 3805 | EPS1: 3806 | EPT1: 3807 | EPU1: 3808 | EPV1: 3809 | EPW1: 3810 | EPX1: 3811 | EPY1: 3812 | EPZ1: 3813 | EQA1: 3814 | EQB1: 3815 | EQC1: 3816 | EQD1: 3817 | EQE1: 3818 | EQF1: 3819 | EQG1: 3820 | EQH1: 3821 | EQI1: 3822 | EQJ1: 3823 | EQK1: 3824 | EQL1: 3825 | EQM1: 3826 | EQN1: 3827 | EQO1: 3828 | EQP1: 3829 | EQQ1: 3830 | EQR1: 3831 | EQS1: 3832 | EQT1: 3833 | EQU1: 3834 | EQV1: 3835 | EQW1: 3836 | EQX1: 3837 | EQY1: 3838 | EQZ1: 3839 | ERA1: 3840 | ERB1: 3841 | ERC1: 3842 | ERD1: 3843 | ERE1: 3844 | ERF1: 3845 | ERG1: 3846 | ERH1: 3847 | ERI1: 3848 | ERJ1: 3849 | ERK1: 3850 | ERL1: 3851 | ERM1: 3852 | ERN1: 3853 | ERO1: 3854 | ERP1: 3855 | ERQ1: 3856 | ERR1: 3857 | ERS1: 3858 | ERT1: 3859 | ERU1: 3860 | ERV1: 3861 | ERW1: 3862 | ERX1: 3863 | ERY1: 3864 | ERZ1: 3865 | ESA1: 3866 | ESB1: 3867 | ESC1: 3868 | ESD1: 3869 | ESE1: 3870 | ESF1: 3871 | ESG1: 3872 | ESH1: 3873 | ESI1: 3874 | ESJ1: 3875 | ESK1: 3876 | ESL1: 3877 | ESM1: 3878 | ESN1: 3879 | ESO1: 3880 | ESP1: 3881 | ESQ1: 3882 | ESR1: 3883 | ESS1: 3884 | EST1: 3885 | ESU1: 3886 | ESV1: 3887 | ESW1: 3888 | ESX1: 3889 | ESY1: 3890 | ESZ1: 3891 | ETA1: 3892 | ETB1: 3893 | ETC1: 3894 | ETD1: 3895 | ETE1: 3896 | ETF1: 3897 | ETG1: 3898 | ETH1: 3899 | ETI1: 3900 | ETJ1: 3901 | ETK1: 3902 | ETL1: 3903 | ETM1: 3904 | ETN1: 3905 | ETO1: 3906 | ETP1: 3907 | ETQ1: 3908 | ETR1: 3909 | ETS1: 3910 | ETT1: 3911 | ETU1: 3912 | ETV1: 3913 | ETW1: 3914 | ETX1: 3915 | ETY1: 3916 | ETZ1: 3917 | EUA1: 3918 | EUB1: 3919 | EUC1: 3920 | EUD1: 3921 | EUE1: 3922 | EUF1: 3923 | EUG1: 3924 | EUH1: 3925 | EUI1: 3926 | EUJ1: 3927 | EUK1: 3928 | EUL1: 3929 | EUM1: 3930 | EUN1: 3931 | EUO1: 3932 | EUP1: 3933 | EUQ1: 3934 | EUR1: 3935 | EUS1: 3936 | EUT1: 3937 | EUU1: 3938 | EUV1: 3939 | EUW1: 3940 | EUX1: 3941 | EUY1: 3942 | EUZ1: 3943 | EVA1: 3944 | EVB1: 3945 | EVC1: 3946 | EVD1: 3947 | EVE1: 3948 | EVF1: 3949 | EVG1: 3950 | EVH1: 3951 | EVI1: 3952 | EVJ1: 3953 | EVK1: 3954 | EVL1: 3955 | EVM1: 3956 | EVN1: 3957 | EVO1: 3958 | EVP1: 3959 | EVQ1: 3960 | EVR1: 3961 | EVS1: 3962 | EVT1: 3963 | EVU1: 3964 | EVV1: 3965 | EVW1: 3966 | EVX1: 3967 | EVY1: 3968 | EVZ1: 3969 | EWA1: 3970 | EWB1: 3971 | EWC1: 3972 | EWD1: 3973 | EWE1: 3974 | EWF1: 3975 | EWG1: 3976 | EWH1: 3977 | EWI1: 3978 | EWJ1: 3979 | EWK1: 3980 | EWL1: 3981 | EWM1: 3982 | EWN1: 3983 | EWO1: 3984 | EWP1: 3985 | EWQ1: 3986 | EWR1: 3987 | EWS1: 3988 | EWT1: 3989 | EWU1: 3990 | EWV1: 3991 | EWW1: 3992 | EWX1: 3993 | EWY1: 3994 | EWZ1: 3995 | EXA1: 3996 | EXB1: 3997 | EXC1: 3998 | EXD1: 3999 | EXE1: 4000 | EXF1: 4001 | EXG1: 4002 | EXH1: 4003 | EXI1: 4004 | EXJ1: 4005 | EXK1: 4006 | EXL1: 4007 | EXM1: 4008 | EXN1: 4009 | EXO1: 4010 | EXP1: 4011 | EXQ1: 4012 | EXR1: 4013 | EXS1: 4014 | EXT1: 4015 | EXU1: 4016 | EXV1: 4017 | EXW1: 4018 | EXX1: 4019 | EXY1: 4020 | EXZ1: 4021 | EYA1: 4022 | EYB1: 4023 | EYC1: 4024 | EYD1: 4025 | EYE1: 4026 | EYF1: 4027 | EYG1: 4028 | EYH1: 4029 | EYI1: 4030 | EYJ1: 4031 | EYK1: 4032 | EYL1: 4033 | EYM1: 4034 | EYN1: 4035 | EYO1: 4036 | EYP1: 4037 | EYQ1: 4038 | EYR1: 4039 | EYS1: 4040 | EYT1: 4041 | EYU1: 4042 | EYV1: 4043 | EYW1: 4044 | EYX1: 4045 | EYY1: 4046 | EYZ1: 4047 | EZA1: 4048 | EZB1: 4049 | EZC1: 4050 | EZD1: 4051 | EZE1: 4052 | EZF1: 4053 | EZG1: 4054 | EZH1: 4055 | EZI1: 4056 | EZJ1: 4057 | EZK1: 4058 | EZL1: 4059 | EZM1: 4060 | EZN1: 4061 | EZO1: 4062 | EZP1: 4063 | EZQ1: 4064 | EZR1: 4065 | EZS1: 4066 | EZT1: 4067 | EZU1: 4068 | EZV1: 4069 | EZW1: 4070 | EZX1: 4071 | EZY1: 4072 | EZZ1: 4073 | FAA1: 4074 | FAB1: 4075 | FAC1: 4076 | FAD1: 4077 | FAE1: 4078 | FAF1: 4079 | FAG1: 4080 | FAH1: 4081 | FAI1: 4082 | FAJ1: 4083 | FAK1: 4084 | FAL1: 4085 | FAM1: 4086 | FAN1: 4087 | FAO1: 4088 | FAP1: 4089 | FAQ1: 4090 | FAR1: 4091 | FAS1: 4092 | FAT1: 4093 | FAU1: 4094 | FAV1: 4095 | FAW1: 4096 | FAX1: 4097 | FAY1: 4098 | FAZ1: 4099 | FBA1: 4100 | FBB1: 4101 | FBC1: 4102 | FBD1: 4103 | FBE1: 4104 | FBF1: 4105 | FBG1: 4106 | FBH1: 4107 | FBI1: 4108 | FBJ1: 4109 | FBK1: 4110 | FBL1: 4111 | FBM1: 4112 | FBN1: 4113 | FBO1: 4114 | FBP1: 4115 | FBQ1: 4116 | FBR1: 4117 | FBS1: 4118 | FBT1: 4119 | FBU1: 4120 | FBV1: 4121 | FBW1: 4122 | FBX1: 4123 | FBY1: 4124 | FBZ1: 4125 | FCA1: 4126 | FCB1: 4127 | FCC1: 4128 | FCD1: 4129 | FCE1: 4130 | FCF1: 4131 | FCG1: 4132 | FCH1: 4133 | FCI1: 4134 | FCJ1: 4135 | FCK1: 4136 | FCL1: 4137 | FCM1: 4138 | FCN1: 4139 | FCO1: 4140 | FCP1: 4141 | FCQ1: 4142 | FCR1: 4143 | FCS1: 4144 | FCT1: 4145 | FCU1: 4146 | FCV1: 4147 | FCW1: 4148 | FCX1: 4149 | FCY1: 4150 | FCZ1: 4151 | FDA1: 4152 | FDB1: 4153 | FDC1: 4154 | FDD1: 4155 | FDE1: 4156 | FDF1: 4157 | FDG1: 4158 | FDH1: 4159 | FDI1: 4160 | FDJ1: 4161 | FDK1: 4162 | FDL1: 4163 | FDM1: 4164 | FDN1: 4165 | FDO1: 4166 | FDP1: 4167 | FDQ1: 4168 | FDR1: 4169 | FDS1: 4170 | FDT1: 4171 | FDU1: 4172 | FDV1: 4173 | FDW1: 4174 | FDX1: 4175 | FDY1: 4176 | FDZ1: 4177 | FEA1: 4178 | FEB1: 4179 | FEC1: 4180 | FED1: 4181 | FEE1: 4182 | FEF1: 4183 | FEG1: 4184 | FEH1: 4185 | FEI1: 4186 | FEJ1: 4187 | FEK1: 4188 | FEL1: 4189 | FEM1: 4190 | FEN1: 4191 | FEO1: 4192 | FEP1: 4193 | FEQ1: 4194 | FER1: 4195 | FES1: 4196 | FET1: 4197 | FEU1: 4198 | FEV1: 4199 | FEW1: 4200 | FEX1: 4201 | FEY1: 4202 | FEZ1: 4203 | FFA1: 4204 | FFB1: 4205 | FFC1: 4206 | FFD1: 4207 | FFE1: 4208 | FFF1: 4209 | FFG1: 4210 | FFH1: 4211 | FFI1: 4212 | FFJ1: 4213 | FFK1: 4214 | FFL1: 4215 | FFM1: 4216 | FFN1: 4217 | FFO1: 4218 | FFP1: 4219 | FFQ1: 4220 | FFR1: 4221 | FFS1: 4222 | FFT1: 4223 | FFU1: 4224 | FFV1: 4225 | FFW1: 4226 | FFX1: 4227 | FFY1: 4228 | FFZ1: 4229 | FGA1: 4230 | FGB1: 4231 | FGC1: 4232 | FGD1: 4233 | FGE1: 4234 | FGF1: 4235 | FGG1: 4236 | FGH1: 4237 | FGI1: 4238 | FGJ1: 4239 | FGK1: 4240 | FGL1: 4241 | FGM1: 4242 | FGN1: 4243 | FGO1: 4244 | FGP1: 4245 | FGQ1: 4246 | FGR1: 4247 | FGS1: 4248 | FGT1: 4249 | FGU1: 4250 | FGV1: 4251 | FGW1: 4252 | FGX1: 4253 | FGY1: 4254 | FGZ1: 4255 | FHA1: 4256 | FHB1: 4257 | FHC1: 4258 | FHD1: 4259 | FHE1: 4260 | FHF1: 4261 | FHG1: 4262 | FHH1: 4263 | FHI1: 4264 | FHJ1: 4265 | FHK1: 4266 | FHL1: 4267 | FHM1: 4268 | FHN1: 4269 | FHO1: 4270 | FHP1: 4271 | FHQ1: 4272 | FHR1: 4273 | FHS1: 4274 | FHT1: 4275 | FHU1: 4276 | FHV1: 4277 | FHW1: 4278 | FHX1: 4279 | FHY1: 4280 | FHZ1: 4281 | FIA1: 4282 | FIB1: 4283 | FIC1: 4284 | FID1: 4285 | FIE1: 4286 | FIF1: 4287 | FIG1: 4288 | FIH1: 4289 | FII1: 4290 | FIJ1: 4291 | FIK1: 4292 | FIL1: 4293 | FIM1: 4294 | FIN1: 4295 | FIO1: 4296 | FIP1: 4297 | FIQ1: 4298 | FIR1: 4299 | FIS1: 4300 | FIT1: 4301 | FIU1: 4302 | FIV1: 4303 | FIW1: 4304 | FIX1: 4305 | FIY1: 4306 | FIZ1: 4307 | FJA1: 4308 | FJB1: 4309 | FJC1: 4310 | FJD1: 4311 | FJE1: 4312 | FJF1: 4313 | FJG1: 4314 | FJH1: 4315 | FJI1: 4316 | FJJ1: 4317 | FJK1: 4318 | FJL1: 4319 | FJM1: 4320 | FJN1: 4321 | FJO1: 4322 | FJP1: 4323 | FJQ1: 4324 | FJR1: 4325 | FJS1: 4326 | FJT1: 4327 | FJU1: 4328 | FJV1: 4329 | FJW1: 4330 | FJX1: 4331 | FJY1: 4332 | FJZ1: 4333 | FKA1: 4334 | FKB1: 4335 | FKC1: 4336 | FKD1: 4337 | FKE1: 4338 | FKF1: 4339 | FKG1: 4340 | FKH1: 4341 | FKI1: 4342 | FKJ1: 4343 | FKK1: 4344 | FKL1: 4345 | FKM1: 4346 | FKN1: 4347 | FKO1: 4348 | FKP1: 4349 | FKQ1: 4350 | FKR1: 4351 | FKS1: 4352 | FKT1: 4353 | FKU1: 4354 | FKV1: 4355 | FKW1: 4356 | FKX1: 4357 | FKY1: 4358 | FKZ1: 4359 | FLA1: 4360 | FLB1: 4361 | FLC1: 4362 | FLD1: 4363 | FLE1: 4364 | FLF1: 4365 | FLG1: 4366 | FLH1: 4367 | FLI1: 4368 | FLJ1: 4369 | FLK1: 4370 | FLL1: 4371 | FLM1: 4372 | FLN1: 4373 | FLO1: 4374 | FLP1: 4375 | FLQ1: 4376 | FLR1: 4377 | FLS1: 4378 | FLT1: 4379 | FLU1: 4380 | FLV1: 4381 | FLW1: 4382 | FLX1: 4383 | FLY1: 4384 | FLZ1: 4385 | FMA1: 4386 | FMB1: 4387 | FMC1: 4388 | FMD1: 4389 | FME1: 4390 | FMF1: 4391 | FMG1: 4392 | FMH1: 4393 | FMI1: 4394 | FMJ1: 4395 | FMK1: 4396 | FML1: 4397 | FMM1: 4398 | FMN1: 4399 | FMO1: 4400 | FMP1: 4401 | FMQ1: 4402 | FMR1: 4403 | FMS1: 4404 | FMT1: 4405 | FMU1: 4406 | FMV1: 4407 | FMW1: 4408 | FMX1: 4409 | FMY1: 4410 | FMZ1: 4411 | FNA1: 4412 | FNB1: 4413 | FNC1: 4414 | FND1: 4415 | FNE1: 4416 | FNF1: 4417 | FNG1: 4418 | FNH1: 4419 | FNI1: 4420 | FNJ1: 4421 | FNK1: 4422 | FNL1: 4423 | FNM1: 4424 | FNN1: 4425 | FNO1: 4426 | FNP1: 4427 | FNQ1: 4428 | FNR1: 4429 | FNS1: 4430 | FNT1: 4431 | FNU1: 4432 | FNV1: 4433 | FNW1: 4434 | FNX1: 4435 | FNY1: 4436 | FNZ1: 4437 | FOA1: 4438 | FOB1: 4439 | FOC1: 4440 | FOD1: 4441 | FOE1: 4442 | FOF1: 4443 | FOG1: 4444 | FOH1: 4445 | FOI1: 4446 | FOJ1: 4447 | FOK1: 4448 | FOL1: 4449 | FOM1: 4450 | FON1: 4451 | FOO1: 4452 | FOP1: 4453 | FOQ1: 4454 | FOR1: 4455 | FOS1: 4456 | FOT1: 4457 | FOU1: 4458 | FOV1: 4459 | FOW1: 4460 | FOX1: 4461 | FOY1: 4462 | FOZ1: 4463 | FPA1: 4464 | FPB1: 4465 | FPC1: 4466 | FPD1: 4467 | FPE1: 4468 | FPF1: 4469 | FPG1: 4470 | FPH1: 4471 | FPI1: 4472 | FPJ1: 4473 | FPK1: 4474 | FPL1: 4475 | FPM1: 4476 | FPN1: 4477 | FPO1: 4478 | FPP1: 4479 | FPQ1: 4480 | FPR1: 4481 | FPS1: 4482 | FPT1: 4483 | FPU1: 4484 | FPV1: 4485 | FPW1: 4486 | FPX1: 4487 | FPY1: 4488 | FPZ1: 4489 | FQA1: 4490 | FQB1: 4491 | FQC1: 4492 | FQD1: 4493 | FQE1: 4494 | FQF1: 4495 | FQG1: 4496 | FQH1: 4497 | FQI1: 4498 | FQJ1: 4499 | FQK1: 4500 | FQL1: 4501 | FQM1: 4502 | FQN1: 4503 | FQO1: 4504 | FQP1: 4505 | FQQ1: 4506 | FQR1: 4507 | FQS1: 4508 | FQT1: 4509 | FQU1: 4510 | FQV1: 4511 | FQW1: 4512 | FQX1: 4513 | FQY1: 4514 | FQZ1: 4515 | FRA1: 4516 | FRB1: 4517 | FRC1: 4518 | FRD1: 4519 | FRE1: 4520 | FRF1: 4521 | FRG1: 4522 | FRH1: 4523 | FRI1: 4524 | FRJ1: 4525 | FRK1: 4526 | FRL1: 4527 | FRM1: 4528 | FRN1: 4529 | FRO1: 4530 | FRP1: 4531 | FRQ1: 4532 | FRR1: 4533 | FRS1: 4534 | FRT1: 4535 | FRU1: 4536 | FRV1: 4537 | FRW1: 4538 | FRX1: 4539 | FRY1: 4540 | FRZ1: 4541 | FSA1: 4542 | FSB1: 4543 | FSC1: 4544 | FSD1: 4545 | FSE1: 4546 | FSF1: 4547 | FSG1: 4548 | FSH1: 4549 | FSI1: 4550 | FSJ1: 4551 | FSK1: 4552 | FSL1: 4553 | FSM1: 4554 | FSN1: 4555 | FSO1: 4556 | FSP1: 4557 | FSQ1: 4558 | FSR1: 4559 | FSS1: 4560 | FST1: 4561 | FSU1: 4562 | FSV1: 4563 | FSW1: 4564 | FSX1: 4565 | FSY1: 4566 | FSZ1: 4567 | FTA1: 4568 | FTB1: 4569 | FTC1: 4570 | FTD1: 4571 | FTE1: 4572 | FTF1: 4573 | FTG1: 4574 | FTH1: 4575 | FTI1: 4576 | FTJ1: 4577 | FTK1: 4578 | FTL1: 4579 | FTM1: 4580 | FTN1: 4581 | FTO1: 4582 | FTP1: 4583 | FTQ1: 4584 | FTR1: 4585 | FTS1: 4586 | FTT1: 4587 | FTU1: 4588 | FTV1: 4589 | FTW1: 4590 | FTX1: 4591 | FTY1: 4592 | FTZ1: 4593 | FUA1: 4594 | FUB1: 4595 | FUC1: 4596 | FUD1: 4597 | FUE1: 4598 | FUF1: 4599 | FUG1: 4600 | FUH1: 4601 | FUI1: 4602 | FUJ1: 4603 | FUK1: 4604 | FUL1: 4605 | FUM1: 4606 | FUN1: 4607 | FUO1: 4608 | FUP1: 4609 | FUQ1: 4610 | FUR1: 4611 | FUS1: 4612 | FUT1: 4613 | FUU1: 4614 | FUV1: 4615 | FUW1: 4616 | FUX1: 4617 | FUY1: 4618 | FUZ1: 4619 | FVA1: 4620 | FVB1: 4621 | FVC1: 4622 | FVD1: 4623 | FVE1: 4624 | FVF1: 4625 | FVG1: 4626 | FVH1: 4627 | FVI1: 4628 | FVJ1: 4629 | FVK1: 4630 | FVL1: 4631 | FVM1: 4632 | FVN1: 4633 | FVO1: 4634 | FVP1: 4635 | FVQ1: 4636 | FVR1: 4637 | FVS1: 4638 | FVT1: 4639 | FVU1: 4640 | FVV1: 4641 | FVW1: 4642 | FVX1: 4643 | FVY1: 4644 | FVZ1: 4645 | FWA1: 4646 | FWB1: 4647 | FWC1: 4648 | FWD1: 4649 | FWE1: 4650 | FWF1: 4651 | FWG1: 4652 | FWH1: 4653 | FWI1: 4654 | FWJ1: 4655 | FWK1: 4656 | FWL1: 4657 | FWM1: 4658 | FWN1: 4659 | FWO1: 4660 | FWP1: 4661 | FWQ1: 4662 | FWR1: 4663 | FWS1: 4664 | FWT1: 4665 | FWU1: 4666 | FWV1: 4667 | FWW1: 4668 | FWX1: 4669 | FWY1: 4670 | FWZ1: 4671 | FXA1: 4672 | FXB1: 4673 | FXC1: 4674 | FXD1: 4675 | FXE1: 4676 | FXF1: 4677 | FXG1: 4678 | FXH1: 4679 | FXI1: 4680 | FXJ1: 4681 | FXK1: 4682 | FXL1: 4683 | FXM1: 4684 | FXN1: 4685 | FXO1: 4686 | FXP1: 4687 | FXQ1: 4688 | FXR1: 4689 | FXS1: 4690 | FXT1: 4691 | FXU1: 4692 | FXV1: 4693 | FXW1: 4694 | FXX1: 4695 | FXY1: 4696 | FXZ1: 4697 | FYA1: 4698 | FYB1: 4699 | FYC1: 4700 | FYD1: 4701 | FYE1: 4702 | FYF1: 4703 | FYG1: 4704 | FYH1: 4705 | FYI1: 4706 | FYJ1: 4707 | FYK1: 4708 | FYL1: 4709 | FYM1: 4710 | FYN1: 4711 | FYO1: 4712 | FYP1: 4713 | FYQ1: 4714 | FYR1: 4715 | FYS1: 4716 | FYT1: 4717 | FYU1: 4718 | FYV1: 4719 | FYW1: 4720 | FYX1: 4721 | FYY1: 4722 | FYZ1: 4723 | FZA1: 4724 | FZB1: 4725 | FZC1: 4726 | FZD1: 4727 | FZE1: 4728 | FZF1: 4729 | FZG1: 4730 | FZH1: 4731 | FZI1: 4732 | FZJ1: 4733 | FZK1: 4734 | FZL1: 4735 | FZM1: 4736 | FZN1: 4737 | FZO1: 4738 | FZP1: 4739 | FZQ1: 4740 | FZR1: 4741 | FZS1: 4742 | FZT1: 4743 | FZU1: 4744 | FZV1: 4745 | FZW1: 4746 | FZX1: 4747 | FZY1: 4748 | FZZ1: 4749 | GAA1: 4750 | GAB1: 4751 | GAC1: 4752 | GAD1: 4753 | GAE1: 4754 | GAF1: 4755 | GAG1: 4756 | GAH1: 4757 | GAI1: 4758 | GAJ1: 4759 | GAK1: 4760 | GAL1: 4761 | GAM1: 4762 | GAN1: 4763 | GAO1: 4764 | GAP1: 4765 | GAQ1: 4766 | GAR1: 4767 | GAS1: 4768 | GAT1: 4769 | GAU1: 4770 | GAV1: 4771 | GAW1: 4772 | GAX1: 4773 | GAY1: 4774 | GAZ1: 4775 | GBA1: 4776 | GBB1: 4777 | GBC1: 4778 | GBD1: 4779 | GBE1: 4780 | GBF1: 4781 | GBG1: 4782 | GBH1: 4783 | GBI1: 4784 | GBJ1: 4785 | GBK1: 4786 | GBL1: 4787 | GBM1: 4788 | GBN1: 4789 | GBO1: 4790 | GBP1: 4791 | GBQ1: 4792 | GBR1: 4793 | GBS1: 4794 | GBT1: 4795 | GBU1: 4796 | GBV1: 4797 | GBW1: 4798 | GBX1: 4799 | GBY1: 4800 | GBZ1: 4801 | GCA1: 4802 | GCB1: 4803 | GCC1: 4804 | GCD1: 4805 | GCE1: 4806 | GCF1: 4807 | GCG1: 4808 | GCH1: 4809 | GCI1: 4810 | GCJ1: 4811 | GCK1: 4812 | GCL1: 4813 | GCM1: 4814 | GCN1: 4815 | GCO1: 4816 | GCP1: 4817 | GCQ1: 4818 | GCR1: 4819 | GCS1: 4820 | GCT1: 4821 | GCU1: 4822 | GCV1: 4823 | GCW1: 4824 | GCX1: 4825 | GCY1: 4826 | GCZ1: 4827 | GDA1: 4828 | GDB1: 4829 | GDC1: 4830 | GDD1: 4831 | GDE1: 4832 | GDF1: 4833 | GDG1: 4834 | GDH1: 4835 | GDI1: 4836 | GDJ1: 4837 | GDK1: 4838 | GDL1: 4839 | GDM1: 4840 | GDN1: 4841 | GDO1: 4842 | GDP1: 4843 | GDQ1: 4844 | GDR1: 4845 | GDS1: 4846 | GDT1: 4847 | GDU1: 4848 | GDV1: 4849 | GDW1: 4850 | GDX1: 4851 | GDY1: 4852 | GDZ1: 4853 | GEA1: 4854 | GEB1: 4855 | GEC1: 4856 | GED1: 4857 | GEE1: 4858 | GEF1: 4859 | GEG1: 4860 | GEH1: 4861 | GEI1: 4862 | GEJ1: 4863 | GEK1: 4864 | GEL1: 4865 | GEM1: 4866 | GEN1: 4867 | GEO1: 4868 | GEP1: 4869 | GEQ1: 4870 | GER1: 4871 | GES1: 4872 | GET1: 4873 | GEU1: 4874 | GEV1: 4875 | GEW1: 4876 | GEX1: 4877 | GEY1: 4878 | GEZ1: 4879 | GFA1: 4880 | GFB1: 4881 | GFC1: 4882 | GFD1: 4883 | GFE1: 4884 | GFF1: 4885 | GFG1: 4886 | GFH1: 4887 | GFI1: 4888 | GFJ1: 4889 | GFK1: 4890 | GFL1: 4891 | GFM1: 4892 | GFN1: 4893 | GFO1: 4894 | GFP1: 4895 | GFQ1: 4896 | GFR1: 4897 | GFS1: 4898 | GFT1: 4899 | GFU1: 4900 | GFV1: 4901 | GFW1: 4902 | GFX1: 4903 | GFY1: 4904 | GFZ1: 4905 | GGA1: 4906 | GGB1: 4907 | GGC1: 4908 | GGD1: 4909 | GGE1: 4910 | GGF1: 4911 | GGG1: 4912 | GGH1: 4913 | GGI1: 4914 | GGJ1: 4915 | GGK1: 4916 | GGL1: 4917 | GGM1: 4918 | GGN1: 4919 | GGO1: 4920 | GGP1: 4921 | GGQ1: 4922 | GGR1: 4923 | GGS1: 4924 | GGT1: 4925 | GGU1: 4926 | GGV1: 4927 | GGW1: 4928 | GGX1: 4929 | GGY1: 4930 | GGZ1: 4931 | GHA1: 4932 | GHB1: 4933 | GHC1: 4934 | GHD1: 4935 | GHE1: 4936 | GHF1: 4937 | GHG1: 4938 | GHH1: 4939 | GHI1: 4940 | GHJ1: 4941 | GHK1: 4942 | GHL1: 4943 | GHM1: 4944 | GHN1: 4945 | GHO1: 4946 | GHP1: 4947 | GHQ1: 4948 | GHR1: 4949 | GHS1: 4950 | GHT1: 4951 | GHU1: 4952 | GHV1: 4953 | GHW1: 4954 | GHX1: 4955 | GHY1: 4956 | GHZ1: 4957 | GIA1: 4958 | GIB1: 4959 | GIC1: 4960 | GID1: 4961 | GIE1: 4962 | GIF1: 4963 | GIG1: 4964 | GIH1: 4965 | GII1: 4966 | GIJ1: 4967 | GIK1: 4968 | GIL1: 4969 | GIM1: 4970 | GIN1: 4971 | GIO1: 4972 | GIP1: 4973 | GIQ1: 4974 | GIR1: 4975 | GIS1: 4976 | GIT1: 4977 | GIU1: 4978 | GIV1: 4979 | GIW1: 4980 | GIX1: 4981 | GIY1: 4982 | GIZ1: 4983 | GJA1: 4984 | GJB1: 4985 | GJC1: 4986 | GJD1: 4987 | GJE1: 4988 | GJF1: 4989 | GJG1: 4990 | GJH1: 4991 | GJI1: 4992 | GJJ1: 4993 | GJK1: 4994 | GJL1: 4995 | GJM1: 4996 | GJN1: 4997 | GJO1: 4998 | GJP1: 4999 | GJQ1: 5000 | GJR1: 5001 | GJS1: 5002 | GJT1: 5003 | GJU1: 5004 | GJV1: 5005 | GJW1: 5006 | GJX1: 5007 | GJY1: 5008 | GJZ1: 5009 | GKA1: 5010 | GKB1: 5011 | GKC1: 5012 | GKD1: 5013 | GKE1: 5014 | GKF1: 5015 | GKG1: 5016 | GKH1: 5017 | GKI1: 5018 | GKJ1: 5019 | GKK1: 5020 | GKL1: 5021 | GKM1: 5022 | GKN1: 5023 | GKO1: 5024 | GKP1: 5025 | GKQ1: 5026 | GKR1: 5027 | GKS1: 5028 | GKT1: 5029 | GKU1: 5030 | GKV1: 5031 | GKW1: 5032 | GKX1: 5033 | GKY1: 5034 | GKZ1: 5035 | GLA1: 5036 | GLB1: 5037 | GLC1: 5038 | GLD1: 5039 | GLE1: 5040 | GLF1: 5041 | GLG1: 5042 | GLH1: 5043 | GLI1: 5044 | GLJ1: 5045 | GLK1: 5046 | GLL1: 5047 | GLM1: 5048 | GLN1: 5049 | GLO1: 5050 | GLP1: 5051 | GLQ1: 5052 | GLR1: 5053 | GLS1: 5054 | GLT1: 5055 | GLU1: 5056 | GLV1: 5057 | GLW1: 5058 | GLX1: 5059 | GLY1: 5060 | GLZ1: 5061 | GMA1: 5062 | GMB1: 5063 | GMC1: 5064 | GMD1: 5065 | GME1: 5066 | GMF1: 5067 | GMG1: 5068 | GMH1: 5069 | GMI1: 5070 | GMJ1: 5071 | GMK1: 5072 | GML1: 5073 | GMM1: 5074 | GMN1: 5075 | GMO1: 5076 | GMP1: 5077 | GMQ1: 5078 | GMR1: 5079 | GMS1: 5080 | GMT1: 5081 | GMU1: 5082 | GMV1: 5083 | GMW1: 5084 | GMX1: 5085 | GMY1: 5086 | GMZ1: 5087 | GNA1: 5088 | GNB1: 5089 | GNC1: 5090 | GND1: 5091 | GNE1: 5092 | GNF1: 5093 | GNG1: 5094 | GNH1: 5095 | GNI1: 5096 | GNJ1: 5097 | GNK1: 5098 | GNL1: 5099 | GNM1: 5100 | GNN1: 5101 | GNO1: 5102 | GNP1: 5103 | GNQ1: 5104 | GNR1: 5105 | GNS1: 5106 | GNT1: 5107 | GNU1: 5108 | GNV1: 5109 | GNW1: 5110 | GNX1: 5111 | GNY1: 5112 | GNZ1: 5113 | GOA1: 5114 | GOB1: 5115 | GOC1: 5116 | GOD1: 5117 | GOE1: 5118 | GOF1: 5119 | GOG1: 5120 | GOH1: 5121 | GOI1: 5122 | GOJ1: 5123 | GOK1: 5124 | GOL1: 5125 | GOM1: 5126 | GON1: 5127 | GOO1: 5128 | GOP1: 5129 | GOQ1: 5130 | GOR1: 5131 | GOS1: 5132 | GOT1: 5133 | GOU1: 5134 | GOV1: 5135 | GOW1: 5136 | GOX1: 5137 | GOY1: 5138 | GOZ1: 5139 | GPA1: 5140 | GPB1: 5141 | GPC1: 5142 | GPD1: 5143 | GPE1: 5144 | GPF1: 5145 | GPG1: 5146 | GPH1: 5147 | GPI1: 5148 | GPJ1: 5149 | GPK1: 5150 | GPL1: 5151 | GPM1: 5152 | GPN1: 5153 | GPO1: 5154 | GPP1: 5155 | GPQ1: 5156 | GPR1: 5157 | GPS1: 5158 | GPT1: 5159 | GPU1: 5160 | GPV1: 5161 | GPW1: 5162 | GPX1: 5163 | GPY1: 5164 | GPZ1: 5165 | GQA1: 5166 | GQB1: 5167 | GQC1: 5168 | GQD1: 5169 | GQE1: 5170 | GQF1: 5171 | GQG1: 5172 | GQH1: 5173 | GQI1: 5174 | GQJ1: 5175 | GQK1: 5176 | GQL1: 5177 | GQM1: 5178 | GQN1: 5179 | GQO1: 5180 | GQP1: 5181 | GQQ1: 5182 | GQR1: 5183 | GQS1: 5184 | GQT1: 5185 | GQU1: 5186 | GQV1: 5187 | GQW1: 5188 | GQX1: 5189 | GQY1: 5190 | GQZ1: 5191 | GRA1: 5192 | GRB1: 5193 | GRC1: 5194 | GRD1: 5195 | GRE1: 5196 | GRF1: 5197 | GRG1: 5198 | GRH1: 5199 | GRI1: 5200 | GRJ1: 5201 | GRK1: 5202 | GRL1: 5203 | GRM1: 5204 | GRN1: 5205 | GRO1: 5206 | GRP1: 5207 | GRQ1: 5208 | GRR1: 5209 | GRS1: 5210 | GRT1: 5211 | GRU1: 5212 | GRV1: 5213 | GRW1: 5214 | GRX1: 5215 | GRY1: 5216 | GRZ1: 5217 | GSA1: 5218 | GSB1: 5219 | GSC1: 5220 | GSD1: 5221 | GSE1: 5222 | GSF1: 5223 | GSG1: 5224 | GSH1: 5225 | GSI1: 5226 | GSJ1: 5227 | GSK1: 5228 | GSL1: 5229 | GSM1: 5230 | GSN1: 5231 | GSO1: 5232 | GSP1: 5233 | GSQ1: 5234 | GSR1: 5235 | GSS1: 5236 | GST1: 5237 | GSU1: 5238 | GSV1: 5239 | GSW1: 5240 | GSX1: 5241 | GSY1: 5242 | GSZ1: 5243 | GTA1: 5244 | GTB1: 5245 | GTC1: 5246 | GTD1: 5247 | GTE1: 5248 | GTF1: 5249 | GTG1: 5250 | GTH1: 5251 | GTI1: 5252 | GTJ1: 5253 | GTK1: 5254 | GTL1: 5255 | GTM1: 5256 | GTN1: 5257 | GTO1: 5258 | GTP1: 5259 | GTQ1: 5260 | GTR1: 5261 | GTS1: 5262 | GTT1: 5263 | GTU1: 5264 | GTV1: 5265 | GTW1: 5266 | GTX1: 5267 | GTY1: 5268 | GTZ1: 5269 | GUA1: 5270 | GUB1: 5271 | GUC1: 5272 | GUD1: 5273 | GUE1: 5274 | GUF1: 5275 | GUG1: 5276 | GUH1: 5277 | GUI1: 5278 | GUJ1: 5279 | GUK1: 5280 | GUL1: 5281 | GUM1: 5282 | GUN1: 5283 | GUO1: 5284 | GUP1: 5285 | GUQ1: 5286 | GUR1: 5287 | GUS1: 5288 | GUT1: 5289 | GUU1: 5290 | GUV1: 5291 | GUW1: 5292 | GUX1: 5293 | GUY1: 5294 | GUZ1: 5295 | GVA1: 5296 | GVB1: 5297 | GVC1: 5298 | GVD1: 5299 | GVE1: 5300 | GVF1: 5301 | GVG1: 5302 | GVH1: 5303 | GVI1: 5304 | GVJ1: 5305 | GVK1: 5306 | GVL1: 5307 | GVM1: 5308 | GVN1: 5309 | GVO1: 5310 | GVP1: 5311 | GVQ1: 5312 | GVR1: 5313 | GVS1: 5314 | GVT1: 5315 | GVU1: 5316 | GVV1: 5317 | GVW1: 5318 | GVX1: 5319 | GVY1: 5320 | GVZ1: 5321 | GWA1: 5322 | GWB1: 5323 | GWC1: 5324 | GWD1: 5325 | GWE1: 5326 | GWF1: 5327 | GWG1: 5328 | GWH1: 5329 | GWI1: 5330 | GWJ1: 5331 | GWK1: 5332 | GWL1: 5333 | GWM1: 5334 | GWN1: 5335 | GWO1: 5336 | GWP1: 5337 | GWQ1: 5338 | GWR1: 5339 | GWS1: 5340 | GWT1: 5341 | GWU1: 5342 | GWV1: 5343 | GWW1: 5344 | GWX1: 5345 | GWY1: 5346 | GWZ1: 5347 | GXA1: 5348 | GXB1: 5349 | GXC1: 5350 | GXD1: 5351 | GXE1: 5352 | GXF1: 5353 | GXG1: 5354 | GXH1: 5355 | GXI1: 5356 | GXJ1: 5357 | GXK1: 5358 | GXL1: 5359 | GXM1: 5360 | GXN1: 5361 | GXO1: 5362 | GXP1: 5363 | GXQ1: 5364 | GXR1: 5365 | GXS1: 5366 | GXT1: 5367 | GXU1: 5368 | GXV1: 5369 | GXW1: 5370 | GXX1: 5371 | GXY1: 5372 | GXZ1: 5373 | GYA1: 5374 | GYB1: 5375 | GYC1: 5376 | GYD1: 5377 | GYE1: 5378 | GYF1: 5379 | GYG1: 5380 | GYH1: 5381 | GYI1: 5382 | GYJ1: 5383 | GYK1: 5384 | GYL1: 5385 | GYM1: 5386 | GYN1: 5387 | GYO1: 5388 | GYP1: 5389 | GYQ1: 5390 | GYR1: 5391 | GYS1: 5392 | GYT1: 5393 | GYU1: 5394 | GYV1: 5395 | GYW1: 5396 | GYX1: 5397 | GYY1: 5398 | GYZ1: 5399 | GZA1: 5400 | GZB1: 5401 | GZC1: 5402 | GZD1: 5403 | GZE1: 5404 | GZF1: 5405 | GZG1: 5406 | GZH1: 5407 | GZI1: 5408 | GZJ1: 5409 | GZK1: 5410 | GZL1: 5411 | GZM1: 5412 | GZN1: 5413 | GZO1: 5414 | GZP1: 5415 | GZQ1: 5416 | GZR1: 5417 | GZS1: 5418 | GZT1: 5419 | GZU1: 5420 | GZV1: 5421 | GZW1: 5422 | GZX1: 5423 | GZY1: 5424 | GZZ1: 5425 | HAA1: 5426 | HAB1: 5427 | HAC1: 5428 | HAD1: 5429 | HAE1: 5430 | HAF1: 5431 | HAG1: 5432 | HAH1: 5433 | HAI1: 5434 | HAJ1: 5435 | HAK1: 5436 | HAL1: 5437 | HAM1: 5438 | HAN1: 5439 | HAO1: 5440 | HAP1: 5441 | HAQ1: 5442 | HAR1: 5443 | HAS1: 5444 | HAT1: 5445 | HAU1: 5446 | HAV1: 5447 | HAW1: 5448 | HAX1: 5449 | HAY1: 5450 | HAZ1: 5451 | HBA1: 5452 | HBB1: 5453 | HBC1: 5454 | HBD1: 5455 | HBE1: 5456 | HBF1: 5457 | HBG1: 5458 | HBH1: 5459 | HBI1: 5460 | HBJ1: 5461 | HBK1: 5462 | HBL1: 5463 | HBM1: 5464 | HBN1: 5465 | HBO1: 5466 | HBP1: 5467 | HBQ1: 5468 | HBR1: 5469 | HBS1: 5470 | HBT1: 5471 | HBU1: 5472 | HBV1: 5473 | HBW1: 5474 | HBX1: 5475 | HBY1: 5476 | HBZ1: 5477 | HCA1: 5478 | HCB1: 5479 | HCC1: 5480 | HCD1: 5481 | HCE1: 5482 | HCF1: 5483 | HCG1: 5484 | HCH1: 5485 | HCI1: 5486 | HCJ1: 5487 | HCK1: 5488 | HCL1: 5489 | HCM1: 5490 | HCN1: 5491 | HCO1: 5492 | HCP1: 5493 | HCQ1: 5494 | HCR1: 5495 | HCS1: 5496 | HCT1: 5497 | HCU1: 5498 | HCV1: 5499 | HCW1: 5500 | HCX1: 5501 | HCY1: 5502 | HCZ1: 5503 | HDA1: 5504 | HDB1: 5505 | HDC1: 5506 | HDD1: 5507 | HDE1: 5508 | HDF1: 5509 | HDG1: 5510 | HDH1: 5511 | HDI1: 5512 | HDJ1: 5513 | HDK1: 5514 | HDL1: 5515 | HDM1: 5516 | HDN1: 5517 | HDO1: 5518 | HDP1: 5519 | HDQ1: 5520 | HDR1: 5521 | HDS1: 5522 | HDT1: 5523 | HDU1: 5524 | HDV1: 5525 | HDW1: 5526 | HDX1: 5527 | HDY1: 5528 | HDZ1: 5529 | HEA1: 5530 | HEB1: 5531 | HEC1: 5532 | HED1: 5533 | HEE1: 5534 | HEF1: 5535 | HEG1: 5536 | HEH1: 5537 | HEI1: 5538 | HEJ1: 5539 | HEK1: 5540 | HEL1: 5541 | HEM1: 5542 | HEN1: 5543 | HEO1: 5544 | HEP1: 5545 | HEQ1: 5546 | HER1: 5547 | HES1: 5548 | HET1: 5549 | HEU1: 5550 | HEV1: 5551 | HEW1: 5552 | HEX1: 5553 | HEY1: 5554 | HEZ1: 5555 | HFA1: 5556 | HFB1: 5557 | HFC1: 5558 | HFD1: 5559 | HFE1: 5560 | HFF1: 5561 | HFG1: 5562 | HFH1: 5563 | HFI1: 5564 | HFJ1: 5565 | HFK1: 5566 | HFL1: 5567 | HFM1: 5568 | HFN1: 5569 | HFO1: 5570 | HFP1: 5571 | HFQ1: 5572 | HFR1: 5573 | HFS1: 5574 | HFT1: 5575 | HFU1: 5576 | HFV1: 5577 | HFW1: 5578 | HFX1: 5579 | HFY1: 5580 | HFZ1: 5581 | HGA1: 5582 | HGB1: 5583 | HGC1: 5584 | HGD1: 5585 | HGE1: 5586 | HGF1: 5587 | HGG1: 5588 | HGH1: 5589 | HGI1: 5590 | HGJ1: 5591 | HGK1: 5592 | HGL1: 5593 | HGM1: 5594 | HGN1: 5595 | HGO1: 5596 | HGP1: 5597 | HGQ1: 5598 | HGR1: 5599 | HGS1: 5600 | HGT1: 5601 | HGU1: 5602 | HGV1: 5603 | HGW1: 5604 | HGX1: 5605 | HGY1: 5606 | HGZ1: 5607 | HHA1: 5608 | HHB1: 5609 | HHC1: 5610 | HHD1: 5611 | HHE1: 5612 | HHF1: 5613 | HHG1: 5614 | HHH1: 5615 | HHI1: 5616 | HHJ1: 5617 | HHK1: 5618 | HHL1: 5619 | HHM1: 5620 | HHN1: 5621 | HHO1: 5622 | HHP1: 5623 | HHQ1: 5624 | HHR1: 5625 | HHS1: 5626 | HHT1: 5627 | HHU1: 5628 | HHV1: 5629 | HHW1: 5630 | HHX1: 5631 | HHY1: 5632 | HHZ1: 5633 | HIA1: 5634 | HIB1: 5635 | HIC1: 5636 | HID1: 5637 | HIE1: 5638 | HIF1: 5639 | HIG1: 5640 | HIH1: 5641 | HII1: 5642 | HIJ1: 5643 | HIK1: 5644 | HIL1: 5645 | HIM1: 5646 | HIN1: 5647 | HIO1: 5648 | HIP1: 5649 | HIQ1: 5650 | HIR1: 5651 | HIS1: 5652 | HIT1: 5653 | HIU1: 5654 | HIV1: 5655 | HIW1: 5656 | HIX1: 5657 | HIY1: 5658 | HIZ1: 5659 | HJA1: 5660 | HJB1: 5661 | HJC1: 5662 | HJD1: 5663 | HJE1: 5664 | HJF1: 5665 | HJG1: 5666 | HJH1: 5667 | HJI1: 5668 | HJJ1: 5669 | HJK1: 5670 | HJL1: 5671 | HJM1: 5672 | HJN1: 5673 | HJO1: 5674 | HJP1: 5675 | HJQ1: 5676 | HJR1: 5677 | HJS1: 5678 | HJT1: 5679 | HJU1: 5680 | HJV1: 5681 | HJW1: 5682 | HJX1: 5683 | HJY1: 5684 | HJZ1: 5685 | HKA1: 5686 | HKB1: 5687 | HKC1: 5688 | HKD1: 5689 | HKE1: 5690 | HKF1: 5691 | HKG1: 5692 | HKH1: 5693 | HKI1: 5694 | HKJ1: 5695 | HKK1: 5696 | HKL1: 5697 | HKM1: 5698 | HKN1: 5699 | HKO1: 5700 | HKP1: 5701 | HKQ1: 5702 | HKR1: 5703 | HKS1: 5704 | HKT1: 5705 | HKU1: 5706 | HKV1: 5707 | HKW1: 5708 | HKX1: 5709 | HKY1: 5710 | HKZ1: 5711 | HLA1: 5712 | HLB1: 5713 | HLC1: 5714 | HLD1: 5715 | HLE1: 5716 | HLF1: 5717 | HLG1: 5718 | HLH1: 5719 | HLI1: 5720 | HLJ1: 5721 | HLK1: 5722 | HLL1: 5723 | HLM1: 5724 | HLN1: 5725 | HLO1: 5726 | HLP1: 5727 | HLQ1: 5728 | HLR1: 5729 | HLS1: 5730 | HLT1: 5731 | HLU1: 5732 | HLV1: 5733 | HLW1: 5734 | HLX1: 5735 | HLY1: 5736 | HLZ1: 5737 | HMA1: 5738 | HMB1: 5739 | HMC1: 5740 | HMD1: 5741 | HME1: 5742 | HMF1: 5743 | HMG1: 5744 | HMH1: 5745 | HMI1: 5746 | HMJ1: 5747 | HMK1: 5748 | HML1: 5749 | HMM1: 5750 | HMN1: 5751 | HMO1: 5752 | HMP1: 5753 | HMQ1: 5754 | HMR1: 5755 | HMS1: 5756 | HMT1: 5757 | HMU1: 5758 | HMV1: 5759 | HMW1: 5760 | HMX1: 5761 | HMY1: 5762 | HMZ1: 5763 | HNA1: 5764 | HNB1: 5765 | HNC1: 5766 | HND1: 5767 | HNE1: 5768 | HNF1: 5769 | HNG1: 5770 | HNH1: 5771 | HNI1: 5772 | HNJ1: 5773 | HNK1: 5774 | HNL1: 5775 | HNM1: 5776 | HNN1: 5777 | HNO1: 5778 | HNP1: 5779 | HNQ1: 5780 | HNR1: 5781 | HNS1: 5782 | HNT1: 5783 | HNU1: 5784 | HNV1: 5785 | HNW1: 5786 | HNX1: 5787 | HNY1: 5788 | HNZ1: 5789 | HOA1: 5790 | HOB1: 5791 | HOC1: 5792 | HOD1: 5793 | HOE1: 5794 | HOF1: 5795 | HOG1: 5796 | HOH1: 5797 | HOI1: 5798 | HOJ1: 5799 | HOK1: 5800 | HOL1: 5801 | HOM1: 5802 | HON1: 5803 | HOO1: 5804 | HOP1: 5805 | HOQ1: 5806 | HOR1: 5807 | HOS1: 5808 | HOT1: 5809 | HOU1: 5810 | HOV1: 5811 | HOW1: 5812 | HOX1: 5813 | HOY1: 5814 | HOZ1: 5815 | HPA1: 5816 | HPB1: 5817 | HPC1: 5818 | HPD1: 5819 | HPE1: 5820 | HPF1: 5821 | HPG1: 5822 | HPH1: 5823 | HPI1: 5824 | HPJ1: 5825 | HPK1: 5826 | HPL1: 5827 | HPM1: 5828 | HPN1: 5829 | HPO1: 5830 | HPP1: 5831 | HPQ1: 5832 | HPR1: 5833 | HPS1: 5834 | HPT1: 5835 | HPU1: 5836 | HPV1: 5837 | HPW1: 5838 | HPX1: 5839 | HPY1: 5840 | HPZ1: 5841 | HQA1: 5842 | HQB1: 5843 | HQC1: 5844 | HQD1: 5845 | HQE1: 5846 | HQF1: 5847 | HQG1: 5848 | HQH1: 5849 | HQI1: 5850 | HQJ1: 5851 | HQK1: 5852 | HQL1: 5853 | HQM1: 5854 | HQN1: 5855 | HQO1: 5856 | HQP1: 5857 | HQQ1: 5858 | HQR1: 5859 | HQS1: 5860 | HQT1: 5861 | HQU1: 5862 | HQV1: 5863 | HQW1: 5864 | HQX1: 5865 | HQY1: 5866 | HQZ1: 5867 | HRA1: 5868 | HRB1: 5869 | HRC1: 5870 | HRD1: 5871 | HRE1: 5872 | HRF1: 5873 | HRG1: 5874 | HRH1: 5875 | HRI1: 5876 | HRJ1: 5877 | HRK1: 5878 | HRL1: 5879 | HRM1: 5880 | HRN1: 5881 | HRO1: 5882 | HRP1: 5883 | HRQ1: 5884 | HRR1: 5885 | HRS1: 5886 | HRT1: 5887 | HRU1: 5888 | HRV1: 5889 | HRW1: 5890 | HRX1: 5891 | HRY1: 5892 | HRZ1: 5893 | HSA1: 5894 | HSB1: 5895 | HSC1: 5896 | HSD1: 5897 | HSE1: 5898 | HSF1: 5899 | HSG1: 5900 | HSH1: 5901 | HSI1: 5902 | HSJ1: 5903 | HSK1: 5904 | HSL1: 5905 | HSM1: 5906 | HSN1: 5907 | HSO1: 5908 | HSP1: 5909 | HSQ1: 5910 | HSR1: 5911 | HSS1: 5912 | HST1: 5913 | HSU1: 5914 | HSV1: 5915 | HSW1: 5916 | HSX1: 5917 | HSY1: 5918 | HSZ1: 5919 | HTA1: 5920 | HTB1: 5921 | HTC1: 5922 | HTD1: 5923 | HTE1: 5924 | HTF1: 5925 | HTG1: 5926 | HTH1: 5927 | HTI1: 5928 | HTJ1: 5929 | HTK1: 5930 | HTL1: 5931 | HTM1: 5932 | HTN1: 5933 | HTO1: 5934 | HTP1: 5935 | HTQ1: 5936 | HTR1: 5937 | HTS1: 5938 | HTT1: 5939 | HTU1: 5940 | HTV1: 5941 | HTW1: 5942 | HTX1: 5943 | HTY1: 5944 | HTZ1: 5945 | HUA1: 5946 | HUB1: 5947 | HUC1: 5948 | HUD1: 5949 | HUE1: 5950 | HUF1: 5951 | HUG1: 5952 | HUH1: 5953 | HUI1: 5954 | HUJ1: 5955 | HUK1: 5956 | HUL1: 5957 | HUM1: 5958 | HUN1: 5959 | HUO1: 5960 | HUP1: 5961 | HUQ1: 5962 | HUR1: 5963 | HUS1: 5964 | HUT1: 5965 | HUU1: 5966 | HUV1: 5967 | HUW1: 5968 | HUX1: 5969 | HUY1: 5970 | HUZ1: 5971 | HVA1: 5972 | HVB1: 5973 | HVC1: 5974 | HVD1: 5975 | HVE1: 5976 | HVF1: 5977 | HVG1: 5978 | HVH1: 5979 | HVI1: 5980 | HVJ1: 5981 | HVK1: 5982 | HVL1: 5983 | HVM1: 5984 | HVN1: 5985 | HVO1: 5986 | HVP1: 5987 | HVQ1: 5988 | HVR1: 5989 | HVS1: 5990 | HVT1: 5991 | HVU1: 5992 | HVV1: 5993 | HVW1: 5994 | HVX1: 5995 | HVY1: 5996 | HVZ1: 5997 | HWA1: 5998 | HWB1: 5999 | HWC1: 6000 | HWD1: 6001 | HWE1: 6002 | HWF1: 6003 | HWG1: 6004 | HWH1: 6005 | HWI1: 6006 | HWJ1: 6007 | HWK1: 6008 | HWL1: 6009 | HWM1: 6010 | HWN1: 6011 | HWO1: 6012 | HWP1: 6013 | HWQ1: 6014 | HWR1: 6015 | HWS1: 6016 | HWT1: 6017 | HWU1: 6018 | HWV1: 6019 | HWW1: 6020 | HWX1: 6021 | HWY1: 6022 | HWZ1: 6023 | HXA1: 6024 | HXB1: 6025 | HXC1: 6026 | HXD1: 6027 | HXE1: 6028 | HXF1: 6029 | HXG1: 6030 | HXH1: 6031 | HXI1: 6032 | HXJ1: 6033 | HXK1: 6034 | HXL1: 6035 | HXM1: 6036 | HXN1: 6037 | HXO1: 6038 | HXP1: 6039 | HXQ1: 6040 | HXR1: 6041 | HXS1: 6042 | HXT1: 6043 | HXU1: 6044 | HXV1: 6045 | HXW1: 6046 | HXX1: 6047 | HXY1: 6048 | HXZ1: 6049 | HYA1: 6050 | HYB1: 6051 | HYC1: 6052 | HYD1: 6053 | HYE1: 6054 | HYF1: 6055 | HYG1: 6056 | HYH1: 6057 | HYI1: 6058 | HYJ1: 6059 | HYK1: 6060 | HYL1: 6061 | HYM1: 6062 | HYN1: 6063 | HYO1: 6064 | HYP1: 6065 | HYQ1: 6066 | HYR1: 6067 | HYS1: 6068 | HYT1: 6069 | HYU1: 6070 | HYV1: 6071 | HYW1: 6072 | HYX1: 6073 | HYY1: 6074 | HYZ1: 6075 | HZA1: 6076 | HZB1: 6077 | HZC1: 6078 | HZD1: 6079 | HZE1: 6080 | HZF1: 6081 | HZG1: 6082 | HZH1: 6083 | HZI1: 6084 | HZJ1: 6085 | HZK1: 6086 | HZL1: 6087 | HZM1: 6088 | HZN1: 6089 | HZO1: 6090 | HZP1: 6091 | HZQ1: 6092 | HZR1: 6093 | HZS1: 6094 | HZT1: 6095 | HZU1: 6096 | HZV1: 6097 | HZW1: 6098 | HZX1: 6099 | HZY1: 6100 | HZZ1: 6101 | IAA1: 6102 | IAB1: 6103 | IAC1: 6104 | IAD1: 6105 | IAE1: 6106 | IAF1: 6107 | IAG1: 6108 | IAH1: 6109 | IAI1: 6110 | IAJ1: 6111 | IAK1: 6112 | IAL1: 6113 | IAM1: 6114 | IAN1: 6115 | IAO1: 6116 | IAP1: 6117 | IAQ1: 6118 | IAR1: 6119 | IAS1: 6120 | IAT1: 6121 | IAU1: 6122 | IAV1: 6123 | IAW1: 6124 | IAX1: 6125 | IAY1: 6126 | IAZ1: 6127 | IBA1: 6128 | IBB1: 6129 | IBC1: 6130 | IBD1: 6131 | IBE1: 6132 | IBF1: 6133 | IBG1: 6134 | IBH1: 6135 | IBI1: 6136 | IBJ1: 6137 | IBK1: 6138 | IBL1: 6139 | IBM1: 6140 | IBN1: 6141 | IBO1: 6142 | IBP1: 6143 | IBQ1: 6144 | IBR1: 6145 | IBS1: 6146 | IBT1: 6147 | IBU1: 6148 | IBV1: 6149 | IBW1: 6150 | IBX1: 6151 | IBY1: 6152 | IBZ1: 6153 | ICA1: 6154 | ICB1: 6155 | ICC1: 6156 | ICD1: 6157 | ICE1: 6158 | ICF1: 6159 | ICG1: 6160 | ICH1: 6161 | ICI1: 6162 | ICJ1: 6163 | ICK1: 6164 | ICL1: 6165 | ICM1: 6166 | ICN1: 6167 | ICO1: 6168 | ICP1: 6169 | ICQ1: 6170 | ICR1: 6171 | ICS1: 6172 | ICT1: 6173 | ICU1: 6174 | ICV1: 6175 | ICW1: 6176 | ICX1: 6177 | ICY1: 6178 | ICZ1: 6179 | IDA1: 6180 | IDB1: 6181 | IDC1: 6182 | IDD1: 6183 | IDE1: 6184 | IDF1: 6185 | IDG1: 6186 | IDH1: 6187 | IDI1: 6188 | IDJ1: 6189 | IDK1: 6190 | IDL1: 6191 | IDM1: 6192 | IDN1: 6193 | IDO1: 6194 | IDP1: 6195 | IDQ1: 6196 | IDR1: 6197 | IDS1: 6198 | IDT1: 6199 | IDU1: 6200 | IDV1: 6201 | IDW1: 6202 | IDX1: 6203 | IDY1: 6204 | IDZ1: 6205 | IEA1: 6206 | IEB1: 6207 | IEC1: 6208 | IED1: 6209 | IEE1: 6210 | IEF1: 6211 | IEG1: 6212 | IEH1: 6213 | IEI1: 6214 | IEJ1: 6215 | IEK1: 6216 | IEL1: 6217 | IEM1: 6218 | IEN1: 6219 | IEO1: 6220 | IEP1: 6221 | IEQ1: 6222 | IER1: 6223 | IES1: 6224 | IET1: 6225 | IEU1: 6226 | IEV1: 6227 | IEW1: 6228 | IEX1: 6229 | IEY1: 6230 | IEZ1: 6231 | IFA1: 6232 | IFB1: 6233 | IFC1: 6234 | IFD1: 6235 | IFE1: 6236 | IFF1: 6237 | IFG1: 6238 | IFH1: 6239 | IFI1: 6240 | IFJ1: 6241 | IFK1: 6242 | IFL1: 6243 | IFM1: 6244 | IFN1: 6245 | IFO1: 6246 | IFP1: 6247 | IFQ1: 6248 | IFR1: 6249 | IFS1: 6250 | IFT1: 6251 | IFU1: 6252 | IFV1: 6253 | IFW1: 6254 | IFX1: 6255 | IFY1: 6256 | IFZ1: 6257 | IGA1: 6258 | IGB1: 6259 | IGC1: 6260 | IGD1: 6261 | IGE1: 6262 | IGF1: 6263 | IGG1: 6264 | IGH1: 6265 | IGI1: 6266 | IGJ1: 6267 | IGK1: 6268 | IGL1: 6269 | IGM1: 6270 | IGN1: 6271 | IGO1: 6272 | IGP1: 6273 | IGQ1: 6274 | IGR1: 6275 | IGS1: 6276 | IGT1: 6277 | IGU1: 6278 | IGV1: 6279 | IGW1: 6280 | IGX1: 6281 | IGY1: 6282 | IGZ1: 6283 | IHA1: 6284 | IHB1: 6285 | IHC1: 6286 | IHD1: 6287 | IHE1: 6288 | IHF1: 6289 | IHG1: 6290 | IHH1: 6291 | IHI1: 6292 | IHJ1: 6293 | IHK1: 6294 | IHL1: 6295 | IHM1: 6296 | IHN1: 6297 | IHO1: 6298 | IHP1: 6299 | IHQ1: 6300 | IHR1: 6301 | IHS1: 6302 | IHT1: 6303 | IHU1: 6304 | IHV1: 6305 | IHW1: 6306 | IHX1: 6307 | IHY1: 6308 | IHZ1: 6309 | IIA1: 6310 | IIB1: 6311 | IIC1: 6312 | IID1: 6313 | IIE1: 6314 | IIF1: 6315 | IIG1: 6316 | IIH1: 6317 | III1: 6318 | IIJ1: 6319 | IIK1: 6320 | IIL1: 6321 | IIM1: 6322 | IIN1: 6323 | IIO1: 6324 | IIP1: 6325 | IIQ1: 6326 | IIR1: 6327 | IIS1: 6328 | IIT1: 6329 | IIU1: 6330 | IIV1: 6331 | IIW1: 6332 | IIX1: 6333 | IIY1: 6334 | IIZ1: 6335 | IJA1: 6336 | IJB1: 6337 | IJC1: 6338 | IJD1: 6339 | IJE1: 6340 | IJF1: 6341 | IJG1: 6342 | IJH1: 6343 | IJI1: 6344 | IJJ1: 6345 | IJK1: 6346 | IJL1: 6347 | IJM1: 6348 | IJN1: 6349 | IJO1: 6350 | IJP1: 6351 | IJQ1: 6352 | IJR1: 6353 | IJS1: 6354 | IJT1: 6355 | IJU1: 6356 | IJV1: 6357 | IJW1: 6358 | IJX1: 6359 | IJY1: 6360 | IJZ1: 6361 | IKA1: 6362 | IKB1: 6363 | IKC1: 6364 | IKD1: 6365 | IKE1: 6366 | IKF1: 6367 | IKG1: 6368 | IKH1: 6369 | IKI1: 6370 | IKJ1: 6371 | IKK1: 6372 | IKL1: 6373 | IKM1: 6374 | IKN1: 6375 | IKO1: 6376 | IKP1: 6377 | IKQ1: 6378 | IKR1: 6379 | IKS1: 6380 | IKT1: 6381 | IKU1: 6382 | IKV1: 6383 | IKW1: 6384 | IKX1: 6385 | IKY1: 6386 | IKZ1: 6387 | ILA1: 6388 | ILB1: 6389 | ILC1: 6390 | ILD1: 6391 | ILE1: 6392 | ILF1: 6393 | ILG1: 6394 | ILH1: 6395 | ILI1: 6396 | ILJ1: 6397 | ILK1: 6398 | ILL1: 6399 | ILM1: 6400 | ILN1: 6401 | ILO1: 6402 | ILP1: 6403 | ILQ1: 6404 | ILR1: 6405 | ILS1: 6406 | ILT1: 6407 | ILU1: 6408 | ILV1: 6409 | ILW1: 6410 | ILX1: 6411 | ILY1: 6412 | ILZ1: 6413 | IMA1: 6414 | IMB1: 6415 | IMC1: 6416 | IMD1: 6417 | IME1: 6418 | IMF1: 6419 | IMG1: 6420 | IMH1: 6421 | IMI1: 6422 | IMJ1: 6423 | IMK1: 6424 | IML1: 6425 | IMM1: 6426 | IMN1: 6427 | IMO1: 6428 | IMP1: 6429 | IMQ1: 6430 | IMR1: 6431 | IMS1: 6432 | IMT1: 6433 | IMU1: 6434 | IMV1: 6435 | IMW1: 6436 | IMX1: 6437 | IMY1: 6438 | IMZ1: 6439 | INA1: 6440 | INB1: 6441 | INC1: 6442 | IND1: 6443 | INE1: 6444 | INF1: 6445 | ING1: 6446 | INH1: 6447 | INI1: 6448 | INJ1: 6449 | INK1: 6450 | INL1: 6451 | INM1: 6452 | INN1: 6453 | INO1: 6454 | INP1: 6455 | INQ1: 6456 | INR1: 6457 | INS1: 6458 | INT1: 6459 | INU1: 6460 | INV1: 6461 | INW1: 6462 | INX1: 6463 | INY1: 6464 | INZ1: 6465 | IOA1: 6466 | IOB1: 6467 | IOC1: 6468 | IOD1: 6469 | IOE1: 6470 | IOF1: 6471 | IOG1: 6472 | IOH1: 6473 | IOI1: 6474 | IOJ1: 6475 | IOK1: 6476 | IOL1: 6477 | IOM1: 6478 | ION1: 6479 | IOO1: 6480 | IOP1: 6481 | IOQ1: 6482 | IOR1: 6483 | IOS1: 6484 | IOT1: 6485 | IOU1: 6486 | IOV1: 6487 | IOW1: 6488 | IOX1: 6489 | IOY1: 6490 | IOZ1: 6491 | IPA1: 6492 | IPB1: 6493 | IPC1: 6494 | IPD1: 6495 | IPE1: 6496 | IPF1: 6497 | IPG1: 6498 | IPH1: 6499 | IPI1: 6500 | IPJ1: 6501 | IPK1: 6502 | IPL1: 6503 | IPM1: 6504 | IPN1: 6505 | IPO1: 6506 | IPP1: 6507 | IPQ1: 6508 | IPR1: 6509 | IPS1: 6510 | IPT1: 6511 | IPU1: 6512 | IPV1: 6513 | IPW1: 6514 | IPX1: 6515 | IPY1: 6516 | IPZ1: 6517 | IQA1: 6518 | IQB1: 6519 | IQC1: 6520 | IQD1: 6521 | IQE1: 6522 | IQF1: 6523 | IQG1: 6524 | IQH1: 6525 | IQI1: 6526 | IQJ1: 6527 | IQK1: 6528 | IQL1: 6529 | IQM1: 6530 | IQN1: 6531 | IQO1: 6532 | IQP1: 6533 | IQQ1: 6534 | IQR1: 6535 | IQS1: 6536 | IQT1: 6537 | IQU1: 6538 | IQV1: 6539 | IQW1: 6540 | IQX1: 6541 | IQY1: 6542 | IQZ1: 6543 | IRA1: 6544 | IRB1: 6545 | IRC1: 6546 | IRD1: 6547 | IRE1: 6548 | IRF1: 6549 | IRG1: 6550 | IRH1: 6551 | IRI1: 6552 | IRJ1: 6553 | IRK1: 6554 | IRL1: 6555 | IRM1: 6556 | IRN1: 6557 | IRO1: 6558 | IRP1: 6559 | IRQ1: 6560 | IRR1: 6561 | IRS1: 6562 | IRT1: 6563 | IRU1: 6564 | IRV1: 6565 | IRW1: 6566 | IRX1: 6567 | IRY1: 6568 | IRZ1: 6569 | ISA1: 6570 | ISB1: 6571 | ISC1: 6572 | ISD1: 6573 | ISE1: 6574 | ISF1: 6575 | ISG1: 6576 | ISH1: 6577 | ISI1: 6578 | ISJ1: 6579 | ISK1: 6580 | ISL1: 6581 | ISM1: 6582 | ISN1: 6583 | ISO1: 6584 | ISP1: 6585 | ISQ1: 6586 | ISR1: 6587 | ISS1: 6588 | IST1: 6589 | ISU1: 6590 | ISV1: 6591 | ISW1: 6592 | ISX1: 6593 | ISY1: 6594 | ISZ1: 6595 | ITA1: 6596 | ITB1: 6597 | ITC1: 6598 | ITD1: 6599 | ITE1: 6600 | ITF1: 6601 | ITG1: 6602 | ITH1: 6603 | ITI1: 6604 | ITJ1: 6605 | ITK1: 6606 | ITL1: 6607 | ITM1: 6608 | ITN1: 6609 | ITO1: 6610 | ITP1: 6611 | ITQ1: 6612 | ITR1: 6613 | ITS1: 6614 | ITT1: 6615 | ITU1: 6616 | ITV1: 6617 | ITW1: 6618 | ITX1: 6619 | ITY1: 6620 | ITZ1: 6621 | IUA1: 6622 | IUB1: 6623 | IUC1: 6624 | IUD1: 6625 | IUE1: 6626 | IUF1: 6627 | IUG1: 6628 | IUH1: 6629 | IUI1: 6630 | IUJ1: 6631 | IUK1: 6632 | IUL1: 6633 | IUM1: 6634 | IUN1: 6635 | IUO1: 6636 | IUP1: 6637 | IUQ1: 6638 | IUR1: 6639 | IUS1: 6640 | IUT1: 6641 | IUU1: 6642 | IUV1: 6643 | IUW1: 6644 | IUX1: 6645 | IUY1: 6646 | IUZ1: 6647 | IVA1: 6648 | IVB1: 6649 | IVC1: 6650 | IVD1: 6651 | IVE1: 6652 | IVF1: 6653 | IVG1: 6654 | IVH1: 6655 | IVI1: 6656 | IVJ1: 6657 | IVK1: 6658 | IVL1: 6659 | IVM1: 6660 | IVN1: 6661 | IVO1: 6662 | IVP1: 6663 | IVQ1: 6664 | IVR1: 6665 | IVS1: 6666 | IVT1: 6667 | IVU1: 6668 | IVV1: 6669 | IVW1: 6670 | IVX1: 6671 | IVY1: 6672 | IVZ1: 6673 | IWA1: 6674 | IWB1: 6675 | IWC1: 6676 | IWD1: 6677 | IWE1: 6678 | IWF1: 6679 | IWG1: 6680 | IWH1: 6681 | IWI1: 6682 | IWJ1: 6683 | IWK1: 6684 | IWL1: 6685 | IWM1: 6686 | IWN1: 6687 | IWO1: 6688 | IWP1: 6689 | IWQ1: 6690 | IWR1: 6691 | IWS1: 6692 | IWT1: 6693 | IWU1: 6694 | IWV1: 6695 | IWW1: 6696 | IWX1: 6697 | IWY1: 6698 | IWZ1: 6699 | IXA1: 6700 | IXB1: 6701 | IXC1: 6702 | IXD1: 6703 | IXE1: 6704 | IXF1: 6705 | IXG1: 6706 | IXH1: 6707 | IXI1: 6708 | IXJ1: 6709 | IXK1: 6710 | IXL1: 6711 | IXM1: 6712 | IXN1: 6713 | IXO1: 6714 | IXP1: 6715 | IXQ1: 6716 | IXR1: 6717 | IXS1: 6718 | IXT1: 6719 | IXU1: 6720 | IXV1: 6721 | IXW1: 6722 | IXX1: 6723 | IXY1: 6724 | IXZ1: 6725 | IYA1: 6726 | IYB1: 6727 | IYC1: 6728 | IYD1: 6729 | IYE1: 6730 | IYF1: 6731 | IYG1: 6732 | IYH1: 6733 | IYI1: 6734 | IYJ1: 6735 | IYK1: 6736 | IYL1: 6737 | IYM1: 6738 | IYN1: 6739 | IYO1: 6740 | IYP1: 6741 | IYQ1: 6742 | IYR1: 6743 | IYS1: 6744 | IYT1: 6745 | IYU1: 6746 | IYV1: 6747 | IYW1: 6748 | IYX1: 6749 | IYY1: 6750 | IYZ1: 6751 | IZA1: 6752 | IZB1: 6753 | IZC1: 6754 | IZD1: 6755 | IZE1: 6756 | IZF1: 6757 | IZG1: 6758 | IZH1: 6759 | IZI1: 6760 | IZJ1: 6761 | IZK1: 6762 | IZL1: 6763 | IZM1: 6764 | IZN1: 6765 | IZO1: 6766 | IZP1: 6767 | IZQ1: 6768 | IZR1: 6769 | IZS1: 6770 | IZT1: 6771 | IZU1: 6772 | IZV1: 6773 | IZW1: 6774 | IZX1: 6775 | IZY1: 6776 | IZZ1: 6777 | JAA1: 6778 | JAB1: 6779 | JAC1: 6780 | JAD1: 6781 | JAE1: 6782 | JAF1: 6783 | JAG1: 6784 | JAH1: 6785 | JAI1: 6786 | JAJ1: 6787 | JAK1: 6788 | JAL1: 6789 | JAM1: 6790 | JAN1: 6791 | JAO1: 6792 | JAP1: 6793 | JAQ1: 6794 | JAR1: 6795 | JAS1: 6796 | JAT1: 6797 | JAU1: 6798 | JAV1: 6799 | JAW1: 6800 | JAX1: 6801 | JAY1: 6802 | JAZ1: 6803 | JBA1: 6804 | JBB1: 6805 | JBC1: 6806 | JBD1: 6807 | JBE1: 6808 | JBF1: 6809 | JBG1: 6810 | JBH1: 6811 | JBI1: 6812 | JBJ1: 6813 | JBK1: 6814 | JBL1: 6815 | JBM1: 6816 | JBN1: 6817 | JBO1: 6818 | JBP1: 6819 | JBQ1: 6820 | JBR1: 6821 | JBS1: 6822 | JBT1: 6823 | JBU1: 6824 | JBV1: 6825 | JBW1: 6826 | JBX1: 6827 | JBY1: 6828 | JBZ1: 6829 | JCA1: 6830 | JCB1: 6831 | JCC1: 6832 | JCD1: 6833 | JCE1: 6834 | JCF1: 6835 | JCG1: 6836 | JCH1: 6837 | JCI1: 6838 | JCJ1: 6839 | JCK1: 6840 | JCL1: 6841 | JCM1: 6842 | JCN1: 6843 | JCO1: 6844 | JCP1: 6845 | JCQ1: 6846 | JCR1: 6847 | JCS1: 6848 | JCT1: 6849 | JCU1: 6850 | JCV1: 6851 | JCW1: 6852 | JCX1: 6853 | JCY1: 6854 | JCZ1: 6855 | JDA1: 6856 | JDB1: 6857 | JDC1: 6858 | JDD1: 6859 | JDE1: 6860 | JDF1: 6861 | JDG1: 6862 | JDH1: 6863 | JDI1: 6864 | JDJ1: 6865 | JDK1: 6866 | JDL1: 6867 | JDM1: 6868 | JDN1: 6869 | JDO1: 6870 | JDP1: 6871 | JDQ1: 6872 | JDR1: 6873 | JDS1: 6874 | JDT1: 6875 | JDU1: 6876 | JDV1: 6877 | JDW1: 6878 | JDX1: 6879 | JDY1: 6880 | JDZ1: 6881 | JEA1: 6882 | JEB1: 6883 | JEC1: 6884 | JED1: 6885 | JEE1: 6886 | JEF1: 6887 | JEG1: 6888 | JEH1: 6889 | JEI1: 6890 | JEJ1: 6891 | JEK1: 6892 | JEL1: 6893 | JEM1: 6894 | JEN1: 6895 | JEO1: 6896 | JEP1: 6897 | JEQ1: 6898 | JER1: 6899 | JES1: 6900 | JET1: 6901 | JEU1: 6902 | JEV1: 6903 | JEW1: 6904 | JEX1: 6905 | JEY1: 6906 | JEZ1: 6907 | JFA1: 6908 | JFB1: 6909 | JFC1: 6910 | JFD1: 6911 | JFE1: 6912 | JFF1: 6913 | JFG1: 6914 | JFH1: 6915 | JFI1: 6916 | JFJ1: 6917 | JFK1: 6918 | JFL1: 6919 | JFM1: 6920 | JFN1: 6921 | JFO1: 6922 | JFP1: 6923 | JFQ1: 6924 | JFR1: 6925 | JFS1: 6926 | JFT1: 6927 | JFU1: 6928 | JFV1: 6929 | JFW1: 6930 | JFX1: 6931 | JFY1: 6932 | JFZ1: 6933 | JGA1: 6934 | JGB1: 6935 | JGC1: 6936 | JGD1: 6937 | JGE1: 6938 | JGF1: 6939 | JGG1: 6940 | JGH1: 6941 | JGI1: 6942 | JGJ1: 6943 | JGK1: 6944 | JGL1: 6945 | JGM1: 6946 | JGN1: 6947 | JGO1: 6948 | JGP1: 6949 | JGQ1: 6950 | JGR1: 6951 | JGS1: 6952 | JGT1: 6953 | JGU1: 6954 | JGV1: 6955 | JGW1: 6956 | JGX1: 6957 | JGY1: 6958 | JGZ1: 6959 | JHA1: 6960 | JHB1: 6961 | JHC1: 6962 | JHD1: 6963 | JHE1: 6964 | JHF1: 6965 | JHG1: 6966 | JHH1: 6967 | JHI1: 6968 | JHJ1: 6969 | JHK1: 6970 | JHL1: 6971 | JHM1: 6972 | JHN1: 6973 | JHO1: 6974 | JHP1: 6975 | JHQ1: 6976 | JHR1: 6977 | JHS1: 6978 | JHT1: 6979 | JHU1: 6980 | JHV1: 6981 | JHW1: 6982 | JHX1: 6983 | JHY1: 6984 | JHZ1: 6985 | JIA1: 6986 | JIB1: 6987 | JIC1: 6988 | JID1: 6989 | JIE1: 6990 | JIF1: 6991 | JIG1: 6992 | JIH1: 6993 | JII1: 6994 | JIJ1: 6995 | JIK1: 6996 | JIL1: 6997 | JIM1: 6998 | JIN1: 6999 | JIO1: 7000 | JIP1: 7001 | JIQ1: 7002 | JIR1: 7003 | JIS1: 7004 | JIT1: 7005 | JIU1: 7006 | JIV1: 7007 | JIW1: 7008 | JIX1: 7009 | JIY1: 7010 | JIZ1: 7011 | JJA1: 7012 | JJB1: 7013 | JJC1: 7014 | JJD1: 7015 | JJE1: 7016 | JJF1: 7017 | JJG1: 7018 | JJH1: 7019 | JJI1: 7020 | JJJ1: 7021 | JJK1: 7022 | JJL1: 7023 | JJM1: 7024 | JJN1: 7025 | JJO1: 7026 | JJP1: 7027 | JJQ1: 7028 | JJR1: 7029 | JJS1: 7030 | JJT1: 7031 | JJU1: 7032 | JJV1: 7033 | JJW1: 7034 | JJX1: 7035 | JJY1: 7036 | JJZ1: 7037 | JKA1: 7038 | JKB1: 7039 | JKC1: 7040 | JKD1: 7041 | JKE1: 7042 | JKF1: 7043 | JKG1: 7044 | JKH1: 7045 | JKI1: 7046 | JKJ1: 7047 | JKK1: 7048 | JKL1: 7049 | JKM1: 7050 | JKN1: 7051 | JKO1: 7052 | JKP1: 7053 | JKQ1: 7054 | JKR1: 7055 | JKS1: 7056 | JKT1: 7057 | JKU1: 7058 | JKV1: 7059 | JKW1: 7060 | JKX1: 7061 | JKY1: 7062 | JKZ1: 7063 | JLA1: 7064 | JLB1: 7065 | JLC1: 7066 | JLD1: 7067 | JLE1: 7068 | JLF1: 7069 | JLG1: 7070 | JLH1: 7071 | JLI1: 7072 | JLJ1: 7073 | JLK1: 7074 | JLL1: 7075 | JLM1: 7076 | JLN1: 7077 | JLO1: 7078 | JLP1: 7079 | JLQ1: 7080 | JLR1: 7081 | JLS1: 7082 | JLT1: 7083 | JLU1: 7084 | JLV1: 7085 | JLW1: 7086 | JLX1: 7087 | JLY1: 7088 | JLZ1: 7089 | JMA1: 7090 | JMB1: 7091 | JMC1: 7092 | JMD1: 7093 | JME1: 7094 | JMF1: 7095 | JMG1: 7096 | JMH1: 7097 | JMI1: 7098 | JMJ1: 7099 | JMK1: 7100 | JML1: 7101 | JMM1: 7102 | JMN1: 7103 | JMO1: 7104 | JMP1: 7105 | JMQ1: 7106 | JMR1: 7107 | JMS1: 7108 | JMT1: 7109 | JMU1: 7110 | JMV1: 7111 | JMW1: 7112 | JMX1: 7113 | JMY1: 7114 | JMZ1: 7115 | JNA1: 7116 | JNB1: 7117 | JNC1: 7118 | JND1: 7119 | JNE1: 7120 | JNF1: 7121 | JNG1: 7122 | JNH1: 7123 | JNI1: 7124 | JNJ1: 7125 | JNK1: 7126 | JNL1: 7127 | JNM1: 7128 | JNN1: 7129 | JNO1: 7130 | JNP1: 7131 | JNQ1: 7132 | JNR1: 7133 | JNS1: 7134 | JNT1: 7135 | JNU1: 7136 | JNV1: 7137 | JNW1: 7138 | JNX1: 7139 | JNY1: 7140 | JNZ1: 7141 | JOA1: 7142 | JOB1: 7143 | JOC1: 7144 | JOD1: 7145 | JOE1: 7146 | JOF1: 7147 | JOG1: 7148 | JOH1: 7149 | JOI1: 7150 | JOJ1: 7151 | JOK1: 7152 | JOL1: 7153 | JOM1: 7154 | JON1: 7155 | JOO1: 7156 | JOP1: 7157 | JOQ1: 7158 | JOR1: 7159 | JOS1: 7160 | JOT1: 7161 | JOU1: 7162 | JOV1: 7163 | JOW1: 7164 | JOX1: 7165 | JOY1: 7166 | JOZ1: 7167 | JPA1: 7168 | JPB1: 7169 | JPC1: 7170 | JPD1: 7171 | JPE1: 7172 | JPF1: 7173 | JPG1: 7174 | JPH1: 7175 | JPI1: 7176 | JPJ1: 7177 | JPK1: 7178 | JPL1: 7179 | JPM1: 7180 | JPN1: 7181 | JPO1: 7182 | JPP1: 7183 | JPQ1: 7184 | JPR1: 7185 | JPS1: 7186 | JPT1: 7187 | JPU1: 7188 | JPV1: 7189 | JPW1: 7190 | JPX1: 7191 | JPY1: 7192 | JPZ1: 7193 | JQA1: 7194 | JQB1: 7195 | JQC1: 7196 | JQD1: 7197 | JQE1: 7198 | JQF1: 7199 | JQG1: 7200 | JQH1: 7201 | JQI1: 7202 | JQJ1: 7203 | JQK1: 7204 | JQL1: 7205 | JQM1: 7206 | JQN1: 7207 | JQO1: 7208 | JQP1: 7209 | JQQ1: 7210 | JQR1: 7211 | JQS1: 7212 | JQT1: 7213 | JQU1: 7214 | JQV1: 7215 | JQW1: 7216 | JQX1: 7217 | JQY1: 7218 | JQZ1: 7219 | JRA1: 7220 | JRB1: 7221 | JRC1: 7222 | JRD1: 7223 | JRE1: 7224 | JRF1: 7225 | JRG1: 7226 | JRH1: 7227 | JRI1: 7228 | JRJ1: 7229 | JRK1: 7230 | JRL1: 7231 | JRM1: 7232 | JRN1: 7233 | JRO1: 7234 | JRP1: 7235 | JRQ1: 7236 | JRR1: 7237 | JRS1: 7238 | JRT1: 7239 | JRU1: 7240 | JRV1: 7241 | JRW1: 7242 | JRX1: 7243 | JRY1: 7244 | JRZ1: 7245 | JSA1: 7246 | JSB1: 7247 | JSC1: 7248 | JSD1: 7249 | JSE1: 7250 | JSF1: 7251 | JSG1: 7252 | JSH1: 7253 | JSI1: 7254 | JSJ1: 7255 | JSK1: 7256 | JSL1: 7257 | JSM1: 7258 | JSN1: 7259 | JSO1: 7260 | JSP1: 7261 | JSQ1: 7262 | JSR1: 7263 | JSS1: 7264 | JST1: 7265 | JSU1: 7266 | JSV1: 7267 | JSW1: 7268 | JSX1: 7269 | JSY1: 7270 | JSZ1: 7271 | JTA1: 7272 | JTB1: 7273 | JTC1: 7274 | JTD1: 7275 | JTE1: 7276 | JTF1: 7277 | JTG1: 7278 | JTH1: 7279 | JTI1: 7280 | JTJ1: 7281 | JTK1: 7282 | JTL1: 7283 | JTM1: 7284 | JTN1: 7285 | JTO1: 7286 | JTP1: 7287 | JTQ1: 7288 | JTR1: 7289 | JTS1: 7290 | JTT1: 7291 | JTU1: 7292 | JTV1: 7293 | JTW1: 7294 | JTX1: 7295 | JTY1: 7296 | JTZ1: 7297 | JUA1: 7298 | JUB1: 7299 | JUC1: 7300 | JUD1: 7301 | JUE1: 7302 | JUF1: 7303 | JUG1: 7304 | JUH1: 7305 | JUI1: 7306 | JUJ1: 7307 | JUK1: 7308 | JUL1: 7309 | JUM1: 7310 | JUN1: 7311 | JUO1: 7312 | JUP1: 7313 | JUQ1: 7314 | JUR1: 7315 | JUS1: 7316 | JUT1: 7317 | JUU1: 7318 | JUV1: 7319 | JUW1: 7320 | JUX1: 7321 | JUY1: 7322 | JUZ1: 7323 | JVA1: 7324 | JVB1: 7325 | JVC1: 7326 | JVD1: 7327 | JVE1: 7328 | JVF1: 7329 | JVG1: 7330 | JVH1: 7331 | JVI1: 7332 | JVJ1: 7333 | JVK1: 7334 | JVL1: 7335 | JVM1: 7336 | JVN1: 7337 | JVO1: 7338 | JVP1: 7339 | JVQ1: 7340 | JVR1: 7341 | JVS1: 7342 | JVT1: 7343 | JVU1: 7344 | JVV1: 7345 | JVW1: 7346 | JVX1: 7347 | JVY1: 7348 | JVZ1: 7349 | JWA1: 7350 | JWB1: 7351 | JWC1: 7352 | JWD1: 7353 | JWE1: 7354 | JWF1: 7355 | JWG1: 7356 | JWH1: 7357 | JWI1: 7358 | JWJ1: 7359 | JWK1: 7360 | JWL1: 7361 | JWM1: 7362 | JWN1: 7363 | JWO1: 7364 | JWP1: 7365 | JWQ1: 7366 | JWR1: 7367 | JWS1: 7368 | JWT1: 7369 | JWU1: 7370 | JWV1: 7371 | JWW1: 7372 | JWX1: 7373 | JWY1: 7374 | JWZ1: 7375 | JXA1: 7376 | JXB1: 7377 | JXC1: 7378 | JXD1: 7379 | JXE1: 7380 | JXF1: 7381 | JXG1: 7382 | JXH1: 7383 | JXI1: 7384 | JXJ1: 7385 | JXK1: 7386 | JXL1: 7387 | JXM1: 7388 | JXN1: 7389 | JXO1: 7390 | JXP1: 7391 | JXQ1: 7392 | JXR1: 7393 | JXS1: 7394 | JXT1: 7395 | JXU1: 7396 | JXV1: 7397 | JXW1: 7398 | JXX1: 7399 | JXY1: 7400 | JXZ1: 7401 | JYA1: 7402 | JYB1: 7403 | JYC1: 7404 | JYD1: 7405 | JYE1: 7406 | JYF1: 7407 | JYG1: 7408 | JYH1: 7409 | JYI1: 7410 | JYJ1: 7411 | JYK1: 7412 | JYL1: 7413 | JYM1: 7414 | JYN1: 7415 | JYO1: 7416 | JYP1: 7417 | JYQ1: 7418 | JYR1: 7419 | JYS1: 7420 | JYT1: 7421 | JYU1: 7422 | JYV1: 7423 | JYW1: 7424 | JYX1: 7425 | JYY1: 7426 | JYZ1: 7427 | JZA1: 7428 | JZB1: 7429 | JZC1: 7430 | JZD1: 7431 | JZE1: 7432 | JZF1: 7433 | JZG1: 7434 | JZH1: 7435 | JZI1: 7436 | JZJ1: 7437 | JZK1: 7438 | JZL1: 7439 | JZM1: 7440 | JZN1: 7441 | JZO1: 7442 | JZP1: 7443 | JZQ1: 7444 | JZR1: 7445 | JZS1: 7446 | JZT1: 7447 | JZU1: 7448 | JZV1: 7449 | JZW1: 7450 | JZX1: 7451 | JZY1: 7452 | JZZ1: 7453 | KAA1: 7454 | KAB1: 7455 | KAC1: 7456 | KAD1: 7457 | KAE1: 7458 | KAF1: 7459 | KAG1: 7460 | KAH1: 7461 | KAI1: 7462 | KAJ1: 7463 | KAK1: 7464 | KAL1: 7465 | KAM1: 7466 | KAN1: 7467 | KAO1: 7468 | KAP1: 7469 | KAQ1: 7470 | KAR1: 7471 | KAS1: 7472 | KAT1: 7473 | KAU1: 7474 | KAV1: 7475 | KAW1: 7476 | KAX1: 7477 | KAY1: 7478 | KAZ1: 7479 | KBA1: 7480 | KBB1: 7481 | KBC1: 7482 | KBD1: 7483 | KBE1: 7484 | KBF1: 7485 | KBG1: 7486 | KBH1: 7487 | KBI1: 7488 | KBJ1: 7489 | KBK1: 7490 | KBL1: 7491 | KBM1: 7492 | KBN1: 7493 | KBO1: 7494 | KBP1: 7495 | KBQ1: 7496 | KBR1: 7497 | KBS1: 7498 | KBT1: 7499 | KBU1: 7500 | KBV1: 7501 | KBW1: 7502 | KBX1: 7503 | KBY1: 7504 | KBZ1: 7505 | KCA1: 7506 | KCB1: 7507 | KCC1: 7508 | KCD1: 7509 | KCE1: 7510 | KCF1: 7511 | KCG1: 7512 | KCH1: 7513 | KCI1: 7514 | KCJ1: 7515 | KCK1: 7516 | KCL1: 7517 | KCM1: 7518 | KCN1: 7519 | KCO1: 7520 | KCP1: 7521 | KCQ1: 7522 | KCR1: 7523 | KCS1: 7524 | KCT1: 7525 | KCU1: 7526 | KCV1: 7527 | KCW1: 7528 | KCX1: 7529 | KCY1: 7530 | KCZ1: 7531 | KDA1: 7532 | KDB1: 7533 | KDC1: 7534 | KDD1: 7535 | KDE1: 7536 | KDF1: 7537 | KDG1: 7538 | KDH1: 7539 | KDI1: 7540 | KDJ1: 7541 | KDK1: 7542 | KDL1: 7543 | KDM1: 7544 | KDN1: 7545 | KDO1: 7546 | KDP1: 7547 | KDQ1: 7548 | KDR1: 7549 | KDS1: 7550 | KDT1: 7551 | KDU1: 7552 | KDV1: 7553 | KDW1: 7554 | KDX1: 7555 | KDY1: 7556 | KDZ1: 7557 | KEA1: 7558 | KEB1: 7559 | KEC1: 7560 | KED1: 7561 | KEE1: 7562 | KEF1: 7563 | KEG1: 7564 | KEH1: 7565 | KEI1: 7566 | KEJ1: 7567 | KEK1: 7568 | KEL1: 7569 | KEM1: 7570 | KEN1: 7571 | KEO1: 7572 | KEP1: 7573 | KEQ1: 7574 | KER1: 7575 | KES1: 7576 | KET1: 7577 | KEU1: 7578 | KEV1: 7579 | KEW1: 7580 | KEX1: 7581 | KEY1: 7582 | KEZ1: 7583 | KFA1: 7584 | KFB1: 7585 | KFC1: 7586 | KFD1: 7587 | KFE1: 7588 | KFF1: 7589 | KFG1: 7590 | KFH1: 7591 | KFI1: 7592 | KFJ1: 7593 | KFK1: 7594 | KFL1: 7595 | KFM1: 7596 | KFN1: 7597 | KFO1: 7598 | KFP1: 7599 | KFQ1: 7600 | KFR1: 7601 | KFS1: 7602 | KFT1: 7603 | KFU1: 7604 | KFV1: 7605 | KFW1: 7606 | KFX1: 7607 | KFY1: 7608 | KFZ1: 7609 | KGA1: 7610 | KGB1: 7611 | KGC1: 7612 | KGD1: 7613 | KGE1: 7614 | KGF1: 7615 | KGG1: 7616 | KGH1: 7617 | KGI1: 7618 | KGJ1: 7619 | KGK1: 7620 | KGL1: 7621 | KGM1: 7622 | KGN1: 7623 | KGO1: 7624 | KGP1: 7625 | KGQ1: 7626 | KGR1: 7627 | KGS1: 7628 | KGT1: 7629 | KGU1: 7630 | KGV1: 7631 | KGW1: 7632 | KGX1: 7633 | KGY1: 7634 | KGZ1: 7635 | KHA1: 7636 | KHB1: 7637 | KHC1: 7638 | KHD1: 7639 | KHE1: 7640 | KHF1: 7641 | KHG1: 7642 | KHH1: 7643 | KHI1: 7644 | KHJ1: 7645 | KHK1: 7646 | KHL1: 7647 | KHM1: 7648 | KHN1: 7649 | KHO1: 7650 | KHP1: 7651 | KHQ1: 7652 | KHR1: 7653 | KHS1: 7654 | KHT1: 7655 | KHU1: 7656 | KHV1: 7657 | KHW1: 7658 | KHX1: 7659 | KHY1: 7660 | KHZ1: 7661 | KIA1: 7662 | KIB1: 7663 | KIC1: 7664 | KID1: 7665 | KIE1: 7666 | KIF1: 7667 | KIG1: 7668 | KIH1: 7669 | KII1: 7670 | KIJ1: 7671 | KIK1: 7672 | KIL1: 7673 | KIM1: 7674 | KIN1: 7675 | KIO1: 7676 | KIP1: 7677 | KIQ1: 7678 | KIR1: 7679 | KIS1: 7680 | KIT1: 7681 | KIU1: 7682 | KIV1: 7683 | KIW1: 7684 | KIX1: 7685 | KIY1: 7686 | KIZ1: 7687 | KJA1: 7688 | KJB1: 7689 | KJC1: 7690 | KJD1: 7691 | KJE1: 7692 | KJF1: 7693 | KJG1: 7694 | KJH1: 7695 | KJI1: 7696 | KJJ1: 7697 | KJK1: 7698 | KJL1: 7699 | KJM1: 7700 | KJN1: 7701 | KJO1: 7702 | KJP1: 7703 | KJQ1: 7704 | KJR1: 7705 | KJS1: 7706 | KJT1: 7707 | KJU1: 7708 | KJV1: 7709 | KJW1: 7710 | KJX1: 7711 | KJY1: 7712 | KJZ1: 7713 | KKA1: 7714 | KKB1: 7715 | KKC1: 7716 | KKD1: 7717 | KKE1: 7718 | KKF1: 7719 | KKG1: 7720 | KKH1: 7721 | KKI1: 7722 | KKJ1: 7723 | KKK1: 7724 | KKL1: 7725 | KKM1: 7726 | KKN1: 7727 | KKO1: 7728 | KKP1: 7729 | KKQ1: 7730 | KKR1: 7731 | KKS1: 7732 | KKT1: 7733 | KKU1: 7734 | KKV1: 7735 | KKW1: 7736 | KKX1: 7737 | KKY1: 7738 | KKZ1: 7739 | KLA1: 7740 | KLB1: 7741 | KLC1: 7742 | KLD1: 7743 | KLE1: 7744 | KLF1: 7745 | KLG1: 7746 | KLH1: 7747 | KLI1: 7748 | KLJ1: 7749 | KLK1: 7750 | KLL1: 7751 | KLM1: 7752 | KLN1: 7753 | KLO1: 7754 | KLP1: 7755 | KLQ1: 7756 | KLR1: 7757 | KLS1: 7758 | KLT1: 7759 | KLU1: 7760 | KLV1: 7761 | KLW1: 7762 | KLX1: 7763 | KLY1: 7764 | KLZ1: 7765 | KMA1: 7766 | KMB1: 7767 | KMC1: 7768 | KMD1: 7769 | KME1: 7770 | KMF1: 7771 | KMG1: 7772 | KMH1: 7773 | KMI1: 7774 | KMJ1: 7775 | KMK1: 7776 | KML1: 7777 | KMM1: 7778 | KMN1: 7779 | KMO1: 7780 | KMP1: 7781 | KMQ1: 7782 | KMR1: 7783 | KMS1: 7784 | KMT1: 7785 | KMU1: 7786 | KMV1: 7787 | KMW1: 7788 | KMX1: 7789 | KMY1: 7790 | KMZ1: 7791 | KNA1: 7792 | KNB1: 7793 | KNC1: 7794 | KND1: 7795 | KNE1: 7796 | KNF1: 7797 | KNG1: 7798 | KNH1: 7799 | KNI1: 7800 | KNJ1: 7801 | KNK1: 7802 | KNL1: 7803 | KNM1: 7804 | KNN1: 7805 | KNO1: 7806 | KNP1: 7807 | KNQ1: 7808 | KNR1: 7809 | KNS1: 7810 | KNT1: 7811 | KNU1: 7812 | KNV1: 7813 | KNW1: 7814 | KNX1: 7815 | KNY1: 7816 | KNZ1: 7817 | KOA1: 7818 | KOB1: 7819 | KOC1: 7820 | KOD1: 7821 | KOE1: 7822 | KOF1: 7823 | KOG1: 7824 | KOH1: 7825 | KOI1: 7826 | KOJ1: 7827 | KOK1: 7828 | KOL1: 7829 | KOM1: 7830 | KON1: 7831 | KOO1: 7832 | KOP1: 7833 | KOQ1: 7834 | KOR1: 7835 | KOS1: 7836 | KOT1: 7837 | KOU1: 7838 | KOV1: 7839 | KOW1: 7840 | KOX1: 7841 | KOY1: 7842 | KOZ1: 7843 | KPA1: 7844 | KPB1: 7845 | KPC1: 7846 | KPD1: 7847 | KPE1: 7848 | KPF1: 7849 | KPG1: 7850 | KPH1: 7851 | KPI1: 7852 | KPJ1: 7853 | KPK1: 7854 | KPL1: 7855 | KPM1: 7856 | KPN1: 7857 | KPO1: 7858 | KPP1: 7859 | KPQ1: 7860 | KPR1: 7861 | KPS1: 7862 | KPT1: 7863 | KPU1: 7864 | KPV1: 7865 | KPW1: 7866 | KPX1: 7867 | KPY1: 7868 | KPZ1: 7869 | KQA1: 7870 | KQB1: 7871 | KQC1: 7872 | KQD1: 7873 | KQE1: 7874 | KQF1: 7875 | KQG1: 7876 | KQH1: 7877 | KQI1: 7878 | KQJ1: 7879 | KQK1: 7880 | KQL1: 7881 | KQM1: 7882 | KQN1: 7883 | KQO1: 7884 | KQP1: 7885 | KQQ1: 7886 | KQR1: 7887 | KQS1: 7888 | KQT1: 7889 | KQU1: 7890 | KQV1: 7891 | KQW1: 7892 | KQX1: 7893 | KQY1: 7894 | KQZ1: 7895 | KRA1: 7896 | KRB1: 7897 | KRC1: 7898 | KRD1: 7899 | KRE1: 7900 | KRF1: 7901 | KRG1: 7902 | KRH1: 7903 | KRI1: 7904 | KRJ1: 7905 | KRK1: 7906 | KRL1: 7907 | KRM1: 7908 | KRN1: 7909 | KRO1: 7910 | KRP1: 7911 | KRQ1: 7912 | KRR1: 7913 | KRS1: 7914 | KRT1: 7915 | KRU1: 7916 | KRV1: 7917 | KRW1: 7918 | KRX1: 7919 | KRY1: 7920 | KRZ1: 7921 | KSA1: 7922 | KSB1: 7923 | KSC1: 7924 | KSD1: 7925 | KSE1: 7926 | KSF1: 7927 | KSG1: 7928 | KSH1: 7929 | KSI1: 7930 | KSJ1: 7931 | KSK1: 7932 | KSL1: 7933 | KSM1: 7934 | KSN1: 7935 | KSO1: 7936 | KSP1: 7937 | KSQ1: 7938 | KSR1: 7939 | KSS1: 7940 | KST1: 7941 | KSU1: 7942 | KSV1: 7943 | KSW1: 7944 | KSX1: 7945 | KSY1: 7946 | KSZ1: 7947 | KTA1: 7948 | KTB1: 7949 | KTC1: 7950 | KTD1: 7951 | KTE1: 7952 | KTF1: 7953 | KTG1: 7954 | KTH1: 7955 | KTI1: 7956 | KTJ1: 7957 | KTK1: 7958 | KTL1: 7959 | KTM1: 7960 | KTN1: 7961 | KTO1: 7962 | KTP1: 7963 | KTQ1: 7964 | KTR1: 7965 | KTS1: 7966 | KTT1: 7967 | KTU1: 7968 | KTV1: 7969 | KTW1: 7970 | KTX1: 7971 | KTY1: 7972 | KTZ1: 7973 | KUA1: 7974 | KUB1: 7975 | KUC1: 7976 | KUD1: 7977 | KUE1: 7978 | KUF1: 7979 | KUG1: 7980 | KUH1: 7981 | KUI1: 7982 | KUJ1: 7983 | KUK1: 7984 | KUL1: 7985 | KUM1: 7986 | KUN1: 7987 | KUO1: 7988 | KUP1: 7989 | KUQ1: 7990 | KUR1: 7991 | KUS1: 7992 | KUT1: 7993 | KUU1: 7994 | KUV1: 7995 | KUW1: 7996 | KUX1: 7997 | KUY1: 7998 | KUZ1: 7999 | KVA1: 8000 | KVB1: 8001 | KVC1: 8002 | KVD1: 8003 | KVE1: 8004 | KVF1: 8005 | KVG1: 8006 | KVH1: 8007 | KVI1: 8008 | KVJ1: 8009 | KVK1: 8010 | KVL1: 8011 | KVM1: 8012 | KVN1: 8013 | KVO1: 8014 | KVP1: 8015 | KVQ1: 8016 | KVR1: 8017 | KVS1: 8018 | KVT1: 8019 | KVU1: 8020 | KVV1: 8021 | KVW1: 8022 | KVX1: 8023 | KVY1: 8024 | KVZ1: 8025 | KWA1: 8026 | KWB1: 8027 | KWC1: 8028 | KWD1: 8029 | KWE1: 8030 | KWF1: 8031 | KWG1: 8032 | KWH1: 8033 | KWI1: 8034 | KWJ1: 8035 | KWK1: 8036 | KWL1: 8037 | KWM1: 8038 | KWN1: 8039 | KWO1: 8040 | KWP1: 8041 | KWQ1: 8042 | KWR1: 8043 | KWS1: 8044 | KWT1: 8045 | KWU1: 8046 | KWV1: 8047 | KWW1: 8048 | KWX1: 8049 | KWY1: 8050 | KWZ1: 8051 | KXA1: 8052 | KXB1: 8053 | KXC1: 8054 | KXD1: 8055 | KXE1: 8056 | KXF1: 8057 | KXG1: 8058 | KXH1: 8059 | KXI1: 8060 | KXJ1: 8061 | KXK1: 8062 | KXL1: 8063 | KXM1: 8064 | KXN1: 8065 | KXO1: 8066 | KXP1: 8067 | KXQ1: 8068 | KXR1: 8069 | KXS1: 8070 | KXT1: 8071 | KXU1: 8072 | KXV1: 8073 | KXW1: 8074 | KXX1: 8075 | KXY1: 8076 | KXZ1: 8077 | KYA1: 8078 | KYB1: 8079 | KYC1: 8080 | KYD1: 8081 | KYE1: 8082 | KYF1: 8083 | KYG1: 8084 | KYH1: 8085 | KYI1: 8086 | KYJ1: 8087 | KYK1: 8088 | KYL1: 8089 | KYM1: 8090 | KYN1: 8091 | KYO1: 8092 | KYP1: 8093 | KYQ1: 8094 | KYR1: 8095 | KYS1: 8096 | KYT1: 8097 | KYU1: 8098 | KYV1: 8099 | KYW1: 8100 | KYX1: 8101 | KYY1: 8102 | KYZ1: 8103 | KZA1: 8104 | KZB1: 8105 | KZC1: 8106 | KZD1: 8107 | KZE1: 8108 | KZF1: 8109 | KZG1: 8110 | KZH1: 8111 | KZI1: 8112 | KZJ1: 8113 | KZK1: 8114 | KZL1: 8115 | KZM1: 8116 | KZN1: 8117 | KZO1: 8118 | KZP1: 8119 | KZQ1: 8120 | KZR1: 8121 | KZS1: 8122 | KZT1: 8123 | KZU1: 8124 | KZV1: 8125 | KZW1: 8126 | KZX1: 8127 | KZY1: 8128 | KZZ1: 8129 | LAA1: 8130 | LAB1: 8131 | LAC1: 8132 | LAD1: 8133 | LAE1: 8134 | LAF1: 8135 | LAG1: 8136 | LAH1: 8137 | LAI1: 8138 | LAJ1: 8139 | LAK1: 8140 | LAL1: 8141 | LAM1: 8142 | LAN1: 8143 | LAO1: 8144 | LAP1: 8145 | LAQ1: 8146 | LAR1: 8147 | LAS1: 8148 | LAT1: 8149 | LAU1: 8150 | LAV1: 8151 | LAW1: 8152 | LAX1: 8153 | LAY1: 8154 | LAZ1: 8155 | LBA1: 8156 | LBB1: 8157 | LBC1: 8158 | LBD1: 8159 | LBE1: 8160 | LBF1: 8161 | LBG1: 8162 | LBH1: 8163 | LBI1: 8164 | LBJ1: 8165 | LBK1: 8166 | LBL1: 8167 | LBM1: 8168 | LBN1: 8169 | LBO1: 8170 | LBP1: 8171 | LBQ1: 8172 | LBR1: 8173 | LBS1: 8174 | LBT1: 8175 | LBU1: 8176 | LBV1: 8177 | LBW1: 8178 | LBX1: 8179 | LBY1: 8180 | LBZ1: 8181 | LCA1: 8182 | LCB1: 8183 | LCC1: 8184 | LCD1: 8185 | LCE1: 8186 | LCF1: 8187 | LCG1: 8188 | LCH1: 8189 | LCI1: 8190 | LCJ1: 8191 | LCK1: 8192 | LCL1: 8193 | LCM1: 8194 | LCN1: 8195 | LCO1: 8196 | LCP1: 8197 | LCQ1: 8198 | LCR1: 8199 | LCS1: 8200 | LCT1: 8201 | LCU1: 8202 | LCV1: 8203 | LCW1: 8204 | LCX1: 8205 | LCY1: 8206 | LCZ1: 8207 | LDA1: 8208 | LDB1: 8209 | LDC1: 8210 | LDD1: 8211 | LDE1: 8212 | LDF1: 8213 | LDG1: 8214 | LDH1: 8215 | LDI1: 8216 | LDJ1: 8217 | LDK1: 8218 | LDL1: 8219 | LDM1: 8220 | LDN1: 8221 | LDO1: 8222 | LDP1: 8223 | LDQ1: 8224 | LDR1: 8225 | LDS1: 8226 | LDT1: 8227 | LDU1: 8228 | LDV1: 8229 | LDW1: 8230 | LDX1: 8231 | LDY1: 8232 | LDZ1: 8233 | LEA1: 8234 | LEB1: 8235 | LEC1: 8236 | LED1: 8237 | LEE1: 8238 | LEF1: 8239 | LEG1: 8240 | LEH1: 8241 | LEI1: 8242 | LEJ1: 8243 | LEK1: 8244 | LEL1: 8245 | LEM1: 8246 | LEN1: 8247 | LEO1: 8248 | LEP1: 8249 | LEQ1: 8250 | LER1: 8251 | LES1: 8252 | LET1: 8253 | LEU1: 8254 | LEV1: 8255 | LEW1: 8256 | LEX1: 8257 | LEY1: 8258 | LEZ1: 8259 | LFA1: 8260 | LFB1: 8261 | LFC1: 8262 | LFD1: 8263 | LFE1: 8264 | LFF1: 8265 | LFG1: 8266 | LFH1: 8267 | LFI1: 8268 | LFJ1: 8269 | LFK1: 8270 | LFL1: 8271 | LFM1: 8272 | LFN1: 8273 | LFO1: 8274 | LFP1: 8275 | LFQ1: 8276 | LFR1: 8277 | LFS1: 8278 | LFT1: 8279 | LFU1: 8280 | LFV1: 8281 | LFW1: 8282 | LFX1: 8283 | LFY1: 8284 | LFZ1: 8285 | LGA1: 8286 | LGB1: 8287 | LGC1: 8288 | LGD1: 8289 | LGE1: 8290 | LGF1: 8291 | LGG1: 8292 | LGH1: 8293 | LGI1: 8294 | LGJ1: 8295 | LGK1: 8296 | LGL1: 8297 | LGM1: 8298 | LGN1: 8299 | LGO1: 8300 | LGP1: 8301 | LGQ1: 8302 | LGR1: 8303 | LGS1: 8304 | LGT1: 8305 | LGU1: 8306 | LGV1: 8307 | LGW1: 8308 | LGX1: 8309 | LGY1: 8310 | LGZ1: 8311 | LHA1: 8312 | LHB1: 8313 | LHC1: 8314 | LHD1: 8315 | LHE1: 8316 | LHF1: 8317 | LHG1: 8318 | LHH1: 8319 | LHI1: 8320 | LHJ1: 8321 | LHK1: 8322 | LHL1: 8323 | LHM1: 8324 | LHN1: 8325 | LHO1: 8326 | LHP1: 8327 | LHQ1: 8328 | LHR1: 8329 | LHS1: 8330 | LHT1: 8331 | LHU1: 8332 | LHV1: 8333 | LHW1: 8334 | LHX1: 8335 | LHY1: 8336 | LHZ1: 8337 | LIA1: 8338 | LIB1: 8339 | LIC1: 8340 | LID1: 8341 | LIE1: 8342 | LIF1: 8343 | LIG1: 8344 | LIH1: 8345 | LII1: 8346 | LIJ1: 8347 | LIK1: 8348 | LIL1: 8349 | LIM1: 8350 | LIN1: 8351 | LIO1: 8352 | LIP1: 8353 | LIQ1: 8354 | LIR1: 8355 | LIS1: 8356 | LIT1: 8357 | LIU1: 8358 | LIV1: 8359 | LIW1: 8360 | LIX1: 8361 | LIY1: 8362 | LIZ1: 8363 | LJA1: 8364 | LJB1: 8365 | LJC1: 8366 | LJD1: 8367 | LJE1: 8368 | LJF1: 8369 | LJG1: 8370 | LJH1: 8371 | LJI1: 8372 | LJJ1: 8373 | LJK1: 8374 | LJL1: 8375 | LJM1: 8376 | LJN1: 8377 | LJO1: 8378 | LJP1: 8379 | LJQ1: 8380 | LJR1: 8381 | LJS1: 8382 | LJT1: 8383 | LJU1: 8384 | LJV1: 8385 | LJW1: 8386 | LJX1: 8387 | LJY1: 8388 | LJZ1: 8389 | LKA1: 8390 | LKB1: 8391 | LKC1: 8392 | LKD1: 8393 | LKE1: 8394 | LKF1: 8395 | LKG1: 8396 | LKH1: 8397 | LKI1: 8398 | LKJ1: 8399 | LKK1: 8400 | LKL1: 8401 | LKM1: 8402 | LKN1: 8403 | LKO1: 8404 | LKP1: 8405 | LKQ1: 8406 | LKR1: 8407 | LKS1: 8408 | LKT1: 8409 | LKU1: 8410 | LKV1: 8411 | LKW1: 8412 | LKX1: 8413 | LKY1: 8414 | LKZ1: 8415 | LLA1: 8416 | LLB1: 8417 | LLC1: 8418 | LLD1: 8419 | LLE1: 8420 | LLF1: 8421 | LLG1: 8422 | LLH1: 8423 | LLI1: 8424 | LLJ1: 8425 | LLK1: 8426 | LLL1: 8427 | LLM1: 8428 | LLN1: 8429 | LLO1: 8430 | LLP1: 8431 | LLQ1: 8432 | LLR1: 8433 | LLS1: 8434 | LLT1: 8435 | LLU1: 8436 | LLV1: 8437 | LLW1: 8438 | LLX1: 8439 | LLY1: 8440 | LLZ1: 8441 | LMA1: 8442 | LMB1: 8443 | LMC1: 8444 | LMD1: 8445 | LME1: 8446 | LMF1: 8447 | LMG1: 8448 | LMH1: 8449 | LMI1: 8450 | LMJ1: 8451 | LMK1: 8452 | LML1: 8453 | LMM1: 8454 | LMN1: 8455 | LMO1: 8456 | LMP1: 8457 | LMQ1: 8458 | LMR1: 8459 | LMS1: 8460 | LMT1: 8461 | LMU1: 8462 | LMV1: 8463 | LMW1: 8464 | LMX1: 8465 | LMY1: 8466 | LMZ1: 8467 | LNA1: 8468 | LNB1: 8469 | LNC1: 8470 | LND1: 8471 | LNE1: 8472 | LNF1: 8473 | LNG1: 8474 | LNH1: 8475 | LNI1: 8476 | LNJ1: 8477 | LNK1: 8478 | LNL1: 8479 | LNM1: 8480 | LNN1: 8481 | LNO1: 8482 | LNP1: 8483 | LNQ1: 8484 | LNR1: 8485 | LNS1: 8486 | LNT1: 8487 | LNU1: 8488 | LNV1: 8489 | LNW1: 8490 | LNX1: 8491 | LNY1: 8492 | LNZ1: 8493 | LOA1: 8494 | LOB1: 8495 | LOC1: 8496 | LOD1: 8497 | LOE1: 8498 | LOF1: 8499 | LOG1: 8500 | LOH1: 8501 | LOI1: 8502 | LOJ1: 8503 | LOK1: 8504 | LOL1: 8505 | LOM1: 8506 | LON1: 8507 | LOO1: 8508 | LOP1: 8509 | LOQ1: 8510 | LOR1: 8511 | LOS1: 8512 | LOT1: 8513 | LOU1: 8514 | LOV1: 8515 | LOW1: 8516 | LOX1: 8517 | LOY1: 8518 | LOZ1: 8519 | LPA1: 8520 | LPB1: 8521 | LPC1: 8522 | LPD1: 8523 | LPE1: 8524 | LPF1: 8525 | LPG1: 8526 | LPH1: 8527 | LPI1: 8528 | LPJ1: 8529 | LPK1: 8530 | LPL1: 8531 | LPM1: 8532 | LPN1: 8533 | LPO1: 8534 | LPP1: 8535 | LPQ1: 8536 | LPR1: 8537 | LPS1: 8538 | LPT1: 8539 | LPU1: 8540 | LPV1: 8541 | LPW1: 8542 | LPX1: 8543 | LPY1: 8544 | LPZ1: 8545 | LQA1: 8546 | LQB1: 8547 | LQC1: 8548 | LQD1: 8549 | LQE1: 8550 | LQF1: 8551 | LQG1: 8552 | LQH1: 8553 | LQI1: 8554 | LQJ1: 8555 | LQK1: 8556 | LQL1: 8557 | LQM1: 8558 | LQN1: 8559 | LQO1: 8560 | LQP1: 8561 | LQQ1: 8562 | LQR1: 8563 | LQS1: 8564 | LQT1: 8565 | LQU1: 8566 | LQV1: 8567 | LQW1: 8568 | LQX1: 8569 | LQY1: 8570 | LQZ1: 8571 | LRA1: 8572 | LRB1: 8573 | LRC1: 8574 | LRD1: 8575 | LRE1: 8576 | LRF1: 8577 | LRG1: 8578 | LRH1: 8579 | LRI1: 8580 | LRJ1: 8581 | LRK1: 8582 | LRL1: 8583 | LRM1: 8584 | LRN1: 8585 | LRO1: 8586 | LRP1: 8587 | LRQ1: 8588 | LRR1: 8589 | LRS1: 8590 | LRT1: 8591 | LRU1: 8592 | LRV1: 8593 | LRW1: 8594 | LRX1: 8595 | LRY1: 8596 | LRZ1: 8597 | LSA1: 8598 | LSB1: 8599 | LSC1: 8600 | LSD1: 8601 | LSE1: 8602 | LSF1: 8603 | LSG1: 8604 | LSH1: 8605 | LSI1: 8606 | LSJ1: 8607 | LSK1: 8608 | LSL1: 8609 | LSM1: 8610 | LSN1: 8611 | LSO1: 8612 | LSP1: 8613 | LSQ1: 8614 | LSR1: 8615 | LSS1: 8616 | LST1: 8617 | LSU1: 8618 | LSV1: 8619 | LSW1: 8620 | LSX1: 8621 | LSY1: 8622 | LSZ1: 8623 | LTA1: 8624 | LTB1: 8625 | LTC1: 8626 | LTD1: 8627 | LTE1: 8628 | LTF1: 8629 | LTG1: 8630 | LTH1: 8631 | LTI1: 8632 | LTJ1: 8633 | LTK1: 8634 | LTL1: 8635 | LTM1: 8636 | LTN1: 8637 | LTO1: 8638 | LTP1: 8639 | LTQ1: 8640 | LTR1: 8641 | LTS1: 8642 | LTT1: 8643 | LTU1: 8644 | LTV1: 8645 | LTW1: 8646 | LTX1: 8647 | LTY1: 8648 | LTZ1: 8649 | LUA1: 8650 | LUB1: 8651 | LUC1: 8652 | LUD1: 8653 | LUE1: 8654 | LUF1: 8655 | LUG1: 8656 | LUH1: 8657 | LUI1: 8658 | LUJ1: 8659 | LUK1: 8660 | LUL1: 8661 | LUM1: 8662 | LUN1: 8663 | LUO1: 8664 | LUP1: 8665 | LUQ1: 8666 | LUR1: 8667 | LUS1: 8668 | LUT1: 8669 | LUU1: 8670 | LUV1: 8671 | LUW1: 8672 | LUX1: 8673 | LUY1: 8674 | LUZ1: 8675 | LVA1: 8676 | LVB1: 8677 | LVC1: 8678 | LVD1: 8679 | LVE1: 8680 | LVF1: 8681 | LVG1: 8682 | LVH1: 8683 | LVI1: 8684 | LVJ1: 8685 | LVK1: 8686 | LVL1: 8687 | LVM1: 8688 | LVN1: 8689 | LVO1: 8690 | LVP1: 8691 | LVQ1: 8692 | LVR1: 8693 | LVS1: 8694 | LVT1: 8695 | LVU1: 8696 | LVV1: 8697 | LVW1: 8698 | LVX1: 8699 | LVY1: 8700 | LVZ1: 8701 | LWA1: 8702 | LWB1: 8703 | LWC1: 8704 | LWD1: 8705 | LWE1: 8706 | LWF1: 8707 | LWG1: 8708 | LWH1: 8709 | LWI1: 8710 | LWJ1: 8711 | LWK1: 8712 | LWL1: 8713 | LWM1: 8714 | LWN1: 8715 | LWO1: 8716 | LWP1: 8717 | LWQ1: 8718 | LWR1: 8719 | LWS1: 8720 | LWT1: 8721 | LWU1: 8722 | LWV1: 8723 | LWW1: 8724 | LWX1: 8725 | LWY1: 8726 | LWZ1: 8727 | LXA1: 8728 | LXB1: 8729 | LXC1: 8730 | LXD1: 8731 | LXE1: 8732 | LXF1: 8733 | LXG1: 8734 | LXH1: 8735 | LXI1: 8736 | LXJ1: 8737 | LXK1: 8738 | LXL1: 8739 | LXM1: 8740 | LXN1: 8741 | LXO1: 8742 | LXP1: 8743 | LXQ1: 8744 | LXR1: 8745 | LXS1: 8746 | LXT1: 8747 | LXU1: 8748 | LXV1: 8749 | LXW1: 8750 | LXX1: 8751 | LXY1: 8752 | LXZ1: 8753 | LYA1: 8754 | LYB1: 8755 | LYC1: 8756 | LYD1: 8757 | LYE1: 8758 | LYF1: 8759
D2: New Day | F2: 24 | I2: =MOD(I1,$F$2)=0 -> TRUE | J2: =MOD(J1,$F$2)=0 -> FALSE | K2: FALSE | L2: FALSE | M2: FALSE | N2: FALSE | O2: FALSE | P2: FALSE | Q2: FALSE | R2: FALSE | S2: FALSE | T2: FALSE | U2: FALSE | V2: FALSE | W2: FALSE | X2: FALSE | Y2: FALSE | Z2: FALSE | AA2: FALSE | AB2: FALSE | AC2: FALSE | AD2: FALSE | AE2: FALSE | AF2: FALSE | AG2: TRUE | AH2: FALSE | AI2: FALSE | AJ2: FALSE | AK2: FALSE | AL2: FALSE | AM2: FALSE | AN2: FALSE | AO2: FALSE | AP2: FALSE | AQ2: FALSE | AR2: FALSE | AS2: FALSE | AT2: FALSE | AU2: FALSE | AV2: FALSE | AW2: FALSE | AX2: FALSE | AY2: FALSE | AZ2: FALSE | BA2: FALSE | BB2: FALSE | BC2: FALSE | BD2: FALSE | BE2: TRUE | BF2: FALSE | BG2: FALSE | BH2: FALSE | BI2: FALSE | BJ2: FALSE | BK2: FALSE | BL2: FALSE | BM2: FALSE | BN2: FALSE | BO2: FALSE | BP2: FALSE | BQ2: FALSE | BR2: FALSE | BS2: FALSE | BT2: FALSE | BU2: FALSE | BV2: =MOD(BV1,$F$2)=0 -> FALSE | BW2: FALSE | BX2: FALSE | BY2: FALSE | BZ2: FALSE | CA2: FALSE | CB2: FALSE | CC2: TRUE | CD2: FALSE | CE2: FALSE | CF2: FALSE | CG2: FALSE | CH2: FALSE | CI2: FALSE | CJ2: FALSE | CK2: FALSE | CL2: FALSE | CM2: FALSE | CN2: FALSE | CO2: FALSE | CP2: FALSE | CQ2: FALSE | CR2: FALSE | CS2: FALSE | CT2: FALSE | CU2: FALSE | CV2: FALSE | CW2: FALSE | CX2: FALSE | CY2: FALSE | CZ2: FALSE | DA2: TRUE | DB2: FALSE | DC2: FALSE | DD2: FALSE | DE2: FALSE | DF2: FALSE | DG2: FALSE | DH2: FALSE | DI2: FALSE | DJ2: FALSE | DK2: FALSE | DL2: FALSE | DM2: FALSE | DN2: FALSE | DO2: FALSE | DP2: FALSE | DQ2: FALSE | DR2: FALSE | DS2: FALSE | DT2: FALSE | DU2: FALSE | DV2: FALSE | DW2: FALSE | DX2: FALSE | DY2: TRUE | DZ2: FALSE | EA2: FALSE | EB2: FALSE | EC2: FALSE | ED2: FALSE | EE2: FALSE | EF2: FALSE | EG2: FALSE | EH2: =MOD(EH1,$F$2)=0 -> FALSE | EI2: FALSE | EJ2: FALSE | EK2: FALSE | EL2: FALSE | EM2: FALSE | EN2: FALSE | EO2: FALSE | EP2: FALSE | EQ2: FALSE | ER2: FALSE | ES2: FALSE | ET2: FALSE | EU2: FALSE | EV2: FALSE | EW2: TRUE | EX2: FALSE | EY2: FALSE | EZ2: FALSE | FA2: FALSE | FB2: FALSE | FC2: FALSE | FD2: FALSE | FE2: FALSE | FF2: FALSE | FG2: FALSE | FH2: FALSE | FI2: FALSE | FJ2: FALSE | FK2: FALSE | FL2: FALSE | FM2: FALSE | FN2: FALSE | FO2: FALSE | FP2: FALSE | FQ2: FALSE | FR2: FALSE | FS2: FALSE | FT2: FALSE | FU2: TRUE | FV2: FALSE | FW2: FALSE | FX2: FALSE | FY2: FALSE | FZ2: FALSE | GA2: FALSE | GB2: FALSE | GC2: FALSE | GD2: FALSE | GE2: FALSE | GF2: FALSE | GG2: FALSE | GH2: FALSE | GI2: FALSE | GJ2: FALSE | GK2: FALSE | GL2: FALSE | GM2: FALSE | GN2: FALSE | GO2: FALSE | GP2: FALSE | GQ2: FALSE | GR2: FALSE | GS2: TRUE | GT2: =MOD(GT1,$F$2)=0 -> FALSE | GU2: FALSE | GV2: FALSE | GW2: FALSE | GX2: FALSE | GY2: FALSE | GZ2: FALSE | HA2: FALSE | HB2: FALSE | HC2: FALSE | HD2: FALSE | HE2: FALSE | HF2: FALSE | HG2: FALSE | HH2: FALSE | HI2: FALSE | HJ2: FALSE | HK2: FALSE | HL2: FALSE | HM2: FALSE | HN2: FALSE | HO2: FALSE | HP2: FALSE | HQ2: TRUE | HR2: FALSE | HS2: FALSE | HT2: FALSE | HU2: FALSE | HV2: FALSE | HW2: FALSE | HX2: FALSE | HY2: FALSE | HZ2: FALSE | IA2: FALSE | IB2: FALSE | IC2: FALSE | ID2: FALSE | IE2: FALSE | IF2: FALSE | IG2: FALSE | IH2: FALSE | II2: FALSE | IJ2: FALSE | IK2: FALSE | IL2: FALSE | IM2: FALSE | IN2: FALSE | IO2: TRUE | IP2: FALSE | IQ2: FALSE | IR2: FALSE | IS2: FALSE | IT2: FALSE | IU2: FALSE | IV2: FALSE | IW2: FALSE | IX2: FALSE | IY2: FALSE | IZ2: FALSE | JA2: FALSE | JB2: FALSE | JC2: FALSE | JD2: FALSE | JE2: FALSE | JF2: =MOD(JF1,$F$2)=0 -> FALSE | JG2: FALSE | JH2: FALSE | JI2: FALSE | JJ2: FALSE | JK2: FALSE | JL2: FALSE | JM2: TRUE | JN2: FALSE | JO2: FALSE | JP2: FALSE | JQ2: FALSE | JR2: FALSE | JS2: FALSE | JT2: FALSE | JU2: FALSE | JV2: FALSE | JW2: FALSE | JX2: FALSE | JY2: FALSE | JZ2: FALSE | KA2: FALSE | KB2: FALSE | KC2: FALSE | KD2: FALSE | KE2: FALSE | KF2: FALSE | KG2: FALSE | KH2: FALSE | KI2: FALSE | KJ2: FALSE | KK2: TRUE | KL2: FALSE | KM2: FALSE | KN2: FALSE | KO2: FALSE | KP2: FALSE | KQ2: FALSE | KR2: FALSE | KS2: FALSE | KT2: FALSE | KU2: FALSE | KV2: FALSE | KW2: FALSE | KX2: FALSE | KY2: FALSE | KZ2: FALSE | LA2: FALSE | LB2: FALSE | LC2: FALSE | LD2: FALSE | LE2: FALSE | LF2: FALSE | LG2: FALSE | LH2: FALSE | LI2: TRUE | LJ2: FALSE | LK2: FALSE | LL2: FALSE | LM2: FALSE | LN2: FALSE | LO2: FALSE | LP2: FALSE | LQ2: FALSE | LR2: =MOD(LR1,$F$2)=0 -> FALSE | LS2: FALSE | LT2: FALSE | LU2: FALSE | LV2: FALSE | LW2: FALSE | LX2: FALSE | LY2: FALSE | LZ2: FALSE | MA2: FALSE | MB2: FALSE | MC2: FALSE | MD2: FALSE | ME2: FALSE | MF2: FALSE | MG2: TRUE | MH2: FALSE | MI2: FALSE | MJ2: FALSE | MK2: FALSE | ML2: FALSE | MM2: FALSE | MN2: FALSE | MO2: FALSE | MP2: FALSE | MQ2: FALSE | MR2: FALSE | MS2: FALSE | MT2: FALSE | MU2: FALSE | MV2: FALSE | MW2: FALSE | MX2: FALSE | MY2: FALSE | MZ2: FALSE | NA2: FALSE | NB2: FALSE | NC2: FALSE | ND2: FALSE | NE2: TRUE | NF2: FALSE | NG2: FALSE | NH2: FALSE | NI2: FALSE | NJ2: FALSE | NK2: FALSE | NL2: FALSE | NM2: FALSE | NN2: FALSE | NO2: FALSE | NP2: FALSE | NQ2: FALSE | NR2: FALSE | NS2: FALSE | NT2: FALSE | NU2: FALSE | NV2: FALSE | NW2: FALSE | NX2: FALSE | NY2: FALSE | NZ2: FALSE | OA2: FALSE | OB2: FALSE | OC2: TRUE | OD2: =MOD(OD1,$F$2)=0 -> FALSE | OE2: FALSE | OF2: FALSE | OG2: FALSE | OH2: FALSE | OI2: FALSE | OJ2: FALSE | OK2: FALSE | OL2: FALSE | OM2: FALSE | ON2: FALSE | OO2: FALSE | OP2: FALSE | OQ2: FALSE | OR2: FALSE | OS2: FALSE | OT2: FALSE | OU2: FALSE | OV2: FALSE | OW2: FALSE | OX2: FALSE | OY2: FALSE | OZ2: FALSE | PA2: TRUE | PB2: FALSE | PC2: FALSE | PD2: FALSE | PE2: FALSE | PF2: FALSE | PG2: FALSE | PH2: FALSE | PI2: FALSE | PJ2: FALSE | PK2: FALSE | PL2: FALSE | PM2: FALSE | PN2: FALSE | PO2: FALSE | PP2: FALSE | PQ2: FALSE | PR2: FALSE | PS2: FALSE | PT2: FALSE | PU2: FALSE | PV2: FALSE | PW2: FALSE | PX2: FALSE | PY2: TRUE | PZ2: FALSE | QA2: FALSE | QB2: FALSE | QC2: FALSE | QD2: FALSE | QE2: FALSE | QF2: FALSE | QG2: FALSE | QH2: FALSE | QI2: FALSE | QJ2: FALSE | QK2: FALSE | QL2: FALSE | QM2: FALSE | QN2: FALSE | QO2: FALSE | QP2: =MOD(QP1,$F$2)=0 -> FALSE | QQ2: FALSE | QR2: FALSE | QS2: FALSE | QT2: FALSE | QU2: FALSE | QV2: FALSE | QW2: TRUE | QX2: FALSE | QY2: FALSE | QZ2: FALSE | RA2: FALSE | RB2: FALSE | RC2: FALSE | RD2: FALSE | RE2: FALSE | RF2: FALSE | RG2: FALSE | RH2: FALSE | RI2: FALSE | RJ2: FALSE | RK2: FALSE | RL2: FALSE | RM2: FALSE | RN2: FALSE | RO2: FALSE | RP2: FALSE | RQ2: FALSE | RR2: FALSE | RS2: FALSE | RT2: FALSE | RU2: TRUE | RV2: FALSE | RW2: FALSE | RX2: FALSE | RY2: FALSE | RZ2: FALSE | SA2: FALSE | SB2: FALSE | SC2: FALSE | SD2: FALSE | SE2: FALSE | SF2: FALSE | SG2: FALSE | SH2: FALSE | SI2: FALSE | SJ2: FALSE | SK2: FALSE | SL2: FALSE | SM2: FALSE | SN2: FALSE | SO2: FALSE | SP2: FALSE | SQ2: FALSE | SR2: FALSE | SS2: TRUE | ST2: FALSE | SU2: FALSE | SV2: FALSE | SW2: FALSE | SX2: FALSE | SY2: FALSE | SZ2: FALSE | TA2: FALSE | TB2: =MOD(TB1,$F$2)=0 -> FALSE | TC2: FALSE | TD2: FALSE | TE2: FALSE | TF2: FALSE | TG2: FALSE | TH2: FALSE | TI2: FALSE | TJ2: FALSE | TK2: FALSE | TL2: FALSE | TM2: FALSE | TN2: FALSE | TO2: FALSE | TP2: FALSE | TQ2: TRUE | TR2: FALSE | TS2: FALSE | TT2: FALSE | TU2: FALSE | TV2: FALSE | TW2: FALSE | TX2: FALSE | TY2: FALSE | TZ2: FALSE | UA2: FALSE | UB2: FALSE | UC2: FALSE | UD2: FALSE | UE2: FALSE | UF2: FALSE | UG2: FALSE | UH2: FALSE | UI2: FALSE | UJ2: FALSE | UK2: FALSE | UL2: FALSE | UM2: FALSE | UN2: FALSE | UO2: TRUE | UP2: FALSE | UQ2: FALSE | UR2: FALSE | US2: FALSE | UT2: FALSE | UU2: FALSE | UV2: FALSE | UW2: FALSE | UX2: FALSE | UY2: FALSE | UZ2: FALSE | VA2: FALSE | VB2: FALSE | VC2: FALSE | VD2: FALSE | VE2: FALSE | VF2: FALSE | VG2: FALSE | VH2: FALSE | VI2: FALSE | VJ2: FALSE | VK2: FALSE | VL2: FALSE | VM2: TRUE | VN2: =MOD(VN1,$F$2)=0 -> FALSE | VO2: FALSE | VP2: FALSE | VQ2: FALSE | VR2: FALSE | VS2: FALSE | VT2: FALSE | VU2: FALSE | VV2: FALSE | VW2: FALSE | VX2: FALSE | VY2: FALSE | VZ2: FALSE | WA2: FALSE | WB2: FALSE | WC2: FALSE | WD2: FALSE | WE2: FALSE | WF2: FALSE | WG2: FALSE | WH2: FALSE | WI2: FALSE | WJ2: FALSE | WK2: TRUE | WL2: FALSE | WM2: FALSE | WN2: FALSE | WO2: FALSE | WP2: FALSE | WQ2: FALSE | WR2: FALSE | WS2: FALSE | WT2: FALSE | WU2: FALSE | WV2: FALSE | WW2: FALSE | WX2: FALSE | WY2: FALSE | WZ2: FALSE | XA2: FALSE | XB2: FALSE | XC2: FALSE | XD2: FALSE | XE2: FALSE | XF2: FALSE | XG2: FALSE | XH2: FALSE | XI2: TRUE | XJ2: FALSE | XK2: FALSE | XL2: FALSE | XM2: FALSE | XN2: FALSE | XO2: FALSE | XP2: FALSE | XQ2: FALSE | XR2: FALSE | XS2: FALSE | XT2: FALSE | XU2: FALSE | XV2: FALSE | XW2: FALSE | XX2: FALSE | XY2: FALSE | XZ2: =MOD(XZ1,$F$2)=0 -> FALSE | YA2: FALSE | YB2: FALSE | YC2: FALSE | YD2: FALSE | YE2: FALSE | YF2: FALSE | YG2: TRUE | YH2: FALSE | YI2: FALSE | YJ2: FALSE | YK2: FALSE | YL2: FALSE | YM2: FALSE | YN2: FALSE | YO2: FALSE | YP2: FALSE | YQ2: FALSE | YR2: FALSE | YS2: FALSE | YT2: FALSE | YU2: FALSE | YV2: FALSE | YW2: FALSE | YX2: FALSE | YY2: FALSE | YZ2: FALSE | ZA2: FALSE | ZB2: FALSE | ZC2: FALSE | ZD2: FALSE | ZE2: TRUE | ZF2: FALSE | ZG2: FALSE | ZH2: FALSE | ZI2: FALSE | ZJ2: FALSE | ZK2: FALSE | ZL2: FALSE | ZM2: FALSE | ZN2: FALSE | ZO2: FALSE | ZP2: FALSE | ZQ2: FALSE | ZR2: FALSE | ZS2: FALSE | ZT2: FALSE | ZU2: FALSE | ZV2: FALSE | ZW2: FALSE | ZX2: FALSE | ZY2: FALSE | ZZ2: FALSE | AAA2: FALSE | AAB2: FALSE | AAC2: TRUE | AAD2: FALSE | AAE2: FALSE | AAF2: FALSE | AAG2: FALSE | AAH2: FALSE | AAI2: FALSE | AAJ2: FALSE | AAK2: FALSE | AAL2: =MOD(AAL1,$F$2)=0 -> FALSE | AAM2: FALSE | AAN2: FALSE | AAO2: FALSE | AAP2: FALSE | AAQ2: FALSE | AAR2: FALSE | AAS2: FALSE | AAT2: FALSE | AAU2: FALSE | AAV2: FALSE | AAW2: FALSE | AAX2: FALSE | AAY2: FALSE | AAZ2: FALSE | ABA2: TRUE | ABB2: FALSE | ABC2: FALSE | ABD2: FALSE | ABE2: FALSE | ABF2: FALSE | ABG2: FALSE | ABH2: FALSE | ABI2: FALSE | ABJ2: FALSE | ABK2: FALSE | ABL2: FALSE | ABM2: FALSE | ABN2: FALSE | ABO2: FALSE | ABP2: FALSE | ABQ2: FALSE | ABR2: FALSE | ABS2: FALSE | ABT2: FALSE | ABU2: FALSE | ABV2: FALSE | ABW2: FALSE | ABX2: FALSE | ABY2: TRUE | ABZ2: FALSE | ACA2: FALSE | ACB2: FALSE | ACC2: FALSE | ACD2: FALSE | ACE2: FALSE | ACF2: FALSE | ACG2: FALSE | ACH2: FALSE | ACI2: FALSE | ACJ2: FALSE | ACK2: FALSE | ACL2: FALSE | ACM2: FALSE | ACN2: FALSE | ACO2: FALSE | ACP2: FALSE | ACQ2: FALSE | ACR2: FALSE | ACS2: FALSE | ACT2: FALSE | ACU2: FALSE | ACV2: FALSE | ACW2: TRUE | ACX2: =MOD(ACX1,$F$2)=0 -> FALSE | ACY2: FALSE | ACZ2: FALSE | ADA2: FALSE | ADB2: FALSE | ADC2: FALSE | ADD2: FALSE | ADE2: FALSE | ADF2: FALSE | ADG2: FALSE | ADH2: FALSE | ADI2: FALSE | ADJ2: FALSE | ADK2: FALSE | ADL2: FALSE | ADM2: FALSE | ADN2: FALSE | ADO2: FALSE | ADP2: FALSE | ADQ2: FALSE | ADR2: FALSE | ADS2: FALSE | ADT2: FALSE | ADU2: TRUE | ADV2: FALSE | ADW2: FALSE | ADX2: FALSE | ADY2: FALSE | ADZ2: FALSE | AEA2: FALSE | AEB2: FALSE | AEC2: FALSE | AED2: FALSE | AEE2: FALSE | AEF2: FALSE | AEG2: FALSE | AEH2: FALSE | AEI2: FALSE | AEJ2: FALSE | AEK2: FALSE | AEL2: FALSE | AEM2: FALSE | AEN2: FALSE | AEO2: FALSE | AEP2: FALSE | AEQ2: FALSE | AER2: FALSE | AES2: TRUE | AET2: FALSE | AEU2: FALSE | AEV2: FALSE | AEW2: FALSE | AEX2: FALSE | AEY2: FALSE | AEZ2: FALSE | AFA2: FALSE | AFB2: FALSE | AFC2: FALSE | AFD2: FALSE | AFE2: FALSE | AFF2: FALSE | AFG2: FALSE | AFH2: FALSE | AFI2: FALSE | AFJ2: =MOD(AFJ1,$F$2)=0 -> FALSE | AFK2: FALSE | AFL2: FALSE | AFM2: FALSE | AFN2: FALSE | AFO2: FALSE | AFP2: FALSE | AFQ2: TRUE | AFR2: FALSE | AFS2: FALSE | AFT2: FALSE | AFU2: FALSE | AFV2: FALSE | AFW2: FALSE | AFX2: FALSE | AFY2: FALSE | AFZ2: FALSE | AGA2: FALSE | AGB2: FALSE | AGC2: FALSE | AGD2: FALSE | AGE2: FALSE | AGF2: FALSE | AGG2: FALSE | AGH2: FALSE | AGI2: FALSE | AGJ2: FALSE | AGK2: FALSE | AGL2: FALSE | AGM2: FALSE | AGN2: FALSE | AGO2: TRUE | AGP2: FALSE | AGQ2: FALSE | AGR2: FALSE | AGS2: FALSE | AGT2: FALSE | AGU2: FALSE | AGV2: FALSE | AGW2: FALSE | AGX2: FALSE | AGY2: FALSE | AGZ2: FALSE | AHA2: FALSE | AHB2: FALSE | AHC2: FALSE | AHD2: FALSE | AHE2: FALSE | AHF2: FALSE | AHG2: FALSE | AHH2: FALSE | AHI2: FALSE | AHJ2: FALSE | AHK2: FALSE | AHL2: FALSE | AHM2: TRUE | AHN2: FALSE | AHO2: FALSE | AHP2: FALSE | AHQ2: FALSE | AHR2: FALSE | AHS2: FALSE | AHT2: FALSE | AHU2: FALSE | AHV2: =MOD(AHV1,$F$2)=0 -> FALSE | AHW2: FALSE | AHX2: FALSE | AHY2: FALSE | AHZ2: FALSE | AIA2: FALSE | AIB2: FALSE | AIC2: FALSE | AID2: FALSE | AIE2: FALSE | AIF2: FALSE | AIG2: FALSE | AIH2: FALSE | AII2: FALSE | AIJ2: FALSE | AIK2: TRUE | AIL2: FALSE | AIM2: FALSE | AIN2: FALSE | AIO2: FALSE | AIP2: FALSE | AIQ2: FALSE | AIR2: FALSE | AIS2: FALSE | AIT2: FALSE | AIU2: FALSE | AIV2: FALSE | AIW2: FALSE | AIX2: FALSE | AIY2: FALSE | AIZ2: FALSE | AJA2: FALSE | AJB2: FALSE | AJC2: FALSE | AJD2: FALSE | AJE2: FALSE | AJF2: FALSE | AJG2: FALSE | AJH2: FALSE | AJI2: TRUE | AJJ2: FALSE | AJK2: FALSE | AJL2: FALSE | AJM2: FALSE | AJN2: FALSE | AJO2: FALSE | AJP2: FALSE | AJQ2: FALSE | AJR2: FALSE | AJS2: FALSE | AJT2: FALSE | AJU2: FALSE | AJV2: FALSE | AJW2: FALSE | AJX2: FALSE | AJY2: FALSE | AJZ2: FALSE | AKA2: FALSE | AKB2: FALSE | AKC2: FALSE | AKD2: FALSE | AKE2: FALSE | AKF2: FALSE | AKG2: TRUE | AKH2: =MOD(AKH1,$F$2)=0 -> FALSE | AKI2: FALSE | AKJ2: FALSE | AKK2: FALSE | AKL2: FALSE | AKM2: FALSE | AKN2: FALSE | AKO2: FALSE | AKP2: FALSE | AKQ2: FALSE | AKR2: FALSE | AKS2: FALSE | AKT2: FALSE | AKU2: FALSE | AKV2: FALSE | AKW2: FALSE | AKX2: FALSE | AKY2: FALSE | AKZ2: FALSE | ALA2: FALSE | ALB2: FALSE | ALC2: FALSE | ALD2: FALSE | ALE2: TRUE | ALF2: FALSE | ALG2: FALSE | ALH2: FALSE | ALI2: FALSE | ALJ2: FALSE | ALK2: FALSE | ALL2: FALSE | ALM2: FALSE | ALN2: FALSE | ALO2: FALSE | ALP2: FALSE | ALQ2: FALSE | ALR2: FALSE | ALS2: FALSE | ALT2: FALSE | ALU2: FALSE | ALV2: FALSE | ALW2: FALSE | ALX2: FALSE | ALY2: FALSE | ALZ2: FALSE | AMA2: FALSE | AMB2: FALSE | AMC2: TRUE | AMD2: FALSE | AME2: FALSE | AMF2: FALSE | AMG2: FALSE | AMH2: FALSE | AMI2: FALSE | AMJ2: FALSE | AMK2: FALSE | AML2: FALSE | AMM2: FALSE | AMN2: FALSE | AMO2: FALSE | AMP2: FALSE | AMQ2: FALSE | AMR2: FALSE | AMS2: FALSE | AMT2: =MOD(AMT1,$F$2)=0 -> FALSE | AMU2: FALSE | AMV2: FALSE | AMW2: FALSE | AMX2: FALSE | AMY2: FALSE | AMZ2: FALSE | ANA2: TRUE | ANB2: FALSE | ANC2: FALSE | AND2: FALSE | ANE2: FALSE | ANF2: FALSE | ANG2: FALSE | ANH2: FALSE | ANI2: FALSE | ANJ2: FALSE | ANK2: FALSE | ANL2: FALSE | ANM2: FALSE | ANN2: FALSE | ANO2: FALSE | ANP2: FALSE | ANQ2: FALSE | ANR2: FALSE | ANS2: FALSE | ANT2: FALSE | ANU2: FALSE | ANV2: FALSE | ANW2: FALSE | ANX2: FALSE | ANY2: TRUE | ANZ2: FALSE | AOA2: FALSE | AOB2: FALSE | AOC2: FALSE | AOD2: FALSE | AOE2: FALSE | AOF2: FALSE | AOG2: FALSE | AOH2: FALSE | AOI2: FALSE | AOJ2: FALSE | AOK2: FALSE | AOL2: FALSE | AOM2: FALSE | AON2: FALSE | AOO2: FALSE | AOP2: FALSE | AOQ2: FALSE | AOR2: FALSE | AOS2: FALSE | AOT2: FALSE | AOU2: FALSE | AOV2: FALSE | AOW2: TRUE | AOX2: FALSE | AOY2: FALSE | AOZ2: FALSE | APA2: FALSE | APB2: FALSE | APC2: FALSE | APD2: FALSE | APE2: FALSE | APF2: =MOD(APF1,$F$2)=0 -> FALSE | APG2: FALSE | APH2: FALSE | API2: FALSE | APJ2: FALSE | APK2: FALSE | APL2: FALSE | APM2: FALSE | APN2: FALSE | APO2: FALSE | APP2: FALSE | APQ2: FALSE | APR2: FALSE | APS2: FALSE | APT2: FALSE | APU2: TRUE | APV2: FALSE | APW2: FALSE | APX2: FALSE | APY2: FALSE | APZ2: FALSE | AQA2: FALSE | AQB2: FALSE | AQC2: FALSE | AQD2: FALSE | AQE2: FALSE | AQF2: FALSE | AQG2: FALSE | AQH2: FALSE | AQI2: FALSE | AQJ2: FALSE | AQK2: FALSE | AQL2: FALSE | AQM2: FALSE | AQN2: FALSE | AQO2: FALSE | AQP2: FALSE | AQQ2: FALSE | AQR2: FALSE | AQS2: TRUE | AQT2: FALSE | AQU2: FALSE | AQV2: FALSE | AQW2: FALSE | AQX2: FALSE | AQY2: FALSE | AQZ2: FALSE | ARA2: FALSE | ARB2: FALSE | ARC2: FALSE | ARD2: FALSE | ARE2: FALSE | ARF2: FALSE | ARG2: FALSE | ARH2: FALSE | ARI2: FALSE | ARJ2: FALSE | ARK2: FALSE | ARL2: FALSE | ARM2: FALSE | ARN2: FALSE | ARO2: FALSE | ARP2: FALSE | ARQ2: TRUE | ARR2: =MOD(ARR1,$F$2)=0 -> FALSE | ARS2: FALSE | ART2: FALSE | ARU2: FALSE | ARV2: FALSE | ARW2: FALSE | ARX2: FALSE | ARY2: FALSE | ARZ2: FALSE | ASA2: FALSE | ASB2: FALSE | ASC2: FALSE | ASD2: FALSE | ASE2: FALSE | ASF2: FALSE | ASG2: FALSE | ASH2: FALSE | ASI2: FALSE | ASJ2: FALSE | ASK2: FALSE | ASL2: FALSE | ASM2: FALSE | ASN2: FALSE | ASO2: TRUE | ASP2: FALSE | ASQ2: FALSE | ASR2: FALSE | ASS2: FALSE | AST2: FALSE | ASU2: FALSE | ASV2: FALSE | ASW2: FALSE | ASX2: FALSE | ASY2: FALSE | ASZ2: FALSE | ATA2: FALSE | ATB2: FALSE | ATC2: FALSE | ATD2: FALSE | ATE2: FALSE | ATF2: FALSE | ATG2: FALSE | ATH2: FALSE | ATI2: FALSE | ATJ2: FALSE | ATK2: FALSE | ATL2: FALSE | ATM2: TRUE | ATN2: FALSE | ATO2: FALSE | ATP2: FALSE | ATQ2: FALSE | ATR2: FALSE | ATS2: FALSE | ATT2: FALSE | ATU2: FALSE | ATV2: FALSE | ATW2: FALSE | ATX2: FALSE | ATY2: FALSE | ATZ2: FALSE | AUA2: FALSE | AUB2: FALSE | AUC2: FALSE | AUD2: =MOD(AUD1,$F$2)=0 -> FALSE | AUE2: FALSE | AUF2: FALSE | AUG2: FALSE | AUH2: FALSE | AUI2: FALSE | AUJ2: FALSE | AUK2: TRUE | AUL2: FALSE | AUM2: FALSE | AUN2: FALSE | AUO2: FALSE | AUP2: FALSE | AUQ2: FALSE | AUR2: FALSE | AUS2: FALSE | AUT2: FALSE | AUU2: FALSE | AUV2: FALSE | AUW2: FALSE | AUX2: FALSE | AUY2: FALSE | AUZ2: FALSE | AVA2: FALSE | AVB2: FALSE | AVC2: FALSE | AVD2: FALSE | AVE2: FALSE | AVF2: FALSE | AVG2: FALSE | AVH2: FALSE | AVI2: TRUE | AVJ2: FALSE | AVK2: FALSE | AVL2: FALSE | AVM2: FALSE | AVN2: FALSE | AVO2: FALSE | AVP2: FALSE | AVQ2: FALSE | AVR2: FALSE | AVS2: FALSE | AVT2: FALSE | AVU2: FALSE | AVV2: FALSE | AVW2: FALSE | AVX2: FALSE | AVY2: FALSE | AVZ2: FALSE | AWA2: FALSE | AWB2: FALSE | AWC2: FALSE | AWD2: FALSE | AWE2: FALSE | AWF2: FALSE | AWG2: TRUE | AWH2: FALSE | AWI2: FALSE | AWJ2: FALSE | AWK2: FALSE | AWL2: FALSE | AWM2: FALSE | AWN2: FALSE | AWO2: FALSE | AWP2: =MOD(AWP1,$F$2)=0 -> FALSE | AWQ2: FALSE | AWR2: FALSE | AWS2: FALSE | AWT2: FALSE | AWU2: FALSE | AWV2: FALSE | AWW2: FALSE | AWX2: FALSE | AWY2: FALSE | AWZ2: FALSE | AXA2: FALSE | AXB2: FALSE | AXC2: FALSE | AXD2: FALSE | AXE2: TRUE | AXF2: FALSE | AXG2: FALSE | AXH2: FALSE | AXI2: FALSE | AXJ2: FALSE | AXK2: FALSE | AXL2: FALSE | AXM2: FALSE | AXN2: FALSE | AXO2: FALSE | AXP2: FALSE | AXQ2: FALSE | AXR2: FALSE | AXS2: FALSE | AXT2: FALSE | AXU2: FALSE | AXV2: FALSE | AXW2: FALSE | AXX2: FALSE | AXY2: FALSE | AXZ2: FALSE | AYA2: FALSE | AYB2: FALSE | AYC2: TRUE | AYD2: FALSE | AYE2: FALSE | AYF2: FALSE | AYG2: FALSE | AYH2: FALSE | AYI2: FALSE | AYJ2: FALSE | AYK2: FALSE | AYL2: FALSE | AYM2: FALSE | AYN2: FALSE | AYO2: FALSE | AYP2: FALSE | AYQ2: FALSE | AYR2: FALSE | AYS2: FALSE | AYT2: FALSE | AYU2: FALSE | AYV2: FALSE | AYW2: FALSE | AYX2: FALSE | AYY2: FALSE | AYZ2: FALSE | AZA2: TRUE | AZB2: =MOD(AZB1,$F$2)=0 -> FALSE | AZC2: FALSE | AZD2: FALSE | AZE2: FALSE | AZF2: FALSE | AZG2: FALSE | AZH2: FALSE | AZI2: FALSE | AZJ2: FALSE | AZK2: FALSE | AZL2: FALSE | AZM2: FALSE | AZN2: FALSE | AZO2: FALSE | AZP2: FALSE | AZQ2: FALSE | AZR2: FALSE | AZS2: FALSE | AZT2: FALSE | AZU2: FALSE | AZV2: FALSE | AZW2: FALSE | AZX2: FALSE | AZY2: TRUE | AZZ2: FALSE | BAA2: FALSE | BAB2: FALSE | BAC2: FALSE | BAD2: FALSE | BAE2: FALSE | BAF2: FALSE | BAG2: FALSE | BAH2: FALSE | BAI2: FALSE | BAJ2: FALSE | BAK2: FALSE | BAL2: FALSE | BAM2: FALSE | BAN2: FALSE | BAO2: FALSE | BAP2: FALSE | BAQ2: FALSE | BAR2: FALSE | BAS2: FALSE | BAT2: FALSE | BAU2: FALSE | BAV2: FALSE | BAW2: TRUE | BAX2: FALSE | BAY2: FALSE | BAZ2: FALSE | BBA2: FALSE | BBB2: FALSE | BBC2: FALSE | BBD2: FALSE | BBE2: FALSE | BBF2: FALSE | BBG2: FALSE | BBH2: FALSE | BBI2: FALSE | BBJ2: FALSE | BBK2: FALSE | BBL2: FALSE | BBM2: FALSE | BBN2: =MOD(BBN1,$F$2)=0 -> FALSE | BBO2: FALSE | BBP2: FALSE | BBQ2: FALSE | BBR2: FALSE | BBS2: FALSE | BBT2: FALSE | BBU2: TRUE | BBV2: FALSE | BBW2: FALSE | BBX2: FALSE | BBY2: FALSE | BBZ2: FALSE | BCA2: FALSE | BCB2: FALSE | BCC2: FALSE | BCD2: FALSE | BCE2: FALSE | BCF2: FALSE | BCG2: FALSE | BCH2: FALSE | BCI2: FALSE | BCJ2: FALSE | BCK2: FALSE | BCL2: FALSE | BCM2: FALSE | BCN2: FALSE | BCO2: FALSE | BCP2: FALSE | BCQ2: FALSE | BCR2: FALSE | BCS2: TRUE | BCT2: FALSE | BCU2: FALSE | BCV2: FALSE | BCW2: FALSE | BCX2: FALSE | BCY2: FALSE | BCZ2: FALSE | BDA2: FALSE | BDB2: FALSE | BDC2: FALSE | BDD2: FALSE | BDE2: FALSE | BDF2: FALSE | BDG2: FALSE | BDH2: FALSE | BDI2: FALSE | BDJ2: FALSE | BDK2: FALSE | BDL2: FALSE | BDM2: FALSE | BDN2: FALSE | BDO2: FALSE | BDP2: FALSE | BDQ2: TRUE | BDR2: FALSE | BDS2: FALSE | BDT2: FALSE | BDU2: FALSE | BDV2: FALSE | BDW2: FALSE | BDX2: FALSE | BDY2: FALSE | BDZ2: =MOD(BDZ1,$F$2)=0 -> FALSE | BEA2: FALSE | BEB2: FALSE | BEC2: FALSE | BED2: FALSE | BEE2: FALSE | BEF2: FALSE | BEG2: FALSE | BEH2: FALSE | BEI2: FALSE | BEJ2: FALSE | BEK2: FALSE | BEL2: FALSE | BEM2: FALSE | BEN2: FALSE | BEO2: TRUE | BEP2: FALSE | BEQ2: FALSE | BER2: FALSE | BES2: FALSE | BET2: FALSE | BEU2: FALSE | BEV2: FALSE | BEW2: FALSE | BEX2: FALSE | BEY2: FALSE | BEZ2: FALSE | BFA2: FALSE | BFB2: FALSE | BFC2: FALSE | BFD2: FALSE | BFE2: FALSE | BFF2: FALSE | BFG2: FALSE | BFH2: FALSE | BFI2: FALSE | BFJ2: FALSE | BFK2: FALSE | BFL2: FALSE | BFM2: TRUE | BFN2: FALSE | BFO2: FALSE | BFP2: FALSE | BFQ2: FALSE | BFR2: FALSE | BFS2: FALSE | BFT2: FALSE | BFU2: FALSE | BFV2: FALSE | BFW2: FALSE | BFX2: FALSE | BFY2: FALSE | BFZ2: FALSE | BGA2: FALSE | BGB2: FALSE | BGC2: FALSE | BGD2: FALSE | BGE2: FALSE | BGF2: FALSE | BGG2: FALSE | BGH2: FALSE | BGI2: FALSE | BGJ2: FALSE | BGK2: TRUE | BGL2: =MOD(BGL1,$F$2)=0 -> FALSE | BGM2: FALSE | BGN2: FALSE | BGO2: FALSE | BGP2: FALSE | BGQ2: FALSE | BGR2: FALSE | BGS2: FALSE | BGT2: FALSE | BGU2: FALSE | BGV2: FALSE | BGW2: FALSE | BGX2: FALSE | BGY2: FALSE | BGZ2: FALSE | BHA2: FALSE | BHB2: FALSE | BHC2: FALSE | BHD2: FALSE | BHE2: FALSE | BHF2: FALSE | BHG2: FALSE | BHH2: FALSE | BHI2: TRUE | BHJ2: FALSE | BHK2: FALSE | BHL2: FALSE | BHM2: FALSE | BHN2: FALSE | BHO2: FALSE | BHP2: FALSE | BHQ2: FALSE | BHR2: FALSE | BHS2: FALSE | BHT2: FALSE | BHU2: FALSE | BHV2: FALSE | BHW2: FALSE | BHX2: FALSE | BHY2: FALSE | BHZ2: FALSE | BIA2: FALSE | BIB2: FALSE | BIC2: FALSE | BID2: FALSE | BIE2: FALSE | BIF2: FALSE | BIG2: TRUE | BIH2: FALSE | BII2: FALSE | BIJ2: FALSE | BIK2: FALSE | BIL2: FALSE | BIM2: FALSE | BIN2: FALSE | BIO2: FALSE | BIP2: FALSE | BIQ2: FALSE | BIR2: FALSE | BIS2: FALSE | BIT2: FALSE | BIU2: FALSE | BIV2: FALSE | BIW2: FALSE | BIX2: =MOD(BIX1,$F$2)=0 -> FALSE | BIY2: FALSE | BIZ2: FALSE | BJA2: FALSE | BJB2: FALSE | BJC2: FALSE | BJD2: FALSE | BJE2: TRUE | BJF2: FALSE | BJG2: FALSE | BJH2: FALSE | BJI2: FALSE | BJJ2: FALSE | BJK2: FALSE | BJL2: FALSE | BJM2: FALSE | BJN2: FALSE | BJO2: FALSE | BJP2: FALSE | BJQ2: FALSE | BJR2: FALSE | BJS2: FALSE | BJT2: FALSE | BJU2: FALSE | BJV2: FALSE | BJW2: FALSE | BJX2: FALSE | BJY2: FALSE | BJZ2: FALSE | BKA2: FALSE | BKB2: FALSE | BKC2: TRUE | BKD2: FALSE | BKE2: FALSE | BKF2: FALSE | BKG2: FALSE | BKH2: FALSE | BKI2: FALSE | BKJ2: FALSE | BKK2: FALSE | BKL2: FALSE | BKM2: FALSE | BKN2: FALSE | BKO2: FALSE | BKP2: FALSE | BKQ2: FALSE | BKR2: FALSE | BKS2: FALSE | BKT2: FALSE | BKU2: FALSE | BKV2: FALSE | BKW2: FALSE | BKX2: FALSE | BKY2: FALSE | BKZ2: FALSE | BLA2: TRUE | BLB2: FALSE | BLC2: FALSE | BLD2: FALSE | BLE2: FALSE | BLF2: FALSE | BLG2: FALSE | BLH2: FALSE | BLI2: FALSE | BLJ2: =MOD(BLJ1,$F$2)=0 -> FALSE | BLK2: FALSE | BLL2: FALSE | BLM2: FALSE | BLN2: FALSE | BLO2: FALSE | BLP2: FALSE | BLQ2: FALSE | BLR2: FALSE | BLS2: FALSE | BLT2: FALSE | BLU2: FALSE | BLV2: FALSE | BLW2: FALSE | BLX2: FALSE | BLY2: TRUE | BLZ2: FALSE | BMA2: FALSE | BMB2: FALSE | BMC2: FALSE | BMD2: FALSE | BME2: FALSE | BMF2: FALSE | BMG2: FALSE | BMH2: FALSE | BMI2: FALSE | BMJ2: FALSE | BMK2: FALSE | BML2: FALSE | BMM2: FALSE | BMN2: FALSE | BMO2: FALSE | BMP2: FALSE | BMQ2: FALSE | BMR2: FALSE | BMS2: FALSE | BMT2: FALSE | BMU2: FALSE | BMV2: FALSE | BMW2: TRUE | BMX2: FALSE | BMY2: FALSE | BMZ2: FALSE | BNA2: FALSE | BNB2: FALSE | BNC2: FALSE | BND2: FALSE | BNE2: FALSE | BNF2: FALSE | BNG2: FALSE | BNH2: FALSE | BNI2: FALSE | BNJ2: FALSE | BNK2: FALSE | BNL2: FALSE | BNM2: FALSE | BNN2: FALSE | BNO2: FALSE | BNP2: FALSE | BNQ2: FALSE | BNR2: FALSE | BNS2: FALSE | BNT2: FALSE | BNU2: TRUE | BNV2: =MOD(BNV1,$F$2)=0 -> FALSE | BNW2: FALSE | BNX2: FALSE | BNY2: FALSE | BNZ2: FALSE | BOA2: FALSE | BOB2: FALSE | BOC2: FALSE | BOD2: FALSE | BOE2: FALSE | BOF2: FALSE | BOG2: FALSE | BOH2: FALSE | BOI2: FALSE | BOJ2: FALSE | BOK2: FALSE | BOL2: FALSE | BOM2: FALSE | BON2: FALSE | BOO2: FALSE | BOP2: FALSE | BOQ2: FALSE | BOR2: FALSE | BOS2: TRUE | BOT2: FALSE | BOU2: FALSE | BOV2: FALSE | BOW2: FALSE | BOX2: FALSE | BOY2: FALSE | BOZ2: FALSE | BPA2: FALSE | BPB2: FALSE | BPC2: FALSE | BPD2: FALSE | BPE2: FALSE | BPF2: FALSE | BPG2: FALSE | BPH2: FALSE | BPI2: FALSE | BPJ2: FALSE | BPK2: FALSE | BPL2: FALSE | BPM2: FALSE | BPN2: FALSE | BPO2: FALSE | BPP2: FALSE | BPQ2: TRUE | BPR2: FALSE | BPS2: FALSE | BPT2: FALSE | BPU2: FALSE | BPV2: FALSE | BPW2: FALSE | BPX2: FALSE | BPY2: FALSE | BPZ2: FALSE | BQA2: FALSE | BQB2: FALSE | BQC2: FALSE | BQD2: FALSE | BQE2: FALSE | BQF2: FALSE | BQG2: FALSE | BQH2: =MOD(BQH1,$F$2)=0 -> FALSE | BQI2: FALSE | BQJ2: FALSE | BQK2: FALSE | BQL2: FALSE | BQM2: FALSE | BQN2: FALSE | BQO2: TRUE | BQP2: FALSE | BQQ2: FALSE | BQR2: FALSE | BQS2: FALSE | BQT2: FALSE | BQU2: FALSE | BQV2: FALSE | BQW2: FALSE | BQX2: FALSE | BQY2: FALSE | BQZ2: FALSE | BRA2: FALSE | BRB2: FALSE | BRC2: FALSE | BRD2: FALSE | BRE2: FALSE | BRF2: FALSE | BRG2: FALSE | BRH2: FALSE | BRI2: FALSE | BRJ2: FALSE | BRK2: FALSE | BRL2: FALSE | BRM2: TRUE | BRN2: FALSE | BRO2: FALSE | BRP2: FALSE | BRQ2: FALSE | BRR2: FALSE | BRS2: FALSE | BRT2: FALSE | BRU2: FALSE | BRV2: FALSE | BRW2: FALSE | BRX2: FALSE | BRY2: FALSE | BRZ2: FALSE | BSA2: FALSE | BSB2: FALSE | BSC2: FALSE | BSD2: FALSE | BSE2: FALSE | BSF2: FALSE | BSG2: FALSE | BSH2: FALSE | BSI2: FALSE | BSJ2: FALSE | BSK2: TRUE | BSL2: FALSE | BSM2: FALSE | BSN2: FALSE | BSO2: FALSE | BSP2: FALSE | BSQ2: FALSE | BSR2: FALSE | BSS2: FALSE | BST2: =MOD(BST1,$F$2)=0 -> FALSE | BSU2: FALSE | BSV2: FALSE | BSW2: FALSE | BSX2: FALSE | BSY2: FALSE | BSZ2: FALSE | BTA2: FALSE | BTB2: FALSE | BTC2: FALSE | BTD2: FALSE | BTE2: FALSE | BTF2: FALSE | BTG2: FALSE | BTH2: FALSE | BTI2: TRUE | BTJ2: FALSE | BTK2: FALSE | BTL2: FALSE | BTM2: FALSE | BTN2: FALSE | BTO2: FALSE | BTP2: FALSE | BTQ2: FALSE | BTR2: FALSE | BTS2: FALSE | BTT2: FALSE | BTU2: FALSE | BTV2: FALSE | BTW2: FALSE | BTX2: FALSE | BTY2: FALSE | BTZ2: FALSE | BUA2: FALSE | BUB2: FALSE | BUC2: FALSE | BUD2: FALSE | BUE2: FALSE | BUF2: FALSE | BUG2: TRUE | BUH2: FALSE | BUI2: FALSE | BUJ2: FALSE | BUK2: FALSE | BUL2: FALSE | BUM2: FALSE | BUN2: FALSE | BUO2: FALSE | BUP2: FALSE | BUQ2: FALSE | BUR2: FALSE | BUS2: FALSE | BUT2: FALSE | BUU2: FALSE | BUV2: FALSE | BUW2: FALSE | BUX2: FALSE | BUY2: FALSE | BUZ2: FALSE | BVA2: FALSE | BVB2: FALSE | BVC2: FALSE | BVD2: FALSE | BVE2: TRUE | BVF2: =MOD(BVF1,$F$2)=0 -> FALSE | BVG2: FALSE | BVH2: FALSE | BVI2: FALSE | BVJ2: FALSE | BVK2: FALSE | BVL2: FALSE | BVM2: FALSE | BVN2: FALSE | BVO2: FALSE | BVP2: FALSE | BVQ2: FALSE | BVR2: FALSE | BVS2: FALSE | BVT2: FALSE | BVU2: FALSE | BVV2: FALSE | BVW2: FALSE | BVX2: FALSE | BVY2: FALSE | BVZ2: FALSE | BWA2: FALSE | BWB2: FALSE | BWC2: TRUE | BWD2: FALSE | BWE2: FALSE | BWF2: FALSE | BWG2: FALSE | BWH2: FALSE | BWI2: FALSE | BWJ2: FALSE | BWK2: FALSE | BWL2: FALSE | BWM2: FALSE | BWN2: FALSE | BWO2: FALSE | BWP2: FALSE | BWQ2: FALSE | BWR2: FALSE | BWS2: FALSE | BWT2: FALSE | BWU2: FALSE | BWV2: FALSE | BWW2: FALSE | BWX2: FALSE | BWY2: FALSE | BWZ2: FALSE | BXA2: TRUE | BXB2: FALSE | BXC2: FALSE | BXD2: FALSE | BXE2: FALSE | BXF2: FALSE | BXG2: FALSE | BXH2: FALSE | BXI2: FALSE | BXJ2: FALSE | BXK2: FALSE | BXL2: FALSE | BXM2: FALSE | BXN2: FALSE | BXO2: FALSE | BXP2: FALSE | BXQ2: FALSE | BXR2: =MOD(BXR1,$F$2)=0 -> FALSE | BXS2: FALSE | BXT2: FALSE | BXU2: FALSE | BXV2: FALSE | BXW2: FALSE | BXX2: FALSE | BXY2: TRUE | BXZ2: FALSE | BYA2: FALSE | BYB2: FALSE | BYC2: FALSE | BYD2: FALSE | BYE2: FALSE | BYF2: FALSE | BYG2: FALSE | BYH2: FALSE | BYI2: FALSE | BYJ2: FALSE | BYK2: FALSE | BYL2: FALSE | BYM2: FALSE | BYN2: FALSE | BYO2: FALSE | BYP2: FALSE | BYQ2: FALSE | BYR2: FALSE | BYS2: FALSE | BYT2: FALSE | BYU2: FALSE | BYV2: FALSE | BYW2: TRUE | BYX2: FALSE | BYY2: FALSE | BYZ2: FALSE | BZA2: FALSE | BZB2: FALSE | BZC2: FALSE | BZD2: FALSE | BZE2: FALSE | BZF2: FALSE | BZG2: FALSE | BZH2: FALSE | BZI2: FALSE | BZJ2: FALSE | BZK2: FALSE | BZL2: FALSE | BZM2: FALSE | BZN2: FALSE | BZO2: FALSE | BZP2: FALSE | BZQ2: FALSE | BZR2: FALSE | BZS2: FALSE | BZT2: FALSE | BZU2: TRUE | BZV2: FALSE | BZW2: FALSE | BZX2: FALSE | BZY2: FALSE | BZZ2: FALSE | CAA2: FALSE | CAB2: FALSE | CAC2: FALSE | CAD2: =MOD(CAD1,$F$2)=0 -> FALSE | CAE2: FALSE | CAF2: FALSE | CAG2: FALSE | CAH2: FALSE | CAI2: FALSE | CAJ2: FALSE | CAK2: FALSE | CAL2: FALSE | CAM2: FALSE | CAN2: FALSE | CAO2: FALSE | CAP2: FALSE | CAQ2: FALSE | CAR2: FALSE | CAS2: TRUE | CAT2: FALSE | CAU2: FALSE | CAV2: FALSE | CAW2: FALSE | CAX2: FALSE | CAY2: FALSE | CAZ2: FALSE | CBA2: FALSE | CBB2: FALSE | CBC2: FALSE | CBD2: FALSE | CBE2: FALSE | CBF2: FALSE | CBG2: FALSE | CBH2: FALSE | CBI2: FALSE | CBJ2: FALSE | CBK2: FALSE | CBL2: FALSE | CBM2: FALSE | CBN2: FALSE | CBO2: FALSE | CBP2: FALSE | CBQ2: TRUE | CBR2: FALSE | CBS2: FALSE | CBT2: FALSE | CBU2: FALSE | CBV2: FALSE | CBW2: FALSE | CBX2: FALSE | CBY2: FALSE | CBZ2: FALSE | CCA2: FALSE | CCB2: FALSE | CCC2: FALSE | CCD2: FALSE | CCE2: FALSE | CCF2: FALSE | CCG2: FALSE | CCH2: FALSE | CCI2: FALSE | CCJ2: FALSE | CCK2: FALSE | CCL2: FALSE | CCM2: FALSE | CCN2: FALSE | CCO2: TRUE | CCP2: =MOD(CCP1,$F$2)=0 -> FALSE | CCQ2: FALSE | CCR2: FALSE | CCS2: FALSE | CCT2: FALSE | CCU2: FALSE | CCV2: FALSE | CCW2: FALSE | CCX2: FALSE | CCY2: FALSE | CCZ2: FALSE | CDA2: FALSE | CDB2: FALSE | CDC2: FALSE | CDD2: FALSE | CDE2: FALSE | CDF2: FALSE | CDG2: FALSE | CDH2: FALSE | CDI2: FALSE | CDJ2: FALSE | CDK2: FALSE | CDL2: FALSE | CDM2: TRUE | CDN2: FALSE | CDO2: FALSE | CDP2: FALSE | CDQ2: FALSE | CDR2: FALSE | CDS2: FALSE | CDT2: FALSE | CDU2: FALSE | CDV2: FALSE | CDW2: FALSE | CDX2: FALSE | CDY2: FALSE | CDZ2: FALSE | CEA2: FALSE | CEB2: FALSE | CEC2: FALSE | CED2: FALSE | CEE2: FALSE | CEF2: FALSE | CEG2: FALSE | CEH2: FALSE | CEI2: FALSE | CEJ2: FALSE | CEK2: TRUE | CEL2: FALSE | CEM2: FALSE | CEN2: FALSE | CEO2: FALSE | CEP2: FALSE | CEQ2: FALSE | CER2: FALSE | CES2: FALSE | CET2: FALSE | CEU2: FALSE | CEV2: FALSE | CEW2: FALSE | CEX2: FALSE | CEY2: FALSE | CEZ2: FALSE | CFA2: FALSE | CFB2: =MOD(CFB1,$F$2)=0 -> FALSE | CFC2: FALSE | CFD2: FALSE | CFE2: FALSE | CFF2: FALSE | CFG2: FALSE | CFH2: FALSE | CFI2: TRUE | CFJ2: FALSE | CFK2: FALSE | CFL2: FALSE | CFM2: FALSE | CFN2: FALSE | CFO2: FALSE | CFP2: FALSE | CFQ2: FALSE | CFR2: FALSE | CFS2: FALSE | CFT2: FALSE | CFU2: FALSE | CFV2: FALSE | CFW2: FALSE | CFX2: FALSE | CFY2: FALSE | CFZ2: FALSE | CGA2: FALSE | CGB2: FALSE | CGC2: FALSE | CGD2: FALSE | CGE2: FALSE | CGF2: FALSE | CGG2: TRUE | CGH2: FALSE | CGI2: FALSE | CGJ2: FALSE | CGK2: FALSE | CGL2: FALSE | CGM2: FALSE | CGN2: FALSE | CGO2: FALSE | CGP2: FALSE | CGQ2: FALSE | CGR2: FALSE | CGS2: FALSE | CGT2: FALSE | CGU2: FALSE | CGV2: FALSE | CGW2: FALSE | CGX2: FALSE | CGY2: FALSE | CGZ2: FALSE | CHA2: FALSE | CHB2: FALSE | CHC2: FALSE | CHD2: FALSE | CHE2: TRUE | CHF2: FALSE | CHG2: FALSE | CHH2: FALSE | CHI2: FALSE | CHJ2: FALSE | CHK2: FALSE | CHL2: FALSE | CHM2: FALSE | CHN2: =MOD(CHN1,$F$2)=0 -> FALSE | CHO2: FALSE | CHP2: FALSE | CHQ2: FALSE | CHR2: FALSE | CHS2: FALSE | CHT2: FALSE | CHU2: FALSE | CHV2: FALSE | CHW2: FALSE | CHX2: FALSE | CHY2: FALSE | CHZ2: FALSE | CIA2: FALSE | CIB2: FALSE | CIC2: TRUE | CID2: FALSE | CIE2: FALSE | CIF2: FALSE | CIG2: FALSE | CIH2: FALSE | CII2: FALSE | CIJ2: FALSE | CIK2: FALSE | CIL2: FALSE | CIM2: FALSE | CIN2: FALSE | CIO2: FALSE | CIP2: FALSE | CIQ2: FALSE | CIR2: FALSE | CIS2: FALSE | CIT2: FALSE | CIU2: FALSE | CIV2: FALSE | CIW2: FALSE | CIX2: FALSE | CIY2: FALSE | CIZ2: FALSE | CJA2: TRUE | CJB2: FALSE | CJC2: FALSE | CJD2: FALSE | CJE2: FALSE | CJF2: FALSE | CJG2: FALSE | CJH2: FALSE | CJI2: FALSE | CJJ2: FALSE | CJK2: FALSE | CJL2: FALSE | CJM2: FALSE | CJN2: FALSE | CJO2: FALSE | CJP2: FALSE | CJQ2: FALSE | CJR2: FALSE | CJS2: FALSE | CJT2: FALSE | CJU2: FALSE | CJV2: FALSE | CJW2: FALSE | CJX2: FALSE | CJY2: TRUE | CJZ2: =MOD(CJZ1,$F$2)=0 -> FALSE | CKA2: FALSE | CKB2: FALSE | CKC2: FALSE | CKD2: FALSE | CKE2: FALSE | CKF2: FALSE | CKG2: FALSE | CKH2: FALSE | CKI2: FALSE | CKJ2: FALSE | CKK2: FALSE | CKL2: FALSE | CKM2: FALSE | CKN2: FALSE | CKO2: FALSE | CKP2: FALSE | CKQ2: FALSE | CKR2: FALSE | CKS2: FALSE | CKT2: FALSE | CKU2: FALSE | CKV2: FALSE | CKW2: TRUE | CKX2: FALSE | CKY2: FALSE | CKZ2: FALSE | CLA2: FALSE | CLB2: FALSE | CLC2: FALSE | CLD2: FALSE | CLE2: FALSE | CLF2: FALSE | CLG2: FALSE | CLH2: FALSE | CLI2: FALSE | CLJ2: FALSE | CLK2: FALSE | CLL2: FALSE | CLM2: FALSE | CLN2: FALSE | CLO2: FALSE | CLP2: FALSE | CLQ2: FALSE | CLR2: FALSE | CLS2: FALSE | CLT2: FALSE | CLU2: TRUE | CLV2: FALSE | CLW2: FALSE | CLX2: FALSE | CLY2: FALSE | CLZ2: FALSE | CMA2: FALSE | CMB2: FALSE | CMC2: FALSE | CMD2: FALSE | CME2: FALSE | CMF2: FALSE | CMG2: FALSE | CMH2: FALSE | CMI2: FALSE | CMJ2: FALSE | CMK2: FALSE | CML2: =MOD(CML1,$F$2)=0 -> FALSE | CMM2: FALSE | CMN2: FALSE | CMO2: FALSE | CMP2: FALSE | CMQ2: FALSE | CMR2: FALSE | CMS2: TRUE | CMT2: FALSE | CMU2: FALSE | CMV2: FALSE | CMW2: FALSE | CMX2: FALSE | CMY2: FALSE | CMZ2: FALSE | CNA2: FALSE | CNB2: FALSE | CNC2: FALSE | CND2: FALSE | CNE2: FALSE | CNF2: FALSE | CNG2: FALSE | CNH2: FALSE | CNI2: FALSE | CNJ2: FALSE | CNK2: FALSE | CNL2: FALSE | CNM2: FALSE | CNN2: FALSE | CNO2: FALSE | CNP2: FALSE | CNQ2: TRUE | CNR2: FALSE | CNS2: FALSE | CNT2: FALSE | CNU2: FALSE | CNV2: FALSE | CNW2: FALSE | CNX2: FALSE | CNY2: FALSE | CNZ2: FALSE | COA2: FALSE | COB2: FALSE | COC2: FALSE | COD2: FALSE | COE2: FALSE | COF2: FALSE | COG2: FALSE | COH2: FALSE | COI2: FALSE | COJ2: FALSE | COK2: FALSE | COL2: FALSE | COM2: FALSE | CON2: FALSE | COO2: TRUE | COP2: FALSE | COQ2: FALSE | COR2: FALSE | COS2: FALSE | COT2: FALSE | COU2: FALSE | COV2: FALSE | COW2: FALSE | COX2: =MOD(COX1,$F$2)=0 -> FALSE | COY2: FALSE | COZ2: FALSE | CPA2: FALSE | CPB2: FALSE | CPC2: FALSE | CPD2: FALSE | CPE2: FALSE | CPF2: FALSE | CPG2: FALSE | CPH2: FALSE | CPI2: FALSE | CPJ2: FALSE | CPK2: FALSE | CPL2: FALSE | CPM2: TRUE | CPN2: FALSE | CPO2: FALSE | CPP2: FALSE | CPQ2: FALSE | CPR2: FALSE | CPS2: FALSE | CPT2: FALSE | CPU2: FALSE | CPV2: FALSE | CPW2: FALSE | CPX2: FALSE | CPY2: FALSE | CPZ2: FALSE | CQA2: FALSE | CQB2: FALSE | CQC2: FALSE | CQD2: FALSE | CQE2: FALSE | CQF2: FALSE | CQG2: FALSE | CQH2: FALSE | CQI2: FALSE | CQJ2: FALSE | CQK2: TRUE | CQL2: FALSE | CQM2: FALSE | CQN2: FALSE | CQO2: FALSE | CQP2: FALSE | CQQ2: FALSE | CQR2: FALSE | CQS2: FALSE | CQT2: FALSE | CQU2: FALSE | CQV2: FALSE | CQW2: FALSE | CQX2: FALSE | CQY2: FALSE | CQZ2: FALSE | CRA2: FALSE | CRB2: FALSE | CRC2: FALSE | CRD2: FALSE | CRE2: FALSE | CRF2: FALSE | CRG2: FALSE | CRH2: FALSE | CRI2: TRUE | CRJ2: =MOD(CRJ1,$F$2)=0 -> FALSE | CRK2: FALSE | CRL2: FALSE | CRM2: FALSE | CRN2: FALSE | CRO2: FALSE | CRP2: FALSE | CRQ2: FALSE | CRR2: FALSE | CRS2: FALSE | CRT2: FALSE | CRU2: FALSE | CRV2: FALSE | CRW2: FALSE | CRX2: FALSE | CRY2: FALSE | CRZ2: FALSE | CSA2: FALSE | CSB2: FALSE | CSC2: FALSE | CSD2: FALSE | CSE2: FALSE | CSF2: FALSE | CSG2: TRUE | CSH2: FALSE | CSI2: FALSE | CSJ2: FALSE | CSK2: FALSE | CSL2: FALSE | CSM2: FALSE | CSN2: FALSE | CSO2: FALSE | CSP2: FALSE | CSQ2: FALSE | CSR2: FALSE | CSS2: FALSE | CST2: FALSE | CSU2: FALSE | CSV2: FALSE | CSW2: FALSE | CSX2: FALSE | CSY2: FALSE | CSZ2: FALSE | CTA2: FALSE | CTB2: FALSE | CTC2: FALSE | CTD2: FALSE | CTE2: TRUE | CTF2: FALSE | CTG2: FALSE | CTH2: FALSE | CTI2: FALSE | CTJ2: FALSE | CTK2: FALSE | CTL2: FALSE | CTM2: FALSE | CTN2: FALSE | CTO2: FALSE | CTP2: FALSE | CTQ2: FALSE | CTR2: FALSE | CTS2: FALSE | CTT2: FALSE | CTU2: FALSE | CTV2: =MOD(CTV1,$F$2)=0 -> FALSE | CTW2: FALSE | CTX2: FALSE | CTY2: FALSE | CTZ2: FALSE | CUA2: FALSE | CUB2: FALSE | CUC2: TRUE | CUD2: FALSE | CUE2: FALSE | CUF2: FALSE | CUG2: FALSE | CUH2: FALSE | CUI2: FALSE | CUJ2: FALSE | CUK2: FALSE | CUL2: FALSE | CUM2: FALSE | CUN2: FALSE | CUO2: FALSE | CUP2: FALSE | CUQ2: FALSE | CUR2: FALSE | CUS2: FALSE | CUT2: FALSE | CUU2: FALSE | CUV2: FALSE | CUW2: FALSE | CUX2: FALSE | CUY2: FALSE | CUZ2: FALSE | CVA2: TRUE | CVB2: FALSE | CVC2: FALSE | CVD2: FALSE | CVE2: FALSE | CVF2: FALSE | CVG2: FALSE | CVH2: FALSE | CVI2: FALSE | CVJ2: FALSE | CVK2: FALSE | CVL2: FALSE | CVM2: FALSE | CVN2: FALSE | CVO2: FALSE | CVP2: FALSE | CVQ2: FALSE | CVR2: FALSE | CVS2: FALSE | CVT2: FALSE | CVU2: FALSE | CVV2: FALSE | CVW2: FALSE | CVX2: FALSE | CVY2: TRUE | CVZ2: FALSE | CWA2: FALSE | CWB2: FALSE | CWC2: FALSE | CWD2: FALSE | CWE2: FALSE | CWF2: FALSE | CWG2: FALSE | CWH2: =MOD(CWH1,$F$2)=0 -> FALSE | CWI2: FALSE | CWJ2: FALSE | CWK2: FALSE | CWL2: FALSE | CWM2: FALSE | CWN2: FALSE | CWO2: FALSE | CWP2: FALSE | CWQ2: FALSE | CWR2: FALSE | CWS2: FALSE | CWT2: FALSE | CWU2: FALSE | CWV2: FALSE | CWW2: TRUE | CWX2: FALSE | CWY2: FALSE | CWZ2: FALSE | CXA2: FALSE | CXB2: FALSE | CXC2: FALSE | CXD2: FALSE | CXE2: FALSE | CXF2: FALSE | CXG2: FALSE | CXH2: FALSE | CXI2: FALSE | CXJ2: FALSE | CXK2: FALSE | CXL2: FALSE | CXM2: FALSE | CXN2: FALSE | CXO2: FALSE | CXP2: FALSE | CXQ2: FALSE | CXR2: FALSE | CXS2: FALSE | CXT2: FALSE | CXU2: TRUE | CXV2: FALSE | CXW2: FALSE | CXX2: FALSE | CXY2: FALSE | CXZ2: FALSE | CYA2: FALSE | CYB2: FALSE | CYC2: FALSE | CYD2: FALSE | CYE2: FALSE | CYF2: FALSE | CYG2: FALSE | CYH2: FALSE | CYI2: FALSE | CYJ2: FALSE | CYK2: FALSE | CYL2: FALSE | CYM2: FALSE | CYN2: FALSE | CYO2: FALSE | CYP2: FALSE | CYQ2: FALSE | CYR2: FALSE | CYS2: TRUE | CYT2: =MOD(CYT1,$F$2)=0 -> FALSE | CYU2: FALSE | CYV2: FALSE | CYW2: FALSE | CYX2: FALSE | CYY2: FALSE | CYZ2: FALSE | CZA2: FALSE | CZB2: FALSE | CZC2: FALSE | CZD2: FALSE | CZE2: FALSE | CZF2: FALSE | CZG2: FALSE | CZH2: FALSE | CZI2: FALSE | CZJ2: FALSE | CZK2: FALSE | CZL2: FALSE | CZM2: FALSE | CZN2: FALSE | CZO2: FALSE | CZP2: FALSE | CZQ2: TRUE | CZR2: FALSE | CZS2: FALSE | CZT2: FALSE | CZU2: FALSE | CZV2: FALSE | CZW2: FALSE | CZX2: FALSE | CZY2: FALSE | CZZ2: FALSE | DAA2: FALSE | DAB2: FALSE | DAC2: FALSE | DAD2: FALSE | DAE2: FALSE | DAF2: FALSE | DAG2: FALSE | DAH2: FALSE | DAI2: FALSE | DAJ2: FALSE | DAK2: FALSE | DAL2: FALSE | DAM2: FALSE | DAN2: FALSE | DAO2: TRUE | DAP2: FALSE | DAQ2: FALSE | DAR2: FALSE | DAS2: FALSE | DAT2: FALSE | DAU2: FALSE | DAV2: FALSE | DAW2: FALSE | DAX2: FALSE | DAY2: FALSE | DAZ2: FALSE | DBA2: FALSE | DBB2: FALSE | DBC2: FALSE | DBD2: FALSE | DBE2: FALSE | DBF2: =MOD(DBF1,$F$2)=0 -> FALSE | DBG2: FALSE | DBH2: FALSE | DBI2: FALSE | DBJ2: FALSE | DBK2: FALSE | DBL2: FALSE | DBM2: TRUE | DBN2: FALSE | DBO2: FALSE | DBP2: FALSE | DBQ2: FALSE | DBR2: FALSE | DBS2: FALSE | DBT2: FALSE | DBU2: FALSE | DBV2: FALSE | DBW2: FALSE | DBX2: FALSE | DBY2: FALSE | DBZ2: FALSE | DCA2: FALSE | DCB2: FALSE | DCC2: FALSE | DCD2: FALSE | DCE2: FALSE | DCF2: FALSE | DCG2: FALSE | DCH2: FALSE | DCI2: FALSE | DCJ2: FALSE | DCK2: TRUE | DCL2: FALSE | DCM2: FALSE | DCN2: FALSE | DCO2: FALSE | DCP2: FALSE | DCQ2: FALSE | DCR2: FALSE | DCS2: FALSE | DCT2: FALSE | DCU2: FALSE | DCV2: FALSE | DCW2: FALSE | DCX2: FALSE | DCY2: FALSE | DCZ2: FALSE | DDA2: FALSE | DDB2: FALSE | DDC2: FALSE | DDD2: FALSE | DDE2: FALSE | DDF2: FALSE | DDG2: FALSE | DDH2: FALSE | DDI2: TRUE | DDJ2: FALSE | DDK2: FALSE | DDL2: FALSE | DDM2: FALSE | DDN2: FALSE | DDO2: FALSE | DDP2: FALSE | DDQ2: FALSE | DDR2: =MOD(DDR1,$F$2)=0 -> FALSE | DDS2: FALSE | DDT2: FALSE | DDU2: FALSE | DDV2: FALSE | DDW2: FALSE | DDX2: FALSE | DDY2: FALSE | DDZ2: FALSE | DEA2: FALSE | DEB2: FALSE | DEC2: FALSE | DED2: FALSE | DEE2: FALSE | DEF2: FALSE | DEG2: TRUE | DEH2: FALSE | DEI2: FALSE | DEJ2: FALSE | DEK2: FALSE | DEL2: FALSE | DEM2: FALSE | DEN2: FALSE | DEO2: FALSE | DEP2: FALSE | DEQ2: FALSE | DER2: FALSE | DES2: FALSE | DET2: FALSE | DEU2: FALSE | DEV2: FALSE | DEW2: FALSE | DEX2: FALSE | DEY2: FALSE | DEZ2: FALSE | DFA2: FALSE | DFB2: FALSE | DFC2: FALSE | DFD2: FALSE | DFE2: TRUE | DFF2: FALSE | DFG2: FALSE | DFH2: FALSE | DFI2: FALSE | DFJ2: FALSE | DFK2: FALSE | DFL2: FALSE | DFM2: FALSE | DFN2: FALSE | DFO2: FALSE | DFP2: FALSE | DFQ2: FALSE | DFR2: FALSE | DFS2: FALSE | DFT2: FALSE | DFU2: FALSE | DFV2: FALSE | DFW2: FALSE | DFX2: FALSE | DFY2: FALSE | DFZ2: FALSE | DGA2: FALSE | DGB2: FALSE | DGC2: TRUE | DGD2: =MOD(DGD1,$F$2)=0 -> FALSE | DGE2: FALSE | DGF2: FALSE | DGG2: FALSE | DGH2: FALSE | DGI2: FALSE | DGJ2: FALSE | DGK2: FALSE | DGL2: FALSE | DGM2: FALSE | DGN2: FALSE | DGO2: FALSE | DGP2: FALSE | DGQ2: FALSE | DGR2: FALSE | DGS2: FALSE | DGT2: FALSE | DGU2: FALSE | DGV2: FALSE | DGW2: FALSE | DGX2: FALSE | DGY2: FALSE | DGZ2: FALSE | DHA2: TRUE | DHB2: FALSE | DHC2: FALSE | DHD2: FALSE | DHE2: FALSE | DHF2: FALSE | DHG2: FALSE | DHH2: FALSE | DHI2: FALSE | DHJ2: FALSE | DHK2: FALSE | DHL2: FALSE | DHM2: FALSE | DHN2: FALSE | DHO2: FALSE | DHP2: FALSE | DHQ2: FALSE | DHR2: FALSE | DHS2: FALSE | DHT2: FALSE | DHU2: FALSE | DHV2: FALSE | DHW2: FALSE | DHX2: FALSE | DHY2: TRUE | DHZ2: FALSE | DIA2: FALSE | DIB2: FALSE | DIC2: FALSE | DID2: FALSE | DIE2: FALSE | DIF2: FALSE | DIG2: FALSE | DIH2: FALSE | DII2: FALSE | DIJ2: FALSE | DIK2: FALSE | DIL2: FALSE | DIM2: FALSE | DIN2: FALSE | DIO2: FALSE | DIP2: =MOD(DIP1,$F$2)=0 -> FALSE | DIQ2: FALSE | DIR2: FALSE | DIS2: FALSE | DIT2: FALSE | DIU2: FALSE | DIV2: FALSE | DIW2: TRUE | DIX2: FALSE | DIY2: FALSE | DIZ2: FALSE | DJA2: FALSE | DJB2: FALSE | DJC2: FALSE | DJD2: FALSE | DJE2: FALSE | DJF2: FALSE | DJG2: FALSE | DJH2: FALSE | DJI2: FALSE | DJJ2: FALSE | DJK2: FALSE | DJL2: FALSE | DJM2: FALSE | DJN2: FALSE | DJO2: FALSE | DJP2: FALSE | DJQ2: FALSE | DJR2: FALSE | DJS2: FALSE | DJT2: FALSE | DJU2: TRUE | DJV2: FALSE | DJW2: FALSE | DJX2: FALSE | DJY2: FALSE | DJZ2: FALSE | DKA2: FALSE | DKB2: FALSE | DKC2: FALSE | DKD2: FALSE | DKE2: FALSE | DKF2: FALSE | DKG2: FALSE | DKH2: FALSE | DKI2: FALSE | DKJ2: FALSE | DKK2: FALSE | DKL2: FALSE | DKM2: FALSE | DKN2: FALSE | DKO2: FALSE | DKP2: FALSE | DKQ2: FALSE | DKR2: FALSE | DKS2: TRUE | DKT2: FALSE | DKU2: FALSE | DKV2: FALSE | DKW2: FALSE | DKX2: FALSE | DKY2: FALSE | DKZ2: FALSE | DLA2: FALSE | DLB2: =MOD(DLB1,$F$2)=0 -> FALSE | DLC2: FALSE | DLD2: FALSE | DLE2: FALSE | DLF2: FALSE | DLG2: FALSE | DLH2: FALSE | DLI2: FALSE | DLJ2: FALSE | DLK2: FALSE | DLL2: FALSE | DLM2: FALSE | DLN2: FALSE | DLO2: FALSE | DLP2: FALSE | DLQ2: TRUE | DLR2: FALSE | DLS2: FALSE | DLT2: FALSE | DLU2: FALSE | DLV2: FALSE | DLW2: FALSE | DLX2: FALSE | DLY2: FALSE | DLZ2: FALSE | DMA2: FALSE | DMB2: FALSE | DMC2: FALSE | DMD2: FALSE | DME2: FALSE | DMF2: FALSE | DMG2: FALSE | DMH2: FALSE | DMI2: FALSE | DMJ2: FALSE | DMK2: FALSE | DML2: FALSE | DMM2: FALSE | DMN2: FALSE | DMO2: TRUE | DMP2: FALSE | DMQ2: FALSE | DMR2: FALSE | DMS2: FALSE | DMT2: FALSE | DMU2: FALSE | DMV2: FALSE | DMW2: FALSE | DMX2: FALSE | DMY2: FALSE | DMZ2: FALSE | DNA2: FALSE | DNB2: FALSE | DNC2: FALSE | DND2: FALSE | DNE2: FALSE | DNF2: FALSE | DNG2: FALSE | DNH2: FALSE | DNI2: FALSE | DNJ2: FALSE | DNK2: FALSE | DNL2: FALSE | DNM2: TRUE | DNN2: =MOD(DNN1,$F$2)=0 -> FALSE | DNO2: FALSE | DNP2: FALSE | DNQ2: FALSE | DNR2: FALSE | DNS2: FALSE | DNT2: FALSE | DNU2: FALSE | DNV2: FALSE | DNW2: FALSE | DNX2: FALSE | DNY2: FALSE | DNZ2: FALSE | DOA2: FALSE | DOB2: FALSE | DOC2: FALSE | DOD2: FALSE | DOE2: FALSE | DOF2: FALSE | DOG2: FALSE | DOH2: FALSE | DOI2: FALSE | DOJ2: FALSE | DOK2: TRUE | DOL2: FALSE | DOM2: FALSE | DON2: FALSE | DOO2: FALSE | DOP2: FALSE | DOQ2: FALSE | DOR2: FALSE | DOS2: FALSE | DOT2: FALSE | DOU2: FALSE | DOV2: FALSE | DOW2: FALSE | DOX2: FALSE | DOY2: FALSE | DOZ2: FALSE | DPA2: FALSE | DPB2: FALSE | DPC2: FALSE | DPD2: FALSE | DPE2: FALSE | DPF2: FALSE | DPG2: FALSE | DPH2: FALSE | DPI2: TRUE | DPJ2: FALSE | DPK2: FALSE | DPL2: FALSE | DPM2: FALSE | DPN2: FALSE | DPO2: FALSE | DPP2: FALSE | DPQ2: FALSE | DPR2: FALSE | DPS2: FALSE | DPT2: FALSE | DPU2: FALSE | DPV2: FALSE | DPW2: FALSE | DPX2: FALSE | DPY2: FALSE | DPZ2: =MOD(DPZ1,$F$2)=0 -> FALSE | DQA2: FALSE | DQB2: FALSE | DQC2: FALSE | DQD2: FALSE | DQE2: FALSE | DQF2: FALSE | DQG2: TRUE | DQH2: FALSE | DQI2: FALSE | DQJ2: FALSE | DQK2: FALSE | DQL2: FALSE | DQM2: FALSE | DQN2: FALSE | DQO2: FALSE | DQP2: FALSE | DQQ2: FALSE | DQR2: FALSE | DQS2: FALSE | DQT2: FALSE | DQU2: FALSE | DQV2: FALSE | DQW2: FALSE | DQX2: FALSE | DQY2: FALSE | DQZ2: FALSE | DRA2: FALSE | DRB2: FALSE | DRC2: FALSE | DRD2: FALSE | DRE2: TRUE | DRF2: FALSE | DRG2: FALSE | DRH2: FALSE | DRI2: FALSE | DRJ2: FALSE | DRK2: FALSE | DRL2: FALSE | DRM2: FALSE | DRN2: FALSE | DRO2: FALSE | DRP2: FALSE | DRQ2: FALSE | DRR2: FALSE | DRS2: FALSE | DRT2: FALSE | DRU2: FALSE | DRV2: FALSE | DRW2: FALSE | DRX2: FALSE | DRY2: FALSE | DRZ2: FALSE | DSA2: FALSE | DSB2: FALSE | DSC2: TRUE | DSD2: FALSE | DSE2: FALSE | DSF2: FALSE | DSG2: FALSE | DSH2: FALSE | DSI2: FALSE | DSJ2: FALSE | DSK2: FALSE | DSL2: =MOD(DSL1,$F$2)=0 -> FALSE | DSM2: FALSE | DSN2: FALSE | DSO2: FALSE | DSP2: FALSE | DSQ2: FALSE | DSR2: FALSE | DSS2: FALSE | DST2: FALSE | DSU2: FALSE | DSV2: FALSE | DSW2: FALSE | DSX2: FALSE | DSY2: FALSE | DSZ2: FALSE | DTA2: TRUE | DTB2: FALSE | DTC2: FALSE | DTD2: FALSE | DTE2: FALSE | DTF2: FALSE | DTG2: FALSE | DTH2: FALSE | DTI2: FALSE | DTJ2: FALSE | DTK2: FALSE | DTL2: FALSE | DTM2: FALSE | DTN2: FALSE | DTO2: FALSE | DTP2: FALSE | DTQ2: FALSE | DTR2: FALSE | DTS2: FALSE | DTT2: FALSE | DTU2: FALSE | DTV2: FALSE | DTW2: FALSE | DTX2: FALSE | DTY2: TRUE | DTZ2: FALSE | DUA2: FALSE | DUB2: FALSE | DUC2: FALSE | DUD2: FALSE | DUE2: FALSE | DUF2: FALSE | DUG2: FALSE | DUH2: FALSE | DUI2: FALSE | DUJ2: FALSE | DUK2: FALSE | DUL2: FALSE | DUM2: FALSE | DUN2: FALSE | DUO2: FALSE | DUP2: FALSE | DUQ2: FALSE | DUR2: FALSE | DUS2: FALSE | DUT2: FALSE | DUU2: FALSE | DUV2: FALSE | DUW2: TRUE | DUX2: =MOD(DUX1,$F$2)=0 -> FALSE | DUY2: FALSE | DUZ2: FALSE | DVA2: FALSE | DVB2: FALSE | DVC2: FALSE | DVD2: FALSE | DVE2: FALSE | DVF2: FALSE | DVG2: FALSE | DVH2: FALSE | DVI2: FALSE | DVJ2: FALSE | DVK2: FALSE | DVL2: FALSE | DVM2: FALSE | DVN2: FALSE | DVO2: FALSE | DVP2: FALSE | DVQ2: FALSE | DVR2: FALSE | DVS2: FALSE | DVT2: FALSE | DVU2: TRUE | DVV2: FALSE | DVW2: FALSE | DVX2: FALSE | DVY2: FALSE | DVZ2: FALSE | DWA2: FALSE | DWB2: FALSE | DWC2: FALSE | DWD2: FALSE | DWE2: FALSE | DWF2: FALSE | DWG2: FALSE | DWH2: FALSE | DWI2: FALSE | DWJ2: FALSE | DWK2: FALSE | DWL2: FALSE | DWM2: FALSE | DWN2: FALSE | DWO2: FALSE | DWP2: FALSE | DWQ2: FALSE | DWR2: FALSE | DWS2: TRUE | DWT2: FALSE | DWU2: FALSE | DWV2: FALSE | DWW2: FALSE | DWX2: FALSE | DWY2: FALSE | DWZ2: FALSE | DXA2: FALSE | DXB2: FALSE | DXC2: FALSE | DXD2: FALSE | DXE2: FALSE | DXF2: FALSE | DXG2: FALSE | DXH2: FALSE | DXI2: FALSE | DXJ2: =MOD(DXJ1,$F$2)=0 -> FALSE | DXK2: FALSE | DXL2: FALSE | DXM2: FALSE | DXN2: FALSE | DXO2: FALSE | DXP2: FALSE | DXQ2: TRUE | DXR2: FALSE | DXS2: FALSE | DXT2: FALSE | DXU2: FALSE | DXV2: FALSE | DXW2: FALSE | DXX2: FALSE | DXY2: FALSE | DXZ2: FALSE | DYA2: FALSE | DYB2: FALSE | DYC2: FALSE | DYD2: FALSE | DYE2: FALSE | DYF2: FALSE | DYG2: FALSE | DYH2: FALSE | DYI2: FALSE | DYJ2: FALSE | DYK2: FALSE | DYL2: FALSE | DYM2: FALSE | DYN2: FALSE | DYO2: TRUE | DYP2: FALSE | DYQ2: FALSE | DYR2: FALSE | DYS2: FALSE | DYT2: FALSE | DYU2: FALSE | DYV2: FALSE | DYW2: FALSE | DYX2: FALSE | DYY2: FALSE | DYZ2: FALSE | DZA2: FALSE | DZB2: FALSE | DZC2: FALSE | DZD2: FALSE | DZE2: FALSE | DZF2: FALSE | DZG2: FALSE | DZH2: FALSE | DZI2: FALSE | DZJ2: FALSE | DZK2: FALSE | DZL2: FALSE | DZM2: TRUE | DZN2: FALSE | DZO2: FALSE | DZP2: FALSE | DZQ2: FALSE | DZR2: FALSE | DZS2: FALSE | DZT2: FALSE | DZU2: FALSE | DZV2: =MOD(DZV1,$F$2)=0 -> FALSE | DZW2: FALSE | DZX2: FALSE | DZY2: FALSE | DZZ2: FALSE | EAA2: FALSE | EAB2: FALSE | EAC2: FALSE | EAD2: FALSE | EAE2: FALSE | EAF2: FALSE | EAG2: FALSE | EAH2: FALSE | EAI2: FALSE | EAJ2: FALSE | EAK2: TRUE | EAL2: FALSE | EAM2: FALSE | EAN2: FALSE | EAO2: FALSE | EAP2: FALSE | EAQ2: FALSE | EAR2: FALSE | EAS2: FALSE | EAT2: FALSE | EAU2: FALSE | EAV2: FALSE | EAW2: FALSE | EAX2: FALSE | EAY2: FALSE | EAZ2: FALSE | EBA2: FALSE | EBB2: FALSE | EBC2: FALSE | EBD2: FALSE | EBE2: FALSE | EBF2: FALSE | EBG2: FALSE | EBH2: FALSE | EBI2: TRUE | EBJ2: FALSE | EBK2: FALSE | EBL2: FALSE | EBM2: FALSE | EBN2: FALSE | EBO2: FALSE | EBP2: FALSE | EBQ2: FALSE | EBR2: FALSE | EBS2: FALSE | EBT2: FALSE | EBU2: FALSE | EBV2: FALSE | EBW2: FALSE | EBX2: FALSE | EBY2: FALSE | EBZ2: FALSE | ECA2: FALSE | ECB2: FALSE | ECC2: FALSE | ECD2: FALSE | ECE2: FALSE | ECF2: FALSE | ECG2: TRUE | ECH2: =MOD(ECH1,$F$2)=0 -> FALSE | ECI2: FALSE | ECJ2: FALSE | ECK2: FALSE | ECL2: FALSE | ECM2: FALSE | ECN2: FALSE | ECO2: FALSE | ECP2: FALSE | ECQ2: FALSE | ECR2: FALSE | ECS2: FALSE | ECT2: FALSE | ECU2: FALSE | ECV2: FALSE | ECW2: FALSE | ECX2: FALSE | ECY2: FALSE | ECZ2: FALSE | EDA2: FALSE | EDB2: FALSE | EDC2: FALSE | EDD2: FALSE | EDE2: TRUE | EDF2: FALSE | EDG2: FALSE | EDH2: FALSE | EDI2: FALSE | EDJ2: FALSE | EDK2: FALSE | EDL2: FALSE | EDM2: FALSE | EDN2: FALSE | EDO2: FALSE | EDP2: FALSE | EDQ2: FALSE | EDR2: FALSE | EDS2: FALSE | EDT2: FALSE | EDU2: FALSE | EDV2: FALSE | EDW2: FALSE | EDX2: FALSE | EDY2: FALSE | EDZ2: FALSE | EEA2: FALSE | EEB2: FALSE | EEC2: TRUE | EED2: FALSE | EEE2: FALSE | EEF2: FALSE | EEG2: FALSE | EEH2: FALSE | EEI2: FALSE | EEJ2: FALSE | EEK2: FALSE | EEL2: FALSE | EEM2: FALSE | EEN2: FALSE | EEO2: FALSE | EEP2: FALSE | EEQ2: FALSE | EER2: FALSE | EES2: FALSE | EET2: =MOD(EET1,$F$2)=0 -> FALSE | EEU2: FALSE | EEV2: FALSE | EEW2: FALSE | EEX2: FALSE | EEY2: FALSE | EEZ2: FALSE | EFA2: TRUE | EFB2: FALSE | EFC2: FALSE | EFD2: FALSE | EFE2: FALSE | EFF2: FALSE | EFG2: FALSE | EFH2: FALSE | EFI2: FALSE | EFJ2: FALSE | EFK2: FALSE | EFL2: FALSE | EFM2: FALSE | EFN2: FALSE | EFO2: FALSE | EFP2: FALSE | EFQ2: FALSE | EFR2: FALSE | EFS2: FALSE | EFT2: FALSE | EFU2: FALSE | EFV2: FALSE | EFW2: FALSE | EFX2: FALSE | EFY2: TRUE | EFZ2: FALSE | EGA2: FALSE | EGB2: FALSE | EGC2: FALSE | EGD2: FALSE | EGE2: FALSE | EGF2: FALSE | EGG2: FALSE | EGH2: FALSE | EGI2: FALSE | EGJ2: FALSE | EGK2: FALSE | EGL2: FALSE | EGM2: FALSE | EGN2: FALSE | EGO2: FALSE | EGP2: FALSE | EGQ2: FALSE | EGR2: FALSE | EGS2: FALSE | EGT2: FALSE | EGU2: FALSE | EGV2: FALSE | EGW2: TRUE | EGX2: FALSE | EGY2: FALSE | EGZ2: FALSE | EHA2: FALSE | EHB2: FALSE | EHC2: FALSE | EHD2: FALSE | EHE2: FALSE | EHF2: =MOD(EHF1,$F$2)=0 -> FALSE | EHG2: FALSE | EHH2: FALSE | EHI2: FALSE | EHJ2: FALSE | EHK2: FALSE | EHL2: FALSE | EHM2: FALSE | EHN2: FALSE | EHO2: FALSE | EHP2: FALSE | EHQ2: FALSE | EHR2: FALSE | EHS2: FALSE | EHT2: FALSE | EHU2: TRUE | EHV2: FALSE | EHW2: FALSE | EHX2: FALSE | EHY2: FALSE | EHZ2: FALSE | EIA2: FALSE | EIB2: FALSE | EIC2: FALSE | EID2: FALSE | EIE2: FALSE | EIF2: FALSE | EIG2: FALSE | EIH2: FALSE | EII2: FALSE | EIJ2: FALSE | EIK2: FALSE | EIL2: FALSE | EIM2: FALSE | EIN2: FALSE | EIO2: FALSE | EIP2: FALSE | EIQ2: FALSE | EIR2: FALSE | EIS2: TRUE | EIT2: FALSE | EIU2: FALSE | EIV2: FALSE | EIW2: FALSE | EIX2: FALSE | EIY2: FALSE | EIZ2: FALSE | EJA2: FALSE | EJB2: FALSE | EJC2: FALSE | EJD2: FALSE | EJE2: FALSE | EJF2: FALSE | EJG2: FALSE | EJH2: FALSE | EJI2: FALSE | EJJ2: FALSE | EJK2: FALSE | EJL2: FALSE | EJM2: FALSE | EJN2: FALSE | EJO2: FALSE | EJP2: FALSE | EJQ2: TRUE | EJR2: =MOD(EJR1,$F$2)=0 -> FALSE | EJS2: FALSE | EJT2: FALSE | EJU2: FALSE | EJV2: FALSE | EJW2: FALSE | EJX2: FALSE | EJY2: FALSE | EJZ2: FALSE | EKA2: FALSE | EKB2: FALSE | EKC2: FALSE | EKD2: FALSE | EKE2: FALSE | EKF2: FALSE | EKG2: FALSE | EKH2: FALSE | EKI2: FALSE | EKJ2: FALSE | EKK2: FALSE | EKL2: FALSE | EKM2: FALSE | EKN2: FALSE | EKO2: TRUE | EKP2: FALSE | EKQ2: FALSE | EKR2: FALSE | EKS2: FALSE | EKT2: FALSE | EKU2: FALSE | EKV2: FALSE | EKW2: FALSE | EKX2: FALSE | EKY2: FALSE | EKZ2: FALSE | ELA2: FALSE | ELB2: FALSE | ELC2: FALSE | ELD2: FALSE | ELE2: FALSE | ELF2: FALSE | ELG2: FALSE | ELH2: FALSE | ELI2: FALSE | ELJ2: FALSE | ELK2: FALSE | ELL2: FALSE | ELM2: TRUE | ELN2: FALSE | ELO2: FALSE | ELP2: FALSE | ELQ2: FALSE | ELR2: FALSE | ELS2: FALSE | ELT2: FALSE | ELU2: FALSE | ELV2: FALSE | ELW2: FALSE | ELX2: FALSE | ELY2: FALSE | ELZ2: FALSE | EMA2: FALSE | EMB2: FALSE | EMC2: FALSE | EMD2: =MOD(EMD1,$F$2)=0 -> FALSE | EME2: FALSE | EMF2: FALSE | EMG2: FALSE | EMH2: FALSE | EMI2: FALSE | EMJ2: FALSE | EMK2: TRUE | EML2: FALSE | EMM2: FALSE | EMN2: FALSE | EMO2: FALSE | EMP2: FALSE | EMQ2: FALSE | EMR2: FALSE | EMS2: FALSE | EMT2: FALSE | EMU2: FALSE | EMV2: FALSE | EMW2: FALSE | EMX2: FALSE | EMY2: FALSE | EMZ2: FALSE | ENA2: FALSE | ENB2: FALSE | ENC2: FALSE | END2: FALSE | ENE2: FALSE | ENF2: FALSE | ENG2: FALSE | ENH2: FALSE | ENI2: TRUE | ENJ2: FALSE | ENK2: FALSE | ENL2: FALSE | ENM2: FALSE | ENN2: FALSE | ENO2: FALSE | ENP2: FALSE | ENQ2: FALSE | ENR2: FALSE | ENS2: FALSE | ENT2: FALSE | ENU2: FALSE | ENV2: FALSE | ENW2: FALSE | ENX2: FALSE | ENY2: FALSE | ENZ2: FALSE | EOA2: FALSE | EOB2: FALSE | EOC2: FALSE | EOD2: FALSE | EOE2: FALSE | EOF2: FALSE | EOG2: TRUE | EOH2: FALSE | EOI2: FALSE | EOJ2: FALSE | EOK2: FALSE | EOL2: FALSE | EOM2: FALSE | EON2: FALSE | EOO2: FALSE | EOP2: =MOD(EOP1,$F$2)=0 -> FALSE | EOQ2: FALSE | EOR2: FALSE | EOS2: FALSE | EOT2: FALSE | EOU2: FALSE | EOV2: FALSE | EOW2: FALSE | EOX2: FALSE | EOY2: FALSE | EOZ2: FALSE | EPA2: FALSE | EPB2: FALSE | EPC2: FALSE | EPD2: FALSE | EPE2: TRUE | EPF2: FALSE | EPG2: FALSE | EPH2: FALSE | EPI2: FALSE | EPJ2: FALSE | EPK2: FALSE | EPL2: FALSE | EPM2: FALSE | EPN2: FALSE | EPO2: FALSE | EPP2: FALSE | EPQ2: FALSE | EPR2: FALSE | EPS2: FALSE | EPT2: FALSE | EPU2: FALSE | EPV2: FALSE | EPW2: FALSE | EPX2: FALSE | EPY2: FALSE | EPZ2: FALSE | EQA2: FALSE | EQB2: FALSE | EQC2: TRUE | EQD2: FALSE | EQE2: FALSE | EQF2: FALSE | EQG2: FALSE | EQH2: FALSE | EQI2: FALSE | EQJ2: FALSE | EQK2: FALSE | EQL2: FALSE | EQM2: FALSE | EQN2: FALSE | EQO2: FALSE | EQP2: FALSE | EQQ2: FALSE | EQR2: FALSE | EQS2: FALSE | EQT2: FALSE | EQU2: FALSE | EQV2: FALSE | EQW2: FALSE | EQX2: FALSE | EQY2: FALSE | EQZ2: FALSE | ERA2: TRUE | ERB2: =MOD(ERB1,$F$2)=0 -> FALSE | ERC2: FALSE | ERD2: FALSE | ERE2: FALSE | ERF2: FALSE | ERG2: FALSE | ERH2: FALSE | ERI2: FALSE | ERJ2: FALSE | ERK2: FALSE | ERL2: FALSE | ERM2: FALSE | ERN2: FALSE | ERO2: FALSE | ERP2: FALSE | ERQ2: FALSE | ERR2: FALSE | ERS2: FALSE | ERT2: FALSE | ERU2: FALSE | ERV2: FALSE | ERW2: FALSE | ERX2: FALSE | ERY2: TRUE | ERZ2: FALSE | ESA2: FALSE | ESB2: FALSE | ESC2: FALSE | ESD2: FALSE | ESE2: FALSE | ESF2: FALSE | ESG2: FALSE | ESH2: FALSE | ESI2: FALSE | ESJ2: FALSE | ESK2: FALSE | ESL2: FALSE | ESM2: FALSE | ESN2: FALSE | ESO2: FALSE | ESP2: FALSE | ESQ2: FALSE | ESR2: FALSE | ESS2: FALSE | EST2: FALSE | ESU2: FALSE | ESV2: FALSE | ESW2: TRUE | ESX2: FALSE | ESY2: FALSE | ESZ2: FALSE | ETA2: FALSE | ETB2: FALSE | ETC2: FALSE | ETD2: FALSE | ETE2: FALSE | ETF2: FALSE | ETG2: FALSE | ETH2: FALSE | ETI2: FALSE | ETJ2: FALSE | ETK2: FALSE | ETL2: FALSE | ETM2: FALSE | ETN2: =MOD(ETN1,$F$2)=0 -> FALSE | ETO2: FALSE | ETP2: FALSE | ETQ2: FALSE | ETR2: FALSE | ETS2: FALSE | ETT2: FALSE | ETU2: TRUE | ETV2: FALSE | ETW2: FALSE | ETX2: FALSE | ETY2: FALSE | ETZ2: FALSE | EUA2: FALSE | EUB2: FALSE | EUC2: FALSE | EUD2: FALSE | EUE2: FALSE | EUF2: FALSE | EUG2: FALSE | EUH2: FALSE | EUI2: FALSE | EUJ2: FALSE | EUK2: FALSE | EUL2: FALSE | EUM2: FALSE | EUN2: FALSE | EUO2: FALSE | EUP2: FALSE | EUQ2: FALSE | EUR2: FALSE | EUS2: TRUE | EUT2: FALSE | EUU2: FALSE | EUV2: FALSE | EUW2: FALSE | EUX2: FALSE | EUY2: FALSE | EUZ2: FALSE | EVA2: FALSE | EVB2: FALSE | EVC2: FALSE | EVD2: FALSE | EVE2: FALSE | EVF2: FALSE | EVG2: FALSE | EVH2: FALSE | EVI2: FALSE | EVJ2: FALSE | EVK2: FALSE | EVL2: FALSE | EVM2: FALSE | EVN2: FALSE | EVO2: FALSE | EVP2: FALSE | EVQ2: TRUE | EVR2: FALSE | EVS2: FALSE | EVT2: FALSE | EVU2: FALSE | EVV2: FALSE | EVW2: FALSE | EVX2: FALSE | EVY2: FALSE | EVZ2: =MOD(EVZ1,$F$2)=0 -> FALSE | EWA2: FALSE | EWB2: FALSE | EWC2: FALSE | EWD2: FALSE | EWE2: FALSE | EWF2: FALSE | EWG2: FALSE | EWH2: FALSE | EWI2: FALSE | EWJ2: FALSE | EWK2: FALSE | EWL2: FALSE | EWM2: FALSE | EWN2: FALSE | EWO2: TRUE | EWP2: FALSE | EWQ2: FALSE | EWR2: FALSE | EWS2: FALSE | EWT2: FALSE | EWU2: FALSE | EWV2: FALSE | EWW2: FALSE | EWX2: FALSE | EWY2: FALSE | EWZ2: FALSE | EXA2: FALSE | EXB2: FALSE | EXC2: FALSE | EXD2: FALSE | EXE2: FALSE | EXF2: FALSE | EXG2: FALSE | EXH2: FALSE | EXI2: FALSE | EXJ2: FALSE | EXK2: FALSE | EXL2: FALSE | EXM2: TRUE | EXN2: FALSE | EXO2: FALSE | EXP2: FALSE | EXQ2: FALSE | EXR2: FALSE | EXS2: FALSE | EXT2: FALSE | EXU2: FALSE | EXV2: FALSE | EXW2: FALSE | EXX2: FALSE | EXY2: FALSE | EXZ2: FALSE | EYA2: FALSE | EYB2: FALSE | EYC2: FALSE | EYD2: FALSE | EYE2: FALSE | EYF2: FALSE | EYG2: FALSE | EYH2: FALSE | EYI2: FALSE | EYJ2: FALSE | EYK2: TRUE | EYL2: =MOD(EYL1,$F$2)=0 -> FALSE | EYM2: FALSE | EYN2: FALSE | EYO2: FALSE | EYP2: FALSE | EYQ2: FALSE | EYR2: FALSE | EYS2: FALSE | EYT2: FALSE | EYU2: FALSE | EYV2: FALSE | EYW2: FALSE | EYX2: FALSE | EYY2: FALSE | EYZ2: FALSE | EZA2: FALSE | EZB2: FALSE | EZC2: FALSE | EZD2: FALSE | EZE2: FALSE | EZF2: FALSE | EZG2: FALSE | EZH2: FALSE | EZI2: TRUE | EZJ2: FALSE | EZK2: FALSE | EZL2: FALSE | EZM2: FALSE | EZN2: FALSE | EZO2: FALSE | EZP2: FALSE | EZQ2: FALSE | EZR2: FALSE | EZS2: FALSE | EZT2: FALSE | EZU2: FALSE | EZV2: FALSE | EZW2: FALSE | EZX2: FALSE | EZY2: FALSE | EZZ2: FALSE | FAA2: FALSE | FAB2: FALSE | FAC2: FALSE | FAD2: FALSE | FAE2: FALSE | FAF2: FALSE | FAG2: TRUE | FAH2: FALSE | FAI2: FALSE | FAJ2: FALSE | FAK2: FALSE | FAL2: FALSE | FAM2: FALSE | FAN2: FALSE | FAO2: FALSE | FAP2: FALSE | FAQ2: FALSE | FAR2: FALSE | FAS2: FALSE | FAT2: FALSE | FAU2: FALSE | FAV2: FALSE | FAW2: FALSE | FAX2: =MOD(FAX1,$F$2)=0 -> FALSE | FAY2: FALSE | FAZ2: FALSE | FBA2: FALSE | FBB2: FALSE | FBC2: FALSE | FBD2: FALSE | FBE2: TRUE | FBF2: FALSE | FBG2: FALSE | FBH2: FALSE | FBI2: FALSE | FBJ2: FALSE | FBK2: FALSE | FBL2: FALSE | FBM2: FALSE | FBN2: FALSE | FBO2: FALSE | FBP2: FALSE | FBQ2: FALSE | FBR2: FALSE | FBS2: FALSE | FBT2: FALSE | FBU2: FALSE | FBV2: FALSE | FBW2: FALSE | FBX2: FALSE | FBY2: FALSE | FBZ2: FALSE | FCA2: FALSE | FCB2: FALSE | FCC2: TRUE | FCD2: FALSE | FCE2: FALSE | FCF2: FALSE | FCG2: FALSE | FCH2: FALSE | FCI2: FALSE | FCJ2: FALSE | FCK2: FALSE | FCL2: FALSE | FCM2: FALSE | FCN2: FALSE | FCO2: FALSE | FCP2: FALSE | FCQ2: FALSE | FCR2: FALSE | FCS2: FALSE | FCT2: FALSE | FCU2: FALSE | FCV2: FALSE | FCW2: FALSE | FCX2: FALSE | FCY2: FALSE | FCZ2: FALSE | FDA2: TRUE | FDB2: FALSE | FDC2: FALSE | FDD2: FALSE | FDE2: FALSE | FDF2: FALSE | FDG2: FALSE | FDH2: FALSE | FDI2: FALSE | FDJ2: =MOD(FDJ1,$F$2)=0 -> FALSE | FDK2: FALSE | FDL2: FALSE | FDM2: FALSE | FDN2: FALSE | FDO2: FALSE | FDP2: FALSE | FDQ2: FALSE | FDR2: FALSE | FDS2: FALSE | FDT2: FALSE | FDU2: FALSE | FDV2: FALSE | FDW2: FALSE | FDX2: FALSE | FDY2: TRUE | FDZ2: FALSE | FEA2: FALSE | FEB2: FALSE | FEC2: FALSE | FED2: FALSE | FEE2: FALSE | FEF2: FALSE | FEG2: FALSE | FEH2: FALSE | FEI2: FALSE | FEJ2: FALSE | FEK2: FALSE | FEL2: FALSE | FEM2: FALSE | FEN2: FALSE | FEO2: FALSE | FEP2: FALSE | FEQ2: FALSE | FER2: FALSE | FES2: FALSE | FET2: FALSE | FEU2: FALSE | FEV2: FALSE | FEW2: TRUE | FEX2: FALSE | FEY2: FALSE | FEZ2: FALSE | FFA2: FALSE | FFB2: FALSE | FFC2: FALSE | FFD2: FALSE | FFE2: FALSE | FFF2: FALSE | FFG2: FALSE | FFH2: FALSE | FFI2: FALSE | FFJ2: FALSE | FFK2: FALSE | FFL2: FALSE | FFM2: FALSE | FFN2: FALSE | FFO2: FALSE | FFP2: FALSE | FFQ2: FALSE | FFR2: FALSE | FFS2: FALSE | FFT2: FALSE | FFU2: TRUE | FFV2: =MOD(FFV1,$F$2)=0 -> FALSE | FFW2: FALSE | FFX2: FALSE | FFY2: FALSE | FFZ2: FALSE | FGA2: FALSE | FGB2: FALSE | FGC2: FALSE | FGD2: FALSE | FGE2: FALSE | FGF2: FALSE | FGG2: FALSE | FGH2: FALSE | FGI2: FALSE | FGJ2: FALSE | FGK2: FALSE | FGL2: FALSE | FGM2: FALSE | FGN2: FALSE | FGO2: FALSE | FGP2: FALSE | FGQ2: FALSE | FGR2: FALSE | FGS2: TRUE | FGT2: FALSE | FGU2: FALSE | FGV2: FALSE | FGW2: FALSE | FGX2: FALSE | FGY2: FALSE | FGZ2: FALSE | FHA2: FALSE | FHB2: FALSE | FHC2: FALSE | FHD2: FALSE | FHE2: FALSE | FHF2: FALSE | FHG2: FALSE | FHH2: FALSE | FHI2: FALSE | FHJ2: FALSE | FHK2: FALSE | FHL2: FALSE | FHM2: FALSE | FHN2: FALSE | FHO2: FALSE | FHP2: FALSE | FHQ2: TRUE | FHR2: FALSE | FHS2: FALSE | FHT2: FALSE | FHU2: FALSE | FHV2: FALSE | FHW2: FALSE | FHX2: FALSE | FHY2: FALSE | FHZ2: FALSE | FIA2: FALSE | FIB2: FALSE | FIC2: FALSE | FID2: FALSE | FIE2: FALSE | FIF2: FALSE | FIG2: FALSE | FIH2: =MOD(FIH1,$F$2)=0 -> FALSE | FII2: FALSE | FIJ2: FALSE | FIK2: FALSE | FIL2: FALSE | FIM2: FALSE | FIN2: FALSE | FIO2: TRUE | FIP2: FALSE | FIQ2: FALSE | FIR2: FALSE | FIS2: FALSE | FIT2: FALSE | FIU2: FALSE | FIV2: FALSE | FIW2: FALSE | FIX2: FALSE | FIY2: FALSE | FIZ2: FALSE | FJA2: FALSE | FJB2: FALSE | FJC2: FALSE | FJD2: FALSE | FJE2: FALSE | FJF2: FALSE | FJG2: FALSE | FJH2: FALSE | FJI2: FALSE | FJJ2: FALSE | FJK2: FALSE | FJL2: FALSE | FJM2: TRUE | FJN2: FALSE | FJO2: FALSE | FJP2: FALSE | FJQ2: FALSE | FJR2: FALSE | FJS2: FALSE | FJT2: FALSE | FJU2: FALSE | FJV2: FALSE | FJW2: FALSE | FJX2: FALSE | FJY2: FALSE | FJZ2: FALSE | FKA2: FALSE | FKB2: FALSE | FKC2: FALSE | FKD2: FALSE | FKE2: FALSE | FKF2: FALSE | FKG2: FALSE | FKH2: FALSE | FKI2: FALSE | FKJ2: FALSE | FKK2: TRUE | FKL2: FALSE | FKM2: FALSE | FKN2: FALSE | FKO2: FALSE | FKP2: FALSE | FKQ2: FALSE | FKR2: FALSE | FKS2: FALSE | FKT2: =MOD(FKT1,$F$2)=0 -> FALSE | FKU2: FALSE | FKV2: FALSE | FKW2: FALSE | FKX2: FALSE | FKY2: FALSE | FKZ2: FALSE | FLA2: FALSE | FLB2: FALSE | FLC2: FALSE | FLD2: FALSE | FLE2: FALSE | FLF2: FALSE | FLG2: FALSE | FLH2: FALSE | FLI2: TRUE | FLJ2: FALSE | FLK2: FALSE | FLL2: FALSE | FLM2: FALSE | FLN2: FALSE | FLO2: FALSE | FLP2: FALSE | FLQ2: FALSE | FLR2: FALSE | FLS2: FALSE | FLT2: FALSE | FLU2: FALSE | FLV2: FALSE | FLW2: FALSE | FLX2: FALSE | FLY2: FALSE | FLZ2: FALSE | FMA2: FALSE | FMB2: FALSE | FMC2: FALSE | FMD2: FALSE | FME2: FALSE | FMF2: FALSE | FMG2: TRUE | FMH2: FALSE | FMI2: FALSE | FMJ2: FALSE | FMK2: FALSE | FML2: FALSE | FMM2: FALSE | FMN2: FALSE | FMO2: FALSE | FMP2: FALSE | FMQ2: FALSE | FMR2: FALSE | FMS2: FALSE | FMT2: FALSE | FMU2: FALSE | FMV2: FALSE | FMW2: FALSE | FMX2: FALSE | FMY2: FALSE | FMZ2: FALSE | FNA2: FALSE | FNB2: FALSE | FNC2: FALSE | FND2: FALSE | FNE2: TRUE | FNF2: =MOD(FNF1,$F$2)=0 -> FALSE | FNG2: FALSE | FNH2: FALSE | FNI2: FALSE | FNJ2: FALSE | FNK2: FALSE | FNL2: FALSE | FNM2: FALSE | FNN2: FALSE | FNO2: FALSE | FNP2: FALSE | FNQ2: FALSE | FNR2: FALSE | FNS2: FALSE | FNT2: FALSE | FNU2: FALSE | FNV2: FALSE | FNW2: FALSE | FNX2: FALSE | FNY2: FALSE | FNZ2: FALSE | FOA2: FALSE | FOB2: FALSE | FOC2: TRUE | FOD2: FALSE | FOE2: FALSE | FOF2: FALSE | FOG2: FALSE | FOH2: FALSE | FOI2: FALSE | FOJ2: FALSE | FOK2: FALSE | FOL2: FALSE | FOM2: FALSE | FON2: FALSE | FOO2: FALSE | FOP2: FALSE | FOQ2: FALSE | FOR2: FALSE | FOS2: FALSE | FOT2: FALSE | FOU2: FALSE | FOV2: FALSE | FOW2: FALSE | FOX2: FALSE | FOY2: FALSE | FOZ2: FALSE | FPA2: TRUE | FPB2: FALSE | FPC2: FALSE | FPD2: FALSE | FPE2: FALSE | FPF2: FALSE | FPG2: FALSE | FPH2: FALSE | FPI2: FALSE | FPJ2: FALSE | FPK2: FALSE | FPL2: FALSE | FPM2: FALSE | FPN2: FALSE | FPO2: FALSE | FPP2: FALSE | FPQ2: FALSE | FPR2: =MOD(FPR1,$F$2)=0 -> FALSE | FPS2: FALSE | FPT2: FALSE | FPU2: FALSE | FPV2: FALSE | FPW2: FALSE | FPX2: FALSE | FPY2: TRUE | FPZ2: FALSE | FQA2: FALSE | FQB2: FALSE | FQC2: FALSE | FQD2: FALSE | FQE2: FALSE | FQF2: FALSE | FQG2: FALSE | FQH2: FALSE | FQI2: FALSE | FQJ2: FALSE | FQK2: FALSE | FQL2: FALSE | FQM2: FALSE | FQN2: FALSE | FQO2: FALSE | FQP2: FALSE | FQQ2: FALSE | FQR2: FALSE | FQS2: FALSE | FQT2: FALSE | FQU2: FALSE | FQV2: FALSE | FQW2: TRUE | FQX2: FALSE | FQY2: FALSE | FQZ2: FALSE | FRA2: FALSE | FRB2: FALSE | FRC2: FALSE | FRD2: FALSE | FRE2: FALSE | FRF2: FALSE | FRG2: FALSE | FRH2: FALSE | FRI2: FALSE | FRJ2: FALSE | FRK2: FALSE | FRL2: FALSE | FRM2: FALSE | FRN2: FALSE | FRO2: FALSE | FRP2: FALSE | FRQ2: FALSE | FRR2: FALSE | FRS2: FALSE | FRT2: FALSE | FRU2: TRUE | FRV2: FALSE | FRW2: FALSE | FRX2: FALSE | FRY2: FALSE | FRZ2: FALSE | FSA2: FALSE | FSB2: FALSE | FSC2: FALSE | FSD2: =MOD(FSD1,$F$2)=0 -> FALSE | FSE2: FALSE | FSF2: FALSE | FSG2: FALSE | FSH2: FALSE | FSI2: FALSE | FSJ2: FALSE | FSK2: FALSE | FSL2: FALSE | FSM2: FALSE | FSN2: FALSE | FSO2: FALSE | FSP2: FALSE | FSQ2: FALSE | FSR2: FALSE | FSS2: TRUE | FST2: FALSE | FSU2: FALSE | FSV2: FALSE | FSW2: FALSE | FSX2: FALSE | FSY2: FALSE | FSZ2: FALSE | FTA2: FALSE | FTB2: FALSE | FTC2: FALSE | FTD2: FALSE | FTE2: FALSE | FTF2: FALSE | FTG2: FALSE | FTH2: FALSE | FTI2: FALSE | FTJ2: FALSE | FTK2: FALSE | FTL2: FALSE | FTM2: FALSE | FTN2: FALSE | FTO2: FALSE | FTP2: FALSE | FTQ2: TRUE | FTR2: FALSE | FTS2: FALSE | FTT2: FALSE | FTU2: FALSE | FTV2: FALSE | FTW2: FALSE | FTX2: FALSE | FTY2: FALSE | FTZ2: FALSE | FUA2: FALSE | FUB2: FALSE | FUC2: FALSE | FUD2: FALSE | FUE2: FALSE | FUF2: FALSE | FUG2: FALSE | FUH2: FALSE | FUI2: FALSE | FUJ2: FALSE | FUK2: FALSE | FUL2: FALSE | FUM2: FALSE | FUN2: FALSE | FUO2: TRUE | FUP2: =MOD(FUP1,$F$2)=0 -> FALSE | FUQ2: FALSE | FUR2: FALSE | FUS2: FALSE | FUT2: FALSE | FUU2: FALSE | FUV2: FALSE | FUW2: FALSE | FUX2: FALSE | FUY2: FALSE | FUZ2: FALSE | FVA2: FALSE | FVB2: FALSE | FVC2: FALSE | FVD2: FALSE | FVE2: FALSE | FVF2: FALSE | FVG2: FALSE | FVH2: FALSE | FVI2: FALSE | FVJ2: FALSE | FVK2: FALSE | FVL2: FALSE | FVM2: TRUE | FVN2: FALSE | FVO2: FALSE | FVP2: FALSE | FVQ2: FALSE | FVR2: FALSE | FVS2: FALSE | FVT2: FALSE | FVU2: FALSE | FVV2: FALSE | FVW2: FALSE | FVX2: FALSE | FVY2: FALSE | FVZ2: FALSE | FWA2: FALSE | FWB2: FALSE | FWC2: FALSE | FWD2: FALSE | FWE2: FALSE | FWF2: FALSE | FWG2: FALSE | FWH2: FALSE | FWI2: FALSE | FWJ2: FALSE | FWK2: TRUE | FWL2: FALSE | FWM2: FALSE | FWN2: FALSE | FWO2: FALSE | FWP2: FALSE | FWQ2: FALSE | FWR2: FALSE | FWS2: FALSE | FWT2: FALSE | FWU2: FALSE | FWV2: FALSE | FWW2: FALSE | FWX2: FALSE | FWY2: FALSE | FWZ2: FALSE | FXA2: FALSE | FXB2: =MOD(FXB1,$F$2)=0 -> FALSE | FXC2: FALSE | FXD2: FALSE | FXE2: FALSE | FXF2: FALSE | FXG2: FALSE | FXH2: FALSE | FXI2: TRUE | FXJ2: FALSE | FXK2: FALSE | FXL2: FALSE | FXM2: FALSE | FXN2: FALSE | FXO2: FALSE | FXP2: FALSE | FXQ2: FALSE | FXR2: FALSE | FXS2: FALSE | FXT2: FALSE | FXU2: FALSE | FXV2: FALSE | FXW2: FALSE | FXX2: FALSE | FXY2: FALSE | FXZ2: FALSE | FYA2: FALSE | FYB2: FALSE | FYC2: FALSE | FYD2: FALSE | FYE2: FALSE | FYF2: FALSE | FYG2: TRUE | FYH2: FALSE | FYI2: FALSE | FYJ2: FALSE | FYK2: FALSE | FYL2: FALSE | FYM2: FALSE | FYN2: FALSE | FYO2: FALSE | FYP2: FALSE | FYQ2: FALSE | FYR2: FALSE | FYS2: FALSE | FYT2: FALSE | FYU2: FALSE | FYV2: FALSE | FYW2: FALSE | FYX2: FALSE | FYY2: FALSE | FYZ2: FALSE | FZA2: FALSE | FZB2: FALSE | FZC2: FALSE | FZD2: FALSE | FZE2: TRUE | FZF2: FALSE | FZG2: FALSE | FZH2: FALSE | FZI2: FALSE | FZJ2: FALSE | FZK2: FALSE | FZL2: FALSE | FZM2: FALSE | FZN2: =MOD(FZN1,$F$2)=0 -> FALSE | FZO2: FALSE | FZP2: FALSE | FZQ2: FALSE | FZR2: FALSE | FZS2: FALSE | FZT2: FALSE | FZU2: FALSE | FZV2: FALSE | FZW2: FALSE | FZX2: FALSE | FZY2: FALSE | FZZ2: FALSE | GAA2: FALSE | GAB2: FALSE | GAC2: TRUE | GAD2: FALSE | GAE2: FALSE | GAF2: FALSE | GAG2: FALSE | GAH2: FALSE | GAI2: FALSE | GAJ2: FALSE | GAK2: FALSE | GAL2: FALSE | GAM2: FALSE | GAN2: FALSE | GAO2: FALSE | GAP2: FALSE | GAQ2: FALSE | GAR2: FALSE | GAS2: FALSE | GAT2: FALSE | GAU2: FALSE | GAV2: FALSE | GAW2: FALSE | GAX2: FALSE | GAY2: FALSE | GAZ2: FALSE | GBA2: TRUE | GBB2: FALSE | GBC2: FALSE | GBD2: FALSE | GBE2: FALSE | GBF2: FALSE | GBG2: FALSE | GBH2: FALSE | GBI2: FALSE | GBJ2: FALSE | GBK2: FALSE | GBL2: FALSE | GBM2: FALSE | GBN2: FALSE | GBO2: FALSE | GBP2: FALSE | GBQ2: FALSE | GBR2: FALSE | GBS2: FALSE | GBT2: FALSE | GBU2: FALSE | GBV2: FALSE | GBW2: FALSE | GBX2: FALSE | GBY2: TRUE | GBZ2: =MOD(GBZ1,$F$2)=0 -> FALSE | GCA2: FALSE | GCB2: FALSE | GCC2: FALSE | GCD2: FALSE | GCE2: FALSE | GCF2: FALSE | GCG2: FALSE | GCH2: FALSE | GCI2: FALSE | GCJ2: FALSE | GCK2: FALSE | GCL2: FALSE | GCM2: FALSE | GCN2: FALSE | GCO2: FALSE | GCP2: FALSE | GCQ2: FALSE | GCR2: FALSE | GCS2: FALSE | GCT2: FALSE | GCU2: FALSE | GCV2: FALSE | GCW2: TRUE | GCX2: FALSE | GCY2: FALSE | GCZ2: FALSE | GDA2: FALSE | GDB2: FALSE | GDC2: FALSE | GDD2: FALSE | GDE2: FALSE | GDF2: FALSE | GDG2: FALSE | GDH2: FALSE | GDI2: FALSE | GDJ2: FALSE | GDK2: FALSE | GDL2: FALSE | GDM2: FALSE | GDN2: FALSE | GDO2: FALSE | GDP2: FALSE | GDQ2: FALSE | GDR2: FALSE | GDS2: FALSE | GDT2: FALSE | GDU2: TRUE | GDV2: FALSE | GDW2: FALSE | GDX2: FALSE | GDY2: FALSE | GDZ2: FALSE | GEA2: FALSE | GEB2: FALSE | GEC2: FALSE | GED2: FALSE | GEE2: FALSE | GEF2: FALSE | GEG2: FALSE | GEH2: FALSE | GEI2: FALSE | GEJ2: FALSE | GEK2: FALSE | GEL2: =MOD(GEL1,$F$2)=0 -> FALSE | GEM2: FALSE | GEN2: FALSE | GEO2: FALSE | GEP2: FALSE | GEQ2: FALSE | GER2: FALSE | GES2: TRUE | GET2: FALSE | GEU2: FALSE | GEV2: FALSE | GEW2: FALSE | GEX2: FALSE | GEY2: FALSE | GEZ2: FALSE | GFA2: FALSE | GFB2: FALSE | GFC2: FALSE | GFD2: FALSE | GFE2: FALSE | GFF2: FALSE | GFG2: FALSE | GFH2: FALSE | GFI2: FALSE | GFJ2: FALSE | GFK2: FALSE | GFL2: FALSE | GFM2: FALSE | GFN2: FALSE | GFO2: FALSE | GFP2: FALSE | GFQ2: TRUE | GFR2: FALSE | GFS2: FALSE | GFT2: FALSE | GFU2: FALSE | GFV2: FALSE | GFW2: FALSE | GFX2: FALSE | GFY2: FALSE | GFZ2: FALSE | GGA2: FALSE | GGB2: FALSE | GGC2: FALSE | GGD2: FALSE | GGE2: FALSE | GGF2: FALSE | GGG2: FALSE | GGH2: FALSE | GGI2: FALSE | GGJ2: FALSE | GGK2: FALSE | GGL2: FALSE | GGM2: FALSE | GGN2: FALSE | GGO2: TRUE | GGP2: FALSE | GGQ2: FALSE | GGR2: FALSE | GGS2: FALSE | GGT2: FALSE | GGU2: FALSE | GGV2: FALSE | GGW2: FALSE | GGX2: =MOD(GGX1,$F$2)=0 -> FALSE | GGY2: FALSE | GGZ2: FALSE | GHA2: FALSE | GHB2: FALSE | GHC2: FALSE | GHD2: FALSE | GHE2: FALSE | GHF2: FALSE | GHG2: FALSE | GHH2: FALSE | GHI2: FALSE | GHJ2: FALSE | GHK2: FALSE | GHL2: FALSE | GHM2: TRUE | GHN2: FALSE | GHO2: FALSE | GHP2: FALSE | GHQ2: FALSE | GHR2: FALSE | GHS2: FALSE | GHT2: FALSE | GHU2: FALSE | GHV2: FALSE | GHW2: FALSE | GHX2: FALSE | GHY2: FALSE | GHZ2: FALSE | GIA2: FALSE | GIB2: FALSE | GIC2: FALSE | GID2: FALSE | GIE2: FALSE | GIF2: FALSE | GIG2: FALSE | GIH2: FALSE | GII2: FALSE | GIJ2: FALSE | GIK2: TRUE | GIL2: FALSE | GIM2: FALSE | GIN2: FALSE | GIO2: FALSE | GIP2: FALSE | GIQ2: FALSE | GIR2: FALSE | GIS2: FALSE | GIT2: FALSE | GIU2: FALSE | GIV2: FALSE | GIW2: FALSE | GIX2: FALSE | GIY2: FALSE | GIZ2: FALSE | GJA2: FALSE | GJB2: FALSE | GJC2: FALSE | GJD2: FALSE | GJE2: FALSE | GJF2: FALSE | GJG2: FALSE | GJH2: FALSE | GJI2: TRUE | GJJ2: =MOD(GJJ1,$F$2)=0 -> FALSE | GJK2: FALSE | GJL2: FALSE | GJM2: FALSE | GJN2: FALSE | GJO2: FALSE | GJP2: FALSE | GJQ2: FALSE | GJR2: FALSE | GJS2: FALSE | GJT2: FALSE | GJU2: FALSE | GJV2: FALSE | GJW2: FALSE | GJX2: FALSE | GJY2: FALSE | GJZ2: FALSE | GKA2: FALSE | GKB2: FALSE | GKC2: FALSE | GKD2: FALSE | GKE2: FALSE | GKF2: FALSE | GKG2: TRUE | GKH2: FALSE | GKI2: FALSE | GKJ2: FALSE | GKK2: FALSE | GKL2: FALSE | GKM2: FALSE | GKN2: FALSE | GKO2: FALSE | GKP2: FALSE | GKQ2: FALSE | GKR2: FALSE | GKS2: FALSE | GKT2: FALSE | GKU2: FALSE | GKV2: FALSE | GKW2: FALSE | GKX2: FALSE | GKY2: FALSE | GKZ2: FALSE | GLA2: FALSE | GLB2: FALSE | GLC2: FALSE | GLD2: FALSE | GLE2: TRUE | GLF2: FALSE | GLG2: FALSE | GLH2: FALSE | GLI2: FALSE | GLJ2: FALSE | GLK2: FALSE | GLL2: FALSE | GLM2: FALSE | GLN2: FALSE | GLO2: FALSE | GLP2: FALSE | GLQ2: FALSE | GLR2: FALSE | GLS2: FALSE | GLT2: FALSE | GLU2: FALSE | GLV2: =MOD(GLV1,$F$2)=0 -> FALSE | GLW2: FALSE | GLX2: FALSE | GLY2: FALSE | GLZ2: FALSE | GMA2: FALSE | GMB2: FALSE | GMC2: TRUE | GMD2: FALSE | GME2: FALSE | GMF2: FALSE | GMG2: FALSE | GMH2: FALSE | GMI2: FALSE | GMJ2: FALSE | GMK2: FALSE | GML2: FALSE | GMM2: FALSE | GMN2: FALSE | GMO2: FALSE | GMP2: FALSE | GMQ2: FALSE | GMR2: FALSE | GMS2: FALSE | GMT2: FALSE | GMU2: FALSE | GMV2: FALSE | GMW2: FALSE | GMX2: FALSE | GMY2: FALSE | GMZ2: FALSE | GNA2: TRUE | GNB2: FALSE | GNC2: FALSE | GND2: FALSE | GNE2: FALSE | GNF2: FALSE | GNG2: FALSE | GNH2: FALSE | GNI2: FALSE | GNJ2: FALSE | GNK2: FALSE | GNL2: FALSE | GNM2: FALSE | GNN2: FALSE | GNO2: FALSE | GNP2: FALSE | GNQ2: FALSE | GNR2: FALSE | GNS2: FALSE | GNT2: FALSE | GNU2: FALSE | GNV2: FALSE | GNW2: FALSE | GNX2: FALSE | GNY2: TRUE | GNZ2: FALSE | GOA2: FALSE | GOB2: FALSE | GOC2: FALSE | GOD2: FALSE | GOE2: FALSE | GOF2: FALSE | GOG2: FALSE | GOH2: =MOD(GOH1,$F$2)=0 -> FALSE | GOI2: FALSE | GOJ2: FALSE | GOK2: FALSE | GOL2: FALSE | GOM2: FALSE | GON2: FALSE | GOO2: FALSE | GOP2: FALSE | GOQ2: FALSE | GOR2: FALSE | GOS2: FALSE | GOT2: FALSE | GOU2: FALSE | GOV2: FALSE | GOW2: TRUE | GOX2: FALSE | GOY2: FALSE | GOZ2: FALSE | GPA2: FALSE | GPB2: FALSE | GPC2: FALSE | GPD2: FALSE | GPE2: FALSE | GPF2: FALSE | GPG2: FALSE | GPH2: FALSE | GPI2: FALSE | GPJ2: FALSE | GPK2: FALSE | GPL2: FALSE | GPM2: FALSE | GPN2: FALSE | GPO2: FALSE | GPP2: FALSE | GPQ2: FALSE | GPR2: FALSE | GPS2: FALSE | GPT2: FALSE | GPU2: TRUE | GPV2: FALSE | GPW2: FALSE | GPX2: FALSE | GPY2: FALSE | GPZ2: FALSE | GQA2: FALSE | GQB2: FALSE | GQC2: FALSE | GQD2: FALSE | GQE2: FALSE | GQF2: FALSE | GQG2: FALSE | GQH2: FALSE | GQI2: FALSE | GQJ2: FALSE | GQK2: FALSE | GQL2: FALSE | GQM2: FALSE | GQN2: FALSE | GQO2: FALSE | GQP2: FALSE | GQQ2: FALSE | GQR2: FALSE | GQS2: TRUE | GQT2: =MOD(GQT1,$F$2)=0 -> FALSE | GQU2: FALSE | GQV2: FALSE | GQW2: FALSE | GQX2: FALSE | GQY2: FALSE | GQZ2: FALSE | GRA2: FALSE | GRB2: FALSE | GRC2: FALSE | GRD2: FALSE | GRE2: FALSE | GRF2: FALSE | GRG2: FALSE | GRH2: FALSE | GRI2: FALSE | GRJ2: FALSE | GRK2: FALSE | GRL2: FALSE | GRM2: FALSE | GRN2: FALSE | GRO2: FALSE | GRP2: FALSE | GRQ2: TRUE | GRR2: FALSE | GRS2: FALSE | GRT2: FALSE | GRU2: FALSE | GRV2: FALSE | GRW2: FALSE | GRX2: FALSE | GRY2: FALSE | GRZ2: FALSE | GSA2: FALSE | GSB2: FALSE | GSC2: FALSE | GSD2: FALSE | GSE2: FALSE | GSF2: FALSE | GSG2: FALSE | GSH2: FALSE | GSI2: FALSE | GSJ2: FALSE | GSK2: FALSE | GSL2: FALSE | GSM2: FALSE | GSN2: FALSE | GSO2: TRUE | GSP2: FALSE | GSQ2: FALSE | GSR2: FALSE | GSS2: FALSE | GST2: FALSE | GSU2: FALSE | GSV2: FALSE | GSW2: FALSE | GSX2: FALSE | GSY2: FALSE | GSZ2: FALSE | GTA2: FALSE | GTB2: FALSE | GTC2: FALSE | GTD2: FALSE | GTE2: FALSE | GTF2: =MOD(GTF1,$F$2)=0 -> FALSE | GTG2: FALSE | GTH2: FALSE | GTI2: FALSE | GTJ2: FALSE | GTK2: FALSE | GTL2: FALSE | GTM2: TRUE | GTN2: FALSE | GTO2: FALSE | GTP2: FALSE | GTQ2: FALSE | GTR2: FALSE | GTS2: FALSE | GTT2: FALSE | GTU2: FALSE | GTV2: FALSE | GTW2: FALSE | GTX2: FALSE | GTY2: FALSE | GTZ2: FALSE | GUA2: FALSE | GUB2: FALSE | GUC2: FALSE | GUD2: FALSE | GUE2: FALSE | GUF2: FALSE | GUG2: FALSE | GUH2: FALSE | GUI2: FALSE | GUJ2: FALSE | GUK2: TRUE | GUL2: FALSE | GUM2: FALSE | GUN2: FALSE | GUO2: FALSE | GUP2: FALSE | GUQ2: FALSE | GUR2: FALSE | GUS2: FALSE | GUT2: FALSE | GUU2: FALSE | GUV2: FALSE | GUW2: FALSE | GUX2: FALSE | GUY2: FALSE | GUZ2: FALSE | GVA2: FALSE | GVB2: FALSE | GVC2: FALSE | GVD2: FALSE | GVE2: FALSE | GVF2: FALSE | GVG2: FALSE | GVH2: FALSE | GVI2: TRUE | GVJ2: FALSE | GVK2: FALSE | GVL2: FALSE | GVM2: FALSE | GVN2: FALSE | GVO2: FALSE | GVP2: FALSE | GVQ2: FALSE | GVR2: =MOD(GVR1,$F$2)=0 -> FALSE | GVS2: FALSE | GVT2: FALSE | GVU2: FALSE | GVV2: FALSE | GVW2: FALSE | GVX2: FALSE | GVY2: FALSE | GVZ2: FALSE | GWA2: FALSE | GWB2: FALSE | GWC2: FALSE | GWD2: FALSE | GWE2: FALSE | GWF2: FALSE | GWG2: TRUE | GWH2: FALSE | GWI2: FALSE | GWJ2: FALSE | GWK2: FALSE | GWL2: FALSE | GWM2: FALSE | GWN2: FALSE | GWO2: FALSE | GWP2: FALSE | GWQ2: FALSE | GWR2: FALSE | GWS2: FALSE | GWT2: FALSE | GWU2: FALSE | GWV2: FALSE | GWW2: FALSE | GWX2: FALSE | GWY2: FALSE | GWZ2: FALSE | GXA2: FALSE | GXB2: FALSE | GXC2: FALSE | GXD2: FALSE | GXE2: TRUE | GXF2: FALSE | GXG2: FALSE | GXH2: FALSE | GXI2: FALSE | GXJ2: FALSE | GXK2: FALSE | GXL2: FALSE | GXM2: FALSE | GXN2: FALSE | GXO2: FALSE | GXP2: FALSE | GXQ2: FALSE | GXR2: FALSE | GXS2: FALSE | GXT2: FALSE | GXU2: FALSE | GXV2: FALSE | GXW2: FALSE | GXX2: FALSE | GXY2: FALSE | GXZ2: FALSE | GYA2: FALSE | GYB2: FALSE | GYC2: TRUE | GYD2: =MOD(GYD1,$F$2)=0 -> FALSE | GYE2: FALSE | GYF2: FALSE | GYG2: FALSE | GYH2: FALSE | GYI2: FALSE | GYJ2: FALSE | GYK2: FALSE | GYL2: FALSE | GYM2: FALSE | GYN2: FALSE | GYO2: FALSE | GYP2: FALSE | GYQ2: FALSE | GYR2: FALSE | GYS2: FALSE | GYT2: FALSE | GYU2: FALSE | GYV2: FALSE | GYW2: FALSE | GYX2: FALSE | GYY2: FALSE | GYZ2: FALSE | GZA2: TRUE | GZB2: FALSE | GZC2: FALSE | GZD2: FALSE | GZE2: FALSE | GZF2: FALSE | GZG2: FALSE | GZH2: FALSE | GZI2: FALSE | GZJ2: FALSE | GZK2: FALSE | GZL2: FALSE | GZM2: FALSE | GZN2: FALSE | GZO2: FALSE | GZP2: FALSE | GZQ2: FALSE | GZR2: FALSE | GZS2: FALSE | GZT2: FALSE | GZU2: FALSE | GZV2: FALSE | GZW2: FALSE | GZX2: FALSE | GZY2: TRUE | GZZ2: FALSE | HAA2: FALSE | HAB2: FALSE | HAC2: FALSE | HAD2: FALSE | HAE2: FALSE | HAF2: FALSE | HAG2: FALSE | HAH2: FALSE | HAI2: FALSE | HAJ2: FALSE | HAK2: FALSE | HAL2: FALSE | HAM2: FALSE | HAN2: FALSE | HAO2: FALSE | HAP2: =MOD(HAP1,$F$2)=0 -> FALSE | HAQ2: FALSE | HAR2: FALSE | HAS2: FALSE | HAT2: FALSE | HAU2: FALSE | HAV2: FALSE | HAW2: TRUE | HAX2: FALSE | HAY2: FALSE | HAZ2: FALSE | HBA2: FALSE | HBB2: FALSE | HBC2: FALSE | HBD2: FALSE | HBE2: FALSE | HBF2: FALSE | HBG2: FALSE | HBH2: FALSE | HBI2: FALSE | HBJ2: FALSE | HBK2: FALSE | HBL2: FALSE | HBM2: FALSE | HBN2: FALSE | HBO2: FALSE | HBP2: FALSE | HBQ2: FALSE | HBR2: FALSE | HBS2: FALSE | HBT2: FALSE | HBU2: TRUE | HBV2: FALSE | HBW2: FALSE | HBX2: FALSE | HBY2: FALSE | HBZ2: FALSE | HCA2: FALSE | HCB2: FALSE | HCC2: FALSE | HCD2: FALSE | HCE2: FALSE | HCF2: FALSE | HCG2: FALSE | HCH2: FALSE | HCI2: FALSE | HCJ2: FALSE | HCK2: FALSE | HCL2: FALSE | HCM2: FALSE | HCN2: FALSE | HCO2: FALSE | HCP2: FALSE | HCQ2: FALSE | HCR2: FALSE | HCS2: TRUE | HCT2: FALSE | HCU2: FALSE | HCV2: FALSE | HCW2: FALSE | HCX2: FALSE | HCY2: FALSE | HCZ2: FALSE | HDA2: FALSE | HDB2: =MOD(HDB1,$F$2)=0 -> FALSE | HDC2: FALSE | HDD2: FALSE | HDE2: FALSE | HDF2: FALSE | HDG2: FALSE | HDH2: FALSE | HDI2: FALSE | HDJ2: FALSE | HDK2: FALSE | HDL2: FALSE | HDM2: FALSE | HDN2: FALSE | HDO2: FALSE | HDP2: FALSE | HDQ2: TRUE | HDR2: FALSE | HDS2: FALSE | HDT2: FALSE | HDU2: FALSE | HDV2: FALSE | HDW2: FALSE | HDX2: FALSE | HDY2: FALSE | HDZ2: FALSE | HEA2: FALSE | HEB2: FALSE | HEC2: FALSE | HED2: FALSE | HEE2: FALSE | HEF2: FALSE | HEG2: FALSE | HEH2: FALSE | HEI2: FALSE | HEJ2: FALSE | HEK2: FALSE | HEL2: FALSE | HEM2: FALSE | HEN2: FALSE | HEO2: TRUE | HEP2: FALSE | HEQ2: FALSE | HER2: FALSE | HES2: FALSE | HET2: FALSE | HEU2: FALSE | HEV2: FALSE | HEW2: FALSE | HEX2: FALSE | HEY2: FALSE | HEZ2: FALSE | HFA2: FALSE | HFB2: FALSE | HFC2: FALSE | HFD2: FALSE | HFE2: FALSE | HFF2: FALSE | HFG2: FALSE | HFH2: FALSE | HFI2: FALSE | HFJ2: FALSE | HFK2: FALSE | HFL2: FALSE | HFM2: TRUE | HFN2: =MOD(HFN1,$F$2)=0 -> FALSE | HFO2: FALSE | HFP2: FALSE | HFQ2: FALSE | HFR2: FALSE | HFS2: FALSE | HFT2: FALSE | HFU2: FALSE | HFV2: FALSE | HFW2: FALSE | HFX2: FALSE | HFY2: FALSE | HFZ2: FALSE | HGA2: FALSE | HGB2: FALSE | HGC2: FALSE | HGD2: FALSE | HGE2: FALSE | HGF2: FALSE | HGG2: FALSE | HGH2: FALSE | HGI2: FALSE | HGJ2: FALSE | HGK2: TRUE | HGL2: FALSE | HGM2: FALSE | HGN2: FALSE | HGO2: FALSE | HGP2: FALSE | HGQ2: FALSE | HGR2: FALSE | HGS2: FALSE | HGT2: FALSE | HGU2: FALSE | HGV2: FALSE | HGW2: FALSE | HGX2: FALSE | HGY2: FALSE | HGZ2: FALSE | HHA2: FALSE | HHB2: FALSE | HHC2: FALSE | HHD2: FALSE | HHE2: FALSE | HHF2: FALSE | HHG2: FALSE | HHH2: FALSE | HHI2: TRUE | HHJ2: FALSE | HHK2: FALSE | HHL2: FALSE | HHM2: FALSE | HHN2: FALSE | HHO2: FALSE | HHP2: FALSE | HHQ2: FALSE | HHR2: FALSE | HHS2: FALSE | HHT2: FALSE | HHU2: FALSE | HHV2: FALSE | HHW2: FALSE | HHX2: FALSE | HHY2: FALSE | HHZ2: =MOD(HHZ1,$F$2)=0 -> FALSE | HIA2: FALSE | HIB2: FALSE | HIC2: FALSE | HID2: FALSE | HIE2: FALSE | HIF2: FALSE | HIG2: TRUE | HIH2: FALSE | HII2: FALSE | HIJ2: FALSE | HIK2: FALSE | HIL2: FALSE | HIM2: FALSE | HIN2: FALSE | HIO2: FALSE | HIP2: FALSE | HIQ2: FALSE | HIR2: FALSE | HIS2: FALSE | HIT2: FALSE | HIU2: FALSE | HIV2: FALSE | HIW2: FALSE | HIX2: FALSE | HIY2: FALSE | HIZ2: FALSE | HJA2: FALSE | HJB2: FALSE | HJC2: FALSE | HJD2: FALSE | HJE2: TRUE | HJF2: FALSE | HJG2: FALSE | HJH2: FALSE | HJI2: FALSE | HJJ2: FALSE | HJK2: FALSE | HJL2: FALSE | HJM2: FALSE | HJN2: FALSE | HJO2: FALSE | HJP2: FALSE | HJQ2: FALSE | HJR2: FALSE | HJS2: FALSE | HJT2: FALSE | HJU2: FALSE | HJV2: FALSE | HJW2: FALSE | HJX2: FALSE | HJY2: FALSE | HJZ2: FALSE | HKA2: FALSE | HKB2: FALSE | HKC2: TRUE | HKD2: FALSE | HKE2: FALSE | HKF2: FALSE | HKG2: FALSE | HKH2: FALSE | HKI2: FALSE | HKJ2: FALSE | HKK2: FALSE | HKL2: =MOD(HKL1,$F$2)=0 -> FALSE | HKM2: FALSE | HKN2: FALSE | HKO2: FALSE | HKP2: FALSE | HKQ2: FALSE | HKR2: FALSE | HKS2: FALSE | HKT2: FALSE | HKU2: FALSE | HKV2: FALSE | HKW2: FALSE | HKX2: FALSE | HKY2: FALSE | HKZ2: FALSE | HLA2: TRUE | HLB2: FALSE | HLC2: FALSE | HLD2: FALSE | HLE2: FALSE | HLF2: FALSE | HLG2: FALSE | HLH2: FALSE | HLI2: FALSE | HLJ2: FALSE | HLK2: FALSE | HLL2: FALSE | HLM2: FALSE | HLN2: FALSE | HLO2: FALSE | HLP2: FALSE | HLQ2: FALSE | HLR2: FALSE | HLS2: FALSE | HLT2: FALSE | HLU2: FALSE | HLV2: FALSE | HLW2: FALSE | HLX2: FALSE | HLY2: TRUE | HLZ2: FALSE | HMA2: FALSE | HMB2: FALSE | HMC2: FALSE | HMD2: FALSE | HME2: FALSE | HMF2: FALSE | HMG2: FALSE | HMH2: FALSE | HMI2: FALSE | HMJ2: FALSE | HMK2: FALSE | HML2: FALSE | HMM2: FALSE | HMN2: FALSE | HMO2: FALSE | HMP2: FALSE | HMQ2: FALSE | HMR2: FALSE | HMS2: FALSE | HMT2: FALSE | HMU2: FALSE | HMV2: FALSE | HMW2: TRUE | HMX2: =MOD(HMX1,$F$2)=0 -> FALSE | HMY2: FALSE | HMZ2: FALSE | HNA2: FALSE | HNB2: FALSE | HNC2: FALSE | HND2: FALSE | HNE2: FALSE | HNF2: FALSE | HNG2: FALSE | HNH2: FALSE | HNI2: FALSE | HNJ2: FALSE | HNK2: FALSE | HNL2: FALSE | HNM2: FALSE | HNN2: FALSE | HNO2: FALSE | HNP2: FALSE | HNQ2: FALSE | HNR2: FALSE | HNS2: FALSE | HNT2: FALSE | HNU2: TRUE | HNV2: FALSE | HNW2: FALSE | HNX2: FALSE | HNY2: FALSE | HNZ2: FALSE | HOA2: FALSE | HOB2: FALSE | HOC2: FALSE | HOD2: FALSE | HOE2: FALSE | HOF2: FALSE | HOG2: FALSE | HOH2: FALSE | HOI2: FALSE | HOJ2: FALSE | HOK2: FALSE | HOL2: FALSE | HOM2: FALSE | HON2: FALSE | HOO2: FALSE | HOP2: FALSE | HOQ2: FALSE | HOR2: FALSE | HOS2: TRUE | HOT2: FALSE | HOU2: FALSE | HOV2: FALSE | HOW2: FALSE | HOX2: FALSE | HOY2: FALSE | HOZ2: FALSE | HPA2: FALSE | HPB2: FALSE | HPC2: FALSE | HPD2: FALSE | HPE2: FALSE | HPF2: FALSE | HPG2: FALSE | HPH2: FALSE | HPI2: FALSE | HPJ2: =MOD(HPJ1,$F$2)=0 -> FALSE | HPK2: FALSE | HPL2: FALSE | HPM2: FALSE | HPN2: FALSE | HPO2: FALSE | HPP2: FALSE | HPQ2: TRUE | HPR2: FALSE | HPS2: FALSE | HPT2: FALSE | HPU2: FALSE | HPV2: FALSE | HPW2: FALSE | HPX2: FALSE | HPY2: FALSE | HPZ2: FALSE | HQA2: FALSE | HQB2: FALSE | HQC2: FALSE | HQD2: FALSE | HQE2: FALSE | HQF2: FALSE | HQG2: FALSE | HQH2: FALSE | HQI2: FALSE | HQJ2: FALSE | HQK2: FALSE | HQL2: FALSE | HQM2: FALSE | HQN2: FALSE | HQO2: TRUE | HQP2: FALSE | HQQ2: FALSE | HQR2: FALSE | HQS2: FALSE | HQT2: FALSE | HQU2: FALSE | HQV2: FALSE | HQW2: FALSE | HQX2: FALSE | HQY2: FALSE | HQZ2: FALSE | HRA2: FALSE | HRB2: FALSE | HRC2: FALSE | HRD2: FALSE | HRE2: FALSE | HRF2: FALSE | HRG2: FALSE | HRH2: FALSE | HRI2: FALSE | HRJ2: FALSE | HRK2: FALSE | HRL2: FALSE | HRM2: TRUE | HRN2: FALSE | HRO2: FALSE | HRP2: FALSE | HRQ2: FALSE | HRR2: FALSE | HRS2: FALSE | HRT2: FALSE | HRU2: FALSE | HRV2: =MOD(HRV1,$F$2)=0 -> FALSE | HRW2: FALSE | HRX2: FALSE | HRY2: FALSE | HRZ2: FALSE | HSA2: FALSE | HSB2: FALSE | HSC2: FALSE | HSD2: FALSE | HSE2: FALSE | HSF2: FALSE | HSG2: FALSE | HSH2: FALSE | HSI2: FALSE | HSJ2: FALSE | HSK2: TRUE | HSL2: FALSE | HSM2: FALSE | HSN2: FALSE | HSO2: FALSE | HSP2: FALSE | HSQ2: FALSE | HSR2: FALSE | HSS2: FALSE | HST2: FALSE | HSU2: FALSE | HSV2: FALSE | HSW2: FALSE | HSX2: FALSE | HSY2: FALSE | HSZ2: FALSE | HTA2: FALSE | HTB2: FALSE | HTC2: FALSE | HTD2: FALSE | HTE2: FALSE | HTF2: FALSE | HTG2: FALSE | HTH2: FALSE | HTI2: TRUE | HTJ2: FALSE | HTK2: FALSE | HTL2: FALSE | HTM2: FALSE | HTN2: FALSE | HTO2: FALSE | HTP2: FALSE | HTQ2: FALSE | HTR2: FALSE | HTS2: FALSE | HTT2: FALSE | HTU2: FALSE | HTV2: FALSE | HTW2: FALSE | HTX2: FALSE | HTY2: FALSE | HTZ2: FALSE | HUA2: FALSE | HUB2: FALSE | HUC2: FALSE | HUD2: FALSE | HUE2: FALSE | HUF2: FALSE | HUG2: TRUE | HUH2: =MOD(HUH1,$F$2)=0 -> FALSE | HUI2: FALSE | HUJ2: FALSE | HUK2: FALSE | HUL2: FALSE | HUM2: FALSE | HUN2: FALSE | HUO2: FALSE | HUP2: FALSE | HUQ2: FALSE | HUR2: FALSE | HUS2: FALSE | HUT2: FALSE | HUU2: FALSE | HUV2: FALSE | HUW2: FALSE | HUX2: FALSE | HUY2: FALSE | HUZ2: FALSE | HVA2: FALSE | HVB2: FALSE | HVC2: FALSE | HVD2: FALSE | HVE2: TRUE | HVF2: FALSE | HVG2: FALSE | HVH2: FALSE | HVI2: FALSE | HVJ2: FALSE | HVK2: FALSE | HVL2: FALSE | HVM2: FALSE | HVN2: FALSE | HVO2: FALSE | HVP2: FALSE | HVQ2: FALSE | HVR2: FALSE | HVS2: FALSE | HVT2: FALSE | HVU2: FALSE | HVV2: FALSE | HVW2: FALSE | HVX2: FALSE | HVY2: FALSE | HVZ2: FALSE | HWA2: FALSE | HWB2: FALSE | HWC2: TRUE | HWD2: FALSE | HWE2: FALSE | HWF2: FALSE | HWG2: FALSE | HWH2: FALSE | HWI2: FALSE | HWJ2: FALSE | HWK2: FALSE | HWL2: FALSE | HWM2: FALSE | HWN2: FALSE | HWO2: FALSE | HWP2: FALSE | HWQ2: FALSE | HWR2: FALSE | HWS2: FALSE | HWT2: =MOD(HWT1,$F$2)=0 -> FALSE | HWU2: FALSE | HWV2: FALSE | HWW2: FALSE | HWX2: FALSE | HWY2: FALSE | HWZ2: FALSE | HXA2: TRUE | HXB2: FALSE | HXC2: FALSE | HXD2: FALSE | HXE2: FALSE | HXF2: FALSE | HXG2: FALSE | HXH2: FALSE | HXI2: FALSE | HXJ2: FALSE | HXK2: FALSE | HXL2: FALSE | HXM2: FALSE | HXN2: FALSE | HXO2: FALSE | HXP2: FALSE | HXQ2: FALSE | HXR2: FALSE | HXS2: FALSE | HXT2: FALSE | HXU2: FALSE | HXV2: FALSE | HXW2: FALSE | HXX2: FALSE | HXY2: TRUE | HXZ2: FALSE | HYA2: FALSE | HYB2: FALSE | HYC2: FALSE | HYD2: FALSE | HYE2: FALSE | HYF2: FALSE | HYG2: FALSE | HYH2: FALSE | HYI2: FALSE | HYJ2: FALSE | HYK2: FALSE | HYL2: FALSE | HYM2: FALSE | HYN2: FALSE | HYO2: FALSE | HYP2: FALSE | HYQ2: FALSE | HYR2: FALSE | HYS2: FALSE | HYT2: FALSE | HYU2: FALSE | HYV2: FALSE | HYW2: TRUE | HYX2: FALSE | HYY2: FALSE | HYZ2: FALSE | HZA2: FALSE | HZB2: FALSE | HZC2: FALSE | HZD2: FALSE | HZE2: FALSE | HZF2: =MOD(HZF1,$F$2)=0 -> FALSE | HZG2: FALSE | HZH2: FALSE | HZI2: FALSE | HZJ2: FALSE | HZK2: FALSE | HZL2: FALSE | HZM2: FALSE | HZN2: FALSE | HZO2: FALSE | HZP2: FALSE | HZQ2: FALSE | HZR2: FALSE | HZS2: FALSE | HZT2: FALSE | HZU2: TRUE | HZV2: FALSE | HZW2: FALSE | HZX2: FALSE | HZY2: FALSE | HZZ2: FALSE | IAA2: FALSE | IAB2: FALSE | IAC2: FALSE | IAD2: FALSE | IAE2: FALSE | IAF2: FALSE | IAG2: FALSE | IAH2: FALSE | IAI2: FALSE | IAJ2: FALSE | IAK2: FALSE | IAL2: FALSE | IAM2: FALSE | IAN2: FALSE | IAO2: FALSE | IAP2: FALSE | IAQ2: FALSE | IAR2: FALSE | IAS2: TRUE | IAT2: FALSE | IAU2: FALSE | IAV2: FALSE | IAW2: FALSE | IAX2: FALSE | IAY2: FALSE | IAZ2: FALSE | IBA2: FALSE | IBB2: FALSE | IBC2: FALSE | IBD2: FALSE | IBE2: FALSE | IBF2: FALSE | IBG2: FALSE | IBH2: FALSE | IBI2: FALSE | IBJ2: FALSE | IBK2: FALSE | IBL2: FALSE | IBM2: FALSE | IBN2: FALSE | IBO2: FALSE | IBP2: FALSE | IBQ2: TRUE | IBR2: =MOD(IBR1,$F$2)=0 -> FALSE | IBS2: FALSE | IBT2: FALSE | IBU2: FALSE | IBV2: FALSE | IBW2: FALSE | IBX2: FALSE | IBY2: FALSE | IBZ2: FALSE | ICA2: FALSE | ICB2: FALSE | ICC2: FALSE | ICD2: FALSE | ICE2: FALSE | ICF2: FALSE | ICG2: FALSE | ICH2: FALSE | ICI2: FALSE | ICJ2: FALSE | ICK2: FALSE | ICL2: FALSE | ICM2: FALSE | ICN2: FALSE | ICO2: TRUE | ICP2: FALSE | ICQ2: FALSE | ICR2: FALSE | ICS2: FALSE | ICT2: FALSE | ICU2: FALSE | ICV2: FALSE | ICW2: FALSE | ICX2: FALSE | ICY2: FALSE | ICZ2: FALSE | IDA2: FALSE | IDB2: FALSE | IDC2: FALSE | IDD2: FALSE | IDE2: FALSE | IDF2: FALSE | IDG2: FALSE | IDH2: FALSE | IDI2: FALSE | IDJ2: FALSE | IDK2: FALSE | IDL2: FALSE | IDM2: TRUE | IDN2: FALSE | IDO2: FALSE | IDP2: FALSE | IDQ2: FALSE | IDR2: FALSE | IDS2: FALSE | IDT2: FALSE | IDU2: FALSE | IDV2: FALSE | IDW2: FALSE | IDX2: FALSE | IDY2: FALSE | IDZ2: FALSE | IEA2: FALSE | IEB2: FALSE | IEC2: FALSE | IED2: =MOD(IED1,$F$2)=0 -> FALSE | IEE2: FALSE | IEF2: FALSE | IEG2: FALSE | IEH2: FALSE | IEI2: FALSE | IEJ2: FALSE | IEK2: TRUE | IEL2: FALSE | IEM2: FALSE | IEN2: FALSE | IEO2: FALSE | IEP2: FALSE | IEQ2: FALSE | IER2: FALSE | IES2: FALSE | IET2: FALSE | IEU2: FALSE | IEV2: FALSE | IEW2: FALSE | IEX2: FALSE | IEY2: FALSE | IEZ2: FALSE | IFA2: FALSE | IFB2: FALSE | IFC2: FALSE | IFD2: FALSE | IFE2: FALSE | IFF2: FALSE | IFG2: FALSE | IFH2: FALSE | IFI2: TRUE | IFJ2: FALSE | IFK2: FALSE | IFL2: FALSE | IFM2: FALSE | IFN2: FALSE | IFO2: FALSE | IFP2: FALSE | IFQ2: FALSE | IFR2: FALSE | IFS2: FALSE | IFT2: FALSE | IFU2: FALSE | IFV2: FALSE | IFW2: FALSE | IFX2: FALSE | IFY2: FALSE | IFZ2: FALSE | IGA2: FALSE | IGB2: FALSE | IGC2: FALSE | IGD2: FALSE | IGE2: FALSE | IGF2: FALSE | IGG2: TRUE | IGH2: FALSE | IGI2: FALSE | IGJ2: FALSE | IGK2: FALSE | IGL2: FALSE | IGM2: FALSE | IGN2: FALSE | IGO2: FALSE | IGP2: =MOD(IGP1,$F$2)=0 -> FALSE | IGQ2: FALSE | IGR2: FALSE | IGS2: FALSE | IGT2: FALSE | IGU2: FALSE | IGV2: FALSE | IGW2: FALSE | IGX2: FALSE | IGY2: FALSE | IGZ2: FALSE | IHA2: FALSE | IHB2: FALSE | IHC2: FALSE | IHD2: FALSE | IHE2: TRUE | IHF2: FALSE | IHG2: FALSE | IHH2: FALSE | IHI2: FALSE | IHJ2: FALSE | IHK2: FALSE | IHL2: FALSE | IHM2: FALSE | IHN2: FALSE | IHO2: FALSE | IHP2: FALSE | IHQ2: FALSE | IHR2: FALSE | IHS2: FALSE | IHT2: FALSE | IHU2: FALSE | IHV2: FALSE | IHW2: FALSE | IHX2: FALSE | IHY2: FALSE | IHZ2: FALSE | IIA2: FALSE | IIB2: FALSE | IIC2: TRUE | IID2: FALSE | IIE2: FALSE | IIF2: FALSE | IIG2: FALSE | IIH2: FALSE | III2: FALSE | IIJ2: FALSE | IIK2: FALSE | IIL2: FALSE | IIM2: FALSE | IIN2: FALSE | IIO2: FALSE | IIP2: FALSE | IIQ2: FALSE | IIR2: FALSE | IIS2: FALSE | IIT2: FALSE | IIU2: FALSE | IIV2: FALSE | IIW2: FALSE | IIX2: FALSE | IIY2: FALSE | IIZ2: FALSE | IJA2: TRUE | IJB2: =MOD(IJB1,$F$2)=0 -> FALSE | IJC2: FALSE | IJD2: FALSE | IJE2: FALSE | IJF2: FALSE | IJG2: FALSE | IJH2: FALSE | IJI2: FALSE | IJJ2: FALSE | IJK2: FALSE | IJL2: FALSE | IJM2: FALSE | IJN2: FALSE | IJO2: FALSE | IJP2: FALSE | IJQ2: FALSE | IJR2: FALSE | IJS2: FALSE | IJT2: FALSE | IJU2: FALSE | IJV2: FALSE | IJW2: FALSE | IJX2: FALSE | IJY2: TRUE | IJZ2: FALSE | IKA2: FALSE | IKB2: FALSE | IKC2: FALSE | IKD2: FALSE | IKE2: FALSE | IKF2: FALSE | IKG2: FALSE | IKH2: FALSE | IKI2: FALSE | IKJ2: FALSE | IKK2: FALSE | IKL2: FALSE | IKM2: FALSE | IKN2: FALSE | IKO2: FALSE | IKP2: FALSE | IKQ2: FALSE | IKR2: FALSE | IKS2: FALSE | IKT2: FALSE | IKU2: FALSE | IKV2: FALSE | IKW2: TRUE | IKX2: FALSE | IKY2: FALSE | IKZ2: FALSE | ILA2: FALSE | ILB2: FALSE | ILC2: FALSE | ILD2: FALSE | ILE2: FALSE | ILF2: FALSE | ILG2: FALSE | ILH2: FALSE | ILI2: FALSE | ILJ2: FALSE | ILK2: FALSE | ILL2: FALSE | ILM2: FALSE | ILN2: =MOD(ILN1,$F$2)=0 -> FALSE | ILO2: FALSE | ILP2: FALSE | ILQ2: FALSE | ILR2: FALSE | ILS2: FALSE | ILT2: FALSE | ILU2: TRUE | ILV2: FALSE | ILW2: FALSE | ILX2: FALSE | ILY2: FALSE | ILZ2: FALSE | IMA2: FALSE | IMB2: FALSE | IMC2: FALSE | IMD2: FALSE | IME2: FALSE | IMF2: FALSE | IMG2: FALSE | IMH2: FALSE | IMI2: FALSE | IMJ2: FALSE | IMK2: FALSE | IML2: FALSE | IMM2: FALSE | IMN2: FALSE | IMO2: FALSE | IMP2: FALSE | IMQ2: FALSE | IMR2: FALSE | IMS2: TRUE | IMT2: FALSE | IMU2: FALSE | IMV2: FALSE | IMW2: FALSE | IMX2: FALSE | IMY2: FALSE | IMZ2: FALSE | INA2: FALSE | INB2: FALSE | INC2: FALSE | IND2: FALSE | INE2: FALSE | INF2: FALSE | ING2: FALSE | INH2: FALSE | INI2: FALSE | INJ2: FALSE | INK2: FALSE | INL2: FALSE | INM2: FALSE | INN2: FALSE | INO2: FALSE | INP2: FALSE | INQ2: TRUE | INR2: FALSE | INS2: FALSE | INT2: FALSE | INU2: FALSE | INV2: FALSE | INW2: FALSE | INX2: FALSE | INY2: FALSE | INZ2: =MOD(INZ1,$F$2)=0 -> FALSE | IOA2: FALSE | IOB2: FALSE | IOC2: FALSE | IOD2: FALSE | IOE2: FALSE | IOF2: FALSE | IOG2: FALSE | IOH2: FALSE | IOI2: FALSE | IOJ2: FALSE | IOK2: FALSE | IOL2: FALSE | IOM2: FALSE | ION2: FALSE | IOO2: TRUE | IOP2: FALSE | IOQ2: FALSE | IOR2: FALSE | IOS2: FALSE | IOT2: FALSE | IOU2: FALSE | IOV2: FALSE | IOW2: FALSE | IOX2: FALSE | IOY2: FALSE | IOZ2: FALSE | IPA2: FALSE | IPB2: FALSE | IPC2: FALSE | IPD2: FALSE | IPE2: FALSE | IPF2: FALSE | IPG2: FALSE | IPH2: FALSE | IPI2: FALSE | IPJ2: FALSE | IPK2: FALSE | IPL2: FALSE | IPM2: TRUE | IPN2: FALSE | IPO2: FALSE | IPP2: FALSE | IPQ2: FALSE | IPR2: FALSE | IPS2: FALSE | IPT2: FALSE | IPU2: FALSE | IPV2: FALSE | IPW2: FALSE | IPX2: FALSE | IPY2: FALSE | IPZ2: FALSE | IQA2: FALSE | IQB2: FALSE | IQC2: FALSE | IQD2: FALSE | IQE2: FALSE | IQF2: FALSE | IQG2: FALSE | IQH2: FALSE | IQI2: FALSE | IQJ2: FALSE | IQK2: TRUE | IQL2: =MOD(IQL1,$F$2)=0 -> FALSE | IQM2: FALSE | IQN2: FALSE | IQO2: FALSE | IQP2: FALSE | IQQ2: FALSE | IQR2: FALSE | IQS2: FALSE | IQT2: FALSE | IQU2: FALSE | IQV2: FALSE | IQW2: FALSE | IQX2: FALSE | IQY2: FALSE | IQZ2: FALSE | IRA2: FALSE | IRB2: FALSE | IRC2: FALSE | IRD2: FALSE | IRE2: FALSE | IRF2: FALSE | IRG2: FALSE | IRH2: FALSE | IRI2: TRUE | IRJ2: FALSE | IRK2: FALSE | IRL2: FALSE | IRM2: FALSE | IRN2: FALSE | IRO2: FALSE | IRP2: FALSE | IRQ2: FALSE | IRR2: FALSE | IRS2: FALSE | IRT2: FALSE | IRU2: FALSE | IRV2: FALSE | IRW2: FALSE | IRX2: FALSE | IRY2: FALSE | IRZ2: FALSE | ISA2: FALSE | ISB2: FALSE | ISC2: FALSE | ISD2: FALSE | ISE2: FALSE | ISF2: FALSE | ISG2: TRUE | ISH2: FALSE | ISI2: FALSE | ISJ2: FALSE | ISK2: FALSE | ISL2: FALSE | ISM2: FALSE | ISN2: FALSE | ISO2: FALSE | ISP2: FALSE | ISQ2: FALSE | ISR2: FALSE | ISS2: FALSE | IST2: FALSE | ISU2: FALSE | ISV2: FALSE | ISW2: FALSE | ISX2: =MOD(ISX1,$F$2)=0 -> FALSE | ISY2: FALSE | ISZ2: FALSE | ITA2: FALSE | ITB2: FALSE | ITC2: FALSE | ITD2: FALSE | ITE2: TRUE | ITF2: FALSE | ITG2: FALSE | ITH2: FALSE | ITI2: FALSE | ITJ2: FALSE | ITK2: FALSE | ITL2: FALSE | ITM2: FALSE | ITN2: FALSE | ITO2: FALSE | ITP2: FALSE | ITQ2: FALSE | ITR2: FALSE | ITS2: FALSE | ITT2: FALSE | ITU2: FALSE | ITV2: FALSE | ITW2: FALSE | ITX2: FALSE | ITY2: FALSE | ITZ2: FALSE | IUA2: FALSE | IUB2: FALSE | IUC2: TRUE | IUD2: FALSE | IUE2: FALSE | IUF2: FALSE | IUG2: FALSE | IUH2: FALSE | IUI2: FALSE | IUJ2: FALSE | IUK2: FALSE | IUL2: FALSE | IUM2: FALSE | IUN2: FALSE | IUO2: FALSE | IUP2: FALSE | IUQ2: FALSE | IUR2: FALSE | IUS2: FALSE | IUT2: FALSE | IUU2: FALSE | IUV2: FALSE | IUW2: FALSE | IUX2: FALSE | IUY2: FALSE | IUZ2: FALSE | IVA2: TRUE | IVB2: FALSE | IVC2: FALSE | IVD2: FALSE | IVE2: FALSE | IVF2: FALSE | IVG2: FALSE | IVH2: FALSE | IVI2: FALSE | IVJ2: =MOD(IVJ1,$F$2)=0 -> FALSE | IVK2: FALSE | IVL2: FALSE | IVM2: FALSE | IVN2: FALSE | IVO2: FALSE | IVP2: FALSE | IVQ2: FALSE | IVR2: FALSE | IVS2: FALSE | IVT2: FALSE | IVU2: FALSE | IVV2: FALSE | IVW2: FALSE | IVX2: FALSE | IVY2: TRUE | IVZ2: FALSE | IWA2: FALSE | IWB2: FALSE | IWC2: FALSE | IWD2: FALSE | IWE2: FALSE | IWF2: FALSE | IWG2: FALSE | IWH2: FALSE | IWI2: FALSE | IWJ2: FALSE | IWK2: FALSE | IWL2: FALSE | IWM2: FALSE | IWN2: FALSE | IWO2: FALSE | IWP2: FALSE | IWQ2: FALSE | IWR2: FALSE | IWS2: FALSE | IWT2: FALSE | IWU2: FALSE | IWV2: FALSE | IWW2: TRUE | IWX2: FALSE | IWY2: FALSE | IWZ2: FALSE | IXA2: FALSE | IXB2: FALSE | IXC2: FALSE | IXD2: FALSE | IXE2: FALSE | IXF2: FALSE | IXG2: FALSE | IXH2: FALSE | IXI2: FALSE | IXJ2: FALSE | IXK2: FALSE | IXL2: FALSE | IXM2: FALSE | IXN2: FALSE | IXO2: FALSE | IXP2: FALSE | IXQ2: FALSE | IXR2: FALSE | IXS2: FALSE | IXT2: FALSE | IXU2: TRUE | IXV2: =MOD(IXV1,$F$2)=0 -> FALSE | IXW2: FALSE | IXX2: FALSE | IXY2: FALSE | IXZ2: FALSE | IYA2: FALSE | IYB2: FALSE | IYC2: FALSE | IYD2: FALSE | IYE2: FALSE | IYF2: FALSE | IYG2: FALSE | IYH2: FALSE | IYI2: FALSE | IYJ2: FALSE | IYK2: FALSE | IYL2: FALSE | IYM2: FALSE | IYN2: FALSE | IYO2: FALSE | IYP2: FALSE | IYQ2: FALSE | IYR2: FALSE | IYS2: TRUE | IYT2: FALSE | IYU2: FALSE | IYV2: FALSE | IYW2: FALSE | IYX2: FALSE | IYY2: FALSE | IYZ2: FALSE | IZA2: FALSE | IZB2: FALSE | IZC2: FALSE | IZD2: FALSE | IZE2: FALSE | IZF2: FALSE | IZG2: FALSE | IZH2: FALSE | IZI2: FALSE | IZJ2: FALSE | IZK2: FALSE | IZL2: FALSE | IZM2: FALSE | IZN2: FALSE | IZO2: FALSE | IZP2: FALSE | IZQ2: TRUE | IZR2: FALSE | IZS2: FALSE | IZT2: FALSE | IZU2: FALSE | IZV2: FALSE | IZW2: FALSE | IZX2: FALSE | IZY2: FALSE | IZZ2: FALSE | JAA2: FALSE | JAB2: FALSE | JAC2: FALSE | JAD2: FALSE | JAE2: FALSE | JAF2: FALSE | JAG2: FALSE | JAH2: =MOD(JAH1,$F$2)=0 -> FALSE | JAI2: FALSE | JAJ2: FALSE | JAK2: FALSE | JAL2: FALSE | JAM2: FALSE | JAN2: FALSE | JAO2: TRUE | JAP2: FALSE | JAQ2: FALSE | JAR2: FALSE | JAS2: FALSE | JAT2: FALSE | JAU2: FALSE | JAV2: FALSE | JAW2: FALSE | JAX2: FALSE | JAY2: FALSE | JAZ2: FALSE | JBA2: FALSE | JBB2: FALSE | JBC2: FALSE | JBD2: FALSE | JBE2: FALSE | JBF2: FALSE | JBG2: FALSE | JBH2: FALSE | JBI2: FALSE | JBJ2: FALSE | JBK2: FALSE | JBL2: FALSE | JBM2: TRUE | JBN2: FALSE | JBO2: FALSE | JBP2: FALSE | JBQ2: FALSE | JBR2: FALSE | JBS2: FALSE | JBT2: FALSE | JBU2: FALSE | JBV2: FALSE | JBW2: FALSE | JBX2: FALSE | JBY2: FALSE | JBZ2: FALSE | JCA2: FALSE | JCB2: FALSE | JCC2: FALSE | JCD2: FALSE | JCE2: FALSE | JCF2: FALSE | JCG2: FALSE | JCH2: FALSE | JCI2: FALSE | JCJ2: FALSE | JCK2: TRUE | JCL2: FALSE | JCM2: FALSE | JCN2: FALSE | JCO2: FALSE | JCP2: FALSE | JCQ2: FALSE | JCR2: FALSE | JCS2: FALSE | JCT2: =MOD(JCT1,$F$2)=0 -> FALSE | JCU2: FALSE | JCV2: FALSE | JCW2: FALSE | JCX2: FALSE | JCY2: FALSE | JCZ2: FALSE | JDA2: FALSE | JDB2: FALSE | JDC2: FALSE | JDD2: FALSE | JDE2: FALSE | JDF2: FALSE | JDG2: FALSE | JDH2: FALSE | JDI2: TRUE | JDJ2: FALSE | JDK2: FALSE | JDL2: FALSE | JDM2: FALSE | JDN2: FALSE | JDO2: FALSE | JDP2: FALSE | JDQ2: FALSE | JDR2: FALSE | JDS2: FALSE | JDT2: FALSE | JDU2: FALSE | JDV2: FALSE | JDW2: FALSE | JDX2: FALSE | JDY2: FALSE | JDZ2: FALSE | JEA2: FALSE | JEB2: FALSE | JEC2: FALSE | JED2: FALSE | JEE2: FALSE | JEF2: FALSE | JEG2: TRUE | JEH2: FALSE | JEI2: FALSE | JEJ2: FALSE | JEK2: FALSE | JEL2: FALSE | JEM2: FALSE | JEN2: FALSE | JEO2: FALSE | JEP2: FALSE | JEQ2: FALSE | JER2: FALSE | JES2: FALSE | JET2: FALSE | JEU2: FALSE | JEV2: FALSE | JEW2: FALSE | JEX2: FALSE | JEY2: FALSE | JEZ2: FALSE | JFA2: FALSE | JFB2: FALSE | JFC2: FALSE | JFD2: FALSE | JFE2: TRUE | JFF2: =MOD(JFF1,$F$2)=0 -> FALSE | JFG2: FALSE | JFH2: FALSE | JFI2: FALSE | JFJ2: FALSE | JFK2: FALSE | JFL2: FALSE | JFM2: FALSE | JFN2: FALSE | JFO2: FALSE | JFP2: FALSE | JFQ2: FALSE | JFR2: FALSE | JFS2: FALSE | JFT2: FALSE | JFU2: FALSE | JFV2: FALSE | JFW2: FALSE | JFX2: FALSE | JFY2: FALSE | JFZ2: FALSE | JGA2: FALSE | JGB2: FALSE | JGC2: TRUE | JGD2: FALSE | JGE2: FALSE | JGF2: FALSE | JGG2: FALSE | JGH2: FALSE | JGI2: FALSE | JGJ2: FALSE | JGK2: FALSE | JGL2: FALSE | JGM2: FALSE | JGN2: FALSE | JGO2: FALSE | JGP2: FALSE | JGQ2: FALSE | JGR2: FALSE | JGS2: FALSE | JGT2: FALSE | JGU2: FALSE | JGV2: FALSE | JGW2: FALSE | JGX2: FALSE | JGY2: FALSE | JGZ2: FALSE | JHA2: TRUE | JHB2: FALSE | JHC2: FALSE | JHD2: FALSE | JHE2: FALSE | JHF2: FALSE | JHG2: FALSE | JHH2: FALSE | JHI2: FALSE | JHJ2: FALSE | JHK2: FALSE | JHL2: FALSE | JHM2: FALSE | JHN2: FALSE | JHO2: FALSE | JHP2: FALSE | JHQ2: FALSE | JHR2: =MOD(JHR1,$F$2)=0 -> FALSE | JHS2: FALSE | JHT2: FALSE | JHU2: FALSE | JHV2: FALSE | JHW2: FALSE | JHX2: FALSE | JHY2: TRUE | JHZ2: FALSE | JIA2: FALSE | JIB2: FALSE | JIC2: FALSE | JID2: FALSE | JIE2: FALSE | JIF2: FALSE | JIG2: FALSE | JIH2: FALSE | JII2: FALSE | JIJ2: FALSE | JIK2: FALSE | JIL2: FALSE | JIM2: FALSE | JIN2: FALSE | JIO2: FALSE | JIP2: FALSE | JIQ2: FALSE | JIR2: FALSE | JIS2: FALSE | JIT2: FALSE | JIU2: FALSE | JIV2: FALSE | JIW2: TRUE | JIX2: FALSE | JIY2: FALSE | JIZ2: FALSE | JJA2: FALSE | JJB2: FALSE | JJC2: FALSE | JJD2: FALSE | JJE2: FALSE | JJF2: FALSE | JJG2: FALSE | JJH2: FALSE | JJI2: FALSE | JJJ2: FALSE | JJK2: FALSE | JJL2: FALSE | JJM2: FALSE | JJN2: FALSE | JJO2: FALSE | JJP2: FALSE | JJQ2: FALSE | JJR2: FALSE | JJS2: FALSE | JJT2: FALSE | JJU2: TRUE | JJV2: FALSE | JJW2: FALSE | JJX2: FALSE | JJY2: FALSE | JJZ2: FALSE | JKA2: FALSE | JKB2: FALSE | JKC2: FALSE | JKD2: =MOD(JKD1,$F$2)=0 -> FALSE | JKE2: FALSE | JKF2: FALSE | JKG2: FALSE | JKH2: FALSE | JKI2: FALSE | JKJ2: FALSE | JKK2: FALSE | JKL2: FALSE | JKM2: FALSE | JKN2: FALSE | JKO2: FALSE | JKP2: FALSE | JKQ2: FALSE | JKR2: FALSE | JKS2: TRUE | JKT2: FALSE | JKU2: FALSE | JKV2: FALSE | JKW2: FALSE | JKX2: FALSE | JKY2: FALSE | JKZ2: FALSE | JLA2: FALSE | JLB2: FALSE | JLC2: FALSE | JLD2: FALSE | JLE2: FALSE | JLF2: FALSE | JLG2: FALSE | JLH2: FALSE | JLI2: FALSE | JLJ2: FALSE | JLK2: FALSE | JLL2: FALSE | JLM2: FALSE | JLN2: FALSE | JLO2: FALSE | JLP2: FALSE | JLQ2: TRUE | JLR2: FALSE | JLS2: FALSE | JLT2: FALSE | JLU2: FALSE | JLV2: FALSE | JLW2: FALSE | JLX2: FALSE | JLY2: FALSE | JLZ2: FALSE | JMA2: FALSE | JMB2: FALSE | JMC2: FALSE | JMD2: FALSE | JME2: FALSE | JMF2: FALSE | JMG2: FALSE | JMH2: FALSE | JMI2: FALSE | JMJ2: FALSE | JMK2: FALSE | JML2: FALSE | JMM2: FALSE | JMN2: FALSE | JMO2: TRUE | JMP2: =MOD(JMP1,$F$2)=0 -> FALSE | JMQ2: FALSE | JMR2: FALSE | JMS2: FALSE | JMT2: FALSE | JMU2: FALSE | JMV2: FALSE | JMW2: FALSE | JMX2: FALSE | JMY2: FALSE | JMZ2: FALSE | JNA2: FALSE | JNB2: FALSE | JNC2: FALSE | JND2: FALSE | JNE2: FALSE | JNF2: FALSE | JNG2: FALSE | JNH2: FALSE | JNI2: FALSE | JNJ2: FALSE | JNK2: FALSE | JNL2: FALSE | JNM2: TRUE | JNN2: FALSE | JNO2: FALSE | JNP2: FALSE | JNQ2: FALSE | JNR2: FALSE | JNS2: FALSE | JNT2: FALSE | JNU2: FALSE | JNV2: FALSE | JNW2: FALSE | JNX2: FALSE | JNY2: FALSE | JNZ2: FALSE | JOA2: FALSE | JOB2: FALSE | JOC2: FALSE | JOD2: FALSE | JOE2: FALSE | JOF2: FALSE | JOG2: FALSE | JOH2: FALSE | JOI2: FALSE | JOJ2: FALSE | JOK2: TRUE | JOL2: FALSE | JOM2: FALSE | JON2: FALSE | JOO2: FALSE | JOP2: FALSE | JOQ2: FALSE | JOR2: FALSE | JOS2: FALSE | JOT2: FALSE | JOU2: FALSE | JOV2: FALSE | JOW2: FALSE | JOX2: FALSE | JOY2: FALSE | JOZ2: FALSE | JPA2: FALSE | JPB2: =MOD(JPB1,$F$2)=0 -> FALSE | JPC2: FALSE | JPD2: FALSE | JPE2: FALSE | JPF2: FALSE | JPG2: FALSE | JPH2: FALSE | JPI2: TRUE | JPJ2: FALSE | JPK2: FALSE | JPL2: FALSE | JPM2: FALSE | JPN2: FALSE | JPO2: FALSE | JPP2: FALSE | JPQ2: FALSE | JPR2: FALSE | JPS2: FALSE | JPT2: FALSE | JPU2: FALSE | JPV2: FALSE | JPW2: FALSE | JPX2: FALSE | JPY2: FALSE | JPZ2: FALSE | JQA2: FALSE | JQB2: FALSE | JQC2: FALSE | JQD2: FALSE | JQE2: FALSE | JQF2: FALSE | JQG2: TRUE | JQH2: FALSE | JQI2: FALSE | JQJ2: FALSE | JQK2: FALSE | JQL2: FALSE | JQM2: FALSE | JQN2: FALSE | JQO2: FALSE | JQP2: FALSE | JQQ2: FALSE | JQR2: FALSE | JQS2: FALSE | JQT2: FALSE | JQU2: FALSE | JQV2: FALSE | JQW2: FALSE | JQX2: FALSE | JQY2: FALSE | JQZ2: FALSE | JRA2: FALSE | JRB2: FALSE | JRC2: FALSE | JRD2: FALSE | JRE2: TRUE | JRF2: FALSE | JRG2: FALSE | JRH2: FALSE | JRI2: FALSE | JRJ2: FALSE | JRK2: FALSE | JRL2: FALSE | JRM2: FALSE | JRN2: =MOD(JRN1,$F$2)=0 -> FALSE | JRO2: FALSE | JRP2: FALSE | JRQ2: FALSE | JRR2: FALSE | JRS2: FALSE | JRT2: FALSE | JRU2: FALSE | JRV2: FALSE | JRW2: FALSE | JRX2: FALSE | JRY2: FALSE | JRZ2: FALSE | JSA2: FALSE | JSB2: FALSE | JSC2: TRUE | JSD2: FALSE | JSE2: FALSE | JSF2: FALSE | JSG2: FALSE | JSH2: FALSE | JSI2: FALSE | JSJ2: FALSE | JSK2: FALSE | JSL2: FALSE | JSM2: FALSE | JSN2: FALSE | JSO2: FALSE | JSP2: FALSE | JSQ2: FALSE | JSR2: FALSE | JSS2: FALSE | JST2: FALSE | JSU2: FALSE | JSV2: FALSE | JSW2: FALSE | JSX2: FALSE | JSY2: FALSE | JSZ2: FALSE | JTA2: TRUE | JTB2: FALSE | JTC2: FALSE | JTD2: FALSE | JTE2: FALSE | JTF2: FALSE | JTG2: FALSE | JTH2: FALSE | JTI2: FALSE | JTJ2: FALSE | JTK2: FALSE | JTL2: FALSE | JTM2: FALSE | JTN2: FALSE | JTO2: FALSE | JTP2: FALSE | JTQ2: FALSE | JTR2: FALSE | JTS2: FALSE | JTT2: FALSE | JTU2: FALSE | JTV2: FALSE | JTW2: FALSE | JTX2: FALSE | JTY2: TRUE | JTZ2: =MOD(JTZ1,$F$2)=0 -> FALSE | JUA2: FALSE | JUB2: FALSE | JUC2: FALSE | JUD2: FALSE | JUE2: FALSE | JUF2: FALSE | JUG2: FALSE | JUH2: FALSE | JUI2: FALSE | JUJ2: FALSE | JUK2: FALSE | JUL2: FALSE | JUM2: FALSE | JUN2: FALSE | JUO2: FALSE | JUP2: FALSE | JUQ2: FALSE | JUR2: FALSE | JUS2: FALSE | JUT2: FALSE | JUU2: FALSE | JUV2: FALSE | JUW2: TRUE | JUX2: FALSE | JUY2: FALSE | JUZ2: FALSE | JVA2: FALSE | JVB2: FALSE | JVC2: FALSE | JVD2: FALSE | JVE2: FALSE | JVF2: FALSE | JVG2: FALSE | JVH2: FALSE | JVI2: FALSE | JVJ2: FALSE | JVK2: FALSE | JVL2: FALSE | JVM2: FALSE | JVN2: FALSE | JVO2: FALSE | JVP2: FALSE | JVQ2: FALSE | JVR2: FALSE | JVS2: FALSE | JVT2: FALSE | JVU2: TRUE | JVV2: FALSE | JVW2: FALSE | JVX2: FALSE | JVY2: FALSE | JVZ2: FALSE | JWA2: FALSE | JWB2: FALSE | JWC2: FALSE | JWD2: FALSE | JWE2: FALSE | JWF2: FALSE | JWG2: FALSE | JWH2: FALSE | JWI2: FALSE | JWJ2: FALSE | JWK2: FALSE | JWL2: =MOD(JWL1,$F$2)=0 -> FALSE | JWM2: FALSE | JWN2: FALSE | JWO2: FALSE | JWP2: FALSE | JWQ2: FALSE | JWR2: FALSE | JWS2: TRUE | JWT2: FALSE | JWU2: FALSE | JWV2: FALSE | JWW2: FALSE | JWX2: FALSE | JWY2: FALSE | JWZ2: FALSE | JXA2: FALSE | JXB2: FALSE | JXC2: FALSE | JXD2: FALSE | JXE2: FALSE | JXF2: FALSE | JXG2: FALSE | JXH2: FALSE | JXI2: FALSE | JXJ2: FALSE | JXK2: FALSE | JXL2: FALSE | JXM2: FALSE | JXN2: FALSE | JXO2: FALSE | JXP2: FALSE | JXQ2: TRUE | JXR2: FALSE | JXS2: FALSE | JXT2: FALSE | JXU2: FALSE | JXV2: FALSE | JXW2: FALSE | JXX2: FALSE | JXY2: FALSE | JXZ2: FALSE | JYA2: FALSE | JYB2: FALSE | JYC2: FALSE | JYD2: FALSE | JYE2: FALSE | JYF2: FALSE | JYG2: FALSE | JYH2: FALSE | JYI2: FALSE | JYJ2: FALSE | JYK2: FALSE | JYL2: FALSE | JYM2: FALSE | JYN2: FALSE | JYO2: TRUE | JYP2: FALSE | JYQ2: FALSE | JYR2: FALSE | JYS2: FALSE | JYT2: FALSE | JYU2: FALSE | JYV2: FALSE | JYW2: FALSE | JYX2: =MOD(JYX1,$F$2)=0 -> FALSE | JYY2: FALSE | JYZ2: FALSE | JZA2: FALSE | JZB2: FALSE | JZC2: FALSE | JZD2: FALSE | JZE2: FALSE | JZF2: FALSE | JZG2: FALSE | JZH2: FALSE | JZI2: FALSE | JZJ2: FALSE | JZK2: FALSE | JZL2: FALSE | JZM2: TRUE | JZN2: FALSE | JZO2: FALSE | JZP2: FALSE | JZQ2: FALSE | JZR2: FALSE | JZS2: FALSE | JZT2: FALSE | JZU2: FALSE | JZV2: FALSE | JZW2: FALSE | JZX2: FALSE | JZY2: FALSE | JZZ2: FALSE | KAA2: FALSE | KAB2: FALSE | KAC2: FALSE | KAD2: FALSE | KAE2: FALSE | KAF2: FALSE | KAG2: FALSE | KAH2: FALSE | KAI2: FALSE | KAJ2: FALSE | KAK2: TRUE | KAL2: FALSE | KAM2: FALSE | KAN2: FALSE | KAO2: FALSE | KAP2: FALSE | KAQ2: FALSE | KAR2: FALSE | KAS2: FALSE | KAT2: FALSE | KAU2: FALSE | KAV2: FALSE | KAW2: FALSE | KAX2: FALSE | KAY2: FALSE | KAZ2: FALSE | KBA2: FALSE | KBB2: FALSE | KBC2: FALSE | KBD2: FALSE | KBE2: FALSE | KBF2: FALSE | KBG2: FALSE | KBH2: FALSE | KBI2: TRUE | KBJ2: =MOD(KBJ1,$F$2)=0 -> FALSE | KBK2: FALSE | KBL2: FALSE | KBM2: FALSE | KBN2: FALSE | KBO2: FALSE | KBP2: FALSE | KBQ2: FALSE | KBR2: FALSE | KBS2: FALSE | KBT2: FALSE | KBU2: FALSE | KBV2: FALSE | KBW2: FALSE | KBX2: FALSE | KBY2: FALSE | KBZ2: FALSE | KCA2: FALSE | KCB2: FALSE | KCC2: FALSE | KCD2: FALSE | KCE2: FALSE | KCF2: FALSE | KCG2: TRUE | KCH2: FALSE | KCI2: FALSE | KCJ2: FALSE | KCK2: FALSE | KCL2: FALSE | KCM2: FALSE | KCN2: FALSE | KCO2: FALSE | KCP2: FALSE | KCQ2: FALSE | KCR2: FALSE | KCS2: FALSE | KCT2: FALSE | KCU2: FALSE | KCV2: FALSE | KCW2: FALSE | KCX2: FALSE | KCY2: FALSE | KCZ2: FALSE | KDA2: FALSE | KDB2: FALSE | KDC2: FALSE | KDD2: FALSE | KDE2: TRUE | KDF2: FALSE | KDG2: FALSE | KDH2: FALSE | KDI2: FALSE | KDJ2: FALSE | KDK2: FALSE | KDL2: FALSE | KDM2: FALSE | KDN2: FALSE | KDO2: FALSE | KDP2: FALSE | KDQ2: FALSE | KDR2: FALSE | KDS2: FALSE | KDT2: FALSE | KDU2: FALSE | KDV2: =MOD(KDV1,$F$2)=0 -> FALSE | KDW2: FALSE | KDX2: FALSE | KDY2: FALSE | KDZ2: FALSE | KEA2: FALSE | KEB2: FALSE | KEC2: TRUE | KED2: FALSE | KEE2: FALSE | KEF2: FALSE | KEG2: FALSE | KEH2: FALSE | KEI2: FALSE | KEJ2: FALSE | KEK2: FALSE | KEL2: FALSE | KEM2: FALSE | KEN2: FALSE | KEO2: FALSE | KEP2: FALSE | KEQ2: FALSE | KER2: FALSE | KES2: FALSE | KET2: FALSE | KEU2: FALSE | KEV2: FALSE | KEW2: FALSE | KEX2: FALSE | KEY2: FALSE | KEZ2: FALSE | KFA2: TRUE | KFB2: FALSE | KFC2: FALSE | KFD2: FALSE | KFE2: FALSE | KFF2: FALSE | KFG2: FALSE | KFH2: FALSE | KFI2: FALSE | KFJ2: FALSE | KFK2: FALSE | KFL2: FALSE | KFM2: FALSE | KFN2: FALSE | KFO2: FALSE | KFP2: FALSE | KFQ2: FALSE | KFR2: FALSE | KFS2: FALSE | KFT2: FALSE | KFU2: FALSE | KFV2: FALSE | KFW2: FALSE | KFX2: FALSE | KFY2: TRUE | KFZ2: FALSE | KGA2: FALSE | KGB2: FALSE | KGC2: FALSE | KGD2: FALSE | KGE2: FALSE | KGF2: FALSE | KGG2: FALSE | KGH2: =MOD(KGH1,$F$2)=0 -> FALSE | KGI2: FALSE | KGJ2: FALSE | KGK2: FALSE | KGL2: FALSE | KGM2: FALSE | KGN2: FALSE | KGO2: FALSE | KGP2: FALSE | KGQ2: FALSE | KGR2: FALSE | KGS2: FALSE | KGT2: FALSE | KGU2: FALSE | KGV2: FALSE | KGW2: TRUE | KGX2: FALSE | KGY2: FALSE | KGZ2: FALSE | KHA2: FALSE | KHB2: FALSE | KHC2: FALSE | KHD2: FALSE | KHE2: FALSE | KHF2: FALSE | KHG2: FALSE | KHH2: FALSE | KHI2: FALSE | KHJ2: FALSE | KHK2: FALSE | KHL2: FALSE | KHM2: FALSE | KHN2: FALSE | KHO2: FALSE | KHP2: FALSE | KHQ2: FALSE | KHR2: FALSE | KHS2: FALSE | KHT2: FALSE | KHU2: TRUE | KHV2: FALSE | KHW2: FALSE | KHX2: FALSE | KHY2: FALSE | KHZ2: FALSE | KIA2: FALSE | KIB2: FALSE | KIC2: FALSE | KID2: FALSE | KIE2: FALSE | KIF2: FALSE | KIG2: FALSE | KIH2: FALSE | KII2: FALSE | KIJ2: FALSE | KIK2: FALSE | KIL2: FALSE | KIM2: FALSE | KIN2: FALSE | KIO2: FALSE | KIP2: FALSE | KIQ2: FALSE | KIR2: FALSE | KIS2: TRUE | KIT2: =MOD(KIT1,$F$2)=0 -> FALSE | KIU2: FALSE | KIV2: FALSE | KIW2: FALSE | KIX2: FALSE | KIY2: FALSE | KIZ2: FALSE | KJA2: FALSE | KJB2: FALSE | KJC2: FALSE | KJD2: FALSE | KJE2: FALSE | KJF2: FALSE | KJG2: FALSE | KJH2: FALSE | KJI2: FALSE | KJJ2: FALSE | KJK2: FALSE | KJL2: FALSE | KJM2: FALSE | KJN2: FALSE | KJO2: FALSE | KJP2: FALSE | KJQ2: TRUE | KJR2: FALSE | KJS2: FALSE | KJT2: FALSE | KJU2: FALSE | KJV2: FALSE | KJW2: FALSE | KJX2: FALSE | KJY2: FALSE | KJZ2: FALSE | KKA2: FALSE | KKB2: FALSE | KKC2: FALSE | KKD2: FALSE | KKE2: FALSE | KKF2: FALSE | KKG2: FALSE | KKH2: FALSE | KKI2: FALSE | KKJ2: FALSE | KKK2: FALSE | KKL2: FALSE | KKM2: FALSE | KKN2: FALSE | KKO2: TRUE | KKP2: FALSE | KKQ2: FALSE | KKR2: FALSE | KKS2: FALSE | KKT2: FALSE | KKU2: FALSE | KKV2: FALSE | KKW2: FALSE | KKX2: FALSE | KKY2: FALSE | KKZ2: FALSE | KLA2: FALSE | KLB2: FALSE | KLC2: FALSE | KLD2: FALSE | KLE2: FALSE | KLF2: =MOD(KLF1,$F$2)=0 -> FALSE | KLG2: FALSE | KLH2: FALSE | KLI2: FALSE | KLJ2: FALSE | KLK2: FALSE | KLL2: FALSE | KLM2: TRUE | KLN2: FALSE | KLO2: FALSE | KLP2: FALSE | KLQ2: FALSE | KLR2: FALSE | KLS2: FALSE | KLT2: FALSE | KLU2: FALSE | KLV2: FALSE | KLW2: FALSE | KLX2: FALSE | KLY2: FALSE | KLZ2: FALSE | KMA2: FALSE | KMB2: FALSE | KMC2: FALSE | KMD2: FALSE | KME2: FALSE | KMF2: FALSE | KMG2: FALSE | KMH2: FALSE | KMI2: FALSE | KMJ2: FALSE | KMK2: TRUE | KML2: FALSE | KMM2: FALSE | KMN2: FALSE | KMO2: FALSE | KMP2: FALSE | KMQ2: FALSE | KMR2: FALSE | KMS2: FALSE | KMT2: FALSE | KMU2: FALSE | KMV2: FALSE | KMW2: FALSE | KMX2: FALSE | KMY2: FALSE | KMZ2: FALSE | KNA2: FALSE | KNB2: FALSE | KNC2: FALSE | KND2: FALSE | KNE2: FALSE | KNF2: FALSE | KNG2: FALSE | KNH2: FALSE | KNI2: TRUE | KNJ2: FALSE | KNK2: FALSE | KNL2: FALSE | KNM2: FALSE | KNN2: FALSE | KNO2: FALSE | KNP2: FALSE | KNQ2: FALSE | KNR2: =MOD(KNR1,$F$2)=0 -> FALSE | KNS2: FALSE | KNT2: FALSE | KNU2: FALSE | KNV2: FALSE | KNW2: FALSE | KNX2: FALSE | KNY2: FALSE | KNZ2: FALSE | KOA2: FALSE | KOB2: FALSE | KOC2: FALSE | KOD2: FALSE | KOE2: FALSE | KOF2: FALSE | KOG2: TRUE | KOH2: FALSE | KOI2: FALSE | KOJ2: FALSE | KOK2: FALSE | KOL2: FALSE | KOM2: FALSE | KON2: FALSE | KOO2: FALSE | KOP2: FALSE | KOQ2: FALSE | KOR2: FALSE | KOS2: FALSE | KOT2: FALSE | KOU2: FALSE | KOV2: FALSE | KOW2: FALSE | KOX2: FALSE | KOY2: FALSE | KOZ2: FALSE | KPA2: FALSE | KPB2: FALSE | KPC2: FALSE | KPD2: FALSE | KPE2: TRUE | KPF2: FALSE | KPG2: FALSE | KPH2: FALSE | KPI2: FALSE | KPJ2: FALSE | KPK2: FALSE | KPL2: FALSE | KPM2: FALSE | KPN2: FALSE | KPO2: FALSE | KPP2: FALSE | KPQ2: FALSE | KPR2: FALSE | KPS2: FALSE | KPT2: FALSE | KPU2: FALSE | KPV2: FALSE | KPW2: FALSE | KPX2: FALSE | KPY2: FALSE | KPZ2: FALSE | KQA2: FALSE | KQB2: FALSE | KQC2: TRUE | KQD2: =MOD(KQD1,$F$2)=0 -> FALSE | KQE2: FALSE | KQF2: FALSE | KQG2: FALSE | KQH2: FALSE | KQI2: FALSE | KQJ2: FALSE | KQK2: FALSE | KQL2: FALSE | KQM2: FALSE | KQN2: FALSE | KQO2: FALSE | KQP2: FALSE | KQQ2: FALSE | KQR2: FALSE | KQS2: FALSE | KQT2: FALSE | KQU2: FALSE | KQV2: FALSE | KQW2: FALSE | KQX2: FALSE | KQY2: FALSE | KQZ2: FALSE | KRA2: TRUE | KRB2: FALSE | KRC2: FALSE | KRD2: FALSE | KRE2: FALSE | KRF2: FALSE | KRG2: FALSE | KRH2: FALSE | KRI2: FALSE | KRJ2: FALSE | KRK2: FALSE | KRL2: FALSE | KRM2: FALSE | KRN2: FALSE | KRO2: FALSE | KRP2: FALSE | KRQ2: FALSE | KRR2: FALSE | KRS2: FALSE | KRT2: FALSE | KRU2: FALSE | KRV2: FALSE | KRW2: FALSE | KRX2: FALSE | KRY2: TRUE | KRZ2: FALSE | KSA2: FALSE | KSB2: FALSE | KSC2: FALSE | KSD2: FALSE | KSE2: FALSE | KSF2: FALSE | KSG2: FALSE | KSH2: FALSE | KSI2: FALSE | KSJ2: FALSE | KSK2: FALSE | KSL2: FALSE | KSM2: FALSE | KSN2: FALSE | KSO2: FALSE | KSP2: =MOD(KSP1,$F$2)=0 -> FALSE | KSQ2: FALSE | KSR2: FALSE | KSS2: FALSE | KST2: FALSE | KSU2: FALSE | KSV2: FALSE | KSW2: TRUE | KSX2: FALSE | KSY2: FALSE | KSZ2: FALSE | KTA2: FALSE | KTB2: FALSE | KTC2: FALSE | KTD2: FALSE | KTE2: FALSE | KTF2: FALSE | KTG2: FALSE | KTH2: FALSE | KTI2: FALSE | KTJ2: FALSE | KTK2: FALSE | KTL2: FALSE | KTM2: FALSE | KTN2: FALSE | KTO2: FALSE | KTP2: FALSE | KTQ2: FALSE | KTR2: FALSE | KTS2: FALSE | KTT2: FALSE | KTU2: TRUE | KTV2: FALSE | KTW2: FALSE | KTX2: FALSE | KTY2: FALSE | KTZ2: FALSE | KUA2: FALSE | KUB2: FALSE | KUC2: FALSE | KUD2: FALSE | KUE2: FALSE | KUF2: FALSE | KUG2: FALSE | KUH2: FALSE | KUI2: FALSE | KUJ2: FALSE | KUK2: FALSE | KUL2: FALSE | KUM2: FALSE | KUN2: FALSE | KUO2: FALSE | KUP2: FALSE | KUQ2: FALSE | KUR2: FALSE | KUS2: TRUE | KUT2: FALSE | KUU2: FALSE | KUV2: FALSE | KUW2: FALSE | KUX2: FALSE | KUY2: FALSE | KUZ2: FALSE | KVA2: FALSE | KVB2: =MOD(KVB1,$F$2)=0 -> FALSE | KVC2: FALSE | KVD2: FALSE | KVE2: FALSE | KVF2: FALSE | KVG2: FALSE | KVH2: FALSE | KVI2: FALSE | KVJ2: FALSE | KVK2: FALSE | KVL2: FALSE | KVM2: FALSE | KVN2: FALSE | KVO2: FALSE | KVP2: FALSE | KVQ2: TRUE | KVR2: FALSE | KVS2: FALSE | KVT2: FALSE | KVU2: FALSE | KVV2: FALSE | KVW2: FALSE | KVX2: FALSE | KVY2: FALSE | KVZ2: FALSE | KWA2: FALSE | KWB2: FALSE | KWC2: FALSE | KWD2: FALSE | KWE2: FALSE | KWF2: FALSE | KWG2: FALSE | KWH2: FALSE | KWI2: FALSE | KWJ2: FALSE | KWK2: FALSE | KWL2: FALSE | KWM2: FALSE | KWN2: FALSE | KWO2: TRUE | KWP2: FALSE | KWQ2: FALSE | KWR2: FALSE | KWS2: FALSE | KWT2: FALSE | KWU2: FALSE | KWV2: FALSE | KWW2: FALSE | KWX2: FALSE | KWY2: FALSE | KWZ2: FALSE | KXA2: FALSE | KXB2: FALSE | KXC2: FALSE | KXD2: FALSE | KXE2: FALSE | KXF2: FALSE | KXG2: FALSE | KXH2: FALSE | KXI2: FALSE | KXJ2: FALSE | KXK2: FALSE | KXL2: FALSE | KXM2: TRUE | KXN2: =MOD(KXN1,$F$2)=0 -> FALSE | KXO2: FALSE | KXP2: FALSE | KXQ2: FALSE | KXR2: FALSE | KXS2: FALSE | KXT2: FALSE | KXU2: FALSE | KXV2: FALSE | KXW2: FALSE | KXX2: FALSE | KXY2: FALSE | KXZ2: FALSE | KYA2: FALSE | KYB2: FALSE | KYC2: FALSE | KYD2: FALSE | KYE2: FALSE | KYF2: FALSE | KYG2: FALSE | KYH2: FALSE | KYI2: FALSE | KYJ2: FALSE | KYK2: TRUE | KYL2: FALSE | KYM2: FALSE | KYN2: FALSE | KYO2: FALSE | KYP2: FALSE | KYQ2: FALSE | KYR2: FALSE | KYS2: FALSE | KYT2: FALSE | KYU2: FALSE | KYV2: FALSE | KYW2: FALSE | KYX2: FALSE | KYY2: FALSE | KYZ2: FALSE | KZA2: FALSE | KZB2: FALSE | KZC2: FALSE | KZD2: FALSE | KZE2: FALSE | KZF2: FALSE | KZG2: FALSE | KZH2: FALSE | KZI2: TRUE | KZJ2: FALSE | KZK2: FALSE | KZL2: FALSE | KZM2: FALSE | KZN2: FALSE | KZO2: FALSE | KZP2: FALSE | KZQ2: FALSE | KZR2: FALSE | KZS2: FALSE | KZT2: FALSE | KZU2: FALSE | KZV2: FALSE | KZW2: FALSE | KZX2: FALSE | KZY2: FALSE | KZZ2: =MOD(KZZ1,$F$2)=0 -> FALSE | LAA2: FALSE | LAB2: FALSE | LAC2: FALSE | LAD2: FALSE | LAE2: FALSE | LAF2: FALSE | LAG2: TRUE | LAH2: FALSE | LAI2: FALSE | LAJ2: FALSE | LAK2: FALSE | LAL2: FALSE | LAM2: FALSE | LAN2: FALSE | LAO2: FALSE | LAP2: FALSE | LAQ2: FALSE | LAR2: FALSE | LAS2: FALSE | LAT2: FALSE | LAU2: FALSE | LAV2: FALSE | LAW2: FALSE | LAX2: FALSE | LAY2: FALSE | LAZ2: FALSE | LBA2: FALSE | LBB2: FALSE | LBC2: FALSE | LBD2: FALSE | LBE2: TRUE | LBF2: FALSE | LBG2: FALSE | LBH2: FALSE | LBI2: FALSE | LBJ2: FALSE | LBK2: FALSE | LBL2: FALSE | LBM2: FALSE | LBN2: FALSE | LBO2: FALSE | LBP2: FALSE | LBQ2: FALSE | LBR2: FALSE | LBS2: FALSE | LBT2: FALSE | LBU2: FALSE | LBV2: FALSE | LBW2: FALSE | LBX2: FALSE | LBY2: FALSE | LBZ2: FALSE | LCA2: FALSE | LCB2: FALSE | LCC2: TRUE | LCD2: FALSE | LCE2: FALSE | LCF2: FALSE | LCG2: FALSE | LCH2: FALSE | LCI2: FALSE | LCJ2: FALSE | LCK2: FALSE | LCL2: =MOD(LCL1,$F$2)=0 -> FALSE | LCM2: FALSE | LCN2: FALSE | LCO2: FALSE | LCP2: FALSE | LCQ2: FALSE | LCR2: FALSE | LCS2: FALSE | LCT2: FALSE | LCU2: FALSE | LCV2: FALSE | LCW2: FALSE | LCX2: FALSE | LCY2: FALSE | LCZ2: FALSE | LDA2: TRUE | LDB2: FALSE | LDC2: FALSE | LDD2: FALSE | LDE2: FALSE | LDF2: FALSE | LDG2: FALSE | LDH2: FALSE | LDI2: FALSE | LDJ2: FALSE | LDK2: FALSE | LDL2: FALSE | LDM2: FALSE | LDN2: FALSE | LDO2: FALSE | LDP2: FALSE | LDQ2: FALSE | LDR2: FALSE | LDS2: FALSE | LDT2: FALSE | LDU2: FALSE | LDV2: FALSE | LDW2: FALSE | LDX2: FALSE | LDY2: TRUE | LDZ2: FALSE | LEA2: FALSE | LEB2: FALSE | LEC2: FALSE | LED2: FALSE | LEE2: FALSE | LEF2: FALSE | LEG2: FALSE | LEH2: FALSE | LEI2: FALSE | LEJ2: FALSE | LEK2: FALSE | LEL2: FALSE | LEM2: FALSE | LEN2: FALSE | LEO2: FALSE | LEP2: FALSE | LEQ2: FALSE | LER2: FALSE | LES2: FALSE | LET2: FALSE | LEU2: FALSE | LEV2: FALSE | LEW2: TRUE | LEX2: =MOD(LEX1,$F$2)=0 -> FALSE | LEY2: FALSE | LEZ2: FALSE | LFA2: FALSE | LFB2: FALSE | LFC2: FALSE | LFD2: FALSE | LFE2: FALSE | LFF2: FALSE | LFG2: FALSE | LFH2: FALSE | LFI2: FALSE | LFJ2: FALSE | LFK2: FALSE | LFL2: FALSE | LFM2: FALSE | LFN2: FALSE | LFO2: FALSE | LFP2: FALSE | LFQ2: FALSE | LFR2: FALSE | LFS2: FALSE | LFT2: FALSE | LFU2: TRUE | LFV2: FALSE | LFW2: FALSE | LFX2: FALSE | LFY2: FALSE | LFZ2: FALSE | LGA2: FALSE | LGB2: FALSE | LGC2: FALSE | LGD2: FALSE | LGE2: FALSE | LGF2: FALSE | LGG2: FALSE | LGH2: FALSE | LGI2: FALSE | LGJ2: FALSE | LGK2: FALSE | LGL2: FALSE | LGM2: FALSE | LGN2: FALSE | LGO2: FALSE | LGP2: FALSE | LGQ2: FALSE | LGR2: FALSE | LGS2: TRUE | LGT2: FALSE | LGU2: FALSE | LGV2: FALSE | LGW2: FALSE | LGX2: FALSE | LGY2: FALSE | LGZ2: FALSE | LHA2: FALSE | LHB2: FALSE | LHC2: FALSE | LHD2: FALSE | LHE2: FALSE | LHF2: FALSE | LHG2: FALSE | LHH2: FALSE | LHI2: FALSE | LHJ2: =MOD(LHJ1,$F$2)=0 -> FALSE | LHK2: FALSE | LHL2: FALSE | LHM2: FALSE | LHN2: FALSE | LHO2: FALSE | LHP2: FALSE | LHQ2: TRUE | LHR2: FALSE | LHS2: FALSE | LHT2: FALSE | LHU2: FALSE | LHV2: FALSE | LHW2: FALSE | LHX2: FALSE | LHY2: FALSE | LHZ2: FALSE | LIA2: FALSE | LIB2: FALSE | LIC2: FALSE | LID2: FALSE | LIE2: FALSE | LIF2: FALSE | LIG2: FALSE | LIH2: FALSE | LII2: FALSE | LIJ2: FALSE | LIK2: FALSE | LIL2: FALSE | LIM2: FALSE | LIN2: FALSE | LIO2: TRUE | LIP2: FALSE | LIQ2: FALSE | LIR2: FALSE | LIS2: FALSE | LIT2: FALSE | LIU2: FALSE | LIV2: FALSE | LIW2: FALSE | LIX2: FALSE | LIY2: FALSE | LIZ2: FALSE | LJA2: FALSE | LJB2: FALSE | LJC2: FALSE | LJD2: FALSE | LJE2: FALSE | LJF2: FALSE | LJG2: FALSE | LJH2: FALSE | LJI2: FALSE | LJJ2: FALSE | LJK2: FALSE | LJL2: FALSE | LJM2: TRUE | LJN2: FALSE | LJO2: FALSE | LJP2: FALSE | LJQ2: FALSE | LJR2: FALSE | LJS2: FALSE | LJT2: FALSE | LJU2: FALSE | LJV2: =MOD(LJV1,$F$2)=0 -> FALSE | LJW2: FALSE | LJX2: FALSE | LJY2: FALSE | LJZ2: FALSE | LKA2: FALSE | LKB2: FALSE | LKC2: FALSE | LKD2: FALSE | LKE2: FALSE | LKF2: FALSE | LKG2: FALSE | LKH2: FALSE | LKI2: FALSE | LKJ2: FALSE | LKK2: TRUE | LKL2: FALSE | LKM2: FALSE | LKN2: FALSE | LKO2: FALSE | LKP2: FALSE | LKQ2: FALSE | LKR2: FALSE | LKS2: FALSE | LKT2: FALSE | LKU2: FALSE | LKV2: FALSE | LKW2: FALSE | LKX2: FALSE | LKY2: FALSE | LKZ2: FALSE | LLA2: FALSE | LLB2: FALSE | LLC2: FALSE | LLD2: FALSE | LLE2: FALSE | LLF2: FALSE | LLG2: FALSE | LLH2: FALSE | LLI2: TRUE | LLJ2: FALSE | LLK2: FALSE | LLL2: FALSE | LLM2: FALSE | LLN2: FALSE | LLO2: FALSE | LLP2: FALSE | LLQ2: FALSE | LLR2: FALSE | LLS2: FALSE | LLT2: FALSE | LLU2: FALSE | LLV2: FALSE | LLW2: FALSE | LLX2: FALSE | LLY2: FALSE | LLZ2: FALSE | LMA2: FALSE | LMB2: FALSE | LMC2: FALSE | LMD2: FALSE | LME2: FALSE | LMF2: FALSE | LMG2: TRUE | LMH2: =MOD(LMH1,$F$2)=0 -> FALSE | LMI2: FALSE | LMJ2: FALSE | LMK2: FALSE | LML2: FALSE | LMM2: FALSE | LMN2: FALSE | LMO2: FALSE | LMP2: FALSE | LMQ2: FALSE | LMR2: FALSE | LMS2: FALSE | LMT2: FALSE | LMU2: FALSE | LMV2: FALSE | LMW2: FALSE | LMX2: FALSE | LMY2: FALSE | LMZ2: FALSE | LNA2: FALSE | LNB2: FALSE | LNC2: FALSE | LND2: FALSE | LNE2: TRUE | LNF2: FALSE | LNG2: FALSE | LNH2: FALSE | LNI2: FALSE | LNJ2: FALSE | LNK2: FALSE | LNL2: FALSE | LNM2: FALSE | LNN2: FALSE | LNO2: FALSE | LNP2: FALSE | LNQ2: FALSE | LNR2: FALSE | LNS2: FALSE | LNT2: FALSE | LNU2: FALSE | LNV2: FALSE | LNW2: FALSE | LNX2: FALSE | LNY2: FALSE | LNZ2: FALSE | LOA2: FALSE | LOB2: FALSE | LOC2: TRUE | LOD2: FALSE | LOE2: FALSE | LOF2: FALSE | LOG2: FALSE | LOH2: FALSE | LOI2: FALSE | LOJ2: FALSE | LOK2: FALSE | LOL2: FALSE | LOM2: FALSE | LON2: FALSE | LOO2: FALSE | LOP2: FALSE | LOQ2: FALSE | LOR2: FALSE | LOS2: FALSE | LOT2: =MOD(LOT1,$F$2)=0 -> FALSE | LOU2: FALSE | LOV2: FALSE | LOW2: FALSE | LOX2: FALSE | LOY2: FALSE | LOZ2: FALSE | LPA2: TRUE | LPB2: FALSE | LPC2: FALSE | LPD2: FALSE | LPE2: FALSE | LPF2: FALSE | LPG2: FALSE | LPH2: FALSE | LPI2: FALSE | LPJ2: FALSE | LPK2: FALSE | LPL2: FALSE | LPM2: FALSE | LPN2: FALSE | LPO2: FALSE | LPP2: FALSE | LPQ2: FALSE | LPR2: FALSE | LPS2: FALSE | LPT2: FALSE | LPU2: FALSE | LPV2: FALSE | LPW2: FALSE | LPX2: FALSE | LPY2: TRUE | LPZ2: FALSE | LQA2: FALSE | LQB2: FALSE | LQC2: FALSE | LQD2: FALSE | LQE2: FALSE | LQF2: FALSE | LQG2: FALSE | LQH2: FALSE | LQI2: FALSE | LQJ2: FALSE | LQK2: FALSE | LQL2: FALSE | LQM2: FALSE | LQN2: FALSE | LQO2: FALSE | LQP2: FALSE | LQQ2: FALSE | LQR2: FALSE | LQS2: FALSE | LQT2: FALSE | LQU2: FALSE | LQV2: FALSE | LQW2: TRUE | LQX2: FALSE | LQY2: FALSE | LQZ2: FALSE | LRA2: FALSE | LRB2: FALSE | LRC2: FALSE | LRD2: FALSE | LRE2: FALSE | LRF2: =MOD(LRF1,$F$2)=0 -> FALSE | LRG2: FALSE | LRH2: FALSE | LRI2: FALSE | LRJ2: FALSE | LRK2: FALSE | LRL2: FALSE | LRM2: FALSE | LRN2: FALSE | LRO2: FALSE | LRP2: FALSE | LRQ2: FALSE | LRR2: FALSE | LRS2: FALSE | LRT2: FALSE | LRU2: TRUE | LRV2: FALSE | LRW2: FALSE | LRX2: FALSE | LRY2: FALSE | LRZ2: FALSE | LSA2: FALSE | LSB2: FALSE | LSC2: FALSE | LSD2: FALSE | LSE2: FALSE | LSF2: FALSE | LSG2: FALSE | LSH2: FALSE | LSI2: FALSE | LSJ2: FALSE | LSK2: FALSE | LSL2: FALSE | LSM2: FALSE | LSN2: FALSE | LSO2: FALSE | LSP2: FALSE | LSQ2: FALSE | LSR2: FALSE | LSS2: TRUE | LST2: FALSE | LSU2: FALSE | LSV2: FALSE | LSW2: FALSE | LSX2: FALSE | LSY2: FALSE | LSZ2: FALSE | LTA2: FALSE | LTB2: FALSE | LTC2: FALSE | LTD2: FALSE | LTE2: FALSE | LTF2: FALSE | LTG2: FALSE | LTH2: FALSE | LTI2: FALSE | LTJ2: FALSE | LTK2: FALSE | LTL2: FALSE | LTM2: FALSE | LTN2: FALSE | LTO2: FALSE | LTP2: FALSE | LTQ2: TRUE | LTR2: =MOD(LTR1,$F$2)=0 -> FALSE | LTS2: FALSE | LTT2: FALSE | LTU2: FALSE | LTV2: FALSE | LTW2: FALSE | LTX2: FALSE | LTY2: FALSE | LTZ2: FALSE | LUA2: FALSE | LUB2: FALSE | LUC2: FALSE | LUD2: FALSE | LUE2: FALSE | LUF2: FALSE | LUG2: FALSE | LUH2: FALSE | LUI2: FALSE | LUJ2: FALSE | LUK2: FALSE | LUL2: FALSE | LUM2: FALSE | LUN2: FALSE | LUO2: TRUE | LUP2: FALSE | LUQ2: FALSE | LUR2: FALSE | LUS2: FALSE | LUT2: FALSE | LUU2: FALSE | LUV2: FALSE | LUW2: FALSE | LUX2: FALSE | LUY2: FALSE | LUZ2: FALSE | LVA2: FALSE | LVB2: FALSE | LVC2: FALSE | LVD2: FALSE | LVE2: FALSE | LVF2: FALSE | LVG2: FALSE | LVH2: FALSE | LVI2: FALSE | LVJ2: FALSE | LVK2: FALSE | LVL2: FALSE | LVM2: TRUE | LVN2: FALSE | LVO2: FALSE | LVP2: FALSE | LVQ2: FALSE | LVR2: FALSE | LVS2: FALSE | LVT2: FALSE | LVU2: FALSE | LVV2: FALSE | LVW2: FALSE | LVX2: FALSE | LVY2: FALSE | LVZ2: FALSE | LWA2: FALSE | LWB2: FALSE | LWC2: FALSE | LWD2: =MOD(LWD1,$F$2)=0 -> FALSE | LWE2: FALSE | LWF2: FALSE | LWG2: FALSE | LWH2: FALSE | LWI2: FALSE | LWJ2: FALSE | LWK2: TRUE | LWL2: FALSE | LWM2: FALSE | LWN2: FALSE | LWO2: FALSE | LWP2: FALSE | LWQ2: FALSE | LWR2: FALSE | LWS2: FALSE | LWT2: FALSE | LWU2: FALSE | LWV2: FALSE | LWW2: FALSE | LWX2: FALSE | LWY2: FALSE | LWZ2: FALSE | LXA2: FALSE | LXB2: FALSE | LXC2: FALSE | LXD2: FALSE | LXE2: FALSE | LXF2: FALSE | LXG2: FALSE | LXH2: FALSE | LXI2: TRUE | LXJ2: FALSE | LXK2: FALSE | LXL2: FALSE | LXM2: FALSE | LXN2: FALSE | LXO2: FALSE | LXP2: FALSE | LXQ2: FALSE | LXR2: FALSE | LXS2: FALSE | LXT2: FALSE | LXU2: FALSE | LXV2: FALSE | LXW2: FALSE | LXX2: FALSE | LXY2: FALSE | LXZ2: FALSE | LYA2: FALSE | LYB2: FALSE | LYC2: FALSE | LYD2: FALSE | LYE2: FALSE | LYF2: FALSE
